Workbook

Sheet PI vs gap
A1: Measurement | B1: Hall
A2: Type | B2: Gap dependence
A4: Project | B4: ='10 mm'!B5 -> 504314
A5: PS serial no | B5: ='10 mm'!B7 -> 2410084
A7: Measurement date | B7: =LEFT('10 mm'!B4,10) -> 24-07-2024
A11: Nominal gap [mm] | B11: Encoder [counts] | C11: Encoder [mm] | D11: PI [T^2mm^3] | E11: PI spec [T^2mm^3] | F11: Encoder value at 10 mm gap:
A12: ='10 mm'!$B$53 -> 10 | B12: ='10 mm'!$B$55 -> 19.434 | C12: =-1*($F$12-B12)+10 -> 9.9998 | D12: ='10 mm'!$K$3 -> 10682.30028 | F12: 19.4342
A13: ='15 mm'!$B$53 -> 15 | B13: ='15 mm'!$B$55 -> 24.437 | C13: =-1*($F$12-B13)+10 -> 15.0028 | D13: ='15 mm'!$K$3 -> 7289.861681
A14: ='20 mm'!$B$53 -> 20 | B14: ='20 mm'!$B$55 -> 29.4343 | C14: 20.0001 | D14: ='20 mm'!$K$3 -> 5045.317814
A15: ='30 mm'!$B$53 -> 30 | B15: ='30 mm'!$B$55 -> 39.4331 | C15: 29.9989 | D15: ='30 mm'!$K$3 -> 2487.12065
A16: ='100 mm'!$B$53 -> 100 | B16: ='100 mm'!$B$55 -> 109.4462 | C16: 100.012 | D16: ='100 mm'!$K$3 -> 39.6189441
A47: Measuring series at larger gaps:
A48: Reference magnet
A49: Tref | B49: 21.38 | C49: degC
A50: Hall ref field | B50: 0.505 | C50: T
A51: NMR ref field | B51: 0.50627 | C51: T
A53: Offset from Faro

Sheet 10 mm
A1: =IF('DF raw data'!A1="","",'DF raw data'!A1) -> Number of header lines | B1: =IF('DF raw data'!B1="","",'DF raw data'!B1) -> 54 | C1: =IF('DF raw data'!C1="","",'DF raw data'!C1) ->  | D1: =IF('DF raw data'!D1="","",'DF raw data'!D1) ->  | F1: T_coeff | G1: -0.00073 | H1: /degC | J1: IBy total | K1: =J1267*1000 -> 5.924145451 | L1: muTm | M1: =L1267*1000 -> -21.64685765 | R1: DF ref | S1: 1
A2: =IF('DF raw data'!A2="","",'DF raw data'!A2) -> Measured by | B2: =IF('DF raw data'!B2="","",'DF raw data'!B2) -> Danfysik | C2: =IF('DF raw data'!C2="","",'DF raw data'!C2) ->  | D2: =IF('DF raw data'!D2="","",'DF raw data'!D2) ->  | F2: Tcorr | G2: 20 | H2: degC | J2: JBy total | K2: =K1267 -> -6.302217694 | L2: muTm^2 | M2: =M1267 -> -7.097971996
A3: =IF('DF raw data'!A3="","",'DF raw data'!A3) -> Operator | B3: =IF('DF raw data'!B3="","",'DF raw data'!B3) -> PMHA | C3: =IF('DF raw data'!C3="","",'DF raw data'!C3) ->  | D3: =IF('DF raw data'!D3="","",'DF raw data'!D3) ->  | F3: Step | G3: =A68-A67 -> 0.5 | H3: mm | J3: PI total | K3: =N1267 -> 10682.30028 | L3: T^2mm^3
A4: =IF('DF raw data'!A4="","",'DF raw data'!A4) -> Data-time | B4: =IF('DF raw data'!B4="","",'DF raw data'!B4) -> 24-07-2024, 10:59:55 | C4: =IF('DF raw data'!C4="","",'DF raw data'!C4) ->  | D4: =IF('DF raw data'!D4="","",'DF raw data'!D4) -> 
A5: =IF('DF raw data'!A5="","",'DF raw data'!A5) -> Project | B5: =IF('DF raw data'!B5="","",'DF raw data'!B5) -> 504314 | C5: =IF('DF raw data'!C5="","",'DF raw data'!C5) ->  | D5: Bamb avr | F5: =(AVERAGE(B67:B107) + AVERAGE(B1227:B1267))/2 -> -1.554857134e-05 | G5: =(AVERAGE(C67:C107) + AVERAGE(C1227:C1267))/2 -> 8.763771585e-05 | H5: =(AVERAGE(D67:D107) + AVERAGE(D1227:D1267))/2 -> -4.179224146e-05
A6: =IF('DF raw data'!A6="","",'DF raw data'!A6) -> Magnet type | B6: =IF('DF raw data'!B6="","",'DF raw data'!B6) -> Dipole | C6: =IF('DF raw data'!C6="","",'DF raw data'!C6) -> 
A7: =IF('DF raw data'!A7="","",'DF raw data'!A7) -> Magnet nr. | B7: =IF('DF raw data'!B7="","",'DF raw data'!B7) -> 2410084 | C7: =IF('DF raw data'!C7="","",'DF raw data'!C7) -> 
A8: =IF('DF raw data'!A8="","",'DF raw data'!A8) -> Meas. number | B8: =IF('DF raw data'!B8="","",'DF raw data'!B8) -> 98 | C8: =IF('DF raw data'!C8="","",'DF raw data'!C8) -> 
A9: =IF('DF raw data'!A9="","",'DF raw data'!A9) -> Add. info | B9: =IF('DF raw data'!B9="","",'DF raw data'!B9) -> X-alignment scan 3) | C9: =IF('DF raw data'!C9="","",'DF raw data'!C9) ->  | D9: =IF('DF raw data'!D9="","",'DF raw data'!D9) -> 
A10: =IF('DF raw data'!A10="","",'DF raw data'!A10) -> Device | B10: =IF('DF raw data'!B10="","",'DF raw data'!B10) -> (HAL) HALL-PROBE | C10: =IF('DF raw data'!C10="","",'DF raw data'!C10) ->  | D10: =IF('DF raw data'!D10="","",'DF raw data'!D10) -> 
A11: =IF('DF raw data'!A11="","",'DF raw data'!A11) -> Goal | B11: =IF('DF raw data'!B11="","",'DF raw data'!B11) -> (AXI) AXis Integral (Line, EFB) | C11: =IF('DF raw data'!C11="","",'DF raw data'!C11) ->  | D11: =IF('DF raw data'!D11="","",'DF raw data'!D11) -> 
A12: =IF('DF raw data'!A12="","",'DF raw data'!A12) -> Power supply mode | B12: =IF('DF raw data'!B12="","",'DF raw data'!B12) -> (PM) Permanent Magnet (no MPS in use) | C12: =IF('DF raw data'!C12="","",'DF raw data'!C12) ->  | D12: =IF('DF raw data'!D12="","",'DF raw data'!D12) -> 
A13: =IF('DF raw data'!A13="","",'DF raw data'!A13) -> Data format | B13: =IF('DF raw data'!B13="","",'DF raw data'!B13) -> Raw data text file | C13: =IF('DF raw data'!C13="","",'DF raw data'!C13) ->  | D13: =IF('DF raw data'!D13="","",'DF raw data'!D13) -> 
A14: =IF('DF raw data'!A14="","",'DF raw data'!A14) -> Direction of the pos. x-axis | B14: =IF('DF raw data'!B14="","",'DF raw data'!B14) -> See test program | C14: =IF('DF raw data'!C14="","",'DF raw data'!C14) ->  | D14: =IF('DF raw data'!D14="","",'DF raw data'!D14) -> 
A15: =IF('DF raw data'!A15="","",'DF raw data'!A15) -> Direction of the pos. y-axis | B15: =IF('DF raw data'!B15="","",'DF raw data'!B15) -> Vertical up | C15: =IF('DF raw data'!C15="","",'DF raw data'!C15) ->  | D15: =IF('DF raw data'!D15="","",'DF raw data'!D15) -> 
A16: =IF('DF raw data'!A16="","",'DF raw data'!A16) -> Direction of the pos. z-axis | B16: =IF('DF raw data'!B16="","",'DF raw data'!B16) -> See test program | C16: =IF('DF raw data'!C16="","",'DF raw data'!C16) ->  | D16: =IF('DF raw data'!D16="","",'DF raw data'!D16) -> 
A17: =IF('DF raw data'!A17="","",'DF raw data'!A17) -> Mapper type | B17: =IF('DF raw data'!B17="","",'DF raw data'!B17) -> Precision Hall Mapper | C17: =IF('DF raw data'!C17="","",'DF raw data'!C17) ->  | D17: =IF('DF raw data'!D17="","",'DF raw data'!D17) -> 
A18: =IF('DF raw data'!A18="","",'DF raw data'!A18) -> Mapper Danfysik Reg. Number | B18: =IF('DF raw data'!B18="","",'DF raw data'!B18) -> 2033-D (mapper 1) | C18: =IF('DF raw data'!C18="","",'DF raw data'!C18) ->  | D18: =IF('DF raw data'!D18="","",'DF raw data'!D18) -> 
A19: =IF('DF raw data'!A19="","",'DF raw data'!A19) -> Measurement consept | B19: =IF('DF raw data'!B19="","",'DF raw data'!B19) -> Square line grid | C19: =IF('DF raw data'!C19="","",'DF raw data'!C19) ->  | D19: =IF('DF raw data'!D19="","",'DF raw data'!D19) -> 
A20: =IF('DF raw data'!A20="","",'DF raw data'!A20) -> Mode | B20: =IF('DF raw data'!B20="","",'DF raw data'!B20) -> On-the-fly measurement | C20: =IF('DF raw data'!C20="","",'DF raw data'!C20) ->  | D20: =IF('DF raw data'!D20="","",'DF raw data'!D20) -> 
A21: =IF('DF raw data'!A21="","",'DF raw data'!A21) ->  | B21: =IF('DF raw data'!B21="","",'DF raw data'!B21) ->  | C21: =IF('DF raw data'!C21="","",'DF raw data'!C21) ->  | D21: =IF('DF raw data'!D21="","",'DF raw data'!D21) -> 
A22: =IF('DF raw data'!A22="","",'DF raw data'!A22) -> Probe Name | B22: =IF('DF raw data'!B22="","",'DF raw data'!B22) -> ID12_By | C22: =IF('DF raw data'!C22="","",'DF raw data'!C22) ->  | D22: =IF('DF raw data'!D22="","",'DF raw data'!D22) -> 
A23: =IF('DF raw data'!A23="","",'DF raw data'!A23) -> Probe Type | B23: =IF('DF raw data'!B23="","",'DF raw data'!B23) -> DF_ID_3D_Bxyz | C23: =IF('DF raw data'!C23="","",'DF raw data'!C23) ->  | D23: =IF('DF raw data'!D23="","",'DF raw data'!D23) -> 
A24: =IF('DF raw data'!A24="","",'DF raw data'!A24) -> Probe Danfysik Reg. Number | B24: =IF('DF raw data'!B24="","",'DF raw data'!B24) -> 2277 | C24: =IF('DF raw data'!C24="","",'DF raw data'!C24) ->  | D24: =IF('DF raw data'!D24="","",'DF raw data'!D24) -> 
A25: =IF('DF raw data'!A25="","",'DF raw data'!A25) -> Probe Axis | B25: =IF('DF raw data'!B25="","",'DF raw data'!B25) -> By | C25: =IF('DF raw data'!C25="","",'DF raw data'!C25) ->  | D25: =IF('DF raw data'!D25="","",'DF raw data'!D25) -> 
A26: =IF('DF raw data'!A26="","",'DF raw data'!A26) -> Probe Current Supply | B26: =IF('DF raw data'!B26="","",'DF raw data'!B26) -> 1825-D | C26: =IF('DF raw data'!C26="","",'DF raw data'!C26) ->  | D26: =IF('DF raw data'!D26="","",'DF raw data'!D26) -> 
A27: =IF('DF raw data'!A27="","",'DF raw data'!A27) -> Probe Gain Correction | B27: =IF('DF raw data'!B27="","",'DF raw data'!B27) -> 0.99612 | C27: =IF('DF raw data'!C27="","",'DF raw data'!C27) ->  | D27: =IF('DF raw data'!D27="","",'DF raw data'!D27) -> 
A28: =IF('DF raw data'!A28="","",'DF raw data'!A28) -> Probe Offset Correction | B28: =IF('DF raw data'!B28="","",'DF raw data'!B28) -> 0.0027559 | C28: =IF('DF raw data'!C28="","",'DF raw data'!C28) ->  | D28: =IF('DF raw data'!D28="","",'DF raw data'!D28) -> 
A29: =IF('DF raw data'!A29="","",'DF raw data'!A29) -> DVM Number | B29: =IF('DF raw data'!B29="","",'DF raw data'!B29) -> 2 | C29: =IF('DF raw data'!C29="","",'DF raw data'!C29) ->  | D29: =IF('DF raw data'!D29="","",'DF raw data'!D29) -> 
A30: =IF('DF raw data'!A30="","",'DF raw data'!A30) -> DVM Type | B30: =IF('DF raw data'!B30="","",'DF raw data'!B30) -> K2701 | C30: =IF('DF raw data'!C30="","",'DF raw data'!C30) ->  | D30: =IF('DF raw data'!D30="","",'DF raw data'!D30) -> 
A31: =IF('DF raw data'!A31="","",'DF raw data'!A31) -> DVM Danfysik Reg. Number | B31: =IF('DF raw data'!B31="","",'DF raw data'!B31) -> 1743-D | C31: =IF('DF raw data'!C31="","",'DF raw data'!C31) ->  | D31: =IF('DF raw data'!D31="","",'DF raw data'!D31) -> 
A32: =IF('DF raw data'!A32="","",'DF raw data'!A32) -> Probe Name | B32: =IF('DF raw data'!B32="","",'DF raw data'!B32) -> ID12_Bx | C32: =IF('DF raw data'!C32="","",'DF raw data'!C32) ->  | D32: =IF('DF raw data'!D32="","",'DF raw data'!D32) -> 
A33: =IF('DF raw data'!A33="","",'DF raw data'!A33) -> Probe Type | B33: =IF('DF raw data'!B33="","",'DF raw data'!B33) -> DF_ID_3D_Bxyz | C33: =IF('DF raw data'!C33="","",'DF raw data'!C33) ->  | D33: =IF('DF raw data'!D33="","",'DF raw data'!D33) -> 
A34: =IF('DF raw data'!A34="","",'DF raw data'!A34) -> Probe Danfysik Reg. Number | B34: =IF('DF raw data'!B34="","",'DF raw data'!B34) -> 2277 | C34: =IF('DF raw data'!C34="","",'DF raw data'!C34) ->  | D34: =IF('DF raw data'!D34="","",'DF raw data'!D34) -> 
A35: =IF('DF raw data'!A35="","",'DF raw data'!A35) -> Probe Axis | B35: =IF('DF raw data'!B35="","",'DF raw data'!B35) -> Bx | C35: =IF('DF raw data'!C35="","",'DF raw data'!C35) ->  | D35: =IF('DF raw data'!D35="","",'DF raw data'!D35) -> 
A36: =IF('DF raw data'!A36="","",'DF raw data'!A36) -> Probe Current Supply | B36: =IF('DF raw data'!B36="","",'DF raw data'!B36) -> 1825-D | C36: =IF('DF raw data'!C36="","",'DF raw data'!C36) ->  | D36: =IF('DF raw data'!D36="","",'DF raw data'!D36) -> 
A37: =IF('DF raw data'!A37="","",'DF raw data'!A37) -> Probe Gain Correction | B37: =IF('DF raw data'!B37="","",'DF raw data'!B37) -> 1 | C37: =IF('DF raw data'!C37="","",'DF raw data'!C37) ->  | D37: =IF('DF raw data'!D37="","",'DF raw data'!D37) -> 
A38: =IF('DF raw data'!A38="","",'DF raw data'!A38) -> Probe Offset Correction | B38: =IF('DF raw data'!B38="","",'DF raw data'!B38) -> -0.17567 | C38: =IF('DF raw data'!C38="","",'DF raw data'!C38) ->  | D38: =IF('DF raw data'!D38="","",'DF raw data'!D38) -> 
A39: =IF('DF raw data'!A39="","",'DF raw data'!A39) -> DVM Number | B39: =IF('DF raw data'!B39="","",'DF raw data'!B39) -> 3 | C39: =IF('DF raw data'!C39="","",'DF raw data'!C39) ->  | D39: =IF('DF raw data'!D39="","",'DF raw data'!D39) -> 
A40: =IF('DF raw data'!A40="","",'DF raw data'!A40) -> DVM Type | B40: =IF('DF raw data'!B40="","",'DF raw data'!B40) -> K2701 | C40: =IF('DF raw data'!C40="","",'DF raw data'!C40) ->  | D40: =IF('DF raw data'!D40="","",'DF raw data'!D40) -> 
A41: =IF('DF raw data'!A41="","",'DF raw data'!A41) -> DVM Danfysik Reg. Number | B41: =IF('DF raw data'!B41="","",'DF raw data'!B41) -> 1744-D | C41: =IF('DF raw data'!C41="","",'DF raw data'!C41) ->  | D41: =IF('DF raw data'!D41="","",'DF raw data'!D41) -> 
A42: =IF('DF raw data'!A42="","",'DF raw data'!A42) -> Probe Name | B42: =IF('DF raw data'!B42="","",'DF raw data'!B42) -> ID12_Bz | C42: =IF('DF raw data'!C42="","",'DF raw data'!C42) ->  | D42: =IF('DF raw data'!D42="","",'DF raw data'!D42) -> 
A43: =IF('DF raw data'!A43="","",'DF raw data'!A43) -> Probe Type | B43: =IF('DF raw data'!B43="","",'DF raw data'!B43) -> DF_ID_3D_Bxyz | C43: =IF('DF raw data'!C43="","",'DF raw data'!C43) ->  | D43: =IF('DF raw data'!D43="","",'DF raw data'!D43) -> 
A44: =IF('DF raw data'!A44="","",'DF raw data'!A44) -> Probe Danfysik Reg. Number | B44: =IF('DF raw data'!B44="","",'DF raw data'!B44) -> 2277 | C44: =IF('DF raw data'!C44="","",'DF raw data'!C44) ->  | D44: =IF('DF raw data'!D44="","",'DF raw data'!D44) -> 
A45: =IF('DF raw data'!A45="","",'DF raw data'!A45) -> Probe Axis | B45: =IF('DF raw data'!B45="","",'DF raw data'!B45) -> Bz | C45: =IF('DF raw data'!C45="","",'DF raw data'!C45) ->  | D45: =IF('DF raw data'!D45="","",'DF raw data'!D45) -> 
A46: =IF('DF raw data'!A46="","",'DF raw data'!A46) -> Probe Current Supply | B46: =IF('DF raw data'!B46="","",'DF raw data'!B46) -> 1825-D | C46: =IF('DF raw data'!C46="","",'DF raw data'!C46) ->  | D46: =IF('DF raw data'!D46="","",'DF raw data'!D46) -> 
A47: =IF('DF raw data'!A47="","",'DF raw data'!A47) -> Probe Gain Correction | B47: =IF('DF raw data'!B47="","",'DF raw data'!B47) -> 1 | C47: =IF('DF raw data'!C47="","",'DF raw data'!C47) ->  | D47: =IF('DF raw data'!D47="","",'DF raw data'!D47) -> 
A48: =IF('DF raw data'!A48="","",'DF raw data'!A48) -> Probe Offset Correction | B48: =IF('DF raw data'!B48="","",'DF raw data'!B48) -> 0.0073283 | C48: =IF('DF raw data'!C48="","",'DF raw data'!C48) ->  | D48: =IF('DF raw data'!D48="","",'DF raw data'!D48) -> 
A49: =IF('DF raw data'!A49="","",'DF raw data'!A49) -> DVM Number | B49: =IF('DF raw data'!B49="","",'DF raw data'!B49) -> 8 | C49: =IF('DF raw data'!C49="","",'DF raw data'!C49) ->  | D49: =IF('DF raw data'!D49="","",'DF raw data'!D49) -> 
A50: =IF('DF raw data'!A50="","",'DF raw data'!A50) -> DVM Type | B50: =IF('DF raw data'!B50="","",'DF raw data'!B50) -> K2700 | C50: =IF('DF raw data'!C50="","",'DF raw data'!C50) ->  | D50: =IF('DF raw data'!D50="","",'DF raw data'!D50) -> 
A51: =IF('DF raw data'!A51="","",'DF raw data'!A51) -> DVM Danfysik Reg. Number | B51: =IF('DF raw data'!B51="","",'DF raw data'!B51) -> 1756-D | C51: =IF('DF raw data'!C51="","",'DF raw data'!C51) ->  | D51: =IF('DF raw data'!D51="","",'DF raw data'!D51) -> 
A52: =IF('DF raw data'!A52="","",'DF raw data'!A52) -> NTC voltage | B52: =IF('DF raw data'!B52="","",'DF raw data'!B52) -> 0.38577 | C52: =IF('DF raw data'!C52="","",'DF raw data'!C52) ->  | D52: =IF('DF raw data'!D52="","",'DF raw data'!D52) -> 
A53: =IF('DF raw data'!A53="","",'DF raw data'!A53) -> PS-Gap: | B53: =IF('DF raw data'!B53="","",'DF raw data'!B53) -> 10 | C53: =IF('DF raw data'!C53="","",'DF raw data'!C53) ->  | D53: =IF('DF raw data'!D53="","",'DF raw data'!D53) -> 
A54: =IF('DF raw data'!A54="","",'DF raw data'!A54) -> PS-Temperature: | B54: =IF('DF raw data'!B54="","",'DF raw data'!B54) -> 25.5 | C54: =IF('DF raw data'!C54="","",'DF raw data'!C54) ->  | D54: =IF('DF raw data'!D54="","",'DF raw data'!D54) -> 
A55: =IF('DF raw data'!A55="","",'DF raw data'!A55) -> PS-Encoder: | B55: =IF('DF raw data'!B55="","",'DF raw data'!B55) -> 19.434 | C55: =IF('DF raw data'!C55="","",'DF raw data'!C55) ->  | D55: =IF('DF raw data'!D55="","",'DF raw data'!D55) -> 
A56: =IF('DF raw data'!A56="","",'DF raw data'!A56) ->  | B56: =IF('DF raw data'!B56="","",'DF raw data'!B56) -> 
A57: =IF('DF raw data'!A57="","",'DF raw data'!A57) -> Monitor-Index | B57: =IF('DF raw data'!B57="","",'DF raw data'!B57) -> [1,1,4]
A58: =IF('DF raw data'!A58="","",'DF raw data'!A58) ->  | B58: =IF('DF raw data'!B58="","",'DF raw data'!B58) -> 
A59: =IF('DF raw data'!A59="","",'DF raw data'!A59) -> Time [s] | B59: =IF('DF raw data'!B59="","",'DF raw data'!B59) -> Y [mm]
A60: =IF('DF raw data'!A60="","",'DF raw data'!A60) ->  | B60: =IF('DF raw data'!B60="","",'DF raw data'!B60) -> 
A61: =IF('DF raw data'!A61="","",'DF raw data'!A61) -> 207 | B61: =IF('DF raw data'!B61="","",'DF raw data'!B61) -> 31.1
A62: =IF('DF raw data'!A62="","",'DF raw data'!A62) ->  | B62: =IF('DF raw data'!B62="","",'DF raw data'!B62) -> 
A63: =IF('DF raw data'!A63="","",'DF raw data'!A63) -> Measurement-Index | B63: =IF('DF raw data'!B63="","",'DF raw data'!B63) -> [1,1,1201,2]
A64: =IF('DF raw data'!A64="","",'DF raw data'!A64) ->  | B64: =IF('DF raw data'!B64="","",'DF raw data'!B64) -> 
A65: =IF('DF raw data'!A65="","",'DF raw data'!A65) -> Z [mm] | B65: =IF('DF raw data'!B65="","",'DF raw data'!B65) -> By [T] | C65: =IF('DF raw data'!C65="","",'DF raw data'!C65) -> Bx [T] | D65: =IF('DF raw data'!D65="","",'DF raw data'!D65) -> Bz [T] | F65: By_corr | G65: Bx_corr | H65: Bz_corr | J65: Iy | K65: Jy | L65: Ix | M65: Jx | N65: PI
A66: =IF('DF raw data'!A66="","",'DF raw data'!A66) -> [1, 0, 0, 0] | B66: =IF('DF raw data'!B66="","",'DF raw data'!B66) ->  | C66: =IF('DF raw data'!C66="","",'DF raw data'!C66) ->  | D66: =IF('DF raw data'!D66="","",'DF raw data'!D66) -> 
A67: =IF('DF raw data'!A67="","",'DF raw data'!A67) -> -300 | B67: =IF('DF raw data'!B67="","",'DF raw data'!B67) -> -2.56938e-06 | C67: =IF('DF raw data'!C67="","",'DF raw data'!C67) -> 7.7439e-05 | D67: =IF('DF raw data'!D67="","",'DF raw data'!D67) -> -4.06505e-05 | F67: =(1-$G$1*($B$54-$G$2))*(B67-F$5) -> 1.303130279e-05 | G67: =(1-$G$1*($B$54-$G$2))*(C67-G$5) -> -1.02396637e-05 | H67: =(1-$G$1*($B$54-$G$2))*(D67-H$5) -> 1.146325555e-06 | J67: =F67*$G$3+J66 -> 6.515651397e-06 | K67: =J67*$G$3+K66 -> 3.257825699e-06 | L67: =G67*$G$3+L66 -> -5.119831849e-06 | M67: =L67*$G$3+M66 -> -2.559915924e-06 | N67: =(J67^2+L67^2)*$G$3+N66 -> 3.433319565e-11
A68: =IF('DF raw data'!A68="","",'DF raw data'!A68) -> -299.5 | B68: =IF('DF raw data'!B68="","",'DF raw data'!B68) -> -1.19306e-05 | C68: =IF('DF raw data'!C68="","",'DF raw data'!C68) -> 7.98481e-05 | D68: =IF('DF raw data'!D68="","",'DF raw data'!D68) -> -4.01053e-05 | F68: 3.632497496e-06 | G68: -7.820891161e-06 | H68: 1.693714533e-06 | J68: =F68*$G$3+J67 -> 8.331900146e-06 | K68: =J68*$G$3+K67 -> 7.423775771e-06 | L68: =G68*$G$3+L67 -> -9.03027743e-06 | M68: =L68*$G$3+M67 -> -7.075054639e-06 | N68: =(J68^2+L68^2)*$G$3+N67 -> 1.098164309e-10
A69: =IF('DF raw data'!A69="","",'DF raw data'!A69) -> -299 | B69: =IF('DF raw data'!B69="","",'DF raw data'!B69) -> -1.238e-05 | C69: =IF('DF raw data'!C69="","",'DF raw data'!C69) -> 8.78898e-05 | D69: =IF('DF raw data'!D69="","",'DF raw data'!D69) -> -3.89299e-05 | F69: 3.181293155e-06 | G69: 2.530962642e-07 | H69: 2.873833764e-06 | J69: 9.922546723e-06 | K69: 1.238504913e-05 | L69: -8.903729297e-06 | M69: -1.152691929e-05 | N69: 1.986830953e-10
A70: =IF('DF raw data'!A70="","",'DF raw data'!A70) -> -298.5 | B70: =IF('DF raw data'!B70="","",'DF raw data'!B70) -> -1.35989e-05 | C70: =IF('DF raw data'!C70="","",'DF raw data'!C70) -> 8.93606e-05 | D70: =IF('DF raw data'!D70="","",'DF raw data'!D70) -> -3.79605e-05 | F70: 1.957499272e-06 | G70: 1.729801526e-06 | H70: 3.847125905e-06 | J70: 1.090129636e-05 | K70: 1.783569731e-05 | L70: -8.038828534e-06 | M70: -1.554633356e-05 | N70: 2.904136086e-10
A71: =IF('DF raw data'!A71="","",'DF raw data'!A71) -> -298 | B71: =IF('DF raw data'!B71="","",'DF raw data'!B71) -> -5.0073e-06 | C71: =IF('DF raw data'!C71="","",'DF raw data'!C71) -> 9.82917e-05 | D71: =IF('DF raw data'!D71="","",'DF raw data'!D71) -> -3.81847e-05 | F71: 1.058359455e-05 | G71: 1.069675989e-05 | H71: 3.622025742e-06 | J71: 1.619309363e-05 | K71: 2.593224413e-05 | L71: -2.690448588e-06 | M71: -1.689155785e-05 | N71: 4.251410061e-10
A72: =IF('DF raw data'!A72="","",'DF raw data'!A72) -> -297.5 | B72: =IF('DF raw data'!B72="","",'DF raw data'!B72) -> -1.28783e-06 | C72: =IF('DF raw data'!C72="","",'DF raw data'!C72) -> 9.63333e-05 | D72: =IF('DF raw data'!D72="","",'DF raw data'!D72) -> -3.95251e-05 | F72: 1.431799822e-05 | G72: 8.730496917e-06 | H72: 2.276244036e-06 | J72: 2.335209274e-05 | K72: 3.76082905e-05 | L72: 1.67479987e-06 | M72: -1.605415791e-05 | N72: 6.992036011e-10
A73: =IF('DF raw data'!A73="","",'DF raw data'!A73) -> -297 | B73: =IF('DF raw data'!B73="","",'DF raw data'!B73) -> -1.2187e-05 | C73: =IF('DF raw data'!C73="","",'DF raw data'!C73) -> 8.81163e-05 | D73: =IF('DF raw data'!D73="","",'DF raw data'!D73) -> -4.02335e-05 | F73: 3.37506805e-06 | G73: 4.805056617e-07 | H73: 1.56499981e-06 | J73: 2.503962677e-05 | K73: 5.012810388e-05 | L73: 1.915052701e-06 | M73: -1.509663156e-05 | N73: 1.014528769e-09
A74: =IF('DF raw data'!A74="","",'DF raw data'!A74) -> -296.5 | B74: =IF('DF raw data'!B74="","",'DF raw data'!B74) -> -2.40488e-05 | C74: =IF('DF raw data'!C74="","",'DF raw data'!C74) -> 7.98667e-05 | D74: =IF('DF raw data'!D74="","",'DF raw data'!D74) -> -3.92373e-05 | F74: -8.534357077e-06 | G74: -7.802216482e-06 | H74: 2.565199553e-06 | J74: 2.077244823e-05 | K74: 6.0514328e-05 | L74: -1.98605554e-06 | M74: -1.608965933e-05 | N74: 1.23224828e-09
A75: =IF('DF raw data'!A75="","",'DF raw data'!A75) -> -296 | B75: =IF('DF raw data'!B75="","",'DF raw data'!B75) -> -1.65481e-05 | C75: =IF('DF raw data'!C75="","",'DF raw data'!C75) -> 8.84503e-05 | D75: =IF('DF raw data'!D75="","",'DF raw data'!D75) -> -3.8001e-05 | F75: -1.003541766e-06 | G75: 8.158466717e-07 | H75: 3.806463298e-06 | J75: 2.027067734e-05 | K75: 7.064966667e-05 | L75: -1.578132204e-06 | M75: -1.687872544e-05 | N75: 1.43894371e-09
A76: =IF('DF raw data'!A76="","",'DF raw data'!A76) -> -295.5 | B76: =IF('DF raw data'!B76="","",'DF raw data'!B76) -> -9.30322e-06 | C76: =IF('DF raw data'!C76="","",'DF raw data'!C76) -> 8.97871e-05 | D76: =IF('DF raw data'!D76="","",'DF raw data'!D76) -> -3.79114e-05 | F76: 6.270426427e-06 | G76: 2.158013924e-06 | H76: 3.896423042e-06 | J76: 2.340589056e-05 | K76: 8.235261195e-05 | L76: -4.991252423e-07 | M76: -1.712828806e-05 | N76: 1.71298613e-09
A77: =IF('DF raw data'!A77="","",'DF raw data'!A77) -> -295 | B77: =IF('DF raw data'!B77="","",'DF raw data'!B77) -> -1.14828e-05 | C77: =IF('DF raw data'!C77="","",'DF raw data'!C77) -> 9.48903e-05 | D77: =IF('DF raw data'!D77="","",'DF raw data'!D77) -> -3.82884e-05 | F77: 4.082095413e-06 | G77: 7.281703272e-06 | H77: 3.517909387e-06 | J77: 2.544693827e-05 | K77: 9.507608108e-05 | L77: 3.141726394e-06 | M77: -1.555742486e-05 | N77: 2.041694686e-09
A78: =IF('DF raw data'!A78="","",'DF raw data'!A78) -> -294.5 | B78: =IF('DF raw data'!B78="","",'DF raw data'!B78) -> -1.29575e-05 | C78: =IF('DF raw data'!C78="","",'DF raw data'!C78) -> 8.76743e-05 | D78: =IF('DF raw data'!D78="","",'DF raw data'!D78) -> -3.84289e-05 | F78: 2.601474493e-06 | G78: 3.673103169e-08 | H78: 3.376845279e-06 | J78: 2.674767551e-05 | K78: 0.0001084499188 | L78: 3.160091909e-06 | M78: -1.397737891e-05 | N78: 2.404406849e-09
A79: =IF('DF raw data'!A79="","",'DF raw data'!A79) -> -294 | B79: =IF('DF raw data'!B79="","",'DF raw data'!B79) -> -5.84056e-06 | C79: =IF('DF raw data'!C79="","",'DF raw data'!C79) -> 8.04997e-05 | D79: =IF('DF raw data'!D79="","",'DF raw data'!D79) -> -3.87014e-05 | F79: 9.746989007e-06 | G79: -7.166674987e-06 | H79: 3.103251192e-06 | J79: 3.162117002e-05 | K79: 0.0001242605038 | L79: -4.232455843e-07 | M79: -1.41890017e-05 | N79: 2.904445614e-09
A80: =IF('DF raw data'!A80="","",'DF raw data'!A80) -> -293.5 | B80: =IF('DF raw data'!B80="","",'DF raw data'!B80) -> -1.0713e-05 | C80: =IF('DF raw data'!C80="","",'DF raw data'!C80) -> 8.88304e-05 | D80: =IF('DF raw data'!D80="","",'DF raw data'!D80) -> -3.89558e-05 | F80: 4.85498616e-06 | G80: 1.197472773e-06 | H80: 2.847829776e-06 | J80: 3.40486631e-05 | K80: 0.0001412848354 | L80: 1.754908023e-07 | M80: -1.41012563e-05 | N80: 3.484116742e-09
A81: =IF('DF raw data'!A81="","",'DF raw data'!A81) -> -293 | B81: =IF('DF raw data'!B81="","",'DF raw data'!B81) -> -1.56499e-05 | C81: =IF('DF raw data'!C81="","",'DF raw data'!C81) -> 9.00135e-05 | D81: =IF('DF raw data'!D81="","",'DF raw data'!D81) -> -3.90191e-05 | F81: -1.017354931e-07 | G81: 2.38532292e-06 | H81: 2.784275626e-06 | J81: 3.399779535e-05 | K81: 0.0001582837331 | L81: 1.368152262e-06 | M81: -1.341718017e-05 | N81: 4.062977706e-09
A82: =IF('DF raw data'!A82="","",'DF raw data'!A82) -> -292.5 | B82: =IF('DF raw data'!B82="","",'DF raw data'!B82) -> -5.26309e-06 | C82: =IF('DF raw data'!C82="","",'DF raw data'!C82) -> 7.84106e-05 | D82: =IF('DF raw data'!D82="","",'DF raw data'!D82) -> -3.91895e-05 | F82: 1.032677755e-05 | G82: -9.264162724e-06 | H82: 2.61319147e-06 | J82: 3.916118412e-05 | K82: 0.0001778643251 | L82: -3.2639291e-06 | M82: -1.504914471e-05 | N82: 4.835103494e-09
A83: =IF('DF raw data'!A83="","",'DF raw data'!A83) -> -292 | B83: =IF('DF raw data'!B83="","",'DF raw data'!B83) -> -2.14201e-05 | C83: =IF('DF raw data'!C83="","",'DF raw data'!C83) -> 7.77093e-05 | D83: =IF('DF raw data'!D83="","",'DF raw data'!D83) -> -3.89766e-05 | F83: -5.895102846e-06 | G83: -9.968278443e-06 | H83: 2.826946264e-06 | J83: 3.62136327e-05 | K83: 0.0001959711415 | L83: -8.248068321e-06 | M83: -1.917317888e-05 | N83: 5.524832406e-09
A84: =IF('DF raw data'!A84="","",'DF raw data'!A84) -> -291.5 | B84: =IF('DF raw data'!B84="","",'DF raw data'!B84) -> -1.39237e-05 | C84: =IF('DF raw data'!C84="","",'DF raw data'!C84) -> 7.79322e-05 | D84: =IF('DF raw data'!D84="","",'DF raw data'!D84) -> -3.13088e-05 | F84: 1.6313952e-06 | G84: -9.7444835e-06 | H84: 1.052553248e-05 | J84: 3.70293303e-05 | K84: 0.0002144858066 | L84: -1.312031007e-05 | M84: -2.573333391e-05 | N84: 6.296489325e-09
A85: =IF('DF raw data'!A85="","",'DF raw data'!A85) -> -291 | B85: =IF('DF raw data'!B85="","",'DF raw data'!B85) -> -1.3919e-05 | C85: =IF('DF raw data'!C85="","",'DF raw data'!C85) -> 8.2682e-05 | D85: =IF('DF raw data'!D85="","",'DF raw data'!D85) -> -3.85478e-05 | F85: 1.63611407e-06 | G85: -4.975613053e-06 | H85: 3.257467896e-06 | J85: 3.784738734e-05 | K85: 0.0002334095003 | L85: -1.56081166e-05 | M85: -3.353739221e-05 | N85: 7.134508341e-09
A86: =IF('DF raw data'!A86="","",'DF raw data'!A86) -> -290.5 | B86: =IF('DF raw data'!B86="","",'DF raw data'!B86) -> -7.95789e-06 | C86: =IF('DF raw data'!C86="","",'DF raw data'!C86) -> 8.69193e-05 | D86: =IF('DF raw data'!D86="","",'DF raw data'!D86) -> -3.60602e-05 | F86: 7.621157927e-06 | G86: -7.213002933e-07 | H86: 5.75505561e-06 | J86: 4.16579663e-05 | K86: 0.0002542384834 | L86: -1.596876674e-05 | M86: -4.152177558e-05 | N86: 8.129702175e-09
A87: =IF('DF raw data'!A87="","",'DF raw data'!A87) -> -290 | B87: =IF('DF raw data'!B87="","",'DF raw data'!B87) -> -1.437e-05 | C87: =IF('DF raw data'!C87="","",'DF raw data'!C87) -> 9.18875e-05 | D87: =IF('DF raw data'!D87="","",'DF raw data'!D87) -> -3.52612e-05 | F87: 1.183303305e-06 | G87: 4.26684703e-06 | H87: 6.557263595e-06 | J87: 4.224961795e-05 | K87: 0.0002753632924 | L87: -1.383534323e-05 | M87: -4.84394472e-05 | N87: 9.117925645e-09
A88: =IF('DF raw data'!A88="","",'DF raw data'!A88) -> -289.5 | B88: =IF('DF raw data'!B88="","",'DF raw data'!B88) -> -1.23681e-06 | C88: =IF('DF raw data'!C88="","",'DF raw data'!C88) -> 8.09751e-05 | D88: =IF('DF raw data'!D88="","",'DF raw data'!D88) -> -1.91265e-05 | F88: 1.436922306e-05 | G88: -6.689366256e-06 | H88: 2.275674442e-05 | J88: 4.943422948e-05 | K88: 0.0003000804072 | L88: -1.718002636e-05 | M88: -5.702946038e-05 | N88: 1.048737382e-08
A89: =IF('DF raw data'!A89="","",'DF raw data'!A89) -> -289 | B89: =IF('DF raw data'!B89="","",'DF raw data'!B89) -> -1.18804e-05 | C89: =IF('DF raw data'!C89="","",'DF raw data'!C89) -> 7.67089e-05 | D89: =IF('DF raw data'!D89="","",'DF raw data'!D89) -> -1.84633e-05 | F89: 3.682899049e-06 | G89: -1.097269505e-05 | H89: 2.342260716e-05 | J89: 5.127567901e-05 | K89: 0.0003257182467 | L89: -2.266637388e-05 | M89: -6.836264732e-05 | N89: 1.20588537e-08
A90: =IF('DF raw data'!A90="","",'DF raw data'!A90) -> -288.5 | B90: =IF('DF raw data'!B90="","",'DF raw data'!B90) -> -5.20203e-06 | C90: =IF('DF raw data'!C90="","",'DF raw data'!C90) -> 7.49436e-05 | D90: =IF('DF raw data'!D90="","",'DF raw data'!D90) -> -3.46894e-05 | F90: 1.03880827e-05 | G90: -1.274508273e-05 | H90: 7.131359372e-06 | J90: 5.646972036e-05 | K90: 0.0003539531068 | L90: -2.903891525e-05 | M90: -8.288210494e-05 | N90: 1.407489766e-08
A91: =IF('DF raw data'!A91="","",'DF raw data'!A91) -> -288 | B91: =IF('DF raw data'!B91="","",'DF raw data'!B91) -> -9.88284e-06 | C91: =IF('DF raw data'!C91="","",'DF raw data'!C91) -> 7.44065e-05 | D91: =IF('DF raw data'!D91="","",'DF raw data'!D91) -> -3.36712e-05 | F91: 5.688479253e-06 | G91: -1.328433919e-05 | H91: 8.153647445e-06 | J91: 5.931395999e-05 | K91: 0.0003836100868 | L91: -3.568108484e-05 | M91: -0.0001007226474 | N91: 1.647054049e-08
A92: =IF('DF raw data'!A92="","",'DF raw data'!A92) -> -287.5 | B92: =IF('DF raw data'!B92="","",'DF raw data'!B92) -> -1.53956e-05 | C92: =IF('DF raw data'!C92="","",'DF raw data'!C92) -> 7.60246e-05 | D92: =IF('DF raw data'!D92="","",'DF raw data'!D92) -> -3.56292e-05 | F92: 1.535855214e-07 | G92: -1.165974251e-05 | H92: 6.187786075e-06 | J92: 5.939075275e-05 | K92: 0.0004133054632 | L92: -4.15109561e-05 | M92: -0.0001214781254 | N92: 1.909575099e-08
A93: =IF('DF raw data'!A93="","",'DF raw data'!A93) -> -287 | B93: =IF('DF raw data'!B93="","",'DF raw data'!B93) -> -6.99989e-06 | C93: =IF('DF raw data'!C93="","",'DF raw data'!C93) -> 7.32285e-05 | D93: =IF('DF raw data'!D93="","",'DF raw data'!D93) -> -3.05354e-05 | F93: 8.583004297e-06 | G93: -1.446706886e-05 | H93: 1.130203768e-05 | J93: 6.36822549e-05 | K93: 0.0004451465907 | L93: -4.874449052e-05 | M93: -0.0001458503707 | N93: 2.231147846e-08
A94: =IF('DF raw data'!A94="","",'DF raw data'!A94) -> -286.5 | B94: =IF('DF raw data'!B94="","",'DF raw data'!B94) -> -2.20623e-05 | C94: =IF('DF raw data'!C94="","",'DF raw data'!C94) -> 7.45659e-05 | D94: =IF('DF raw data'!D94="","",'DF raw data'!D94) -> -3.73575e-05 | F94: -6.539881279e-06 | G94: -1.312429919e-05 | H94: 4.45254695e-06 | J94: 6.041231426e-05 | K94: 0.0004753527478 | L94: -5.530664012e-05 | M94: -0.0001735036907 | N94: 2.566571454e-08
A95: =IF('DF raw data'!A95="","",'DF raw data'!A95) -> -286 | B95: =IF('DF raw data'!B95="","",'DF raw data'!B95) -> -1.34708e-05 | C95: =IF('DF raw data'!C95="","",'DF raw data'!C95) -> 8.42802e-05 | D95: =IF('DF raw data'!D95="","",'DF raw data'!D95) -> -3.76819e-05 | F95: 2.086113593e-06 | G95: -3.37099628e-06 | H95: 4.126844484e-06 | J95: 6.145537105e-05 | K95: 0.0005060804333 | L95: -5.699213826e-05 | M95: -0.0002019997599 | N95: 2.917814776e-08
A96: =IF('DF raw data'!A96="","",'DF raw data'!A96) -> -285.5 | B96: =IF('DF raw data'!B96="","",'DF raw data'!B96) -> -2.91128e-05 | C96: =IF('DF raw data'!C96="","",'DF raw data'!C96) -> 8.4629e-05 | D96: =IF('DF raw data'!D96="","",'DF raw data'!D96) -> -4.07316e-05 | F96: -1.361868904e-05 | G96: -3.020795848e-06 | H96: 1.064899939e-06 | J96: 5.464602653e-05 | K96: 0.0005334034466 | L96: -5.850253618e-05 | M96: -0.000231251028 | N96: 3.238251524e-08
A97: =IF('DF raw data'!A97="","",'DF raw data'!A97) -> -285 | B97: =IF('DF raw data'!B97="","",'DF raw data'!B97) -> -1.69333e-05 | C97: =IF('DF raw data'!C97="","",'DF raw data'!C97) -> 7.99e-05 | D97: =IF('DF raw data'!D97="","",'DF raw data'!D97) -> -3.72222e-05 | F97: -1.390288344e-06 | G97: -7.768782783e-06 | H97: 4.58839018e-06 | J97: 5.395088236e-05 | K97: 0.0005603788878 | L97: -6.238692758e-05 | M97: -0.0002624444917 | N97: 3.578392846e-08
A98: =IF('DF raw data'!A98="","",'DF raw data'!A98) -> -284.5 | B98: =IF('DF raw data'!B98="","",'DF raw data'!B98) -> -1.66145e-05 | C98: =IF('DF raw data'!C98="","",'DF raw data'!C98) -> 8.1484e-05 | D98: =IF('DF raw data'!D98="","",'DF raw data'!D98) -> -3.41918e-05 | F98: -1.070208362e-06 | G98: -6.178423023e-06 | H98: 7.630957236e-06 | J98: 5.341577818e-05 | K98: 0.0005870867769 | L98: -6.547613909e-05 | M98: -0.0002951825613 | N98: 3.935411354e-08
A99: =IF('DF raw data'!A99="","",'DF raw data'!A99) -> -284 | B99: =IF('DF raw data'!B99="","",'DF raw data'!B99) -> -2.39228e-05 | C99: =IF('DF raw data'!C99="","",'DF raw data'!C99) -> 8.8322e-05 | D99: =IF('DF raw data'!D99="","",'DF raw data'!D99) -> -3.55637e-05 | F99: -8.407851187e-06 | G99: 6.870315472e-07 | H99: 6.253549057e-06 | J99: 4.921185259e-05 | K99: 0.0006116927032 | L99: -6.513262331e-05 | M99: -0.0003277488729 | N99: 4.268614606e-08
A100: =IF('DF raw data'!A100="","",'DF raw data'!A100) -> -283.5 | B100: =IF('DF raw data'!B100="","",'DF raw data'!B100) -> -1.98883e-05 | C100: =IF('DF raw data'!C100="","",'DF raw data'!C100) -> 8.75203e-05 | D100: =IF('DF raw data'!D100="","",'DF raw data'!D100) -> -2.83302e-05 | F100: -4.357152669e-06 | G100: -1.178872783e-07 | H100: 1.351609156e-05 | J100: 4.703327625e-05 | K100: 0.0006352093413 | L100: -6.519156695e-05 | M100: -0.0003603446564 | N100: 4.59171808e-08
A101: =IF('DF raw data'!A101="","",'DF raw data'!A101) -> -283 | B101: =IF('DF raw data'!B101="","",'DF raw data'!B101) -> -1.09719e-05 | C101: =IF('DF raw data'!C101="","",'DF raw data'!C101) -> 9.123e-05 | D101: =IF('DF raw data'!D101="","",'DF raw data'!D101) -> -3.51864e-05 | F101: 4.595046677e-06 | G101: 3.606707167e-06 | H101: 6.632363917e-06 | J101: 4.933079959e-05 | K101: 0.0006598747411 | L101: -6.338821337e-05 | M101: -0.0003920387631 | N101: 4.914297749e-08
A102: =IF('DF raw data'!A102="","",'DF raw data'!A102) -> -282.5 | B102: =IF('DF raw data'!B102="","",'DF raw data'!B102) -> -1.67386e-05 | C102: =IF('DF raw data'!C102="","",'DF raw data'!C102) -> 8.98788e-05 | D102: =IF('DF raw data'!D102="","",'DF raw data'!D102) -> -4.06518e-05 | F102: -1.194806624e-06 | G102: 2.250082099e-06 | H102: 1.145020336e-06 | J102: 4.873339628e-05 | K102: 0.0006842414392 | L102: -6.226317232e-05 | M102: -0.0004231703493 | N102: 5.226880076e-08
A103: =IF('DF raw data'!A103="","",'DF raw data'!A103) -> -282 | B103: =IF('DF raw data'!B103="","",'DF raw data'!B103) -> 8.64776e-06 | C103: =IF('DF raw data'!C103="","",'DF raw data'!C103) -> 9.92497e-05 | D103: =IF('DF raw data'!D103="","",'DF raw data'!D103) -> -3.62437e-05 | F103: 2.429347961e-05 | G103: 1.165860626e-05 | H103: 5.570818857e-06 | J103: 6.088013609e-05 | K103: 0.0007146815073 | L103: -5.643386919e-05 | M103: -0.0004513872839 | N103: 5.571438704e-08
A104: =IF('DF raw data'!A104="","",'DF raw data'!A104) -> -281.5 | B104: =IF('DF raw data'!B104="","",'DF raw data'!B104) -> -2.41856e-05 | C104: =IF('DF raw data'!C104="","",'DF raw data'!C104) -> 9.47725e-05 | D104: =IF('DF raw data'!D104="","",'DF raw data'!D104) -> -2.57993e-05 | F104: -8.671706329e-06 | G104: 7.163430305e-06 | H104: 1.605715312e-05 | J104: 5.654428292e-05 | K104: 0.0007429536487 | L104: -5.285215404e-05 | M104: -0.0004778133609 | N104: 5.87096901e-08
A105: =IF('DF raw data'!A105="","",'DF raw data'!A105) -> -281 | B105: =IF('DF raw data'!B105="","",'DF raw data'!B105) -> -1.71919e-05 | C105: =IF('DF raw data'!C105="","",'DF raw data'!C105) -> 9.39714e-05 | D105: =IF('DF raw data'!D105="","",'DF raw data'!D105) -> -3.38679e-05 | F105: -1.649926623e-06 | G105: 6.359113888e-06 | H105: 7.956157694e-06 | J105: 5.571931961e-05 | K105: 0.0007708133085 | L105: -4.967259709e-05 | M105: -0.0005026496594 | N105: 6.149569484e-08
A106: =IF('DF raw data'!A106="","",'DF raw data'!A106) -> -280.5 | B106: =IF('DF raw data'!B106="","",'DF raw data'!B106) -> -2.12924e-05 | C106: =IF('DF raw data'!C106="","",'DF raw data'!C106) -> 9.23488e-05 | D106: =IF('DF raw data'!D106="","",'DF raw data'!D106) -> -3.81322e-05 | F106: -5.766890131e-06 | G106: 4.729999149e-06 | H106: 3.67473653e-06 | J106: 5.283587455e-05 | K106: 0.0007972312458 | L106: -4.730759752e-05 | M106: -0.0005263034582 | N106: 6.401051405e-08
A107: =IF('DF raw data'!A107="","",'DF raw data'!A107) -> -280 | B107: =IF('DF raw data'!B107="","",'DF raw data'!B107) -> -1.66092e-05 | C107: =IF('DF raw data'!C107="","",'DF raw data'!C107) -> 9.52422e-05 | D107: =IF('DF raw data'!D107="","",'DF raw data'!D107) -> -4.2379e-05 | F107: -1.064887083e-06 | G107: 7.63501615e-06 | H107: -5.891143721e-07 | J107: 5.2303431e-05 | K107: 0.0008233829613 | L107: -4.349008944e-05 | M107: -0.0005480485029 | N107: 6.632403244e-08
A108: =IF('DF raw data'!A108="","",'DF raw data'!A108) -> -279.5 | B108: =IF('DF raw data'!B108="","",'DF raw data'!B108) -> -1.5458e-05 | C108: =IF('DF raw data'!C108="","",'DF raw data'!C108) -> 9.02269e-05 | D108: =IF('DF raw data'!D108="","",'DF raw data'!D108) -> -3.7954e-05 | F108: 9.09349854e-08 | G108: 2.599579721e-06 | H108: 3.853652003e-06 | J108: 5.23488985e-05 | K108: 0.0008495574105 | L108: -4.219029958e-05 | M108: -0.0005691436527 | N108: 6.858424672e-08
A109: =IF('DF raw data'!A109="","",'DF raw data'!A109) -> -279 | B109: =IF('DF raw data'!B109="","",'DF raw data'!B109) -> 1.08507e-06 | C109: =IF('DF raw data'!C109="","",'DF raw data'!C109) -> 8.84406e-05 | D109: =IF('DF raw data'!D109="","",'DF raw data'!D109) -> -4.04063e-05 | F109: 1.670042541e-05 | G109: 8.061077262e-07 | H109: 1.391506018e-06 | J109: 6.06991112e-05 | K109: 0.0008799069661 | L109: -4.178724572e-05 | M109: -0.0005900372756 | N109: 7.129952472e-08
A110: =IF('DF raw data'!A110="","",'DF raw data'!A110) -> -278.5 | B110: =IF('DF raw data'!B110="","",'DF raw data'!B110) -> -8.01992e-06 | C110: =IF('DF raw data'!C110="","",'DF raw data'!C110) -> 8.90279e-05 | D110: =IF('DF raw data'!D110="","",'DF raw data'!D110) -> -3.94249e-05 | F110: 7.558878877e-06 | G110: 1.395765736e-06 | H110: 2.376846339e-06 | J110: 6.447855064e-05 | K110: 0.0009121462415 | L110: -4.108936285e-05 | M110: -0.000610581957 | N110: 7.422243434e-08
A111: =IF('DF raw data'!A111="","",'DF raw data'!A111) -> -278 | B111: =IF('DF raw data'!B111="","",'DF raw data'!B111) -> -9.04523e-06 | C111: =IF('DF raw data'!C111="","",'DF raw data'!C111) -> 0.000100208 | D111: =IF('DF raw data'!D111="","",'DF raw data'!D111) -> -4.01982e-05 | F111: 6.529452257e-06 | G111: 1.262075384e-05 | H111: 1.60044154e-06 | J111: 6.774327677e-05 | K111: 0.0009460178799 | L111: -3.477898593e-05 | M111: -0.0006279714499 | N111: 7.712179904e-08
A112: =IF('DF raw data'!A112="","",'DF raw data'!A112) -> -277.5 | B112: =IF('DF raw data'!B112="","",'DF raw data'!B112) -> -2.77653e-05 | C112: =IF('DF raw data'!C112="","",'DF raw data'!C112) -> 8.99971e-05 | D112: =IF('DF raw data'!D112="","",'DF raw data'!D112) -> -4.21345e-05 | F112: -1.226577882e-05 | G112: 2.368857074e-06 | H112: -3.436327046e-07 | J112: 6.161038736e-05 | K112: 0.0009768230735 | L112: -3.35945574e-05 | M112: -0.0006447687286 | N112: 7.95840161e-08
A113: =IF('DF raw data'!A113="","",'DF raw data'!A113) -> -277 | B113: =IF('DF raw data'!B113="","",'DF raw data'!B113) -> -1.59046e-05 | C113: =IF('DF raw data'!C113="","",'DF raw data'!C113) -> 8.04058e-05 | D113: =IF('DF raw data'!D113="","",'DF raw data'!D113) -> -4.14963e-05 | F113: -3.574581136e-07 | G113: -7.260951996e-06 | H113: 2.971296684e-07 | J113: 6.14316583e-05 | K113: 0.001007538903 | L113: -3.722503339e-05 | M113: -0.0006633812453 | N113: 8.216379198e-08
A114: =IF('DF raw data'!A114="","",'DF raw data'!A114) -> -276.5 | B114: =IF('DF raw data'!B114="","",'DF raw data'!B114) -> -2.59746e-05 | C114: =IF('DF raw data'!C114="","",'DF raw data'!C114) -> 8.2806e-05 | D114: =IF('DF raw data'!D114="","",'DF raw data'!D114) -> -3.53168e-05 | F114: -1.046788916e-05 | G114: -4.851115193e-06 | H114: 6.501440361e-06 | J114: 5.619771372e-05 | K114: 0.00103563776 | L114: -3.965059099e-05 | M114: -0.0006832065408 | N114: 8.452896817e-08
A115: =IF('DF raw data'!A115="","",'DF raw data'!A115) -> -276 | B115: =IF('DF raw data'!B115="","",'DF raw data'!B115) -> -1.73076e-05 | C115: =IF('DF raw data'!C115="","",'DF raw data'!C115) -> 8.78565e-05 | D115: =IF('DF raw data'!D115="","",'DF raw data'!D115) -> -5.30745e-05 | F115: -1.766091159e-06 | G115: 2.196625647e-07 | H115: -1.13275568e-05 | J115: 5.531466814e-05 | K115: 0.001063295094 | L115: -3.954075971e-05 | M115: -0.0007029769207 | N115: 8.684056027e-08
A116: =IF('DF raw data'!A116="","",'DF raw data'!A116) -> -275.5 | B116: =IF('DF raw data'!B116="","",'DF raw data'!B116) -> -2.42394e-05 | C116: =IF('DF raw data'!C116="","",'DF raw data'!C116) -> 8.46408e-05 | D116: =IF('DF raw data'!D116="","",'DF raw data'!D116) -> -4.14032e-05 | F116: -8.725722336e-06 | G116: -3.008948471e-06 | H116: 3.906034649e-07 | J116: 5.095180697e-05 | K116: 0.001088770997 | L116: -4.104523394e-05 | M116: -0.0007234995377 | N116: 8.89809592e-08
A117: =IF('DF raw data'!A117="","",'DF raw data'!A117) -> -275 | B117: =IF('DF raw data'!B117="","",'DF raw data'!B117) -> -1.45586e-05 | C117: =IF('DF raw data'!C117="","",'DF raw data'!C117) -> 8.82004e-05 | D117: =IF('DF raw data'!D117="","",'DF raw data'!D117) -> -4.07956e-05 | F117: 9.939460764e-07 | G117: 5.649433232e-07 | H117: 1.000642979e-06 | J117: 5.144878001e-05 | K117: 0.001114495387 | L117: -4.076276228e-05 | M117: -0.0007438809188 | N117: 9.113524908e-08
A118: =IF('DF raw data'!A118="","",'DF raw data'!A118) -> -274.5 | B118: =IF('DF raw data'!B118="","",'DF raw data'!B118) -> -3.50839e-05 | C118: =IF('DF raw data'!C118="","",'DF raw data'!C118) -> 8.82109e-05 | D118: =IF('DF raw data'!D118="","",'DF raw data'!D118) -> -2.76108e-05 | F118: -1.9613763e-05 | G118: 5.754854807e-07 | H118: 1.423837995e-05 | J118: 4.164189851e-05 | K118: 0.001135316336 | L118: -4.047501954e-05 | M118: -0.0007641184286 | N118: 9.282138653e-08
A119: =IF('DF raw data'!A119="","",'DF raw data'!A119) -> -274 | B119: =IF('DF raw data'!B119="","",'DF raw data'!B119) -> -1.78335e-05 | C119: =IF('DF raw data'!C119="","",'DF raw data'!C119) -> 8.62547e-05 | D119: =IF('DF raw data'!D119="","",'DF raw data'!D119) -> -3.30235e-05 | F119: -2.294102647e-06 | G119: -1.388568662e-06 | H119: 8.80394796e-06 | J119: 4.049484718e-05 | K119: 0.00115556376 | L119: -4.116930387e-05 | M119: -0.0007847030805 | N119: 9.448875865e-08
A120: =IF('DF raw data'!A120="","",'DF raw data'!A120) -> -273.5 | B120: =IF('DF raw data'!B120="","",'DF raw data'!B120) -> -9.0582e-06 | C120: =IF('DF raw data'!C120="","",'DF raw data'!C120) -> 0.000101174 | D120: =IF('DF raw data'!D120="","",'DF raw data'!D120) -> -2.01844e-05 | F120: 6.516430182e-06 | G120: 1.359063233e-05 | H120: 2.169459695e-05 | J120: 4.375306228e-05 | K120: 0.001177440291 | L120: -3.437398771e-05 | M120: -0.0008018900744 | N120: 9.603670939e-08
A121: =IF('DF raw data'!A121="","",'DF raw data'!A121) -> -273 | B121: =IF('DF raw data'!B121="","",'DF raw data'!B121) -> -4.3031e-06 | C121: =IF('DF raw data'!C121="","",'DF raw data'!C121) -> 9.98425e-05 | D121: =IF('DF raw data'!D121="","",'DF raw data'!D121) -> -3.67031e-05 | F121: 1.129062191e-05 | G121: 1.225378635e-05 | H121: 5.109574366e-06 | J121: 4.939837323e-05 | K121: 0.001202139478 | L121: -2.824709453e-05 | M121: -0.0008160136216 | N121: 9.765575821e-08
A122: =IF('DF raw data'!A122="","",'DF raw data'!A122) -> -272.5 | B122: =IF('DF raw data'!B122="","",'DF raw data'!B122) -> -2.13619e-05 | C122: =IF('DF raw data'!C122="","",'DF raw data'!C122) -> 9.45528e-05 | D122: =IF('DF raw data'!D122="","",'DF raw data'!D122) -> -2.99466e-05 | F122: -5.836669173e-06 | G122: 6.942848209e-06 | H122: 1.189320171e-05 | J122: 4.648003864e-05 | K122: 0.001225379497 | L122: -2.477567043e-05 | M122: -0.0008284014568 | N122: 9.904287213e-08
A123: =IF('DF raw data'!A123="","",'DF raw data'!A123) -> -272 | B123: =IF('DF raw data'!B123="","",'DF raw data'!B123) -> -4.94995e-06 | C123: =IF('DF raw data'!C123="","",'DF raw data'!C123) -> 9.27459e-05 | D123: =IF('DF raw data'!D123="","",'DF raw data'!D123) -> -2.78835e-05 | F123: 1.064117481e-05 | G123: 5.128693506e-06 | H123: 1.396458506e-05 | J123: 5.180062605e-05 | K123: 0.00125127981 | L123: -2.221132367e-05 | M123: -0.0008395071187 | N123: 1.00631196e-07
A124: =IF('DF raw data'!A124="","",'DF raw data'!A124) -> -271.5 | B124: =IF('DF raw data'!B124="","",'DF raw data'!B124) -> -1.80903e-05 | C124: =IF('DF raw data'!C124="","",'DF raw data'!C124) -> 8.73178e-05 | D124: =IF('DF raw data'!D124="","",'DF raw data'!D124) -> -3.25203e-05 | F124: -2.551933699e-06 | G124: -3.212003158e-07 | H124: 9.309168308e-06 | J124: 5.05246592e-05 | K124: 0.00127654214 | L124: -2.237192383e-05 | M124: -0.0008506930806 | N124: 1.021578181e-07
A125: =IF('DF raw data'!A125="","",'DF raw data'!A125) -> -271 | B125: =IF('DF raw data'!B125="","",'DF raw data'!B125) -> -1.4177e-05 | C125: =IF('DF raw data'!C125="","",'DF raw data'!C125) -> 9.19395e-05 | D125: =IF('DF raw data'!D125="","",'DF raw data'!D125) -> -3.60284e-05 | F125: 1.3770782e-06 | G125: 4.31905581e-06 | H125: 5.786983287e-06 | J125: 5.12131983e-05 | K125: 0.001302148739 | L125: -2.021239593e-05 | M125: -0.0008607992786 | N125: 1.036734844e-07
A126: =IF('DF raw data'!A126="","",'DF raw data'!A126) -> -270.5 | B126: =IF('DF raw data'!B126="","",'DF raw data'!B126) -> -1.27082e-05 | C126: =IF('DF raw data'!C126="","",'DF raw data'!C126) -> 9.76678e-05 | D126: =IF('DF raw data'!D126="","",'DF raw data'!D126) -> -2.72016e-05 | F126: 2.851775432e-06 | G126: 1.007035493e-05 | H126: 1.464922289e-05 | J126: 5.263908601e-05 | K126: 0.001328468282 | L126: -1.517721846e-05 | M126: -0.0008683878878 | N126: 1.051740951e-07
A127: =IF('DF raw data'!A127="","",'DF raw data'!A127) -> -270 | B127: =IF('DF raw data'!B127="","",'DF raw data'!B127) -> -7.08594e-07 | C127: =IF('DF raw data'!C127="","",'DF raw data'!C127) -> 9.41311e-05 | D127: =IF('DF raw data'!D127="","",'DF raw data'!D127) -> -4.27249e-05 | F127: 1.489955985e-05 | G127: 6.519455084e-06 | H127: -9.364031606e-07 | J127: 6.008886594e-05 | K127: 0.001358512715 | L127: -1.191749092e-05 | M127: -0.0008743466332 | N127: 1.070504443e-07
A128: =IF('DF raw data'!A128="","",'DF raw data'!A128) -> -269.5 | B128: =IF('DF raw data'!B128="","",'DF raw data'!B128) -> -3.25746e-05 | C128: =IF('DF raw data'!C128="","",'DF raw data'!C128) -> 8.52265e-05 | D128: =IF('DF raw data'!D128="","",'DF raw data'!D128) -> -4.09536e-05 | F128: -1.709438816e-05 | G128: -2.420896885e-06 | H128: 8.420086089e-07 | J128: =F128*$G$3+J127 -> 5.154167186e-05 | K128: =J128*$G$3+K127 -> 0.001384283551 | L128: =G128*$G$3+L127 -> -1.312793936e-05 | M128: =L128*$G$3+M127 -> -0.0008809106029 | N128: =(J128^2+L128^2)*$G$3+N127 -> 1.084648876e-07
A129: =IF('DF raw data'!A129="","",'DF raw data'!A129) -> -269 | B129: =IF('DF raw data'!B129="","",'DF raw data'!B129) -> -8.97455e-06 | C129: =IF('DF raw data'!C129="","",'DF raw data'!C129) -> 9.18018e-05 | D129: =IF('DF raw data'!D129="","",'DF raw data'!D129) -> -5.00685e-05 | F129: 6.600416037e-06 | G129: 4.180802944e-06 | H129: -8.309487715e-06 | J129: 5.484187988e-05 | K129: 0.001411704491 | L129: -1.103753789e-05 | M129: -0.0008864293719 | N129: 1.100296172e-07
A130: =IF('DF raw data'!A130="","",'DF raw data'!A130) -> -268.5 | B130: =IF('DF raw data'!B130="","",'DF raw data'!B130) -> -2.09089e-05 | C130: =IF('DF raw data'!C130="","",'DF raw data'!C130) -> 9.84378e-05 | D130: =IF('DF raw data'!D130="","",'DF raw data'!D130) -> -3.62063e-05 | F130: -5.381850378e-06 | G130: 1.084344648e-05 | H130: 5.608369018e-06 | J130: 5.215095469e-05 | K130: 0.001437779968 | L130: -5.615814647e-06 | M130: -0.0008892372792 | N130: 1.114052469e-07
A131: =IF('DF raw data'!A131="","",'DF raw data'!A131) -> -268 | B131: =IF('DF raw data'!B131="","",'DF raw data'!B131) -> -1.29556e-05 | C131: =IF('DF raw data'!C131="","",'DF raw data'!C131) -> 9.58651e-05 | D131: =IF('DF raw data'!D131="","",'DF raw data'!D131) -> -4.11267e-05 | F131: =(1-$G$1*($B$54-$G$2))*(B131-F$5) -> 2.603382121e-06 | G131: =(1-$G$1*($B$54-$G$2))*(C131-G$5) -> 8.260417094e-06 | H131: =(1-$G$1*($B$54-$G$2))*(D131-H$5) -> 6.682136124e-07 | J131: 5.345264575e-05 | K131: 0.001464506291 | L131: -1.4856061e-06 | M131: -0.0008899800822 | N131: 1.128349431e-07
A132: =IF('DF raw data'!A132="","",'DF raw data'!A132) -> -267.5 | B132: =IF('DF raw data'!B132="","",'DF raw data'!B132) -> -6.6726e-06 | C132: =IF('DF raw data'!C132="","",'DF raw data'!C132) -> 9.5253e-05 | D132: =IF('DF raw data'!D132="","",'DF raw data'!D132) -> -4.06296e-05 | F132: 8.911608366e-06 | G132: 7.645859512e-06 | H132: 1.167309469e-06 | J132: 5.790844993e-05 | K132: 0.001493460516 | L132: 2.337323656e-06 | M132: -0.0008888114204 | N132: 1.145143689e-07
A133: =IF('DF raw data'!A133="","",'DF raw data'!A133) -> -267 | B133: =IF('DF raw data'!B133="","",'DF raw data'!B133) -> -8.66142e-06 | C133: =IF('DF raw data'!C133="","",'DF raw data'!C133) -> 8.6062e-05 | D133: =IF('DF raw data'!D133="","",'DF raw data'!D133) -> -3.87968e-05 | F133: 6.914803254e-06 | G133: -1.582042353e-06 | H133: 3.007468161e-06 | J133: 6.136585156e-05 | K133: 0.001524143442 | L133: 1.54630248e-06 | M133: -0.0008880382692 | N133: 1.163984483e-07
A134: =IF('DF raw data'!A134="","",'DF raw data'!A134) -> -266.5 | B134: =IF('DF raw data'!B134="","",'DF raw data'!B134) -> -1.20588e-05 | C134: =IF('DF raw data'!C134="","",'DF raw data'!C134) -> 7.66623e-05 | D134: =IF('DF raw data'!D134="","",'DF raw data'!D134) -> -3.99835e-05 | F134: 3.503782773e-06 | G134: -1.101948215e-05 | H134: 1.81600356e-06 | J134: 6.311774294e-05 | K134: 0.001555702313 | L134: -3.963438594e-06 | M134: -0.0008900199885 | N134: 1.183982274e-07
A135: =IF('DF raw data'!A135="","",'DF raw data'!A135) -> -266 | B135: =IF('DF raw data'!B135="","",'DF raw data'!B135) -> -1.42441e-05 | C135: =IF('DF raw data'!C135="","",'DF raw data'!C135) -> 8.28562e-05 | D135: =IF('DF raw data'!D135="","",'DF raw data'!D135) -> -3.15715e-05 | F135: 1.309708794e-06 | G135: -4.80071364e-06 | H135: 1.026177774e-05 | J135: 6.377259734e-05 | K135: 0.001587588612 | L135: -6.363795414e-06 | M135: -0.0008932018862 | N135: 1.204519485e-07
A136: =IF('DF raw data'!A136="","",'DF raw data'!A136) -> -265.5 | B136: =IF('DF raw data'!B136="","",'DF raw data'!B136) -> -8.78912e-06 | C136: =IF('DF raw data'!C136="","",'DF raw data'!C136) -> 8.54084e-05 | D136: =IF('DF raw data'!D136="","",'DF raw data'!D136) -> -3.95945e-05 | F136: 6.786590539e-06 | G136: -2.238266557e-06 | H136: 2.206565395e-06 | J136: 6.716589261e-05 | K136: 0.001621171558 | L136: -7.482928693e-06 | M136: -0.0008969433505 | N136: 1.227355741e-07
A137: =IF('DF raw data'!A137="","",'DF raw data'!A137) -> -265 | B137: =IF('DF raw data'!B137="","",'DF raw data'!B137) -> -1.60345e-05 | C137: =IF('DF raw data'!C137="","",'DF raw data'!C137) -> 7.842e-05 | D137: =IF('DF raw data'!D137="","",'DF raw data'!D137) -> -3.89002e-05 | F137: -4.878796621e-07 | G137: -9.254724983e-06 | H137: 2.90365301e-06 | J137: 6.692195278e-05 | K137: 0.001654632534 | L137: -1.211029118e-05 | M137: -0.0009029984961 | N137: 1.250481776e-07
A138: =IF('DF raw data'!A138="","",'DF raw data'!A138) -> -264.5 | B138: =IF('DF raw data'!B138="","",'DF raw data'!B138) -> -1.4436e-05 | C138: =IF('DF raw data'!C138="","",'DF raw data'!C138) -> 8.12463e-05 | D138: =IF('DF raw data'!D138="","",'DF raw data'!D138) -> -3.19862e-05 | F138: 1.117038315e-06 | G138: -6.417077388e-06 | H138: 9.84541272e-06 | J138: 6.748047194e-05 | K138: 0.00168837277 | L138: -1.531882988e-05 | M138: -0.0009106579111 | N138: 1.274423179e-07
A139: =IF('DF raw data'!A139="","",'DF raw data'!A139) -> -264 | B139: =IF('DF raw data'!B139="","",'DF raw data'!B139) -> -9.36889e-06 | C139: =IF('DF raw data'!C139="","",'DF raw data'!C139) -> 8.92968e-05 | D139: =IF('DF raw data'!D139="","",'DF raw data'!D139) -> -3.51366e-05 | F139: 6.204492762e-06 | G139: 1.665745369e-06 | H139: 6.682363864e-06 | J139: 7.058271832e-05 | K139: 0.00172366413 | L139: -1.448595719e-05 | M139: -0.0009179008897 | N139: 1.300381995e-07
A140: =IF('DF raw data'!A140="","",'DF raw data'!A140) -> -263.5 | B140: =IF('DF raw data'!B140="","",'DF raw data'!B140) -> -1.93677e-05 | C140: =IF('DF raw data'!C140="","",'DF raw data'!C140) -> 9.38208e-05 | D140: =IF('DF raw data'!D140="","",'DF raw data'!D140) -> -3.98463e-05 | F140: -3.83446246e-06 | G140: 6.207909229e-06 | H140: 1.953754418e-06 | J140: 6.866548709e-05 | K140: 0.001757996873 | L140: -1.138200258e-05 | M140: -0.0009235918909 | N140: 1.32460449e-07
A141: =IF('DF raw data'!A141="","",'DF raw data'!A141) -> -263 | B141: =IF('DF raw data'!B141="","",'DF raw data'!B141) -> -4.10281e-06 | C141: =IF('DF raw data'!C141="","",'DF raw data'!C141) -> 9.43229e-05 | D141: =IF('DF raw data'!D141="","",'DF raw data'!D141) -> -4.8741e-05 | F141: 1.149171607e-05 | G141: 6.712025161e-06 | H141: -6.976657802e-06 | J141: 7.441134512e-05 | K141: 0.001795202546 | L141: -8.025989999e-06 | M141: -0.0009276048859 | N141: 1.352611814e-07
A142: =IF('DF raw data'!A142="","",'DF raw data'!A142) -> -262.5 | B142: =IF('DF raw data'!B142="","",'DF raw data'!B142) -> -4.11197e-06 | C142: =IF('DF raw data'!C142="","",'DF raw data'!C142) -> 9.26711e-05 | D142: =IF('DF raw data'!D142="","",'DF raw data'!D142) -> -3.46057e-05 | F142: 1.14825193e-05 | G142: 5.053593184e-06 | H142: 7.215395427e-06 | J142: 8.015260477e-05 | K142: 0.001835278848 | L142: -5.499193407e-06 | M142: -0.0009303544826 | N142: 1.38488522e-07
A143: =IF('DF raw data'!A143="","",'DF raw data'!A143) -> -262 | B143: =IF('DF raw data'!B143="","",'DF raw data'!B143) -> -7.17806e-06 | C143: =IF('DF raw data'!C143="","",'DF raw data'!C143) -> 9.21678e-05 | D143: =IF('DF raw data'!D143="","",'DF raw data'!D143) -> -5.20657e-05 | F143: 8.404118944e-06 | G143: 4.548272434e-06 | H143: -1.031470647e-05 | J143: 8.435466424e-05 | K143: 0.00187745618 | L143: -3.22505719e-06 | M143: -0.0009319670112 | N143: 1.420515772e-07
A144: =IF('DF raw data'!A144="","",'DF raw data'!A144) -> -261.5 | B144: =IF('DF raw data'!B144="","",'DF raw data'!B144) -> -8.98658e-06 | C144: =IF('DF raw data'!C144="","",'DF raw data'!C144) -> 9.17835e-05 | D144: =IF('DF raw data'!D144="","",'DF raw data'!D144) -> -3.14747e-05 | F144: 6.588337737e-06 | G144: 4.16242947e-06 | H144: 1.035896639e-05 | J144: 8.764883311e-05 | K144: 0.001921280597 | L144: -1.143842455e-06 | M144: -0.0009325389325 | N144: 1.458933904e-07
A145: =IF('DF raw data'!A145="","",'DF raw data'!A145) -> -261 | B145: =IF('DF raw data'!B145="","",'DF raw data'!B145) -> -1.47458e-05 | C145: =IF('DF raw data'!C145="","",'DF raw data'!C145) -> 9.34539e-05 | D145: =IF('DF raw data'!D145="","",'DF raw data'!D145) -> -4.8685e-05 | F145: 8.059944684e-07 | G145: 5.839536126e-06 | H145: -6.920432962e-06 | J145: 8.805183035e-05 | K145: 0.001965306512 | L145: 1.775925608e-06 | M145: -0.0009316509697 | N145: 1.497715297e-07
A146: =IF('DF raw data'!A146="","",'DF raw data'!A146) -> -260.5 | B146: =IF('DF raw data'!B146="","",'DF raw data'!B146) -> -7.13057e-06 | C146: =IF('DF raw data'!C146="","",'DF raw data'!C146) -> 9.67261e-05 | D146: =IF('DF raw data'!D146="","",'DF raw data'!D146) -> -2.66354e-05 | F146: 8.451799617e-06 | G146: 9.124874009e-06 | H146: 1.521769618e-05 | J146: 9.227773016e-05 | K146: 0.002011445377 | L146: 6.338362612e-06 | M146: -0.0009284817884 | N146: 1.540492069e-07
A147: =IF('DF raw data'!A147="","",'DF raw data'!A147) -> -260 | B147: =IF('DF raw data'!B147="","",'DF raw data'!B147) -> -2.83039e-06 | C147: =IF('DF raw data'!C147="","",'DF raw data'!C147) -> 0.000105414 | D147: =IF('DF raw data'!D147="","",'DF raw data'!D147) -> -3.35618e-05 | F147: 1.276924484e-05 | G147: 1.784765593e-05 | H147: 8.263486686e-06 | J147: 9.866235258e-05 | K147: 0.002060776553 | L147: 1.526219058e-05 | M147: -0.0009208506931 | N147: 1.59032804e-07
A148: =IF('DF raw data'!A148="","",'DF raw data'!A148) -> -259.5 | B148: =IF('DF raw data'!B148="","",'DF raw data'!B148) -> -5.40105e-06 | C148: =IF('DF raw data'!C148="","",'DF raw data'!C148) -> 0.000103178 | D148: =IF('DF raw data'!D148="","",'DF raw data'!D148) -> -2.40825e-05 | F148: 1.018826364e-05 | G148: 1.560267839e-05 | H148: 1.778084608e-05 | J148: 0.0001037564844 | K148: 0.002112654795 | L148: 2.306352977e-05 | M148: -0.0009093189282 | N148: 1.646814713e-07
A149: =IF('DF raw data'!A149="","",'DF raw data'!A149) -> -259 | B149: =IF('DF raw data'!B149="","",'DF raw data'!B149) -> -6.42007e-06 | C149: =IF('DF raw data'!C149="","",'DF raw data'!C149) -> 0.000101007 | D149: =IF('DF raw data'!D149="","",'DF raw data'!D149) -> -3.45331e-05 | F149: 9.165152274e-06 | G149: 1.342296182e-05 | H149: 7.288286916e-06 | J149: 0.0001083390605 | K149: 0.002166824326 | L149: 2.977501068e-05 | M149: -0.0008944314228 | N149: 1.709934229e-07
A150: =IF('DF raw data'!A150="","",'DF raw data'!A150) -> -258.5 | B150: =IF('DF raw data'!B150="","",'DF raw data'!B150) -> -1.16158e-05 | C150: =IF('DF raw data'!C150="","",'DF raw data'!C150) -> 9.76601e-05 | D150: =IF('DF raw data'!D150="","",'DF raw data'!D150) -> -3.07468e-05 | F150: 3.948561418e-06 | G150: 1.006262402e-05 | H150: 1.108978891e-05 | J150: 0.0001103133412 | K150: 0.002221980996 | L150: 3.480632269e-05 | M150: -0.0008770282615 | N150: 1.776836796e-07
A151: =IF('DF raw data'!A151="","",'DF raw data'!A151) -> -258 | B151: =IF('DF raw data'!B151="","",'DF raw data'!B151) -> -1.16824e-05 | C151: =IF('DF raw data'!C151="","",'DF raw data'!C151) -> 8.31602e-05 | D151: =IF('DF raw data'!D151="","",'DF raw data'!D151) -> -2.66945e-05 | F151: 3.881694019e-06 | G151: -4.49549308e-06 | H151: 1.51583589e-05 | J151: 0.0001122541883 | K151: 0.00227810809 | L151: 3.255857615e-05 | M151: -0.0008607489734 | N151: 1.845142114e-07
A152: =IF('DF raw data'!A152="","",'DF raw data'!A152) -> -257.5 | B152: =IF('DF raw data'!B152="","",'DF raw data'!B152) -> -1.68056e-05 | C152: =IF('DF raw data'!C152="","",'DF raw data'!C152) -> 8.51302e-05 | D152: =IF('DF raw data'!D152="","",'DF raw data'!D152) -> -3.60953e-05 | F152: -1.262075629e-06 | G152: -2.51758353e-06 | H152: 5.719814683e-06 | J152: 0.0001116231504 | K152: 0.002333919666 | L152: 3.129978439e-05 | M152: -0.0008450990812 | N152: 1.912339135e-07
A153: =IF('DF raw data'!A153="","",'DF raw data'!A153) -> -257 | B153: =IF('DF raw data'!B153="","",'DF raw data'!B153) -> -1.23291e-05 | C153: =IF('DF raw data'!C153="","",'DF raw data'!C153) -> 9.31965e-05 | D153: =IF('DF raw data'!D153="","",'DF raw data'!D153) -> -1.84407e-05 | F153: 3.232397519e-06 | G153: 5.581102665e-06 | H153: 2.34452979e-05 | J153: 0.0001132393492 | K153: 0.00239053934 | L153: 3.409033572e-05 | M153: -0.0008280539134 | N153: 1.982265641e-07
A154: =IF('DF raw data'!A154="","",'DF raw data'!A154) -> -256.5 | B154: =IF('DF raw data'!B154="","",'DF raw data'!B154) -> -8.2139e-06 | C154: =IF('DF raw data'!C154="","",'DF raw data'!C154) -> 0.00010454 | D154: =IF('DF raw data'!D154="","",'DF raw data'!D154) -> -3.65719e-05 | F154: 7.364120047e-06 | G154: 1.697014682e-05 | H154: 5.241301134e-06 | J154: 0.0001169214092 | K154: 0.002449000045 | L154: 4.257540913e-05 | M154: -0.0008067662088 | N154: 2.059682048e-07
A155: =IF('DF raw data'!A155="","",'DF raw data'!A155) -> -256 | B155: =IF('DF raw data'!B155="","",'DF raw data'!B155) -> -2.37264e-05 | C155: =IF('DF raw data'!C155="","",'DF raw data'!C155) -> 0.000107252 | D155: =IF('DF raw data'!D155="","",'DF raw data'!D155) -> -4.12146e-05 | F155: -8.210662641e-06 | G155: 1.96930355e-05 | H155: 5.799606939e-07 | J155: 0.0001128160779 | K155: 0.002505408084 | L155: 5.242192687e-05 | M155: -0.0007805552454 | N155: 2.137059677e-07
A156: =IF('DF raw data'!A156="","",'DF raw data'!A156) -> -255.5 | B156: =IF('DF raw data'!B156="","",'DF raw data'!B156) -> -6.54364e-07 | C156: =IF('DF raw data'!C156="","",'DF raw data'!C156) -> 0.000100859 | D156: =IF('DF raw data'!D156="","",'DF raw data'!D156) -> -2.7683e-05 | F156: 1.495400758e-05 | G156: 1.32743676e-05 | H156: 1.416589007e-05 | J156: 0.0001202930817 | K156: 0.002565554625 | L156: 5.905911068e-05 | M156: -0.00075102569 | N156: 2.226851698e-07
A157: =IF('DF raw data'!A157="","",'DF raw data'!A157) -> -255 | B157: =IF('DF raw data'!B157="","",'DF raw data'!B157) -> -9.88168e-06 | C157: =IF('DF raw data'!C157="","",'DF raw data'!C157) -> 0.000100254 | D157: =IF('DF raw data'!D157="","",'DF raw data'!D157) -> -3.52485e-05 | F157: 5.68964391e-06 | G157: 1.266693853e-05 | H157: 6.570014585e-06 | J157: 0.0001231379036 | K157: 0.002627123577 | L157: 6.539257994e-05 | M157: -0.0007183294001 | N157: 2.324047362e-07
A158: =IF('DF raw data'!A158="","",'DF raw data'!A158) -> -254.5 | B158: =IF('DF raw data'!B158="","",'DF raw data'!B158) -> -6.09959e-06 | C158: =IF('DF raw data'!C158="","",'DF raw data'!C158) -> 0.000105212 | D158: =IF('DF raw data'!D158="","",'DF raw data'!D158) -> -3.45902e-05 | F158: 9.486919002e-06 | G158: 1.76448449e-05 | H158: 7.23095766e-06 | J158: 0.0001278813631 | K158: 0.002691064258 | L158: 7.421500239e-05 | M158: -0.0006812218989 | N158: 2.43335491e-07
A159: =IF('DF raw data'!A159="","",'DF raw data'!A159) -> -254 | B159: =IF('DF raw data'!B159="","",'DF raw data'!B159) -> -1.25782e-05 | C159: =IF('DF raw data'!C159="","",'DF raw data'!C159) -> 0.000107343 | D159: =IF('DF raw data'!D159="","",'DF raw data'!D159) -> -2.97385e-05 | F159: 2.982297382e-06 | G159: 1.978440086e-05 | H159: 1.210213724e-05 | J159: 0.0001293725118 | K159: 0.002755750514 | L159: 8.410720282e-05 | M159: -0.0006391682975 | N159: 2.552411252e-07
A160: =IF('DF raw data'!A160="","",'DF raw data'!A160) -> -253.5 | B160: =IF('DF raw data'!B160="","",'DF raw data'!B160) -> -1.75743e-05 | C160: =IF('DF raw data'!C160="","",'DF raw data'!C160) -> 0.000101247 | D160: =IF('DF raw data'!D160="","",'DF raw data'!D160) -> -3.69368e-05 | F160: -2.033861959e-06 | G160: 1.366392542e-05 | H160: 4.874936061e-06 | J160: 0.0001283555809 | K160: 0.002819928304 | L160: 9.093916553e-05 | M160: -0.0005936987147 | N160: 2.676136687e-07
A161: =IF('DF raw data'!A161="","",'DF raw data'!A161) -> -253 | B161: =IF('DF raw data'!B161="","",'DF raw data'!B161) -> -6.4196e-06 | C161: =IF('DF raw data'!C161="","",'DF raw data'!C161) -> 9.83052e-05 | D161: =IF('DF raw data'!D161="","",'DF raw data'!D161) -> -3.52205e-05 | F161: 9.165624161e-06 | G161: 1.07103141e-05 | H161: 6.598127005e-06 | J161: 0.0001329383929 | K161: 0.002886397501 | L161: 9.629432258e-05 | M161: -0.0005455515534 | N161: 2.810862751e-07
A162: =IF('DF raw data'!A162="","",'DF raw data'!A162) -> -252.5 | B162: =IF('DF raw data'!B162="","",'DF raw data'!B162) -> -6.93493e-06 | C162: =IF('DF raw data'!C162="","",'DF raw data'!C162) -> 9.63275e-05 | D162: =IF('DF raw data'!D162="","",'DF raw data'!D162) -> -3.14736e-05 | F162: 8.648225111e-06 | G162: 8.72467363e-06 | H162: 1.036007081e-05 | J162: 0.0001372625055 | K162: 0.002955028754 | L162: 0.0001006566594 | M162: -0.0004952232237 | N162: 2.955726544e-07
A163: =IF('DF raw data'!A163="","",'DF raw data'!A163) -> -252 | B163: =IF('DF raw data'!B163="","",'DF raw data'!B163) -> -1.60951e-05 | C163: =IF('DF raw data'!C163="","",'DF raw data'!C163) -> 8.60536e-05 | D163: =IF('DF raw data'!D163="","",'DF raw data'!D163) -> -4.38863e-05 | F163: -5.487229711e-07 | G163: -1.590476079e-06 | H163: -2.102466182e-06 | J163: 0.000136988144 | K163: 0.003023522826 | L163: 9.986142135e-05 | M163: -0.000445292513 | N163: 3.099416819e-07
A164: =IF('DF raw data'!A164="","",'DF raw data'!A164) -> -251.5 | B164: =IF('DF raw data'!B164="","",'DF raw data'!B164) -> -8.85744e-06 | C164: =IF('DF raw data'!C164="","",'DF raw data'!C164) -> 8.82171e-05 | D164: =IF('DF raw data'!D164="","",'DF raw data'!D164) -> -3.2806e-05 | F164: 6.717996234e-06 | G164: 5.817103737e-07 | H164: 9.022321223e-06 | J164: 0.0001403471421 | K164: 0.003093696397 | L164: 0.0001001522765 | M164: -0.0003952163748 | N164: 3.248055813e-07
A165: =IF('DF raw data'!A165="","",'DF raw data'!A165) -> -251 | B165: =IF('DF raw data'!B165="","",'DF raw data'!B165) -> -1.17316e-05 | C165: =IF('DF raw data'!C165="","",'DF raw data'!C165) -> 8.78532e-05 | D165: =IF('DF raw data'!D165="","",'DF raw data'!D165) -> -4.97413e-05 | F165: 3.832296481e-06 | G165: 2.163493152e-07 | H165: -7.980974007e-06 | J165: 0.0001422632904 | K165: 0.003164828042 | L165: 0.0001002604512 | M165: -0.0003450861492 | N165: 3.399510822e-07
A166: =IF('DF raw data'!A166="","",'DF raw data'!A166) -> -250.5 | B166: =IF('DF raw data'!B166="","",'DF raw data'!B166) -> -1.49437e-05 | C166: =IF('DF raw data'!C166="","",'DF raw data'!C166) -> 9.46746e-05 | D166: =IF('DF raw data'!D166="","",'DF raw data'!D166) -> -3.98285e-05 | F166: 6.072998999e-07 | G166: 7.065137236e-06 | H166: 1.971625885e-06 | J166: 0.0001425669403 | K166: 0.003236111512 | L166: 0.0001037930198 | M166: -0.0002931896393 | N166: 3.555002439e-07
A167: =IF('DF raw data'!A167="","",'DF raw data'!A167) -> -250 | B167: =IF('DF raw data'!B167="","",'DF raw data'!B167) -> -1.45608e-05 | C167: =IF('DF raw data'!C167="","",'DF raw data'!C167) -> 9.23589e-05 | D167: =IF('DF raw data'!D167="","",'DF raw data'!D167) -> -3.71084e-05 | F167: 9.917372434e-07 | G167: 4.740139701e-06 | H167: 4.702647087e-06 | J167: 0.0001430628089 | K167: 0.003307642917 | L167: 0.0001061630897 | M167: -0.0002401080944 | N167: 3.713690284e-07
A168: =IF('DF raw data'!A168="","",'DF raw data'!A168) -> -249.5 | B168: =IF('DF raw data'!B168="","",'DF raw data'!B168) -> -1.16716e-05 | C168: =IF('DF raw data'!C168="","",'DF raw data'!C168) -> 8.75231e-05 | D168: =IF('DF raw data'!D168="","",'DF raw data'!D168) -> -4.32007e-05 | F168: 3.892537381e-06 | G168: -1.150760363e-07 | H168: -1.414113498e-06 | J168: 0.0001450090776 | K168: 0.003380147455 | L168: 0.0001061055516 | M168: -0.0001870553186 | N168: 3.875120387e-07
A169: =IF('DF raw data'!A169="","",'DF raw data'!A169) -> -249 | B169: =IF('DF raw data'!B169="","",'DF raw data'!B169) -> -1.73672e-06 | C169: =IF('DF raw data'!C169="","",'DF raw data'!C169) -> 9.45602e-05 | D169: =IF('DF raw data'!D169="","",'DF raw data'!D169) -> -3.91235e-05 | F169: 1.386730592e-05 | G169: 6.95027792e-06 | H169: 2.67945646e-06 | J169: 0.0001519427306 | K169: 0.003456118821 | L169: 0.0001095806906 | M169: -0.0001322649733 | N169: 4.050592993e-07
A170: =IF('DF raw data'!A170="","",'DF raw data'!A170) -> -248.5 | B170: =IF('DF raw data'!B170="","",'DF raw data'!B170) -> -1.36011e-05 | C170: =IF('DF raw data'!C170="","",'DF raw data'!C170) -> 0.0001054 | D170: =IF('DF raw data'!D170="","",'DF raw data'!D170) -> -3.42486e-05 | F170: 1.955290439e-06 | G170: 1.783359972e-05 | H170: 7.573929184e-06 | J170: 0.0001529203758 | K170: 0.003532579009 | L170: 0.0001184974905 | M170: -7.301622807e-05 | N170: 4.237724476e-07
A171: =IF('DF raw data'!A171="","",'DF raw data'!A171) -> -248 | B171: =IF('DF raw data'!B171="","",'DF raw data'!B171) -> -4.50463e-06 | C171: =IF('DF raw data'!C171="","",'DF raw data'!C171) -> 0.000100715 | D171: =IF('DF raw data'!D171="","",'DF raw data'!D171) -> -2.22419e-05 | F171: 1.108828277e-05 | G171: 1.312978944e-05 | H171: 1.962883608e-05 | J171: 0.0001584645172 | K171: 0.003611811267 | L171: 0.0001250623852 | M171: -1.048503547e-05 | N171: 4.441482493e-07
A172: =IF('DF raw data'!A172="","",'DF raw data'!A172) -> -247.5 | B172: =IF('DF raw data'!B172="","",'DF raw data'!B172) -> -4.75392e-06 | C172: =IF('DF raw data'!C172="","",'DF raw data'!C172) -> 9.95026e-05 | D172: =IF('DF raw data'!D172="","",'DF raw data'!D172) -> -3.32855e-05 | F172: 1.083799187e-05 | G172: 1.191252166e-05 | H172: 8.54089603e-06 | J172: 0.0001638835131 | K172: 0.003693753024 | L172: 0.000131018646 | M172: 5.502428753e-05 | N172: 4.66160095e-07
A173: =IF('DF raw data'!A173="","",'DF raw data'!A173) -> -247 | B173: =IF('DF raw data'!B173="","",'DF raw data'!B173) -> -4.82561e-06 | C173: =IF('DF raw data'!C173="","",'DF raw data'!C173) -> 9.62468e-05 | D173: =IF('DF raw data'!D173="","",'DF raw data'!D173) -> -2.17976e-05 | F173: 1.076601403e-05 | G173: 8.643649619e-06 | H173: 2.007491995e-05 | J173: 0.0001692665201 | K173: 0.003778386284 | L173: 0.0001353404708 | M173: 0.0001226945229 | N173: 4.89644194e-07
A174: =IF('DF raw data'!A174="","",'DF raw data'!A174) -> -246.5 | B174: =IF('DF raw data'!B174="","",'DF raw data'!B174) -> -1.13606e-05 | C174: =IF('DF raw data'!C174="","",'DF raw data'!C174) -> 9.27534e-05 | D174: =IF('DF raw data'!D174="","",'DF raw data'!D174) -> -2.86202e-05 | F174: 4.204786046e-06 | G174: 5.136223618e-06 | H174: 1.322492721e-05 | J174: 0.0001713689132 | K174: 0.00386407074 | L174: 0.0001379085826 | M174: 0.0001916488143 | N174: 5.138372348e-07
A175: =IF('DF raw data'!A175="","",'DF raw data'!A175) -> -246 | B175: =IF('DF raw data'!B175="","",'DF raw data'!B175) -> -3.60299e-06 | C175: =IF('DF raw data'!C175="","",'DF raw data'!C175) -> 9.22369e-05 | D175: =IF('DF raw data'!D175="","",'DF raw data'!D175) -> -2.85047e-05 | F175: 1.199354285e-05 | G175: 4.617649871e-06 | H175: 1.334089094e-05 | J175: 0.0001773656846 | K175: 0.003952753583 | L175: 0.0001402174076 | M175: 0.000261757518 | N175: 5.393969885e-07
A176: =IF('DF raw data'!A176="","",'DF raw data'!A176) -> -245.5 | B176: =IF('DF raw data'!B176="","",'DF raw data'!B176) -> -1.22823e-06 | C176: =IF('DF raw data'!C176="","",'DF raw data'!C176) -> 9.27057e-05 | D176: =IF('DF raw data'!D176="","",'DF raw data'!D176) -> -3.23278e-05 | F176: 1.437783751e-05 | G176: 5.088332103e-06 | H176: 9.502441196e-06 | J176: 0.0001845546033 | K176: 0.004045030884 | L176: 0.0001427615736 | M176: 0.0003331383049 | N176: 5.666176227e-07
A177: =IF('DF raw data'!A177="","",'DF raw data'!A177) -> -245 | B177: =IF('DF raw data'!B177="","",'DF raw data'!B177) -> -1.11013e-05 | C177: =IF('DF raw data'!C177="","",'DF raw data'!C177) -> 9.14426e-05 | D177: =IF('DF raw data'!D177="","",'DF raw data'!D177) -> -3.31478e-05 | F177: 4.465127136e-06 | G177: 3.820160756e-06 | H177: 8.679148896e-06 | J177: 0.0001867871669 | K177: 0.004138424468 | L177: 0.000144671654 | M177: 0.0004054741319 | N177: 5.945272893e-07
A178: =IF('DF raw data'!A178="","",'DF raw data'!A178) -> -244.5 | B178: =IF('DF raw data'!B178="","",'DF raw data'!B178) -> -2.3918e-05 | C178: =IF('DF raw data'!C178="","",'DF raw data'!C178) -> 9.70652e-05 | D178: =IF('DF raw data'!D178="","",'DF raw data'!D178) -> -4.23881e-05 | F178: -8.403031915e-06 | G178: 9.465335495e-06 | H178: -5.982509086e-07 | J178: 0.000182585651 | K178: 0.004229717293 | L178: 0.0001494043217 | M178: 0.0004801762927 | N178: 6.22356875e-07
A179: =IF('DF raw data'!A179="","",'DF raw data'!A179) -> -244 | B179: =IF('DF raw data'!B179="","",'DF raw data'!B179) -> -1.05324e-05 | C179: =IF('DF raw data'!C179="","",'DF raw data'!C179) -> 0.000109966 | D179: =IF('DF raw data'!D179="","",'DF raw data'!D179) -> -2.03841e-05 | F179: 5.036311269e-06 | G179: 2.241793221e-05 | H179: 2.149409515e-05 | J179: 0.0001851038066 | K179: 0.004322269197 | L179: 0.0001606132879 | M179: 0.0005604829367 | N179: 6.523868987e-07
A180: =IF('DF raw data'!A180="","",'DF raw data'!A180) -> -243.5 | B180: =IF('DF raw data'!B180="","",'DF raw data'!B180) -> -1.12893e-05 | C180: =IF('DF raw data'!C180="","",'DF raw data'!C180) -> 9.96078e-05 | D180: =IF('DF raw data'!D180="","",'DF raw data'!D180) -> -3.94981e-05 | F180: 4.276372316e-06 | G180: 1.201814403e-05 | H180: 2.303352441e-06 | J180: 0.0001872419928 | K180: 0.004415890193 | L180: 0.0001666223599 | M180: 0.0006437941166 | N180: 6.83798186e-07
A181: =IF('DF raw data'!A181="","",'DF raw data'!A181) -> -243 | B181: =IF('DF raw data'!B181="","",'DF raw data'!B181) -> -1.20653e-05 | C181: =IF('DF raw data'!C181="","",'DF raw data'!C181) -> 9.0845e-05 | D181: =IF('DF raw data'!D181="","",'DF raw data'!D181) -> -2.9761e-05 | F181: 3.497256676e-06 | G181: 3.220161392e-06 | H181: 1.20795469e-05 | J181: 0.0001889906211 | K181: 0.004510385504 | L181: 0.0001682324406 | M181: 0.0007279103369 | N181: 7.158079905e-07
A182: =IF('DF raw data'!A182="","",'DF raw data'!A182) -> -242.5 | B182: =IF('DF raw data'!B182="","",'DF raw data'!B182) -> -2.96374e-05 | C182: =IF('DF raw data'!C182="","",'DF raw data'!C182) -> 9.88496e-05 | D182: =IF('DF raw data'!D182="","",'DF raw data'!D182) -> -2.18124e-05 | F182: -1.414539531e-05 | G182: 1.125689986e-05 | H182: 2.006006053e-05 | J182: 0.0001819179234 | K182: 0.004601344465 | L182: 0.0001738608905 | M182: 0.0008148407821 | N182: 7.474688606e-07
A183: =IF('DF raw data'!A183="","",'DF raw data'!A183) -> -242 | B183: =IF('DF raw data'!B183="","",'DF raw data'!B183) -> -9.74606e-07 | C183: =IF('DF raw data'!C183="","",'DF raw data'!C183) -> 9.62353e-05 | D183: =IF('DF raw data'!D183="","",'DF raw data'!D183) -> -2.79634e-05 | F183: 1.463247981e-05 | G183: 8.632103447e-06 | H183: 1.388436426e-05 | J183: 0.0001892341633 | K183: 0.004695961547 | L183: 0.0001781769422 | M183: 0.0009039292532 | N183: 7.812471562e-07
A184: =IF('DF raw data'!A184="","",'DF raw data'!A184) -> -241.5 | B184: =IF('DF raw data'!B184="","",'DF raw data'!B184) -> -7.70301e-06 | C184: =IF('DF raw data'!C184="","",'DF raw data'!C184) -> 9.68989e-05 | D184: =IF('DF raw data'!D184="","",'DF raw data'!D184) -> -3.33646e-05 | F184: 7.87706127e-06 | G184: 9.298367801e-06 | H184: 8.461478444e-06 | J184: 0.000193172694 | K184: 0.004792547894 | L184: 0.0001828261261 | M184: 0.0009953423163 | N184: 8.166176973e-07
A185: =IF('DF raw data'!A185="","",'DF raw data'!A185) -> -241 | B185: =IF('DF raw data'!B185="","",'DF raw data'!B185) -> -7.89041e-06 | C185: =IF('DF raw data'!C185="","",'DF raw data'!C185) -> 0.000103611 | D185: =IF('DF raw data'!D185="","",'DF raw data'!D185) -> -4.11827e-05 | F185: 7.688908859e-06 | G185: 1.603741688e-05 | H185: 6.119887724e-07 | J185: 0.0001970171484 | K185: 0.004891056468 | L185: 0.0001908448346 | M185: 0.001090764734 | N185: 8.542364511e-07
A186: =IF('DF raw data'!A186="","",'DF raw data'!A186) -> -240.5 | B186: =IF('DF raw data'!B186="","",'DF raw data'!B186) -> -5.71288e-06 | C186: =IF('DF raw data'!C186="","",'DF raw data'!C186) -> 0.000101108 | D186: =IF('DF raw data'!D186="","",'DF raw data'!D186) -> -3.76546e-05 | F186: 9.875181642e-06 | G186: 1.352436734e-05 | H186: 4.154254094e-06 | J186: 0.0002019547392 | K186: 0.004992033838 | L186: 0.0001976070182 | M186: 0.001189568243 | N186: 8.941535763e-07
A187: =IF('DF raw data'!A187="","",'DF raw data'!A187) -> -240 | B187: =IF('DF raw data'!B187="","",'DF raw data'!B187) -> -1.39138e-05 | C187: =IF('DF raw data'!C187="","",'DF raw data'!C187) -> 0.000101245 | D187: =IF('DF raw data'!D187="","",'DF raw data'!D187) -> -4.60638e-05 | F187: 1.641334948e-06 | G187: 1.366191739e-05 | H187: -4.288708844e-06 | J187: 0.0002027754067 | K187: 0.005093421541 | L187: 0.0002044379769 | M187: 0.001291787231 | N187: 9.356099522e-07
A188: =IF('DF raw data'!A188="","",'DF raw data'!A188) -> -239.5 | B188: =IF('DF raw data'!B188="","",'DF raw data'!B188) -> -3.34027e-06 | C188: =IF('DF raw data'!C188="","",'DF raw data'!C188) -> 9.97841e-05 | D188: =IF('DF raw data'!D188="","",'DF raw data'!D188) -> -3.81643e-05 | F188: 1.225731767e-05 | G188: 1.219515188e-05 | H188: 3.642507648e-06 | J188: 0.0002089040655 | K188: 0.005197873574 | L188: 0.0002105355529 | M188: 0.001397055008 | N188: 9.795930161e-07
A189: =IF('DF raw data'!A189="","",'DF raw data'!A189) -> -239 | B189: =IF('DF raw data'!B189="","",'DF raw data'!B189) -> -7.19256e-06 | C189: =IF('DF raw data'!C189="","",'DF raw data'!C189) -> 9.03318e-05 | D189: =IF('DF raw data'!D189="","",'DF raw data'!D189) -> -2.95883e-05 | F189: 8.389560727e-06 | G189: 2.704900894e-06 | H189: 1.225294029e-05 | J189: 0.0002130988459 | K189: 0.005304422997 | L189: 0.0002118880033 | M189: 0.001502999009 | N189: 1.024746838e-06
A190: =IF('DF raw data'!A190="","",'DF raw data'!A190) -> -238.5 | B190: =IF('DF raw data'!B190="","",'DF raw data'!B190) -> -1.84103e-05 | C190: =IF('DF raw data'!C190="","",'DF raw data'!C190) -> 9.48952e-05 | D190: =IF('DF raw data'!D190="","",'DF raw data'!D190) -> -3.2718e-05 | F190: -2.873218499e-06 | G190: 7.286622945e-06 | H190: 9.110674543e-06 | J190: 0.0002116622367 | K190: 0.005410254115 | L190: 0.0002155313148 | M190: 0.001610764667 | N190: 1.070374163e-06
A191: =IF('DF raw data'!A191="","",'DF raw data'!A191) -> -238 | B191: =IF('DF raw data'!B191="","",'DF raw data'!B191) -> -3.022e-06 | C191: =IF('DF raw data'!C191="","",'DF raw data'!C191) -> 0.000100639 | D191: =IF('DF raw data'!D191="","",'DF raw data'!D191) -> -3.44222e-05 | F191: 1.257686553e-05 | G191: 1.30534843e-05 | H191: 7.39963218e-06 | J191: 0.0002179506694 | K191: 0.00551922945 | L191: 0.0002220580569 | M191: 0.001721793695 | N191: 1.118780301e-06
A192: =IF('DF raw data'!A192="","",'DF raw data'!A192) -> -237.5 | B192: =IF('DF raw data'!B192="","",'DF raw data'!B192) -> -1.32167e-05 | C192: =IF('DF raw data'!C192="","",'DF raw data'!C192) -> 0.000101935 | D192: =IF('DF raw data'!D192="","",'DF raw data'!D192) -> -3.36285e-05 | F192: 2.341233805e-06 | G192: 1.435468774e-05 | H192: 8.196518885e-06 | J192: =F192*$G$3+J191 -> 0.0002191212863 | K192: =J192*$G$3+K191 -> 0.005628790093 | L192: =G192*$G$3+L191 -> 0.0002292354008 | M192: =L192*$G$3+M191 -> 0.001836411395 | N192: =(J192^2+L192^2)*$G$3+N191 -> 1.169061804e-06
A193: =IF('DF raw data'!A193="","",'DF raw data'!A193) -> -237 | B193: =IF('DF raw data'!B193="","",'DF raw data'!B193) -> -2.16834e-05 | C193: =IF('DF raw data'!C193="","",'DF raw data'!C193) -> 9.2271e-05 | D193: =IF('DF raw data'!D193="","",'DF raw data'!D193) -> -2.76051e-05 | F193: -6.159459996e-06 | G193: 4.651886782e-06 | H193: 1.424410284e-05 | J193: 0.0002160415563 | K193: 0.005736810871 | L193: 0.0002315613442 | M193: 0.001952192068 | N193: 1.219209109e-06
A194: =IF('DF raw data'!A194="","",'DF raw data'!A194) -> -236.5 | B194: =IF('DF raw data'!B194="","",'DF raw data'!B194) -> -8.40801e-06 | C194: =IF('DF raw data'!C194="","",'DF raw data'!C194) -> 8.97602e-05 | D194: =IF('DF raw data'!D194="","",'DF raw data'!D194) -> -3.39e-05 | F194: 7.169230695e-06 | G194: 2.13100592e-06 | H194: 7.923928813e-06 | J194: 0.0002196261717 | K194: 0.005846623957 | L194: 0.0002326268472 | M194: 0.002068505491 | N194: 1.270384562e-06
A195: =IF('DF raw data'!A195="","",'DF raw data'!A195) -> -236 | B195: =IF('DF raw data'!B195="","",'DF raw data'!B195) -> -1.10312e-05 | C195: =IF('DF raw data'!C195="","",'DF raw data'!C195) -> 9.97422e-05 | D195: =IF('DF raw data'!D195="","",'DF raw data'!D195) -> -4.20517e-05 | F195: =(1-$G$1*($B$54-$G$2))*(B195-F$5) -> 4.535508587e-06 | G195: =(1-$G$1*($B$54-$G$2))*(C195-G$5) -> 1.215308365e-05 | H195: =(1-$G$1*($B$54-$G$2))*(D195-H$5) -> -2.605002626e-07 | J195: 0.000221893926 | K195: 0.00595757092 | L195: 0.000238703389 | M195: 0.002187857186 | N195: 1.323492673e-06
A196: =IF('DF raw data'!A196="","",'DF raw data'!A196) -> -235.5 | B196: =IF('DF raw data'!B196="","",'DF raw data'!B196) -> -1.29633e-05 | C196: =IF('DF raw data'!C196="","",'DF raw data'!C196) -> 0.000103935 | D196: =IF('DF raw data'!D196="","",'DF raw data'!D196) -> -2.89225e-05 | F196: 2.595651206e-06 | G196: 1.636271774e-05 | H196: 1.292141348e-05 | J196: 0.0002231917516 | K196: 0.006069166796 | L196: 0.0002468847479 | M196: 0.00231129956 | N196: 1.378875991e-06
A197: =IF('DF raw data'!A197="","",'DF raw data'!A197) -> -235 | B197: =IF('DF raw data'!B197="","",'DF raw data'!B197) -> -2.09043e-05 | C197: =IF('DF raw data'!C197="","",'DF raw data'!C197) -> 9.65709e-05 | D197: =IF('DF raw data'!D197="","",'DF raw data'!D197) -> -4.26004e-05 | F197: -5.377231909e-06 | G197: 8.969050881e-06 | H197: -8.114032931e-07 | J197: 0.0002205031356 | K197: 0.006179418364 | L197: 0.0002513692733 | M197: 0.002436984196 | N197: 1.434780064e-06
A198: =IF('DF raw data'!A198="","",'DF raw data'!A198) -> -234.5 | B198: =IF('DF raw data'!B198="","",'DF raw data'!B198) -> -1.19377e-05 | C198: =IF('DF raw data'!C198="","",'DF raw data'!C198) -> 9.87917e-05 | D198: =IF('DF raw data'!D198="","",'DF raw data'!D198) -> -2.86985e-05 | F198: 3.62536899e-06 | G198: 1.119876739e-05 | H198: 1.314631284e-05 | J198: 0.0002223158201 | K198: 0.006290576274 | L198: 0.000256968657 | M198: 0.002565468525 | N198: 1.492508671e-06
A199: =IF('DF raw data'!A199="","",'DF raw data'!A199) -> -234 | B199: =IF('DF raw data'!B199="","",'DF raw data'!B199) -> -1.78408e-05 | C199: =IF('DF raw data'!C199="","",'DF raw data'!C199) -> 9.8853e-05 | D199: =IF('DF raw data'!D199="","",'DF raw data'!D199) -> -2.12533e-05 | F199: -2.301431957e-06 | G199: 1.126031351e-05 | H199: 2.062140531e-05 | J199: 0.0002211651041 | K199: 0.006401158826 | L199: 0.0002625988137 | M199: 0.002696767932 | N199: 1.551444741e-06
A200: =IF('DF raw data'!A200="","",'DF raw data'!A200) -> -233.5 | B200: =IF('DF raw data'!B200="","",'DF raw data'!B200) -> -4.69049e-06 | C200: =IF('DF raw data'!C200="","",'DF raw data'!C200) -> 9.26804e-05 | D200: =IF('DF raw data'!D200="","",'DF raw data'!D200) -> -3.23938e-05 | F200: 1.090167654e-05 | G200: 5.062930523e-06 | H200: 9.436176206e-06 | J200: 0.0002266159424 | K200: 0.006514466797 | L200: 0.000265130279 | M200: 0.002829333071 | N200: 1.612269166e-06
... 1079 more rows

Sheet 15 mm
A1: =IF('DF raw data'!E1="","",'DF raw data'!E1) -> Number of header lines | B1: =IF('DF raw data'!F1="","",'DF raw data'!F1) -> 54 | C1: =IF('DF raw data'!C1="","",'DF raw data'!C1) ->  | D1: =IF('DF raw data'!D1="","",'DF raw data'!D1) ->  | F1: T_coeff | G1: -0.00073 | H1: /degC | J1: IBy total | K1: =J1267*1000 -> 1.385741083 | L1: muTm | M1: =L1267*1000 -> -13.88691813 | R1: DF ref | S1: 1
A2: =IF('DF raw data'!E2="","",'DF raw data'!E2) -> Measured by | B2: =IF('DF raw data'!F2="","",'DF raw data'!F2) -> Danfysik | C2: =IF('DF raw data'!C2="","",'DF raw data'!C2) ->  | D2: =IF('DF raw data'!D2="","",'DF raw data'!D2) ->  | F2: Tcorr | G2: 20 | H2: degC | J2: JBy total | K2: =K1267 -> -6.12555631 | L2: muTm^2 | M2: =M1267 -> -3.651990182
A3: =IF('DF raw data'!E3="","",'DF raw data'!E3) -> Operator | B3: =IF('DF raw data'!F3="","",'DF raw data'!F3) -> PMHA | C3: =IF('DF raw data'!C3="","",'DF raw data'!C3) ->  | D3: =IF('DF raw data'!D3="","",'DF raw data'!D3) ->  | F3: Step | G3: =A68-A67 -> 0.5 | H3: mm | J3: PI total | K3: =N1267 -> 7289.861681 | L3: T^2mm^3
A4: =IF('DF raw data'!E4="","",'DF raw data'!E4) -> Data-time | B4: =IF('DF raw data'!F4="","",'DF raw data'!F4) -> 24-07-2024, 13:47:40 | C4: =IF('DF raw data'!C4="","",'DF raw data'!C4) ->  | D4: =IF('DF raw data'!D4="","",'DF raw data'!D4) -> 
A5: =IF('DF raw data'!E5="","",'DF raw data'!E5) -> Project | B5: =IF('DF raw data'!F5="","",'DF raw data'!F5) -> 504314 | C5: =IF('DF raw data'!C5="","",'DF raw data'!C5) ->  | D5: Bamb avr | F5: =(AVERAGE(B67:B107) + AVERAGE(B1227:B1267))/2 -> -3.450507195e-05 | G5: =(AVERAGE(C67:C107) + AVERAGE(C1227:C1267))/2 -> -2.011967394e-05 | H5: =(AVERAGE(D67:D107) + AVERAGE(D1227:D1267))/2 -> -3.542499756e-05
A6: =IF('DF raw data'!E6="","",'DF raw data'!E6) -> Magnet type | B6: =IF('DF raw data'!F6="","",'DF raw data'!F6) -> Dipole | C6: =IF('DF raw data'!C6="","",'DF raw data'!C6) -> 
A7: =IF('DF raw data'!E7="","",'DF raw data'!E7) -> Magnet nr. | B7: =IF('DF raw data'!F7="","",'DF raw data'!F7) -> 2410084 | C7: =IF('DF raw data'!C7="","",'DF raw data'!C7) -> 
A8: =IF('DF raw data'!E8="","",'DF raw data'!E8) -> Meas. number | B8: =IF('DF raw data'!F8="","",'DF raw data'!F8) -> 116 | C8: =IF('DF raw data'!C8="","",'DF raw data'!C8) -> 
A9: =IF('DF raw data'!E9="","",'DF raw data'!E9) -> Add. info | B9: =IF('DF raw data'!F9="","",'DF raw data'!F9) ->  | C9: =IF('DF raw data'!C9="","",'DF raw data'!C9) ->  | D9: =IF('DF raw data'!D9="","",'DF raw data'!D9) -> 
A10: =IF('DF raw data'!E10="","",'DF raw data'!E10) -> Device | B10: =IF('DF raw data'!F10="","",'DF raw data'!F10) -> (HAL) HALL-PROBE | C10: =IF('DF raw data'!C10="","",'DF raw data'!C10) ->  | D10: =IF('DF raw data'!D10="","",'DF raw data'!D10) -> 
A11: =IF('DF raw data'!E11="","",'DF raw data'!E11) -> Goal | B11: =IF('DF raw data'!F11="","",'DF raw data'!F11) -> (AXI) AXis Integral (Line, EFB) | C11: =IF('DF raw data'!C11="","",'DF raw data'!C11) ->  | D11: =IF('DF raw data'!D11="","",'DF raw data'!D11) -> 
A12: =IF('DF raw data'!E12="","",'DF raw data'!E12) -> Power supply mode | B12: =IF('DF raw data'!F12="","",'DF raw data'!F12) -> (PM) Permanent Magnet (no MPS in use) | C12: =IF('DF raw data'!C12="","",'DF raw data'!C12) ->  | D12: =IF('DF raw data'!D12="","",'DF raw data'!D12) -> 
A13: =IF('DF raw data'!E13="","",'DF raw data'!E13) -> Data format | B13: =IF('DF raw data'!F13="","",'DF raw data'!F13) -> Raw data text file | C13: =IF('DF raw data'!C13="","",'DF raw data'!C13) ->  | D13: =IF('DF raw data'!D13="","",'DF raw data'!D13) -> 
A14: =IF('DF raw data'!E14="","",'DF raw data'!E14) -> Direction of the pos. x-axis | B14: =IF('DF raw data'!F14="","",'DF raw data'!F14) -> See test program | C14: =IF('DF raw data'!C14="","",'DF raw data'!C14) ->  | D14: =IF('DF raw data'!D14="","",'DF raw data'!D14) -> 
A15: =IF('DF raw data'!E15="","",'DF raw data'!E15) -> Direction of the pos. y-axis | B15: =IF('DF raw data'!F15="","",'DF raw data'!F15) -> Vertical up | C15: =IF('DF raw data'!C15="","",'DF raw data'!C15) ->  | D15: =IF('DF raw data'!D15="","",'DF raw data'!D15) -> 
A16: =IF('DF raw data'!E16="","",'DF raw data'!E16) -> Direction of the pos. z-axis | B16: =IF('DF raw data'!F16="","",'DF raw data'!F16) -> See test program | C16: =IF('DF raw data'!C16="","",'DF raw data'!C16) ->  | D16: =IF('DF raw data'!D16="","",'DF raw data'!D16) -> 
A17: =IF('DF raw data'!E17="","",'DF raw data'!E17) -> Mapper type | B17: =IF('DF raw data'!F17="","",'DF raw data'!F17) -> Precision Hall Mapper | C17: =IF('DF raw data'!C17="","",'DF raw data'!C17) ->  | D17: =IF('DF raw data'!D17="","",'DF raw data'!D17) -> 
A18: =IF('DF raw data'!E18="","",'DF raw data'!E18) -> Mapper Danfysik Reg. Number | B18: =IF('DF raw data'!F18="","",'DF raw data'!F18) -> 2033-D (mapper 1) | C18: =IF('DF raw data'!C18="","",'DF raw data'!C18) ->  | D18: =IF('DF raw data'!D18="","",'DF raw data'!D18) -> 
A19: =IF('DF raw data'!E19="","",'DF raw data'!E19) -> Measurement consept | B19: =IF('DF raw data'!F19="","",'DF raw data'!F19) -> Square line grid | C19: =IF('DF raw data'!C19="","",'DF raw data'!C19) ->  | D19: =IF('DF raw data'!D19="","",'DF raw data'!D19) -> 
A20: =IF('DF raw data'!E20="","",'DF raw data'!E20) -> Mode | B20: =IF('DF raw data'!F20="","",'DF raw data'!F20) -> On-the-fly measurement | C20: =IF('DF raw data'!C20="","",'DF raw data'!C20) ->  | D20: =IF('DF raw data'!D20="","",'DF raw data'!D20) -> 
A21: =IF('DF raw data'!E21="","",'DF raw data'!E21) ->  | B21: =IF('DF raw data'!F21="","",'DF raw data'!F21) ->  | C21: =IF('DF raw data'!C21="","",'DF raw data'!C21) ->  | D21: =IF('DF raw data'!D21="","",'DF raw data'!D21) -> 
A22: =IF('DF raw data'!E22="","",'DF raw data'!E22) -> Probe Name | B22: =IF('DF raw data'!F22="","",'DF raw data'!F22) -> ID12_By | C22: =IF('DF raw data'!C22="","",'DF raw data'!C22) ->  | D22: =IF('DF raw data'!D22="","",'DF raw data'!D22) -> 
A23: =IF('DF raw data'!E23="","",'DF raw data'!E23) -> Probe Type | B23: =IF('DF raw data'!F23="","",'DF raw data'!F23) -> DF_ID_3D_Bxyz | C23: =IF('DF raw data'!C23="","",'DF raw data'!C23) ->  | D23: =IF('DF raw data'!D23="","",'DF raw data'!D23) -> 
A24: =IF('DF raw data'!E24="","",'DF raw data'!E24) -> Probe Danfysik Reg. Number | B24: =IF('DF raw data'!F24="","",'DF raw data'!F24) -> 2277 | C24: =IF('DF raw data'!C24="","",'DF raw data'!C24) ->  | D24: =IF('DF raw data'!D24="","",'DF raw data'!D24) -> 
A25: =IF('DF raw data'!E25="","",'DF raw data'!E25) -> Probe Axis | B25: =IF('DF raw data'!F25="","",'DF raw data'!F25) -> By | C25: =IF('DF raw data'!C25="","",'DF raw data'!C25) ->  | D25: =IF('DF raw data'!D25="","",'DF raw data'!D25) -> 
A26: =IF('DF raw data'!E26="","",'DF raw data'!E26) -> Probe Current Supply | B26: =IF('DF raw data'!F26="","",'DF raw data'!F26) -> 1825-D | C26: =IF('DF raw data'!C26="","",'DF raw data'!C26) ->  | D26: =IF('DF raw data'!D26="","",'DF raw data'!D26) -> 
A27: =IF('DF raw data'!E27="","",'DF raw data'!E27) -> Probe Gain Correction | B27: =IF('DF raw data'!F27="","",'DF raw data'!F27) -> 0.99612 | C27: =IF('DF raw data'!C27="","",'DF raw data'!C27) ->  | D27: =IF('DF raw data'!D27="","",'DF raw data'!D27) -> 
A28: =IF('DF raw data'!E28="","",'DF raw data'!E28) -> Probe Offset Correction | B28: =IF('DF raw data'!F28="","",'DF raw data'!F28) -> 0.0027559 | C28: =IF('DF raw data'!C28="","",'DF raw data'!C28) ->  | D28: =IF('DF raw data'!D28="","",'DF raw data'!D28) -> 
A29: =IF('DF raw data'!E29="","",'DF raw data'!E29) -> DVM Number | B29: =IF('DF raw data'!F29="","",'DF raw data'!F29) -> 2 | C29: =IF('DF raw data'!C29="","",'DF raw data'!C29) ->  | D29: =IF('DF raw data'!D29="","",'DF raw data'!D29) -> 
A30: =IF('DF raw data'!E30="","",'DF raw data'!E30) -> DVM Type | B30: =IF('DF raw data'!F30="","",'DF raw data'!F30) -> K2701 | C30: =IF('DF raw data'!C30="","",'DF raw data'!C30) ->  | D30: =IF('DF raw data'!D30="","",'DF raw data'!D30) -> 
A31: =IF('DF raw data'!E31="","",'DF raw data'!E31) -> DVM Danfysik Reg. Number | B31: =IF('DF raw data'!F31="","",'DF raw data'!F31) -> 1743-D | C31: =IF('DF raw data'!C31="","",'DF raw data'!C31) ->  | D31: =IF('DF raw data'!D31="","",'DF raw data'!D31) -> 
A32: =IF('DF raw data'!E32="","",'DF raw data'!E32) -> Probe Name | B32: =IF('DF raw data'!F32="","",'DF raw data'!F32) -> ID12_Bx | C32: =IF('DF raw data'!C32="","",'DF raw data'!C32) ->  | D32: =IF('DF raw data'!D32="","",'DF raw data'!D32) -> 
A33: =IF('DF raw data'!E33="","",'DF raw data'!E33) -> Probe Type | B33: =IF('DF raw data'!F33="","",'DF raw data'!F33) -> DF_ID_3D_Bxyz | C33: =IF('DF raw data'!C33="","",'DF raw data'!C33) ->  | D33: =IF('DF raw data'!D33="","",'DF raw data'!D33) -> 
A34: =IF('DF raw data'!E34="","",'DF raw data'!E34) -> Probe Danfysik Reg. Number | B34: =IF('DF raw data'!F34="","",'DF raw data'!F34) -> 2277 | C34: =IF('DF raw data'!C34="","",'DF raw data'!C34) ->  | D34: =IF('DF raw data'!D34="","",'DF raw data'!D34) -> 
A35: =IF('DF raw data'!E35="","",'DF raw data'!E35) -> Probe Axis | B35: =IF('DF raw data'!F35="","",'DF raw data'!F35) -> Bx | C35: =IF('DF raw data'!C35="","",'DF raw data'!C35) ->  | D35: =IF('DF raw data'!D35="","",'DF raw data'!D35) -> 
A36: =IF('DF raw data'!E36="","",'DF raw data'!E36) -> Probe Current Supply | B36: =IF('DF raw data'!F36="","",'DF raw data'!F36) -> 1825-D | C36: =IF('DF raw data'!C36="","",'DF raw data'!C36) ->  | D36: =IF('DF raw data'!D36="","",'DF raw data'!D36) -> 
A37: =IF('DF raw data'!E37="","",'DF raw data'!E37) -> Probe Gain Correction | B37: =IF('DF raw data'!F37="","",'DF raw data'!F37) -> 1 | C37: =IF('DF raw data'!C37="","",'DF raw data'!C37) ->  | D37: =IF('DF raw data'!D37="","",'DF raw data'!D37) -> 
A38: =IF('DF raw data'!E38="","",'DF raw data'!E38) -> Probe Offset Correction | B38: =IF('DF raw data'!F38="","",'DF raw data'!F38) -> -0.17567 | C38: =IF('DF raw data'!C38="","",'DF raw data'!C38) ->  | D38: =IF('DF raw data'!D38="","",'DF raw data'!D38) -> 
A39: =IF('DF raw data'!E39="","",'DF raw data'!E39) -> DVM Number | B39: =IF('DF raw data'!F39="","",'DF raw data'!F39) -> 3 | C39: =IF('DF raw data'!C39="","",'DF raw data'!C39) ->  | D39: =IF('DF raw data'!D39="","",'DF raw data'!D39) -> 
A40: =IF('DF raw data'!E40="","",'DF raw data'!E40) -> DVM Type | B40: =IF('DF raw data'!F40="","",'DF raw data'!F40) -> K2701 | C40: =IF('DF raw data'!C40="","",'DF raw data'!C40) ->  | D40: =IF('DF raw data'!D40="","",'DF raw data'!D40) -> 
A41: =IF('DF raw data'!E41="","",'DF raw data'!E41) -> DVM Danfysik Reg. Number | B41: =IF('DF raw data'!F41="","",'DF raw data'!F41) -> 1744-D | C41: =IF('DF raw data'!C41="","",'DF raw data'!C41) ->  | D41: =IF('DF raw data'!D41="","",'DF raw data'!D41) -> 
A42: =IF('DF raw data'!E42="","",'DF raw data'!E42) -> Probe Name | B42: =IF('DF raw data'!F42="","",'DF raw data'!F42) -> ID12_Bz | C42: =IF('DF raw data'!C42="","",'DF raw data'!C42) ->  | D42: =IF('DF raw data'!D42="","",'DF raw data'!D42) -> 
A43: =IF('DF raw data'!E43="","",'DF raw data'!E43) -> Probe Type | B43: =IF('DF raw data'!F43="","",'DF raw data'!F43) -> DF_ID_3D_Bxyz | C43: =IF('DF raw data'!C43="","",'DF raw data'!C43) ->  | D43: =IF('DF raw data'!D43="","",'DF raw data'!D43) -> 
A44: =IF('DF raw data'!E44="","",'DF raw data'!E44) -> Probe Danfysik Reg. Number | B44: =IF('DF raw data'!F44="","",'DF raw data'!F44) -> 2277 | C44: =IF('DF raw data'!C44="","",'DF raw data'!C44) ->  | D44: =IF('DF raw data'!D44="","",'DF raw data'!D44) -> 
A45: =IF('DF raw data'!E45="","",'DF raw data'!E45) -> Probe Axis | B45: =IF('DF raw data'!F45="","",'DF raw data'!F45) -> Bz | C45: =IF('DF raw data'!C45="","",'DF raw data'!C45) ->  | D45: =IF('DF raw data'!D45="","",'DF raw data'!D45) -> 
A46: =IF('DF raw data'!E46="","",'DF raw data'!E46) -> Probe Current Supply | B46: =IF('DF raw data'!F46="","",'DF raw data'!F46) -> 1825-D | C46: =IF('DF raw data'!C46="","",'DF raw data'!C46) ->  | D46: =IF('DF raw data'!D46="","",'DF raw data'!D46) -> 
A47: =IF('DF raw data'!E47="","",'DF raw data'!E47) -> Probe Gain Correction | B47: =IF('DF raw data'!F47="","",'DF raw data'!F47) -> 1 | C47: =IF('DF raw data'!C47="","",'DF raw data'!C47) ->  | D47: =IF('DF raw data'!D47="","",'DF raw data'!D47) -> 
A48: =IF('DF raw data'!E48="","",'DF raw data'!E48) -> Probe Offset Correction | B48: =IF('DF raw data'!F48="","",'DF raw data'!F48) -> 0.0073283 | C48: =IF('DF raw data'!C48="","",'DF raw data'!C48) ->  | D48: =IF('DF raw data'!D48="","",'DF raw data'!D48) -> 
A49: =IF('DF raw data'!E49="","",'DF raw data'!E49) -> DVM Number | B49: =IF('DF raw data'!F49="","",'DF raw data'!F49) -> 8 | C49: =IF('DF raw data'!C49="","",'DF raw data'!C49) ->  | D49: =IF('DF raw data'!D49="","",'DF raw data'!D49) -> 
A50: =IF('DF raw data'!E50="","",'DF raw data'!E50) -> DVM Type | B50: =IF('DF raw data'!F50="","",'DF raw data'!F50) -> K2700 | C50: =IF('DF raw data'!C50="","",'DF raw data'!C50) ->  | D50: =IF('DF raw data'!D50="","",'DF raw data'!D50) -> 
A51: =IF('DF raw data'!E51="","",'DF raw data'!E51) -> DVM Danfysik Reg. Number | B51: =IF('DF raw data'!F51="","",'DF raw data'!F51) -> 1756-D | C51: =IF('DF raw data'!C51="","",'DF raw data'!C51) ->  | D51: =IF('DF raw data'!D51="","",'DF raw data'!D51) -> 
A52: =IF('DF raw data'!E52="","",'DF raw data'!E52) -> NTC voltage | B52: =IF('DF raw data'!F52="","",'DF raw data'!F52) -> 0.38577 | C52: =IF('DF raw data'!C52="","",'DF raw data'!C52) ->  | D52: =IF('DF raw data'!D52="","",'DF raw data'!D52) -> 
A53: =IF('DF raw data'!E53="","",'DF raw data'!E53) -> PS-Gap: | B53: =IF('DF raw data'!F53="","",'DF raw data'!F53) -> 15 | C53: =IF('DF raw data'!C53="","",'DF raw data'!C53) ->  | D53: =IF('DF raw data'!D53="","",'DF raw data'!D53) -> 
A54: =IF('DF raw data'!E54="","",'DF raw data'!E54) -> PS-Temperature: | B54: =IF('DF raw data'!F54="","",'DF raw data'!F54) -> 26.7 | C54: =IF('DF raw data'!C54="","",'DF raw data'!C54) ->  | D54: =IF('DF raw data'!D54="","",'DF raw data'!D54) -> 
A55: =IF('DF raw data'!E55="","",'DF raw data'!E55) -> PS-Encoder: | B55: =IF('DF raw data'!F55="","",'DF raw data'!F55) -> 24.437 | C55: =IF('DF raw data'!C55="","",'DF raw data'!C55) ->  | D55: =IF('DF raw data'!D55="","",'DF raw data'!D55) -> 
A56: =IF('DF raw data'!E56="","",'DF raw data'!E56) ->  | B56: =IF('DF raw data'!F56="","",'DF raw data'!F56) -> 
A57: =IF('DF raw data'!E57="","",'DF raw data'!E57) -> Monitor-Index | B57: =IF('DF raw data'!F57="","",'DF raw data'!F57) -> [1,1,4]
A58: =IF('DF raw data'!E58="","",'DF raw data'!E58) ->  | B58: =IF('DF raw data'!F58="","",'DF raw data'!F58) -> 
A59: =IF('DF raw data'!E59="","",'DF raw data'!E59) -> Time [s] | B59: =IF('DF raw data'!F59="","",'DF raw data'!F59) -> Y [mm]
A60: =IF('DF raw data'!E60="","",'DF raw data'!E60) ->  | B60: =IF('DF raw data'!F60="","",'DF raw data'!F60) -> 
A61: =IF('DF raw data'!E61="","",'DF raw data'!E61) -> 206.5 | B61: =IF('DF raw data'!F61="","",'DF raw data'!F61) -> 31.36
A62: =IF('DF raw data'!E62="","",'DF raw data'!E62) ->  | B62: =IF('DF raw data'!F62="","",'DF raw data'!F62) -> 
A63: =IF('DF raw data'!E63="","",'DF raw data'!E63) -> Measurement-Index | B63: =IF('DF raw data'!F63="","",'DF raw data'!F63) -> [1,1,1201,2]
A64: =IF('DF raw data'!E64="","",'DF raw data'!E64) ->  | B64: =IF('DF raw data'!F64="","",'DF raw data'!F64) -> 
A65: =IF('DF raw data'!E65="","",'DF raw data'!E65) -> Z [mm] | B65: =IF('DF raw data'!F65="","",'DF raw data'!F65) -> By [T] | C65: =IF('DF raw data'!G65="","",'DF raw data'!G65) -> Bx [T] | D65: =IF('DF raw data'!H65="","",'DF raw data'!H65) -> Bz [T] | F65: By_corr | G65: Bx_corr | H65: Bz_corr | J65: Iy | K65: Jy | L65: Ix | M65: Jx | N65: PI
B66: =IF('DF raw data'!F66="","",'DF raw data'!F66) ->  | C66: =IF('DF raw data'!G66="","",'DF raw data'!G66) ->  | D66: =IF('DF raw data'!H66="","",'DF raw data'!H66) -> 
A67: =IF('DF raw data'!E67="","",'DF raw data'!E67) -> -300 | B67: =IF('DF raw data'!F67="","",'DF raw data'!F67) -> -2.63227e-05 | C67: =IF('DF raw data'!G67="","",'DF raw data'!G67) -> -4.73222e-06 | D67: =IF('DF raw data'!H67="","",'DF raw data'!H67) -> -2.12833e-05 | F67: =(1-$G$1*($B$54-$G$2))*(B67-F$5) -> 8.222391932e-06 | G67: =(1-$G$1*($B$54-$G$2))*(C67-G$5) -> 1.546271398e-05 | H67: =(1-$G$1*($B$54-$G$2))*(D67-H$5) -> 1.42108646e-05 | J67: =F67*$G$3+J66 -> 4.111195966e-06 | K67: =J67*$G$3+K66 -> 2.055597983e-06 | L67: =G67*$G$3+L66 -> 7.731356988e-06 | M67: =L67*$G$3+M66 -> 3.865678494e-06 | N67: =(J67^2+L67^2)*$G$3+N66 -> 3.833790658e-11
A68: =IF('DF raw data'!E68="","",'DF raw data'!E68) -> -299.5 | B68: =IF('DF raw data'!F68="","",'DF raw data'!F68) -> -3.47232e-05 | C68: =IF('DF raw data'!G68="","",'DF raw data'!G68) -> -4.3734e-06 | D68: =IF('DF raw data'!H68="","",'DF raw data'!H68) -> -2.09991e-05 | F68: -2.191949131e-07 | G68: 1.582328896e-05 | H68: 1.449645463e-05 | J68: =F68*$G$3+J67 -> 4.00159851e-06 | K68: =J68*$G$3+K67 -> 4.056397238e-06 | L68: =G68*$G$3+L67 -> 1.564300147e-05 | M68: =L68*$G$3+M67 -> 1.168717923e-05 | N68: =(J68^2+L68^2)*$G$3+N67 -> 1.686960494e-10
A69: =IF('DF raw data'!E69="","",'DF raw data'!E69) -> -299 | B69: =IF('DF raw data'!F69="","",'DF raw data'!F69) -> -3.45311e-05 | C69: =IF('DF raw data'!G69="","",'DF raw data'!G69) -> 9.04675e-07 | D69: =IF('DF raw data'!H69="","",'DF raw data'!H69) -> -2.03223e-05 | F69: -2.615535197e-08 | G69: 2.112717903e-05 | H69: 1.517656485e-05 | J69: 3.988520834e-06 | K69: 6.050657655e-06 | L69: 2.620659099e-05 | M69: 2.479047472e-05 | N69: 5.200429042e-10
A70: =IF('DF raw data'!E70="","",'DF raw data'!E70) -> -298.5 | B70: =IF('DF raw data'!F70="","",'DF raw data'!F70) -> -4.20987e-05 | C70: =IF('DF raw data'!G70="","",'DF raw data'!G70) -> 4.22122e-07 | D70: =IF('DF raw data'!H70="","",'DF raw data'!H70) -> -1.93323e-05 | F70: -7.630768484e-06 | G70: 2.064226586e-05 | H70: 1.617140694e-05 | J70: 1.731365919e-07 | K70: 6.137225951e-06 | L70: 3.652772392e-05 | M70: 4.305433668e-05 | N70: 1.1871952e-09
A71: =IF('DF raw data'!E71="","",'DF raw data'!E71) -> -298 | B71: =IF('DF raw data'!F71="","",'DF raw data'!F71) -> -3.5943e-05 | C71: =IF('DF raw data'!G71="","",'DF raw data'!G71) -> -1.56936e-06 | D71: =IF('DF raw data'!H71="","",'DF raw data'!H71) -> -1.85664e-05 | F71: -1.444960955e-06 | G71: 1.864104352e-05 | H71: 1.694105296e-05 | J71: -5.493438855e-07 | K71: 5.862554008e-06 | L71: 4.584824568e-05 | M71: 6.597845952e-05 | N71: 2.238376905e-09
A72: =IF('DF raw data'!E72="","",'DF raw data'!E72) -> -297.5 | B72: =IF('DF raw data'!F72="","",'DF raw data'!F72) -> -3.0813e-05 | C72: =IF('DF raw data'!G72="","",'DF raw data'!G72) -> -2.04998e-06 | D72: =IF('DF raw data'!H72="","",'DF raw data'!H72) -> -1.87166e-05 | F72: 3.710129875e-06 | G72: 1.815807281e-05 | H72: 1.679011833e-05 | J72: 1.305721052e-06 | K72: 6.515414534e-06 | L72: 5.492728209e-05 | M72: 9.344210056e-05 | N72: 3.747732517e-09
A73: =IF('DF raw data'!E73="","",'DF raw data'!E73) -> -297 | B73: =IF('DF raw data'!F73="","",'DF raw data'!F73) -> -2.70933e-05 | C73: =IF('DF raw data'!G73="","",'DF raw data'!G73) -> 1.75892e-06 | D73: =IF('DF raw data'!H73="","",'DF raw data'!H73) -> -1.95062e-05 | F73: 7.448022928e-06 | G73: 2.198560214e-05 | H73: 1.59966564e-05 | J73: 5.029732516e-06 | K73: 9.030280792e-06 | L73: 6.592008316e-05 | M73: 0.0001264021421 | N73: 5.933110303e-09
A74: =IF('DF raw data'!E74="","",'DF raw data'!E74) -> -296.5 | B74: =IF('DF raw data'!F74="","",'DF raw data'!F74) -> -3.50444e-05 | C74: =IF('DF raw data'!G74="","",'DF raw data'!G74) -> 4.11139e-06 | D74: =IF('DF raw data'!H74="","",'DF raw data'!H74) -> -1.9822e-05 | F74: -5.419659023e-07 | G74: 2.434957807e-05 | H74: 1.567931182e-05 | J74: 4.758749565e-06 | K74: 1.140965557e-05 | L74: 7.809487219e-05 | M74: 0.0001654495782 | N74: 8.993837684e-09
A75: =IF('DF raw data'!E75="","",'DF raw data'!E75) -> -296 | B75: =IF('DF raw data'!F75="","",'DF raw data'!F75) -> -3.44676e-05 | C75: =IF('DF raw data'!G75="","",'DF raw data'!G75) -> -2.02875e-06 | D75: =IF('DF raw data'!H75="","",'DF raw data'!H75) -> -1.96309e-05 | F75: 3.765522653e-08 | G75: 1.817940665e-05 | H75: 1.587134649e-05 | J75: 4.777577178e-06 | K75: 1.379844416e-05 | L75: 8.718457552e-05 | M75: 0.000209041866 | N75: 1.280582541e-08
A76: =IF('DF raw data'!E76="","",'DF raw data'!E76) -> -295.5 | B76: =IF('DF raw data'!F76="","",'DF raw data'!F76) -> -3.16462e-05 | C76: =IF('DF raw data'!G76="","",'DF raw data'!G76) -> 2.91096e-06 | D76: =IF('DF raw data'!H76="","",'DF raw data'!H76) -> -1.96152e-05 | F76: 2.872854694e-06 | G76: 2.314327677e-05 | H76: 1.588712328e-05 | J76: 6.214004525e-06 | K76: 1.690544643e-05 | L76: 9.87562139e-05 | M76: 0.0002584199729 | N76: 1.770152723e-08
A77: =IF('DF raw data'!E77="","",'DF raw data'!E77) -> -295 | B77: =IF('DF raw data'!F77="","",'DF raw data'!F77) -> -3.44033e-05 | C77: =IF('DF raw data'!G77="","",'DF raw data'!G77) -> 3.08204e-07 | D77: =IF('DF raw data'!H77="","",'DF raw data'!H77) -> -1.96318e-05 | F77: 1.022697178e-07 | G77: 2.052779069e-05 | H77: 1.587044209e-05 | J77: 6.265139384e-06 | K77: 2.003801612e-05 | L77: 0.0001090201092 | M77: 0.0003129300276 | N77: 2.366384532e-08
A78: =IF('DF raw data'!E78="","",'DF raw data'!E78) -> -294.5 | B78: =IF('DF raw data'!F78="","",'DF raw data'!F78) -> -3.80588e-05 | C78: =IF('DF raw data'!G78="","",'DF raw data'!G78) -> -3.83907e-06 | D78: =IF('DF raw data'!H78="","",'DF raw data'!H78) -> -1.91946e-05 | F78: -3.571109333e-06 | G78: 1.636023237e-05 | H78: 1.630978044e-05 | J78: 4.479584718e-06 | K78: 2.227780848e-05 | L78: 0.0001172002254 | M78: 0.0003715301403 | N78: 3.054182508e-08
A79: =IF('DF raw data'!E79="","",'DF raw data'!E79) -> -294 | B79: =IF('DF raw data'!F79="","",'DF raw data'!F79) -> -3.24162e-05 | C79: =IF('DF raw data'!G79="","",'DF raw data'!G79) -> 1.39512e-07 | D79: =IF('DF raw data'!H79="","",'DF raw data'!H79) -> -1.87458e-05 | F79: 2.099088624e-06 | G79: 2.035827362e-05 | H79: 1.676077552e-05 | J79: 5.52912903e-06 | K79: 2.504237299e-05 | L79: 0.0001273793622 | M79: 0.0004352198214 | N79: 3.866986168e-08
A80: =IF('DF raw data'!E80="","",'DF raw data'!E80) -> -293.5 | B80: =IF('DF raw data'!F80="","",'DF raw data'!F80) -> -3.07488e-05 | C80: =IF('DF raw data'!G80="","",'DF raw data'!G80) -> 2.71547e-06 | D80: =IF('DF raw data'!H80="","",'DF raw data'!H80) -> -1.90484e-05 | F80: 3.774643877e-06 | G80: 2.294683063e-05 | H80: 1.64566955e-05 | J80: 7.416450968e-06 | K80: 2.875059848e-05 | L80: 0.0001388527776 | M80: 0.0005046462102 | N80: 4.833741047e-08
A81: =IF('DF raw data'!E81="","",'DF raw data'!E81) -> -293 | B81: =IF('DF raw data'!F81="","",'DF raw data'!F81) -> -2.52333e-05 | C81: =IF('DF raw data'!G81="","",'DF raw data'!G81) -> 7.15058e-06 | D81: =IF('DF raw data'!H81="","",'DF raw data'!H81) -> -1.99397e-05 | F81: 9.317120188e-06 | G81: 2.740363275e-05 | H81: 1.556103615e-05 | J81: 1.207501106e-05 | K81: 3.478810401e-05 | L81: 0.0001525545939 | M81: 0.0005809235071 | N81: 6.004676548e-08
A82: =IF('DF raw data'!E82="","",'DF raw data'!E82) -> -292.5 | B82: =IF('DF raw data'!F82="","",'DF raw data'!F82) -> -3.57497e-05 | C82: =IF('DF raw data'!G82="","",'DF raw data'!G82) -> 3.16732e-06 | D82: =IF('DF raw data'!H82="","",'DF raw data'!H82) -> -2.02579e-05 | F82: -1.250715525e-06 | G82: 2.340089063e-05 | H82: 1.524127984e-05 | J82: 1.14496533e-05 | K82: 4.051293066e-05 | L82: 0.0001642550392 | M82: 0.0006630510268 | N82: 7.360217172e-08
A83: =IF('DF raw data'!E83="","",'DF raw data'!E83) -> -292 | B83: =IF('DF raw data'!F83="","",'DF raw data'!F83) -> -3.9982e-05 | C83: =IF('DF raw data'!G83="","",'DF raw data'!G83) -> -1.57651e-06 | D83: =IF('DF raw data'!H83="","",'DF raw data'!H83) -> -2.00369e-05 | F83: -5.503715704e-06 | G83: 1.863385855e-05 | H83: 1.546336075e-05 | J83: 8.697795448e-06 | K83: 4.486182838e-05 | L83: 0.0001735719685 | M83: 0.000749837011 | N83: 8.870361167e-08
A84: =IF('DF raw data'!E84="","",'DF raw data'!E84) -> -291.5 | B84: =IF('DF raw data'!F84="","",'DF raw data'!F84) -> -3.00963e-05 | C84: =IF('DF raw data'!G84="","",'DF raw data'!G84) -> 3.12511e-06 | D84: =IF('DF raw data'!H84="","",'DF raw data'!H84) -> -3.59647e-05 | F84: 4.430335255e-06 | G84: 2.335847418e-05 | H84: -5.423421237e-07 | J84: 1.091296308e-05 | K84: 5.031830992e-05 | L84: 0.0001852512056 | M84: 0.0008424626138 | N84: 1.059221626e-07
A85: =IF('DF raw data'!E85="","",'DF raw data'!E85) -> -291 | B85: =IF('DF raw data'!F85="","",'DF raw data'!F85) -> -4.34314e-05 | C85: =IF('DF raw data'!G85="","",'DF raw data'!G85) -> 3.23582e-06 | D85: =IF('DF raw data'!H85="","",'DF raw data'!H85) -> -4.04314e-05 | F85: -8.969986719e-06 | G85: 2.346972566e-05 | H85: -5.030888753e-06 | J85: 6.427969716e-06 | K85: 5.353229478e-05 | L85: 0.0001969860684 | M85: 0.0009409556481 | N85: 1.253445776e-07
A86: =IF('DF raw data'!E86="","",'DF raw data'!E86) -> -290.5 | B86: =IF('DF raw data'!F86="","",'DF raw data'!F86) -> -4.76649e-05 | C86: =IF('DF raw data'!G86="","",'DF raw data'!G86) -> -2.83194e-06 | D86: =IF('DF raw data'!H86="","",'DF raw data'!H86) -> -3.84601e-05 | F86: -1.322419277e-05 | G86: 1.737228825e-05 | H86: -3.049947125e-06 | J86: -1.841266681e-07 | K86: 5.344023144e-05 | L86: 0.0002056722126 | M86: 0.001043791754 | N86: 1.464951241e-07
A87: =IF('DF raw data'!E87="","",'DF raw data'!E87) -> -290 | B87: =IF('DF raw data'!F87="","",'DF raw data'!F87) -> -3.33e-05 | C87: =IF('DF raw data'!G87="","",'DF raw data'!G87) -> -3.20265e-06 | D87: =IF('DF raw data'!H87="","",'DF raw data'!H87) -> -4.01743e-05 | F87: 1.210965958e-06 | G87: 1.69997651e-05 | H87: -4.772531277e-06 | J87: 4.213563109e-07 | K87: 5.36509096e-05 | L87: 0.0002141720951 | M87: 0.001150877802 | N87: 1.69430056e-07
A88: =IF('DF raw data'!E88="","",'DF raw data'!E88) -> -289.5 | B88: =IF('DF raw data'!F88="","",'DF raw data'!F88) -> -3.99766e-05 | C88: =IF('DF raw data'!G88="","",'DF raw data'!G88) -> 8.38127e-06 | D88: =IF('DF raw data'!H88="","",'DF raw data'!H88) -> -2.83439e-05 | F88: -5.498289292e-06 | G88: 2.864034206e-05 | H88: 7.115731209e-06 | J88: -2.327788335e-06 | K88: 5.248701543e-05 | L88: 0.0002284922661 | M88: 0.001265123935 | N88: 1.955371232e-07
A89: =IF('DF raw data'!E89="","",'DF raw data'!E89) -> -289 | B89: =IF('DF raw data'!F89="","",'DF raw data'!F89) -> -3.74809e-05 | C89: =IF('DF raw data'!G89="","",'DF raw data'!G89) -> 2.25978e-06 | D89: =IF('DF raw data'!H89="","",'DF raw data'!H89) -> -2.01669e-05 | F89: -2.990382824e-06 | G89: 2.248891185e-05 | H89: 1.533272492e-05 | J89: -3.822979747e-06 | K89: 5.057552556e-05 | L89: 0.0002397367221 | M89: 0.001384992296 | N89: 2.242812787e-07
A90: =IF('DF raw data'!E90="","",'DF raw data'!E90) -> -288.5 | B90: =IF('DF raw data'!F90="","",'DF raw data'!F90) -> -2.76637e-05 | C90: =IF('DF raw data'!G90="","",'DF raw data'!G90) -> -4.76766e-06 | D90: =IF('DF raw data'!H90="","",'DF raw data'!H90) -> -2.95844e-05 | F90: 6.874833101e-06 | G90: 1.542710064e-05 | H90: 5.869163924e-06 | J90: -3.855631965e-07 | K90: 5.038274396e-05 | L90: 0.0002474502724 | M90: 0.001508717432 | N90: 2.548971717e-07
A91: =IF('DF raw data'!E91="","",'DF raw data'!E91) -> -288 | B91: =IF('DF raw data'!F91="","",'DF raw data'!F91) -> -3.36827e-05 | C91: =IF('DF raw data'!G91="","",'DF raw data'!G91) -> 2.45075e-06 | D91: =IF('DF raw data'!H91="","",'DF raw data'!H91) -> -4.33384e-05 | F91: 8.263941724e-07 | G91: 2.268081588e-05 | H91: -7.95210689e-06 | J91: 2.763388976e-08 | K91: 5.03965609e-05 | L91: 0.0002587906803 | M91: 0.001638112772 | N91: 2.883834802e-07
A92: =IF('DF raw data'!E92="","",'DF raw data'!E92) -> -287.5 | B92: =IF('DF raw data'!F92="","",'DF raw data'!F92) -> -2.66295e-05 | C92: =IF('DF raw data'!G92="","",'DF raw data'!G92) -> -3.72549e-06 | D92: =IF('DF raw data'!H92="","",'DF raw data'!H92) -> -4.23163e-05 | F92: 7.914091374e-06 | G92: 1.647436789e-05 | H92: -6.925007799e-06 | J92: 3.984679577e-06 | K92: 5.238890069e-05 | L92: 0.0002670278643 | M92: 0.001771626704 | N92: 3.240433592e-07
A93: =IF('DF raw data'!E93="","",'DF raw data'!E93) -> -287 | B93: =IF('DF raw data'!F93="","",'DF raw data'!F93) -> -4.24082e-05 | C93: =IF('DF raw data'!G93="","",'DF raw data'!G93) -> -8.9486e-06 | D93: =IF('DF raw data'!H93="","",'DF raw data'!H93) -> -3.61432e-05 | F93: -7.941782248e-06 | G93: 1.122571166e-05 | H93: -7.217151672e-07 | J93: 1.378845254e-08 | K93: 5.239579492e-05 | L93: 0.0002726407201 | M93: 0.001907947065 | N93: 3.612098404e-07
A94: =IF('DF raw data'!E94="","",'DF raw data'!E94) -> -286.5 | B94: =IF('DF raw data'!F94="","",'DF raw data'!F94) -> -2.77855e-05 | C94: =IF('DF raw data'!G94="","",'DF raw data'!G94) -> -3.53024e-06 | D94: =IF('DF raw data'!H94="","",'DF raw data'!H94) -> -3.95517e-05 | F94: 6.752437378e-06 | G94: 1.667057286e-05 | H94: -4.146886141e-06 | J94: 3.390007141e-06 | K94: 5.409079849e-05 | L94: 0.0002809760065 | M94: 0.002048435068 | N94: 4.006893446e-07
A95: =IF('DF raw data'!E95="","",'DF raw data'!E95) -> -286 | B95: =IF('DF raw data'!F95="","",'DF raw data'!F95) -> -3.97716e-05 | C95: =IF('DF raw data'!G95="","",'DF raw data'!G95) -> 1.38257e-06 | D95: =IF('DF raw data'!H95="","",'DF raw data'!H95) -> -4.74847e-05 | F95: -5.292286637e-06 | G95: 2.160741141e-05 | H95: -1.211868644e-05 | J95: 7.438638226e-07 | K95: 5.44627304e-05 | L95: 0.0002917797122 | M95: 0.002194324924 | N95: 4.432573215e-07
A96: =IF('DF raw data'!E96="","",'DF raw data'!E96) -> -285.5 | B96: =IF('DF raw data'!F96="","",'DF raw data'!F96) -> -3.20832e-05 | C96: =IF('DF raw data'!G96="","",'DF raw data'!G96) -> -3.02989e-06 | D96: =IF('DF raw data'!H96="","",'DF raw data'!H96) -> -3.76308e-05 | F96: 2.433717327e-06 | G96: 1.717337007e-05 | H96: -2.216591019e-06 | J96: 1.960722486e-06 | K96: 5.544309164e-05 | L96: 0.0003003663973 | M96: 0.002344508123 | N96: 4.8836923e-07
A97: =IF('DF raw data'!E97="","",'DF raw data'!E97) -> -285 | B97: =IF('DF raw data'!F97="","",'DF raw data'!F97) -> -3.85588e-05 | C97: =IF('DF raw data'!G97="","",'DF raw data'!G97) -> -1.13292e-05 | D97: =IF('DF raw data'!H97="","",'DF raw data'!H97) -> -3.92131e-05 | F97: -4.073554833e-06 | G97: 8.833468147e-06 | H97: -3.806630048e-06 | J97: -7.605493024e-08 | K97: 5.540506418e-05 | L97: 0.0003047831314 | M97: 0.002496899688 | N97: 5.348156115e-07
A98: =IF('DF raw data'!E98="","",'DF raw data'!E98) -> -284.5 | B98: =IF('DF raw data'!F98="","",'DF raw data'!F98) -> -3.82421e-05 | C98: =IF('DF raw data'!G98="","",'DF raw data'!G98) -> -1.35919e-05 | D98: =IF('DF raw data'!H98="","",'DF raw data'!H98) -> -3.29376e-05 | F98: -3.755305853e-06 | G98: 6.559701281e-06 | H98: 2.499563422e-06 | J98: -1.953707857e-06 | K98: 5.442821025e-05 | L98: 0.000308062982 | M98: 0.002650931179 | N98: 5.822689204e-07
A99: =IF('DF raw data'!E99="","",'DF raw data'!E99) -> -284 | B99: =IF('DF raw data'!F99="","",'DF raw data'!F99) -> -3.0417e-05 | C99: =IF('DF raw data'!G99="","",'DF raw data'!G99) -> -3.83673e-06 | D99: =IF('DF raw data'!H99="","",'DF raw data'!H99) -> -3.60121e-05 | F99: 4.108066711e-06 | G99: 1.636258382e-05 | H99: -5.899739571e-07 | J99: 1.003254988e-07 | K99: 5.4478373e-05 | L99: 0.0003162442739 | M99: 0.002809053316 | N99: 6.322741458e-07
A100: =IF('DF raw data'!E100="","",'DF raw data'!E100) -> -283.5 | B100: =IF('DF raw data'!F100="","",'DF raw data'!F100) -> -2.71462e-05 | C100: =IF('DF raw data'!G100="","",'DF raw data'!G100) -> -4.22888e-06 | D100: =IF('DF raw data'!H100="","",'DF raw data'!H100) -> -3.66133e-05 | F100: 7.394864194e-06 | G100: 1.596851581e-05 | H100: -1.194114426e-06 | J100: 3.797757596e-06 | K100: 5.63772518e-05 | L100: 0.0003242285318 | M100: 0.002971167582 | N100: 6.848434277e-07
A101: =IF('DF raw data'!E101="","",'DF raw data'!E101) -> -283 | B101: =IF('DF raw data'!F101="","",'DF raw data'!F101) -> -4.37603e-05 | C101: =IF('DF raw data'!G101="","",'DF raw data'!G101) -> -3.81272e-06 | D101: =IF('DF raw data'!H101="","",'DF raw data'!H101) -> -2.78788e-05 | F101: -9.300495369e-06 | G101: 1.638671125e-05 | H101: 7.583106013e-06 | J101: -8.524900888e-07 | K101: 5.595100675e-05 | L101: 0.0003324218874 | M101: 0.003137378526 | N101: 7.400959467e-07
A102: =IF('DF raw data'!E102="","",'DF raw data'!E102) -> -282.5 | B102: =IF('DF raw data'!F102="","",'DF raw data'!F102) -> -3.44632e-05 | C102: =IF('DF raw data'!G102="","",'DF raw data'!G102) -> -3.1781e-06 | D102: =IF('DF raw data'!H102="","",'DF raw data'!H102) -> -2.63809e-05 | F102: 4.207674693e-08 | G102: 1.702443518e-05 | H102: 9.088332242e-06 | J102: -8.314517153e-07 | K102: 5.553528089e-05 | L102: 0.000340934105 | M102: 0.003307845578 | N102: 7.982143244e-07
A103: =IF('DF raw data'!E103="","",'DF raw data'!E103) -> -282 | B103: =IF('DF raw data'!F103="","",'DF raw data'!F103) -> -3.8046e-05 | C103: =IF('DF raw data'!G103="","",'DF raw data'!G103) -> 5.14297e-06 | D103: =IF('DF raw data'!H103="","",'DF raw data'!H103) -> -3.89106e-05 | F103: -3.558246728e-06 | G103: 2.538620353e-05 | H103: -3.502650521e-06 | J103: -2.610575079e-06 | K103: 5.422999336e-05 | L103: 0.0003536272068 | M103: 0.003484659182 | N103: 8.607438326e-07
A104: =IF('DF raw data'!E104="","",'DF raw data'!E104) -> -281.5 | B104: =IF('DF raw data'!F104="","",'DF raw data'!F104) -> -3.38184e-05 | C104: =IF('DF raw data'!G104="","",'DF raw data'!G104) -> 3.10644e-07 | D104: =IF('DF raw data'!H104="","",'DF raw data'!H104) -> -3.18436e-05 | F104: 6.900304637e-07 | G104: 2.053024262e-05 | H104: 3.598914176e-06 | J104: -2.265559847e-06 | K104: 5.309721343e-05 | L104: 0.0003638923281 | M104: 0.003666605346 | N104: 9.269552122e-07
A105: =IF('DF raw data'!E105="","",'DF raw data'!E105) -> -281 | B105: =IF('DF raw data'!F105="","",'DF raw data'!F105) -> -3.76001e-05 | C105: =IF('DF raw data'!G105="","",'DF raw data'!G105) -> 8.20273e-06 | D105: =IF('DF raw data'!H105="","",'DF raw data'!H105) -> -3.414e-05 | F105: -3.110165831e-06 | G105: 2.846092882e-05 | H105: 1.291282484e-06 | J105: -3.820642763e-06 | K105: 5.118689205e-05 | L105: 0.0003781227925 | M105: 0.003855666742 | N105: 9.98450934e-07
A106: =IF('DF raw data'!E106="","",'DF raw data'!E106) -> -280.5 | B106: =IF('DF raw data'!F106="","",'DF raw data'!F106) -> -4.27355e-05 | C106: =IF('DF raw data'!G106="","",'DF raw data'!G106) -> -5.4042e-07 | D106: =IF('DF raw data'!H106="","",'DF raw data'!H106) -> -2.60394e-05 | F106: -8.270683072e-06 | G106: 1.967501607e-05 | H106: 9.431502519e-06 | J106: -7.955984299e-06 | K106: 4.72088999e-05 | L106: 0.0003879603005 | M106: 0.004049646892 | N106: 1.07373918e-06
A107: =IF('DF raw data'!E107="","",'DF raw data'!E107) -> -280 | B107: =IF('DF raw data'!F107="","",'DF raw data'!F107) -> -4.10688e-05 | C107: =IF('DF raw data'!G107="","",'DF raw data'!G107) -> 2.75025e-06 | D107: =IF('DF raw data'!H107="","",'DF raw data'!H107) -> -2.48865e-05 | F107: -6.595831243e-06 | G107: 2.298178074e-05 | H107: 1.059004135e-05 | J107: -1.125389992e-05 | K107: 4.158194994e-05 | L107: 0.0003994511909 | M107: 0.004249372488 | N107: 1.153583132e-06
A108: =IF('DF raw data'!E108="","",'DF raw data'!E108) -> -279.5 | B108: =IF('DF raw data'!F108="","",'DF raw data'!F108) -> -4.24073e-05 | C108: =IF('DF raw data'!G108="","",'DF raw data'!G108) -> 2.5505e-06 | D108: =IF('DF raw data'!H108="","",'DF raw data'!H108) -> -3.75063e-05 | F108: -7.940877846e-06 | G108: 2.278105376e-05 | H108: -2.091482089e-06 | J108: -1.522433884e-05 | K108: 3.396978052e-05 | L108: 0.0004108417178 | M108: 0.004454793347 | N108: 1.238094481e-06
A109: =IF('DF raw data'!E109="","",'DF raw data'!E109) -> -279 | B109: =IF('DF raw data'!F109="","",'DF raw data'!F109) -> -3.77995e-05 | C109: =IF('DF raw data'!G109="","",'DF raw data'!G109) -> 7.24244e-06 | D109: =IF('DF raw data'!H109="","",'DF raw data'!H109) -> -2.34456e-05 | F109: -3.310541096e-06 | G109: 2.749594204e-05 | H109: 1.203798879e-05 | J109: -1.687960939e-05 | K109: 2.552997582e-05 | L109: 0.0004245896888 | M109: 0.004667088191 | N109: 1.328375144e-06
A110: =IF('DF raw data'!E110="","",'DF raw data'!E110) -> -278.5 | B110: =IF('DF raw data'!F110="","",'DF raw data'!F110) -> -3.78058e-05 | C110: =IF('DF raw data'!G110="","",'DF raw data'!G110) -> 4.25874e-06 | D110: =IF('DF raw data'!H110="","",'DF raw data'!H110) -> -1.37506e-05 | F110: -3.31687191e-06 | G110: 2.449764876e-05 | H110: 2.178040704e-05 | J110: -1.853804535e-05 | K110: 1.626095315e-05 | L110: 0.0004368385132 | M110: 0.004885507448 | N110: 1.423960916e-06
A111: =IF('DF raw data'!E111="","",'DF raw data'!E111) -> -278 | B111: =IF('DF raw data'!F111="","",'DF raw data'!F111) -> -2.52939e-05 | C111: =IF('DF raw data'!G111="","",'DF raw data'!G111) -> 6.9888e-06 | D111: =IF('DF raw data'!H111="","",'DF raw data'!H111) -> -2.55813e-05 | F111: 9.256223793e-06 | G111: 2.724106149e-05 | H111: 9.891843086e-06 | J111: -1.390993345e-05 | K111: 9.305986424e-06 | L111: 0.0004504590439 | M111: 0.00511073697 | N111: 1.525514335e-06
A112: =IF('DF raw data'!E112="","",'DF raw data'!E112) -> -277.5 | B112: =IF('DF raw data'!F112="","",'DF raw data'!F112) -> -3.8687e-05 | C112: =IF('DF raw data'!G112="","",'DF raw data'!G112) -> 3.03729e-06 | D112: =IF('DF raw data'!H112="","",'DF raw data'!H112) -> -3.93089e-05 | F112: -4.202381859e-06 | G112: 2.327022465e-05 | H112: -3.902898606e-06 | J112: -1.601112438e-05 | K112: 1.300424235e-06 | L112: 0.0004620941563 | M112: 0.005341784048 | N112: 1.632408017e-06
A113: =IF('DF raw data'!E113="","",'DF raw data'!E113) -> -277 | B113: =IF('DF raw data'!F113="","",'DF raw data'!F113) -> -3.49113e-05 | C113: =IF('DF raw data'!G113="","",'DF raw data'!G113) -> -1.2642e-05 | D113: =IF('DF raw data'!H113="","",'DF raw data'!H113) -> -2.73073e-05 | F113: -4.082149102e-07 | G113: 7.514247242e-06 | H113: 8.15740122e-06 | J113: -1.621523183e-05 | K113: -6.807191682e-06 | L113: 0.0004658512799 | M113: 0.005574709688 | N113: 1.741048192e-06
A114: =IF('DF raw data'!E114="","",'DF raw data'!E114) -> -276.5 | B114: =IF('DF raw data'!F114="","",'DF raw data'!F114) -> -3.56791e-05 | C114: =IF('DF raw data'!G114="","",'DF raw data'!G114) -> -1.03137e-05 | D114: =IF('DF raw data'!H114="","",'DF raw data'!H114) -> -2.99751e-05 | F114: -1.17977022e-06 | G114: 9.853934958e-06 | H114: 5.47655301e-06 | J114: -1.680511694e-05 | K114: -1.520975015e-05 | L114: 0.0004707782474 | M114: 0.005810098811 | N114: 1.852005477e-06
A115: =IF('DF raw data'!E115="","",'DF raw data'!E115) -> -276 | B115: =IF('DF raw data'!F115="","",'DF raw data'!F115) -> -3.61266e-05 | C115: =IF('DF raw data'!G115="","",'DF raw data'!G115) -> -6.13535e-06 | D115: =IF('DF raw data'!H115="","",'DF raw data'!H115) -> -3.22035e-05 | F115: -1.629458942e-06 | G115: 1.405272127e-05 | H115: 3.237253906e-06 | J115: -1.761984642e-05 | K115: -2.401967336e-05 | L115: 0.000477804608 | M115: 0.006049001115 | N115: 1.966309328e-06
A116: =IF('DF raw data'!E116="","",'DF raw data'!E116) -> -275.5 | B116: =IF('DF raw data'!F116="","",'DF raw data'!F116) -> -4.10617e-05 | C116: =IF('DF raw data'!G116="","",'DF raw data'!G116) -> -7.1629e-06 | D116: =IF('DF raw data'!H116="","",'DF raw data'!H116) -> -3.58438e-05 | F116: -6.588696517e-06 | G116: 1.302014552e-05 | H116: -4.208508018e-07 | J116: -2.091419467e-05 | K116: -3.44767707e-05 | L116: 0.0004843146808 | M116: 0.006291158456 | N116: 2.083808385e-06
A117: =IF('DF raw data'!E117="","",'DF raw data'!E117) -> -275 | B117: =IF('DF raw data'!F117="","",'DF raw data'!F117) -> -3.34288e-05 | C117: =IF('DF raw data'!G117="","",'DF raw data'!G117) -> -1.79267e-05 | D117: =IF('DF raw data'!H117="","",'DF raw data'!H117) -> -3.94082e-05 | F117: 1.081535997e-06 | G117: 2.203699775e-06 | H117: -4.002684282e-06 | J117: -2.037342668e-05 | K117: -4.466348404e-05 | L117: 0.0004854165306 | M117: 0.006533866721 | N117: 2.201830527e-06
A118: =IF('DF raw data'!E118="","",'DF raw data'!E118) -> -274.5 | B118: =IF('DF raw data'!F118="","",'DF raw data'!F118) -> -3.50973e-05 | C118: =IF('DF raw data'!G118="","",'DF raw data'!G118) -> -1.3911e-05 | D118: =IF('DF raw data'!H118="","",'DF raw data'!H118) -> -3.73587e-05 | F118: -5.951246362e-07 | G118: 6.239040563e-06 | H118: -1.943160178e-06 | J118: -2.067098899e-05 | K118: -5.499897853e-05 | L118: 0.0004885360509 | M118: 0.006778134747 | N118: 2.321377909e-06
A119: =IF('DF raw data'!E119="","",'DF raw data'!E119) -> -274 | B119: =IF('DF raw data'!F119="","",'DF raw data'!F119) -> -4.5737e-05 | C119: =IF('DF raw data'!G119="","",'DF raw data'!G119) -> -4.88514e-06 | D119: =IF('DF raw data'!H119="","",'DF raw data'!H119) -> -4.48358e-05 | F119: -1.128686341e-05 | G119: 1.530904604e-05 | H119: -9.456830674e-06 | J119: -2.63144207e-05 | K119: -6.815618888e-05 | L119: 0.0004961905739 | M119: 0.007026230033 | N119: 2.444826676e-06
A120: =IF('DF raw data'!E120="","",'DF raw data'!E120) -> -273.5 | B120: =IF('DF raw data'!F120="","",'DF raw data'!F120) -> -2.90731e-05 | C120: =IF('DF raw data'!G120="","",'DF raw data'!G120) -> 6.82885e-06 | D120: =IF('DF raw data'!H120="","",'DF raw data'!H120) -> -3.17018e-05 | F120: 5.458539726e-06 | G120: 2.708032917e-05 | H120: 3.74140772e-06 | J120: -2.358515083e-05 | K120: -7.99487643e-05 | L120: 0.0005097307385 | M120: 0.007281095403 | N120: 2.575017518e-06
A121: =IF('DF raw data'!E121="","",'DF raw data'!E121) -> -273 | B121: =IF('DF raw data'!F121="","",'DF raw data'!F121) -> -2.6123e-05 | C121: =IF('DF raw data'!G121="","",'DF raw data'!G121) -> -2.81909e-06 | D121: =IF('DF raw data'!H121="","",'DF raw data'!H121) -> -3.22194e-05 | F121: 8.423068665e-06 | G121: 1.73852011e-05 | H121: 3.221276139e-06 | J121: -1.93736165e-05 | K121: -8.963557255e-05 | L121: 0.0005184233391 | M121: 0.007540307072 | N121: 2.709586566e-06
A122: =IF('DF raw data'!E122="","",'DF raw data'!E122) -> -272.5 | B122: =IF('DF raw data'!F122="","",'DF raw data'!F122) -> -3.52308e-05 | C122: =IF('DF raw data'!G122="","",'DF raw data'!G122) -> -7.59523e-06 | D122: =IF('DF raw data'!H122="","",'DF raw data'!H122) -> -2.92824e-05 | F122: -7.292775847e-07 | G122: 1.258570099e-05 | H122: 6.172641006e-06 | J122: -1.973825529e-05 | K122: -9.95047002e-05 | L122: 0.0005247161896 | M122: 0.007802665167 | N122: 2.847444905e-06
A123: =IF('DF raw data'!E123="","",'DF raw data'!E123) -> -272 | B123: =IF('DF raw data'!F123="","",'DF raw data'!F123) -> -3.45816e-05 | C123: =IF('DF raw data'!G123="","",'DF raw data'!G123) -> -4.46312e-06 | D123: =IF('DF raw data'!H123="","",'DF raw data'!H123) -> -4.14955e-05 | F123: -7.690234747e-08 | G123: 1.573313014e-05 | H123: -6.100193266e-06 | J123: -1.977670647e-05 | K123: -0.0001093930534 | L123: 0.0005325827546 | M123: 0.008068956544 | N123: 2.98946266e-06
A124: =IF('DF raw data'!E124="","",'DF raw data'!E124) -> -271.5 | B124: =IF('DF raw data'!F124="","",'DF raw data'!F124) -> -3.63167e-05 | C124: =IF('DF raw data'!G124="","",'DF raw data'!G124) -> 5.22741e-07 | D124: =IF('DF raw data'!H124="","",'DF raw data'!H124) -> -3.54621e-05 | F124: -1.820488722e-06 | G124: 2.074337699e-05 | H124: -3.728390705e-08 | J124: -2.068695083e-05 | K124: -0.0001197365288 | L124: 0.0005429544431 | M124: 0.008340433766 | N124: 3.137076398e-06
A125: =IF('DF raw data'!E125="","",'DF raw data'!E125) -> -271 | B125: =IF('DF raw data'!F125="","",'DF raw data'!F125) -> -3.47159e-05 | C125: =IF('DF raw data'!G125="","",'DF raw data'!G125) -> 1.43596e-06 | D125: =IF('DF raw data'!H125="","",'DF raw data'!H125) -> -3.22563e-05 | F125: -2.118592088e-07 | G125: 2.166106254e-05 | H125: 3.184195661e-06 | J125: -2.079288043e-05 | K125: -0.0001301329691 | L125: 0.0005537849744 | M125: 0.008617326253 | N125: 3.290631469e-06
A126: =IF('DF raw data'!E126="","",'DF raw data'!E126) -> -270.5 | B126: =IF('DF raw data'!F126="","",'DF raw data'!F126) -> -3.34295e-05 | C126: =IF('DF raw data'!G126="","",'DF raw data'!G126) -> -2.29533e-06 | D126: =IF('DF raw data'!H126="","",'DF raw data'!H126) -> -3.8264e-05 | F126: 1.080832574e-06 | G126: 1.791152281e-05 | H126: -2.852888e-06 | J126: -2.025246415e-05 | K126: -0.0001402592011 | L126: 0.0005627407358 | M126: 0.008898696621 | N126: 3.449175118e-06
A127: =IF('DF raw data'!E127="","",'DF raw data'!E127) -> -270 | B127: =IF('DF raw data'!F127="","",'DF raw data'!F127) -> -2.50963e-05 | C127: =IF('DF raw data'!G127="","",'DF raw data'!G127) -> -4.31299e-06 | D127: =IF('DF raw data'!H127="","",'DF raw data'!H127) -> -3.34009e-05 | F127: 9.454790255e-06 | G127: 1.588399443e-05 | H127: 2.033997422e-06 | J127: -1.552506902e-05 | K127: -0.0001480217356 | L127: 0.000570682733 | M127: 0.009184037988 | N127: 3.612135023e-06
A128: =IF('DF raw data'!E128="","",'DF raw data'!E128) -> -269.5 | B128: =IF('DF raw data'!F128="","",'DF raw data'!F128) -> -2.49689e-05 | C128: =IF('DF raw data'!G128="","",'DF raw data'!G128) -> -6.23234e-07 | D128: =IF('DF raw data'!H128="","",'DF raw data'!H128) -> -3.21344e-05 | F128: 9.582813368e-06 | G128: 1.959179703e-05 | H128: 3.306691874e-06 | J128: -1.073366234e-05 | K128: -0.0001533885668 | L128: 0.0005804786315 | M128: 0.009474277303 | N128: 3.780670349e-06
A129: =IF('DF raw data'!E129="","",'DF raw data'!E129) -> -269 | B129: =IF('DF raw data'!F129="","",'DF raw data'!F129) -> -2.66338e-05 | C129: =IF('DF raw data'!G129="","",'DF raw data'!G129) -> 7.43045e-06 | D129: =IF('DF raw data'!H129="","",'DF raw data'!H129) -> -3.55747e-05 | F129: 7.909770342e-06 | G129: 2.76848716e-05 | H129: -1.504346337e-07 | J129: -6.778777164e-06 | K129: -0.0001567779554 | L129: 0.0005943210673 | M129: 0.009771437837 | N129: 3.957302091e-06
A130: =IF('DF raw data'!E130="","",'DF raw data'!E130) -> -268.5 | B130: =IF('DF raw data'!F130="","",'DF raw data'!F130) -> -3.67626e-05 | C130: =IF('DF raw data'!G130="","",'DF raw data'!G130) -> 1.37281e-06 | D130: =IF('DF raw data'!H130="","",'DF raw data'!H130) -> -4.03521e-05 | F130: -2.268569618e-06 | G130: 2.159760368e-05 | H130: -4.951200897e-06 | J130: -7.913061973e-06 | K130: -0.0001607344864 | L130: 0.0006051198692 | M130: 0.01007399777 | N130: 4.140418427e-06
A131: =IF('DF raw data'!E131="","",'DF raw data'!E131) -> -268 | B131: =IF('DF raw data'!F131="","",'DF raw data'!F131) -> -4.34396e-05 | C131: =IF('DF raw data'!G131="","",'DF raw data'!G131) -> -7.27335e-07 | D131: =IF('DF raw data'!H131="","",'DF raw data'!H131) -> -2.76845e-05 | F131: =(1-$G$1*($B$54-$G$2))*(B131-F$5) -> -8.978226825e-06 | G131: =(1-$G$1*($B$54-$G$2))*(C131-G$5) -> 1.948718687e-05 | H131: =(1-$G$1*($B$54-$G$2))*(D131-H$5) -> 7.778356335e-06 | J131: -1.240217539e-05 | K131: -0.0001669355741 | L131: 0.0006148634626 | M131: 0.0103814295 | N131: 4.329523873e-06
A132: =IF('DF raw data'!E132="","",'DF raw data'!E132) -> -267.5 | B132: =IF('DF raw data'!F132="","",'DF raw data'!F132) -> -4.24117e-05 | C132: =IF('DF raw data'!G132="","",'DF raw data'!G132) -> -7.33439e-06 | D132: =IF('DF raw data'!H132="","",'DF raw data'!H132) -> -3.06527e-05 | F132: -7.945299367e-06 | G132: 1.284781676e-05 | H132: 4.795638868e-06 | J132: =F132*$G$3+J131 -> -1.637482507e-05 | K132: =J132*$G$3+K131 -> -0.0001751229866 | L132: =G132*$G$3+L131 -> 0.000621287371 | M132: =L132*$G$3+M131 -> 0.01069207319 | N132: =(J132^2+L132^2)*$G$3+N131 -> 4.522656939e-06
A133: =IF('DF raw data'!E133="","",'DF raw data'!E133) -> -267 | B133: =IF('DF raw data'!F133="","",'DF raw data'!F133) -> -3.82475e-05 | C133: =IF('DF raw data'!G133="","",'DF raw data'!G133) -> -7.2887e-06 | D133: =IF('DF raw data'!H133="","",'DF raw data'!H133) -> -2.46186e-05 | F133: -3.760732264e-06 | G133: 1.289373023e-05 | H133: 1.085925165e-05 | J133: -1.82551912e-05 | K133: -0.0001842505822 | L133: 0.0006277342361 | M133: 0.01100594031 | N133: 4.719848701e-06
A134: =IF('DF raw data'!E134="","",'DF raw data'!E134) -> -266.5 | B134: =IF('DF raw data'!F134="","",'DF raw data'!F134) -> -3.29826e-05 | C134: =IF('DF raw data'!G134="","",'DF raw data'!G134) -> -2.474e-06 | D134: =IF('DF raw data'!H134="","",'DF raw data'!H134) -> -3.50241e-05 | F134: 1.529918362e-06 | G134: 1.773197893e-05 | H134: 4.028583509e-07 | J134: -1.749023202e-05 | K134: -0.0001929956982 | L134: 0.0006366002256 | M134: 0.01132424042 | N134: 4.922631578e-06
A135: =IF('DF raw data'!E135="","",'DF raw data'!E135) -> -266 | B135: =IF('DF raw data'!F135="","",'DF raw data'!F135) -> -3.93354e-05 | C135: =IF('DF raw data'!G135="","",'DF raw data'!G135) -> 2.26683e-06 | D135: =IF('DF raw data'!H135="","",'DF raw data'!H135) -> -2.81796e-05 | F135: -4.853953183e-06 | G135: 2.249599633e-05 | H135: 7.2808348e-06 | J135: -1.991720861e-05 | K135: -0.0002029543025 | L135: 0.0006478482237 | M135: 0.01164816453 | N135: 5.132683587e-06
A136: =IF('DF raw data'!E136="","",'DF raw data'!E136) -> -265.5 | B136: =IF('DF raw data'!F136="","",'DF raw data'!F136) -> -4.16414e-05 | C136: =IF('DF raw data'!G136="","",'DF raw data'!G136) -> -7.76978e-06 | D136: =IF('DF raw data'!H136="","",'DF raw data'!H136) -> -3.19099e-05 | F136: -7.171231829e-06 | G136: 1.241029727e-05 | H136: 3.532289903e-06 | J136: -2.350282453e-05 | K136: -0.0002147057148 | L136: 0.0006540533724 | M136: 0.01197519122 | N136: 5.346852685e-06
A137: =IF('DF raw data'!E137="","",'DF raw data'!E137) -> -265 | B137: =IF('DF raw data'!F137="","",'DF raw data'!F137) -> -4.54914e-05 | C137: =IF('DF raw data'!G137="","",'DF raw data'!G137) -> -1.30109e-05 | D137: =IF('DF raw data'!H137="","",'DF raw data'!H137) -> -2.7966e-05 | F137: -1.104006218e-05 | G137: 7.143542952e-06 | H137: 7.495479518e-06 | J137: -2.902285562e-05 | K137: -0.0002292171426 | L137: 0.0006576251439 | M137: 0.01230400379 | N137: 5.563509263e-06
A138: =IF('DF raw data'!E138="","",'DF raw data'!E138) -> -264.5 | B138: =IF('DF raw data'!F138="","",'DF raw data'!F138) -> -5.20958e-05 | C138: =IF('DF raw data'!G138="","",'DF raw data'!G138) -> -1.01991e-05 | D138: =IF('DF raw data'!H138="","",'DF raw data'!H138) -> -2.86685e-05 | F138: -1.76767643e-05 | G138: 9.969095466e-06 | H138: 6.789543591e-06 | J138: -3.786123777e-05 | K138: -0.0002481477615 | L138: 0.0006626096916 | M138: 0.01263530864 | N138: 5.783751801e-06
A139: =IF('DF raw data'!E139="","",'DF raw data'!E139) -> -264 | B139: =IF('DF raw data'!F139="","",'DF raw data'!F139) -> -4.58099e-05 | C139: =IF('DF raw data'!G139="","",'DF raw data'!G139) -> 2.66335e-06 | D139: =IF('DF raw data'!H139="","",'DF raw data'!H139) -> -3.14457e-05 | F139: -1.136011996e-05 | G139: 2.289445571e-05 | H139: 3.998760305e-06 | J139: -4.354129775e-05 | K139: -0.0002699184104 | L139: 0.0006740569194 | M139: 0.01297233709 | N139: 6.011876089e-06
A140: =IF('DF raw data'!E140="","",'DF raw data'!E140) -> -263.5 | B140: =IF('DF raw data'!F140="","",'DF raw data'!F140) -> -4.68417e-05 | C140: =IF('DF raw data'!G140="","",'DF raw data'!G140) -> 1.14364e-06 | D140: =IF('DF raw data'!H140="","",'DF raw data'!H140) -> -2.23813e-05 | F140: -1.23969665e-05 | G140: 2.136731281e-05 | H140: 1.310749429e-05 | J140: -4.9739781e-05 | K140: -0.0002947883009 | L140: 0.0006847405758 | M140: 0.01331470738 | N140: 6.24754794e-06
A141: =IF('DF raw data'!E141="","",'DF raw data'!E141) -> -263 | B141: =IF('DF raw data'!F141="","",'DF raw data'!F141) -> -3.35649e-05 | C141: =IF('DF raw data'!G141="","",'DF raw data'!G141) -> -7.16565e-06 | D141: =IF('DF raw data'!H141="","",'DF raw data'!H141) -> -2.71527e-05 | F141: 9.447703322e-07 | G141: 1.301738207e-05 | H141: 8.312757368e-06 | J141: -4.926739583e-05 | K141: -0.0003194219988 | L141: 0.0006912492669 | M141: 0.01366033202 | N141: 6.487674353e-06
A142: =IF('DF raw data'!E142="","",'DF raw data'!E142) -> -262.5 | B142: =IF('DF raw data'!F142="","",'DF raw data'!F142) -> -3.421e-05 | C142: =IF('DF raw data'!G142="","",'DF raw data'!G142) -> -8.50891e-06 | D142: =IF('DF raw data'!H142="","",'DF raw data'!H142) -> -2.12187e-05 | F142: 2.965151481e-07 | G142: 1.166755219e-05 | H142: 1.427578056e-05 | J142: -4.911913826e-05 | K142: -0.0003439815679 | L142: 0.000697083043 | M142: 0.01400887354 | N142: 6.731843082e-06
A143: =IF('DF raw data'!E143="","",'DF raw data'!E143) -> -262 | B143: =IF('DF raw data'!F143="","",'DF raw data'!F143) -> -3.7213e-05 | C143: =IF('DF raw data'!G143="","",'DF raw data'!G143) -> -1.17459e-05 | D143: =IF('DF raw data'!H143="","",'DF raw data'!H143) -> -3.77423e-05 | F143: -2.721172525e-06 | G143: 8.414730067e-06 | H143: -2.328636365e-06 | J143: -5.047972452e-05 | K143: -0.0003692214302 | L143: 0.000701290408 | M143: 0.01435951874 | N143: 6.979021301e-06
A144: =IF('DF raw data'!E144="","",'DF raw data'!E144) -> -261.5 | B144: =IF('DF raw data'!F144="","",'DF raw data'!F144) -> -4.40823e-05 | C144: =IF('DF raw data'!G144="","",'DF raw data'!G144) -> -1.05778e-05 | D144: =IF('DF raw data'!H144="","",'DF raw data'!H144) -> -2.54949e-05 | F144: -9.624070271e-06 | G144: 9.588543244e-06 | H144: 9.978665668e-06 | J144: -5.529175965e-05 | K144: -0.00039686731 | L144: 0.0007060846796 | M144: 0.01471256108 | N144: 7.229827678e-06
A145: =IF('DF raw data'!E145="","",'DF raw data'!E145) -> -261 | B145: =IF('DF raw data'!F145="","",'DF raw data'!F145) -> -4.16417e-05 | C145: =IF('DF raw data'!G145="","",'DF raw data'!G145) -> -1.2945e-05 | D145: =IF('DF raw data'!H145="","",'DF raw data'!H145) -> -3.14544e-05 | F145: -7.171533297e-06 | G145: 7.209765269e-06 | H145: 3.990017754e-06 | J145: -5.88775263e-05 | K145: -0.0004263060731 | L145: 0.0007096895623 | M145: 0.01506740586 | N145: 7.483390597e-06
A146: =IF('DF raw data'!E146="","",'DF raw data'!E146) -> -260.5 | B146: =IF('DF raw data'!F146="","",'DF raw data'!F146) -> -4.65103e-05 | C146: =IF('DF raw data'!G146="","",'DF raw data'!G146) -> -6.65883e-06 | D146: =IF('DF raw data'!H146="","",'DF raw data'!H146) -> -3.88994e-05 | F146: -1.206394562e-05 | G146: 1.352668093e-05 | H146: -3.491395741e-06 | J146: -6.490949911e-05 | K146: -0.0004587608227 | L146: 0.0007164529027 | M146: 0.01542563231 | N146: 7.742149599e-06
A147: =IF('DF raw data'!E147="","",'DF raw data'!E147) -> -260 | B147: =IF('DF raw data'!F147="","",'DF raw data'!F147) -> -3.67066e-05 | C147: =IF('DF raw data'!G147="","",'DF raw data'!G147) -> -5.0413e-06 | D147: =IF('DF raw data'!H147="","",'DF raw data'!H147) -> -2.75728e-05 | F147: -2.212295722e-06 | G147: 1.515212227e-05 | H147: 7.890602659e-06 | J147: -6.601564697e-05 | K147: -0.0004917686462 | L147: 0.0007240289639 | M147: 0.0157876468 | N147: 8.006437603e-06
A148: =IF('DF raw data'!E148="","",'DF raw data'!E148) -> -259.5 | B148: =IF('DF raw data'!F148="","",'DF raw data'!F148) -> -3.09451e-05 | C148: =IF('DF raw data'!G148="","",'DF raw data'!G148) -> -1.30228e-05 | D148: =IF('DF raw data'!H148="","",'DF raw data'!H148) -> -1.26535e-05 | F148: 3.577383774e-06 | G148: 7.131584749e-06 | H148: 2.288287296e-05 | J148: -6.422695509e-05 | K148: -0.0005238821237 | L148: 0.0007275947562 | M148: 0.01615144417 | N148: 8.273197218e-06
A149: =IF('DF raw data'!E149="","",'DF raw data'!E149) -> -259 | B149: =IF('DF raw data'!F149="","",'DF raw data'!F149) -> -3.89473e-05 | C149: =IF('DF raw data'!G149="","",'DF raw data'!G149) -> -1.80656e-05 | D149: =IF('DF raw data'!H149="","",'DF raw data'!H149) -> -3.33017e-05 | F149: -4.463954986e-06 | G149: 2.064120415e-06 | H149: 2.133682609e-06 | J149: -6.645893258e-05 | K149: -0.00055711159 | L149: 0.0007286268164 | M149: 0.01651575758 | N149: 8.540854132e-06
A150: =IF('DF raw data'!E150="","",'DF raw data'!E150) -> -258.5 | B150: =IF('DF raw data'!F150="","",'DF raw data'!F150) -> -3.74124e-05 | C150: =IF('DF raw data'!G150="","",'DF raw data'!G150) -> -1.65117e-05 | D150: =IF('DF raw data'!H150="","",'DF raw data'!H150) -> -2.70361e-05 | F150: -2.92154779e-06 | G150: 3.62562054e-06 | H150: 8.429927659e-06 | J150: -6.791970647e-05 | K150: -0.0005910714432 | L150: 0.0007304396267 | M150: 0.0168809774 | N150: 8.809931699e-06
A151: =IF('DF raw data'!E151="","",'DF raw data'!E151) -> -258 | B151: =IF('DF raw data'!F151="","",'DF raw data'!F151) -> -3.0225e-05 | C151: =IF('DF raw data'!G151="","",'DF raw data'!G151) -> -2.22618e-05 | D151: =IF('DF raw data'!H151="","",'DF raw data'!H151) -> -3.52249e-05 | F151: 4.301005783e-06 | G151: -2.1526032e-06 | H151: 2.010762381e-07 | J151: -6.576920358e-05 | K151: -0.000623956045 | L151: 0.0007293633251 | M151: 0.01724565906 | N151: 9.078079923e-06
A152: =IF('DF raw data'!E152="","",'DF raw data'!E152) -> -257.5 | B152: =IF('DF raw data'!F152="","",'DF raw data'!F152) -> -4.95308e-05 | C152: =IF('DF raw data'!G152="","",'DF raw data'!G152) -> -1.96316e-05 | D152: =IF('DF raw data'!H152="","",'DF raw data'!H152) -> -2.87416e-05 | F152: -1.509921888e-05 | G152: 4.904611087e-07 | H152: 6.716086058e-06 | J152: -7.331881302e-05 | K152: -0.0006606154515 | L152: 0.0007296085557 | M152: 0.01761046334 | N152: 9.34693207e-06
A153: =IF('DF raw data'!E153="","",'DF raw data'!E153) -> -257 | B153: =IF('DF raw data'!F153="","",'DF raw data'!F153) -> -3.80502e-05 | C153: =IF('DF raw data'!G153="","",'DF raw data'!G153) -> -1.75095e-05 | D153: =IF('DF raw data'!H153="","",'DF raw data'!H153) -> -3.24303e-05 | F153: -3.56246727e-06 | G153: 2.6229403e-06 | H153: 3.009344627e-06 | J153: -7.510004666e-05 | K153: -0.0006981654749 | L153: 0.0007309200258 | M153: 0.01797592335 | N153: 9.61687412e-06
A154: =IF('DF raw data'!E154="","",'DF raw data'!E154) -> -256.5 | B154: =IF('DF raw data'!F154="","",'DF raw data'!F154) -> -4.10009e-05 | C154: =IF('DF raw data'!G154="","",'DF raw data'!G154) -> -1.39629e-05 | D154: =IF('DF raw data'!H154="","",'DF raw data'!H154) -> -3.08022e-05 | F154: -6.527599144e-06 | G154: 6.18688672e-06 | H154: 4.645407664e-06 | J154: -7.836384623e-05 | K154: -0.000737347398 | L154: 0.0007340134692 | M154: 0.01834293008 | N154: 9.889332453e-06
A155: =IF('DF raw data'!E155="","",'DF raw data'!E155) -> -256 | B155: =IF('DF raw data'!F155="","",'DF raw data'!F155) -> -3.7024e-05 | C155: =IF('DF raw data'!G155="","",'DF raw data'!G155) -> -9.24312e-06 | D155: =IF('DF raw data'!H155="","",'DF raw data'!H155) -> -3.27199e-05 | F155: -2.531248126e-06 | G155: 1.092975116e-05 | H155: 2.718328193e-06 | J155: -7.962947029e-05 | K155: -0.0007771621331 | L155: 0.0007394783448 | M155: 0.01871266926 | N155: 1.016591699e-05
A156: =IF('DF raw data'!E156="","",'DF raw data'!E156) -> -255.5 | B156: =IF('DF raw data'!F156="","",'DF raw data'!F156) -> -3.76034e-05 | C156: =IF('DF raw data'!G156="","",'DF raw data'!G156) -> -1.30763e-05 | D156: =IF('DF raw data'!H156="","",'DF raw data'!H156) -> -2.89823e-05 | F156: -3.113481971e-06 | G156: 7.077823081e-06 | H156: 6.474208795e-06 | J156: -8.118621128e-05 | K156: -0.0008177552388 | L156: 0.0007430172563 | M156: 0.01908417788 | N156: 1.044524991e-05
A157: =IF('DF raw data'!E157="","",'DF raw data'!E157) -> -255 | B157: =IF('DF raw data'!F157="","",'DF raw data'!F157) -> -3.11878e-05 | C157: =IF('DF raw data'!G157="","",'DF raw data'!G157) -> -1.24136e-05 | D157: =IF('DF raw data'!H157="","",'DF raw data'!H157) -> -3.39607e-05 | F157: 3.333496728e-06 | G157: 7.743764347e-06 | H157: 1.47145944e-06 | J157: -7.951946292e-05 | K157: -0.0008575149702 | L157: 0.0007468891385 | M157: 0.01945762245 | N157: 1.072733328e-05
A158: =IF('DF raw data'!E158="","",'DF raw data'!E158) -> -254.5 | B158: =IF('DF raw data'!F158="","",'DF raw data'!F158) -> -3.3057e-05 | C158: =IF('DF raw data'!G158="","",'DF raw data'!G158) -> -1.64358e-05 | D158: =IF('DF raw data'!H158="","",'DF raw data'!H158) -> -1.943e-05 | F158: 1.455154471e-06 | G158: 3.701891766e-06 | H158: 1.607322909e-05 | J158: -7.879188568e-05 | K158: -0.0008969109131 | L158: 0.0007487400844 | M158: 0.0198319925 | N158: 1.101074321e-05
A159: =IF('DF raw data'!E159="","",'DF raw data'!E159) -> -254 | B159: =IF('DF raw data'!F159="","",'DF raw data'!F159) -> -3.59377e-05 | C159: =IF('DF raw data'!G159="","",'DF raw data'!G159) -> -1.18368e-05 | D159: =IF('DF raw data'!H159="","",'DF raw data'!H159) -> -2.67001e-05 | F159: -1.439635033e-06 | G159: 8.323385475e-06 | H159: 8.767571035e-06 | J159: -7.95117032e-05 | K159: -0.0009366667647 | L159: 0.0007529017771 | M159: 0.02020844338 | N159: 1.129733481e-05
A160: =IF('DF raw data'!E160="","",'DF raw data'!E160) -> -253.5 | B160: =IF('DF raw data'!F160="","",'DF raw data'!F160) -> -4.18958e-05 | C160: =IF('DF raw data'!G160="","",'DF raw data'!G160) -> -1.3748e-05 | D160: =IF('DF raw data'!H160="","",'DF raw data'!H160) -> -3.5171e-05 | F160: -7.4268761e-06 | G160: 6.402837796e-06 | H160: 2.55239863e-07 | J160: -8.322514125e-05 | K160: -0.0009782793353 | L160: 0.000756103196 | M160: 0.02058649498 | N160: 1.158664405e-05
A161: =IF('DF raw data'!E161="","",'DF raw data'!E161) -> -253 | B161: =IF('DF raw data'!F161="","",'DF raw data'!F161) -> -4.43311e-05 | C161: =IF('DF raw data'!G161="","",'DF raw data'!G161) -> -1.68146e-05 | D161: =IF('DF raw data'!H161="","",'DF raw data'!H161) -> -3.74399e-05 | F161: -9.874087152e-06 | G161: 3.321239056e-06 | H161: -2.024757327e-06 | J161: -8.816218482e-05 | K161: -0.001022360428 | L161: 0.0007577638155 | M161: 0.02096537689 | N161: 1.187763333e-05
A162: =IF('DF raw data'!E162="","",'DF raw data'!E162) -> -252.5 | B162: =IF('DF raw data'!F162="","",'DF raw data'!F162) -> -4.00967e-05 | C162: =IF('DF raw data'!G162="","",'DF raw data'!G162) -> -1.73715e-05 | D162: =IF('DF raw data'!H162="","",'DF raw data'!H162) -> -4.08926e-05 | F162: -5.618976702e-06 | G162: 2.761615258e-06 | H162: -5.494344483e-06 | J162: -9.097167317e-05 | K162: -0.001067846264 | L162: 0.0007591446231 | M162: 0.0213449492 | N162: 1.216992153e-05
A163: =IF('DF raw data'!E163="","",'DF raw data'!E163) -> -252 | B163: =IF('DF raw data'!F163="","",'DF raw data'!F163) -> -3.17685e-05 | C163: =IF('DF raw data'!G163="","",'DF raw data'!G163) -> -1.9074e-05 | D163: =IF('DF raw data'!H163="","",'DF raw data'!H163) -> -2.86835e-05 | F163: 2.749956525e-06 | G163: 1.05078833e-06 | H163: 6.774470226e-06 | J163: -8.959669491e-05 | K163: -0.001112644612 | L163: 0.0007596700173 | M163: 0.02172478421 | N163: 1.246248459e-05
A164: =IF('DF raw data'!E164="","",'DF raw data'!E164) -> -251.5 | B164: =IF('DF raw data'!F164="","",'DF raw data'!F164) -> -3.24815e-05 | C164: =IF('DF raw data'!G164="","",'DF raw data'!G164) -> -1.53986e-05 | D164: =IF('DF raw data'!H164="","",'DF raw data'!H164) -> -1.67227e-05 | F164: 2.033469242e-06 | G164: 4.744164712e-06 | H164: 1.87937705e-05 | J164: -8.857996029e-05 | K164: -0.001156934592 | L164: 0.0007620420997 | M164: 0.02210580526 | N164: 1.275676187e-05
A165: =IF('DF raw data'!E165="","",'DF raw data'!E165) -> -251 | B165: =IF('DF raw data'!F165="","",'DF raw data'!F165) -> -2.72211e-05 | C165: =IF('DF raw data'!G165="","",'DF raw data'!G165) -> -9.23101e-06 | D165: =IF('DF raw data'!H165="","",'DF raw data'!H165) -> -2.01277e-05 | F165: 7.319597858e-06 | G165: 1.094192039e-05 | H165: 1.537211664e-05 | J165: -8.492016136e-05 | K165: -0.001199394673 | L165: 0.0007675130599 | M165: 0.02248956179 | N165: 1.305490574e-05
A166: =IF('DF raw data'!E166="","",'DF raw data'!E166) -> -250.5 | B166: =IF('DF raw data'!F166="","",'DF raw data'!F166) -> -2.69643e-05 | C166: =IF('DF raw data'!G166="","",'DF raw data'!G166) -> -2.06764e-06 | D166: =IF('DF raw data'!H166="","",'DF raw data'!H166) -> -2.0718e-05 | F166: 7.577653867e-06 | G166: 1.814032644e-05 | H166: 1.477892949e-05 | J166: -8.113133443e-05 | K166: -0.00123996034 | L166: 0.0007765832231 | M166: 0.0228778534 | N166: 1.335973763e-05
A167: =IF('DF raw data'!E167="","",'DF raw data'!E167) -> -250 | B167: =IF('DF raw data'!F167="","",'DF raw data'!F167) -> -2.65207e-05 | C167: =IF('DF raw data'!G167="","",'DF raw data'!G167) -> -1.02472e-05 | D167: =IF('DF raw data'!H167="","",'DF raw data'!H167) -> -1.23011e-05 | F167: 8.023423514e-06 | G167: 9.920760209e-06 | H167: 2.323699654e-05 | J167: -7.711962267e-05 | K167: -0.001278520151 | L167: 0.0007815436032 | M167: 0.0232686252 | N167: 1.366811655e-05
A168: =IF('DF raw data'!E168="","",'DF raw data'!E168) -> -249.5 | B168: =IF('DF raw data'!F168="","",'DF raw data'!F168) -> -3.22168e-05 | C168: =IF('DF raw data'!G168="","",'DF raw data'!G168) -> -1.34089e-05 | D168: =IF('DF raw data'!H168="","",'DF raw data'!H168) -> -2.94547e-05 | F168: 2.299463889e-06 | G168: 6.743596334e-06 | H168: 5.999498286e-06 | J168: -7.596989073e-05 | K168: -0.001316505096 | L168: 0.0007849154014 | M168: 0.0236610829 | N168: 1.397904836e-05
A169: =IF('DF raw data'!E169="","",'DF raw data'!E169) -> -249 | B169: =IF('DF raw data'!F169="","",'DF raw data'!F169) -> -3.00413e-05 | C169: =IF('DF raw data'!G169="","",'DF raw data'!G169) -> -1.02775e-05 | D169: =IF('DF raw data'!H169="","",'DF raw data'!H169) -> -2.21553e-05 | F169: 4.48560426e-06 | G169: 9.890312012e-06 | H169: 1.333459965e-05 | J169: -7.37270886e-05 | K169: -0.001353368641 | L169: 0.0007898605574 | M169: 0.02405601318 | N169: 1.429370605e-05
A170: =IF('DF raw data'!E170="","",'DF raw data'!E170) -> -248.5 | B170: =IF('DF raw data'!F170="","",'DF raw data'!F170) -> -2.44501e-05 | C170: =IF('DF raw data'!G170="","",'DF raw data'!G170) -> -8.45996e-06 | D170: =IF('DF raw data'!H170="","",'DF raw data'!H170) -> -4.11408e-05 | F170: 1.010415082e-05 | G170: 1.17167416e-05 | H170: -5.743758429e-06 | J170: -6.867501319e-05 | K170: -0.001387706147 | L170: 0.0007957189282 | M170: 0.02445387265 | N170: 1.461264849e-05
A171: =IF('DF raw data'!E171="","",'DF raw data'!E171) -> -248 | B171: =IF('DF raw data'!F171="","",'DF raw data'!F171) -> -3.77888e-05 | C171: =IF('DF raw data'!G171="","",'DF raw data'!G171) -> -1.2299e-05 | D171: =IF('DF raw data'!H171="","",'DF raw data'!H171) -> -3.99556e-05 | F171: -3.299788763e-06 | G171: 7.858924855e-06 | H171: -4.552761616e-06 | J171: -7.032490757e-05 | K171: -0.001422868601 | L171: 0.0007996483906 | M171: 0.02485369684 | N171: 1.493484006e-05
A172: =IF('DF raw data'!E172="","",'DF raw data'!E172) -> -247.5 | B172: =IF('DF raw data'!F172="","",'DF raw data'!F172) -> -2.76631e-05 | C172: =IF('DF raw data'!G172="","",'DF raw data'!G172) -> -1.34247e-05 | D172: =IF('DF raw data'!H172="","",'DF raw data'!H172) -> -3.05984e-05 | F172: 6.875436036e-06 | G172: 6.727719057e-06 | H172: 4.85020445e-06 | J172: -6.688718955e-05 | K172: -0.001456312196 | L172: 0.0008030122501 | M172: 0.02525520297 | N172: 1.525949134e-05
A173: =IF('DF raw data'!E173="","",'DF raw data'!E173) -> -247 | B173: =IF('DF raw data'!F173="","",'DF raw data'!F173) -> -2.67679e-05 | C173: =IF('DF raw data'!G173="","",'DF raw data'!G173) -> -1.20532e-05 | D173: =IF('DF raw data'!H173="","",'DF raw data'!H173) -> -2.66974e-05 | F173: 7.775014459e-06 | G173: 8.105927063e-06 | H173: 8.770284241e-06 | J173: -6.299968232e-05 | K173: -0.001487812037 | L173: 0.0008070652136 | M173: 0.02565873557 | N173: 1.558715295e-05
A174: =IF('DF raw data'!E174="","",'DF raw data'!E174) -> -246.5 | B174: =IF('DF raw data'!F174="","",'DF raw data'!F174) -> -3.11246e-05 | C174: =IF('DF raw data'!G174="","",'DF raw data'!G174) -> -1.58388e-05 | D174: =IF('DF raw data'!H174="","",'DF raw data'!H174) -> -3.28276e-05 | F174: 3.39700584e-06 | G174: 4.301811693e-06 | H174: 2.610101432e-06 | J174: -6.13011794e-05 | K174: -0.001518462627 | L174: 0.0008092161195 | M174: 0.02606334363 | N174: 1.591644723e-05
A175: =IF('DF raw data'!E175="","",'DF raw data'!E175) -> -246 | B175: =IF('DF raw data'!F175="","",'DF raw data'!F175) -> -3.72766e-05 | C175: =IF('DF raw data'!G175="","",'DF raw data'!G175) -> -1.36884e-05 | D175: =IF('DF raw data'!H175="","",'DF raw data'!H175) -> -3.88313e-05 | F175: -2.785083592e-06 | G175: 6.4627293e-06 | H175: -3.422962664e-06 | J175: -6.26937212e-05 | K175: -0.001549809487 | L175: 0.0008124474841 | M175: 0.02646956738 | N175: 1.624844794e-05
A176: =IF('DF raw data'!E176="","",'DF raw data'!E176) -> -245.5 | B176: =IF('DF raw data'!F176="","",'DF raw data'!F176) -> -2.71565e-05 | C176: =IF('DF raw data'!G176="","",'DF raw data'!G176) -> -1.55336e-05 | D176: =IF('DF raw data'!H176="","",'DF raw data'!H176) -> -2.07086e-05 | F176: 7.384513817e-06 | G176: 4.608504427e-06 | H176: 1.478837546e-05 | J176: -5.900146429e-05 | K176: -0.00157931022 | L176: 0.0008147517364 | M176: 0.02687694324 | N176: 1.658209872e-05
A177: =IF('DF raw data'!E177="","",'DF raw data'!E177) -> -245 | B177: =IF('DF raw data'!F177="","",'DF raw data'!F177) -> -3.67049e-05 | C177: =IF('DF raw data'!G177="","",'DF raw data'!G177) -> -2.31572e-05 | D177: =IF('DF raw data'!H177="","",'DF raw data'!H177) -> -3.0328e-05 | F177: -2.210587408e-06 | G177: -3.052382601e-06 | H177: 5.121926976e-06 | J177: -6.010675799e-05 | K177: -0.001609363599 | L177: 0.0008132255451 | M177: 0.02728355602 | N177: 1.691457303e-05
A178: =IF('DF raw data'!E178="","",'DF raw data'!E178) -> -244.5 | B178: =IF('DF raw data'!F178="","",'DF raw data'!F178) -> -3.36332e-05 | C178: =IF('DF raw data'!G178="","",'DF raw data'!G178) -> -2.82873e-05 | D178: =IF('DF raw data'!H178="","",'DF raw data'!H178) -> -2.07038e-05 | F178: 8.761362769e-07 | G178: -8.20757392e-06 | H178: 1.479319894e-05 | J178: -5.966868985e-05 | K178: -0.001639197943 | L178: 0.0008091217581 | M178: 0.02768811689 | N178: 1.724369222e-05
A179: =IF('DF raw data'!E179="","",'DF raw data'!E179) -> -244 | B179: =IF('DF raw data'!F179="","",'DF raw data'!F179) -> -3.70974e-05 | C179: =IF('DF raw data'!G179="","",'DF raw data'!G179) -> -3.24003e-05 | D179: =IF('DF raw data'!H179="","",'DF raw data'!H179) -> -1.83817e-05 | F179: -2.605007125e-06 | G179: -1.23406906e-05 | H179: 1.712665633e-05 | J179: -6.097119342e-05 | K179: -0.00166968354 | L179: 0.0008029514128 | M179: 0.0280895926 | N179: 1.756791644e-05
A180: =IF('DF raw data'!E180="","",'DF raw data'!E180) -> -243.5 | B180: =IF('DF raw data'!F180="","",'DF raw data'!F180) -> -3.84356e-05 | C180: =IF('DF raw data'!G180="","",'DF raw data'!G180) -> -2.81544e-05 | D180: =IF('DF raw data'!H180="","",'DF raw data'!H180) -> -3.15644e-05 | F180: -3.949752261e-06 | G180: -8.074023906e-06 | H180: 3.879479744e-06 | J180: -6.294606955e-05 | K180: -0.001701156575 | L180: 0.0007989144008 | M180: 0.0284890498 | N180: 1.788902966e-05
A181: =IF('DF raw data'!E181="","",'DF raw data'!E181) -> -243 | B181: =IF('DF raw data'!F181="","",'DF raw data'!F181) -> -4.45997e-05 | C181: =IF('DF raw data'!G181="","",'DF raw data'!G181) -> -2.40624e-05 | D181: =IF('DF raw data'!H181="","",'DF raw data'!H181) -> -1.88839e-05 | F181: -1.014400087e-05 | G181: -3.962009934e-06 | H181: 1.662200007e-05 | J181: -6.801806998e-05 | K181: -0.00173516561 | L181: 0.0007969333959 | M181: 0.0288875165 | N181: 1.820889431e-05
A182: =IF('DF raw data'!E182="","",'DF raw data'!E182) -> -242.5 | B182: =IF('DF raw data'!F182="","",'DF raw data'!F182) -> -3.61956e-05 | C182: =IF('DF raw data'!G182="","",'DF raw data'!G182) -> -1.87717e-05 | D182: =IF('DF raw data'!H182="","",'DF raw data'!H182) -> -2.456e-05 | F182: -1.698796421e-06 | G182: 1.35456688e-06 | H182: 1.091813826e-05 | J182: -6.88674682e-05 | K182: -0.001769599344 | L182: 0.0007976106793 | M182: 0.02928632184 | N182: 1.852935707e-05
A183: =IF('DF raw data'!E183="","",'DF raw data'!E183) -> -242 | B183: =IF('DF raw data'!F183="","",'DF raw data'!F183) -> -2.22146e-05 | C183: =IF('DF raw data'!G183="","",'DF raw data'!G183) -> -1.20395e-05 | D183: =IF('DF raw data'!H183="","",'DF raw data'!H183) -> -2.76703e-05 | F183: 1.235058465e-05 | G183: 8.11969407e-06 | H183: 7.792625787e-06 | J183: -6.269217587e-05 | K183: -0.001800945432 | L183: 0.0008016705264 | M183: 0.0296871571 | N183: 1.885266004e-05
A184: =IF('DF raw data'!E184="","",'DF raw data'!E184) -> -241.5 | B184: =IF('DF raw data'!F184="","",'DF raw data'!F184) -> -4.14494e-05 | C184: =IF('DF raw data'!G184="","",'DF raw data'!G184) -> -1.25623e-05 | D184: =IF('DF raw data'!H184="","",'DF raw data'!H184) -> -3.17811e-05 | F184: -6.978292757e-06 | G184: 7.594337055e-06 | H184: 3.661719864e-06 | J184: -6.618132225e-05 | K184: -0.001834036093 | L184: 0.0008054676949 | M184: 0.03008989095 | N184: 1.917923913e-05
A185: =IF('DF raw data'!E185="","",'DF raw data'!E185) -> -241 | B185: =IF('DF raw data'!F185="","",'DF raw data'!F185) -> -3.58717e-05 | C185: =IF('DF raw data'!G185="","",'DF raw data'!G185) -> -1.03079e-05 | D185: =IF('DF raw data'!H185="","",'DF raw data'!H185) -> -2.99801e-05 | F185: -1.373312227e-06 | G185: 9.859763325e-06 | H185: 5.471528555e-06 | J185: -6.686797836e-05 | K185: -0.001867470082 | L185: 0.0008103975765 | M185: 0.03049508974 | N185: 1.950984691e-05
A186: =IF('DF raw data'!E186="","",'DF raw data'!E186) -> -240.5 | B186: =IF('DF raw data'!F186="","",'DF raw data'!F186) -> -3.54234e-05 | C186: =IF('DF raw data'!G186="","",'DF raw data'!G186) -> -4.21969e-06 | D186: =IF('DF raw data'!H186="","",'DF raw data'!H186) -> -2.89215e-05 | F186: -9.228195913e-07 | G186: 1.597775076e-05 | H186: 6.535306168e-06 | J186: -6.732938816e-05 | K186: -0.001901134776 | L186: 0.0008183864519 | M186: 0.03090428296 | N186: 1.984699172e-05
A187: =IF('DF raw data'!E187="","",'DF raw data'!E187) -> -240 | B187: =IF('DF raw data'!F187="","",'DF raw data'!F187) -> -3.38812e-05 | C187: =IF('DF raw data'!G187="","",'DF raw data'!G187) -> -3.97146e-06 | D187: =IF('DF raw data'!H187="","",'DF raw data'!H187) -> -3.38371e-05 | F187: 6.269233089e-07 | G187: 1.622719485e-05 | H187: 1.595663968e-06 | J187: -6.70159265e-05 | K187: -0.00193464274 | L187: 0.0008265000493 | M187: 0.03131753299 | N187: 2.019078845e-05
A188: =IF('DF raw data'!E188="","",'DF raw data'!E188) -> -239.5 | B188: =IF('DF raw data'!F188="","",'DF raw data'!F188) -> -3.30503e-05 | C188: =IF('DF raw data'!G188="","",'DF raw data'!G188) -> -5.20298e-06 | D188: =IF('DF raw data'!H188="","",'DF raw data'!H188) -> -2.98353e-05 | F188: 1.461887241e-06 | G188: 1.498965149e-05 | H188: 5.617036772e-06 | J188: -6.628498288e-05 | K188: -0.001967785231 | L188: 0.0008339948751 | M188: 0.03173453043 | N188: 2.054075903e-05
A189: =IF('DF raw data'!E189="","",'DF raw data'!E189) -> -239 | B189: =IF('DF raw data'!F189="","",'DF raw data'!F189) -> -3.13796e-05 | C189: =IF('DF raw data'!G189="","",'DF raw data'!G189) -> -7.6099e-06 | D189: =IF('DF raw data'!H189="","",'DF raw data'!H189) -> -3.5153e-05 | F189: 3.140758635e-06 | G189: 1.257095924e-05 | H189: 2.73327901e-07 | J189: -6.471460357e-05 | K189: -0.002000142533 | L189: 0.0008402803547 | M189: 0.0321546706 | N189: 2.089588856e-05
A190: =IF('DF raw data'!E190="","",'DF raw data'!E190) -> -238.5 | B190: =IF('DF raw data'!F190="","",'DF raw data'!F190) -> -4.60021e-05 | C190: =IF('DF raw data'!G190="","",'DF raw data'!G190) -> -1.93393e-06 | D190: =IF('DF raw data'!H190="","",'DF raw data'!H190) -> -3.17497e-05 | F190: -1.155326001e-05 | G190: 1.827469041e-05 | H190: 3.693273441e-06 | J190: -7.049123357e-05 | K190: -0.00203538815 | L190: 0.0008494176999 | M190: 0.03257937945 | N190: 2.125912828e-05
A191: =IF('DF raw data'!E191="","",'DF raw data'!E191) -> -238 | B191: =IF('DF raw data'!F191="","",'DF raw data'!F191) -> -3.77889e-05 | C191: =IF('DF raw data'!G191="","",'DF raw data'!G191) -> -8.64961e-06 | D191: =IF('DF raw data'!H191="","",'DF raw data'!H191) -> -3.99812e-05 | F191: -3.299889252e-06 | G191: 1.152616402e-05 | H191: -4.578486825e-06 | J191: -7.21411782e-05 | K191: -0.002071458739 | L191: 0.0008551807819 | M191: 0.03300696984 | N191: 2.162739754e-05
A192: =IF('DF raw data'!E192="","",'DF raw data'!E192) -> -237.5 | B192: =IF('DF raw data'!F192="","",'DF raw data'!F192) -> -4.27344e-05 | C192: =IF('DF raw data'!G192="","",'DF raw data'!G192) -> -1.20204e-05 | D192: =IF('DF raw data'!H192="","",'DF raw data'!H192) -> -2.79634e-05 | F192: -8.269577692e-06 | G192: 8.138887488e-06 | H192: 7.498092235e-06 | J192: -7.627596704e-05 | K192: -0.002109596722 | L192: 0.0008592502257 | M192: 0.03343659496 | N192: 2.199946202e-05
A193: =IF('DF raw data'!E193="","",'DF raw data'!E193) -> -237 | B193: =IF('DF raw data'!F193="","",'DF raw data'!F193) -> -3.10655e-05 | C193: =IF('DF raw data'!G193="","",'DF raw data'!G193) -> 1.18037e-06 | D193: =IF('DF raw data'!H193="","",'DF raw data'!H193) -> -2.50415e-05 | F193: 3.456394898e-06 | G193: 2.140422245e-05 | H193: 1.043428325e-05 | J193: -7.45477696e-05 | K193: -0.002146870607 | L193: 0.0008699523369 | M193: 0.03387157113 | N193: 2.238064924e-05
A194: =IF('DF raw data'!E194="","",'DF raw data'!E194) -> -236.5 | B194: =IF('DF raw data'!F194="","",'DF raw data'!F194) -> -3.43968e-05 | C194: =IF('DF raw data'!G194="","",'DF raw data'!G194) -> -4.69483e-06 | D194: =IF('DF raw data'!H194="","",'DF raw data'!H194) -> -2.98846e-05 | F194: 1.088015093e-07 | G194: 1.550028685e-05 | H194: 5.567495645e-06 | J194: -7.449336884e-05 | K194: -0.002184117291 | L194: 0.0008777024803 | M194: 0.03431042237 | N194: 2.27686047e-05
A195: =IF('DF raw data'!E195="","",'DF raw data'!E195) -> -236 | B195: =IF('DF raw data'!F195="","",'DF raw data'!F195) -> -3.58118e-05 | C195: =IF('DF raw data'!G195="","",'DF raw data'!G195) -> -1.0474e-05 | D195: =IF('DF raw data'!H195="","",'DF raw data'!H195) -> -2.3195e-05 | F195: =(1-$G$1*($B$54-$G$2))*(B195-F$5) -> -1.313119256e-06 | G195: =(1-$G$1*($B$54-$G$2))*(C195-G$5) -> 9.69285093e-06 | H195: =(1-$G$1*($B$54-$G$2))*(D195-H$5) -> 1.228981448e-05 | J195: -7.514992847e-05 | K195: -0.002221692256 | L195: 0.0008825489058 | M195: 0.03475169682 | N195: 2.316087474e-05
A196: =IF('DF raw data'!E196="","",'DF raw data'!E196) -> -235.5 | B196: =IF('DF raw data'!F196="","",'DF raw data'!F196) -> -3.43371e-05 | C196: =IF('DF raw data'!G196="","",'DF raw data'!G196) -> -7.76396e-06 | D196: =IF('DF raw data'!H196="","",'DF raw data'!H196) -> -2.32638e-05 | F196: 1.68793502e-07 | G196: 1.241614574e-05 | H196: 1.222067798e-05 | J196: =F196*$G$3+J195 -> -7.506553172e-05 | K196: =J196*$G$3+K195 -> -0.002259225022 | L196: =G196*$G$3+L195 -> 0.0008887569787 | M196: =L196*$G$3+M195 -> 0.03519607531 | N196: =(J196^2+L196^2)*$G$3+N195 -> 2.355863664e-05
A197: =IF('DF raw data'!E197="","",'DF raw data'!E197) -> -235 | B197: =IF('DF raw data'!F197="","",'DF raw data'!F197) -> -3.11352e-05 | C197: =IF('DF raw data'!G197="","",'DF raw data'!G197) -> -4.20827e-06 | D197: =IF('DF raw data'!H197="","",'DF raw data'!H197) -> -1.65481e-05 | F197: 3.386353995e-06 | G197: 1.598922662e-05 | H197: 1.896922447e-05 | J197: -7.337235472e-05 | K197: -0.002295911199 | L197: 0.000896751592 | M197: 0.0356444511 | N197: 2.39634101e-05
A198: =IF('DF raw data'!E198="","",'DF raw data'!E198) -> -234.5 | B198: =IF('DF raw data'!F198="","",'DF raw data'!F198) -> -4.53592e-05 | C198: =IF('DF raw data'!G198="","",'DF raw data'!G198) -> -7.24961e-06 | D198: =IF('DF raw data'!H198="","",'DF raw data'!H198) -> -3.44112e-05 | F198: -1.090721559e-05 | G198: 1.293301142e-05 | H198: 1.018756045e-06 | J198: -7.882596251e-05 | K198: -0.00233532418 | L198: 0.0009032180977 | M198: 0.03609606015 | N198: 2.437441833e-05
A199: =IF('DF raw data'!E199="","",'DF raw data'!E199) -> -234 | B199: =IF('DF raw data'!F199="","",'DF raw data'!F199) -> -3.35606e-05 | C199: =IF('DF raw data'!G199="","",'DF raw data'!G199) -> 7.58884e-07 | D199: =IF('DF raw data'!H199="","",'DF raw data'!H199) -> -3.4098e-05 | F199: 9.490913635e-07 | G199: 2.098067497e-05 | H199: 1.333487906e-06 | J199: -7.835141683e-05 | K199: -0.002374499889 | L199: 0.0009137084352 | M199: 0.03655291437 | N199: 2.479491936e-05
A200: =IF('DF raw data'!E200="","",'DF raw data'!E200) -> -233.5 | B200: =IF('DF raw data'!F200="","",'DF raw data'!F200) -> -3.16388e-05 | C200: =IF('DF raw data'!G200="","",'DF raw data'!G200) -> 1.14134e-06 | D200: =IF('DF raw data'!H200="","",'DF raw data'!H200) -> -3.11444e-05 | F200: 2.880290887e-06 | G200: 2.136500156e-05 | H200: 4.301533964e-06 | J200: -7.691127139e-05 | K200: -0.002412955524 | L200: 0.0009243909359 | M200: 0.03701510984 | N200: 2.522512633e-05
... 1079 more rows

Sheet 20 mm
A1: =IF('DF raw data'!I1="","",'DF raw data'!I1) -> Number of header lines | B1: =IF('DF raw data'!J1="","",'DF raw data'!J1) -> 54 | C1: =IF('DF raw data'!C1="","",'DF raw data'!C1) ->  | D1: =IF('DF raw data'!D1="","",'DF raw data'!D1) ->  | F1: T_coeff | G1: -0.00073 | H1: /degC | J1: IBy total | K1: =J1267*1000 -> -1.542495344 | L1: muTm | M1: =L1267*1000 -> -12.84698177 | R1: DF ref | S1: 1
A2: =IF('DF raw data'!I2="","",'DF raw data'!I2) -> Measured by | B2: =IF('DF raw data'!J2="","",'DF raw data'!J2) -> Danfysik | C2: =IF('DF raw data'!C2="","",'DF raw data'!C2) ->  | D2: =IF('DF raw data'!D2="","",'DF raw data'!D2) ->  | F2: Tcorr | G2: 20 | H2: degC | J2: JBy total | K2: =K1267 -> -6.033796834 | L2: muTm^2 | M2: =M1267 -> -2.439173982
A3: =IF('DF raw data'!I3="","",'DF raw data'!I3) -> Operator | B3: =IF('DF raw data'!J3="","",'DF raw data'!J3) -> PMHA | C3: =IF('DF raw data'!C3="","",'DF raw data'!C3) ->  | D3: =IF('DF raw data'!D3="","",'DF raw data'!D3) ->  | F3: Step | G3: =A68-A67 -> 0.5 | H3: mm | J3: PI total | K3: =N1267 -> 5045.317814 | L3: T^2mm^3
A4: =IF('DF raw data'!I4="","",'DF raw data'!I4) -> Data-time | B4: =IF('DF raw data'!J4="","",'DF raw data'!J4) -> 24-07-2024, 13:52:05 | C4: =IF('DF raw data'!C4="","",'DF raw data'!C4) ->  | D4: =IF('DF raw data'!D4="","",'DF raw data'!D4) -> 
A5: =IF('DF raw data'!I5="","",'DF raw data'!I5) -> Project | B5: =IF('DF raw data'!J5="","",'DF raw data'!J5) -> 504314 | C5: =IF('DF raw data'!C5="","",'DF raw data'!C5) ->  | D5: Bamb avr | F5: =(AVERAGE(B67:B107) + AVERAGE(B1227:B1267))/2 -> -3.143344146e-05 | G5: =(AVERAGE(C67:C107) + AVERAGE(C1227:C1267))/2 -> -2.840647367e-05 | H5: =(AVERAGE(D67:D107) + AVERAGE(D1227:D1267))/2 -> -3.858675e-05
A6: =IF('DF raw data'!I6="","",'DF raw data'!I6) -> Magnet type | B6: =IF('DF raw data'!J6="","",'DF raw data'!J6) -> Dipole | C6: =IF('DF raw data'!C6="","",'DF raw data'!C6) -> 
A7: =IF('DF raw data'!I7="","",'DF raw data'!I7) -> Magnet nr. | B7: =IF('DF raw data'!J7="","",'DF raw data'!J7) -> 2410084 | C7: =IF('DF raw data'!C7="","",'DF raw data'!C7) -> 
A8: =IF('DF raw data'!I8="","",'DF raw data'!I8) -> Meas. number | B8: =IF('DF raw data'!J8="","",'DF raw data'!J8) -> 117 | C8: =IF('DF raw data'!C8="","",'DF raw data'!C8) -> 
A9: =IF('DF raw data'!I9="","",'DF raw data'!I9) -> Add. info | B9: =IF('DF raw data'!J9="","",'DF raw data'!J9) ->  | C9: =IF('DF raw data'!C9="","",'DF raw data'!C9) ->  | D9: =IF('DF raw data'!D9="","",'DF raw data'!D9) -> 
A10: =IF('DF raw data'!I10="","",'DF raw data'!I10) -> Device | B10: =IF('DF raw data'!J10="","",'DF raw data'!J10) -> (HAL) HALL-PROBE | C10: =IF('DF raw data'!C10="","",'DF raw data'!C10) ->  | D10: =IF('DF raw data'!D10="","",'DF raw data'!D10) -> 
A11: =IF('DF raw data'!I11="","",'DF raw data'!I11) -> Goal | B11: =IF('DF raw data'!J11="","",'DF raw data'!J11) -> (AXI) AXis Integral (Line, EFB) | C11: =IF('DF raw data'!C11="","",'DF raw data'!C11) ->  | D11: =IF('DF raw data'!D11="","",'DF raw data'!D11) -> 
A12: =IF('DF raw data'!I12="","",'DF raw data'!I12) -> Power supply mode | B12: =IF('DF raw data'!J12="","",'DF raw data'!J12) -> (PM) Permanent Magnet (no MPS in use) | C12: =IF('DF raw data'!C12="","",'DF raw data'!C12) ->  | D12: =IF('DF raw data'!D12="","",'DF raw data'!D12) -> 
A13: =IF('DF raw data'!I13="","",'DF raw data'!I13) -> Data format | B13: =IF('DF raw data'!J13="","",'DF raw data'!J13) -> Raw data text file | C13: =IF('DF raw data'!C13="","",'DF raw data'!C13) ->  | D13: =IF('DF raw data'!D13="","",'DF raw data'!D13) -> 
A14: =IF('DF raw data'!I14="","",'DF raw data'!I14) -> Direction of the pos. x-axis | B14: =IF('DF raw data'!J14="","",'DF raw data'!J14) -> See test program | C14: =IF('DF raw data'!C14="","",'DF raw data'!C14) ->  | D14: =IF('DF raw data'!D14="","",'DF raw data'!D14) -> 
A15: =IF('DF raw data'!I15="","",'DF raw data'!I15) -> Direction of the pos. y-axis | B15: =IF('DF raw data'!J15="","",'DF raw data'!J15) -> Vertical up | C15: =IF('DF raw data'!C15="","",'DF raw data'!C15) ->  | D15: =IF('DF raw data'!D15="","",'DF raw data'!D15) -> 
A16: =IF('DF raw data'!I16="","",'DF raw data'!I16) -> Direction of the pos. z-axis | B16: =IF('DF raw data'!J16="","",'DF raw data'!J16) -> See test program | C16: =IF('DF raw data'!C16="","",'DF raw data'!C16) ->  | D16: =IF('DF raw data'!D16="","",'DF raw data'!D16) -> 
A17: =IF('DF raw data'!I17="","",'DF raw data'!I17) -> Mapper type | B17: =IF('DF raw data'!J17="","",'DF raw data'!J17) -> Precision Hall Mapper | C17: =IF('DF raw data'!C17="","",'DF raw data'!C17) ->  | D17: =IF('DF raw data'!D17="","",'DF raw data'!D17) -> 
A18: =IF('DF raw data'!I18="","",'DF raw data'!I18) -> Mapper Danfysik Reg. Number | B18: =IF('DF raw data'!J18="","",'DF raw data'!J18) -> 2033-D (mapper 1) | C18: =IF('DF raw data'!C18="","",'DF raw data'!C18) ->  | D18: =IF('DF raw data'!D18="","",'DF raw data'!D18) -> 
A19: =IF('DF raw data'!I19="","",'DF raw data'!I19) -> Measurement consept | B19: =IF('DF raw data'!J19="","",'DF raw data'!J19) -> Square line grid | C19: =IF('DF raw data'!C19="","",'DF raw data'!C19) ->  | D19: =IF('DF raw data'!D19="","",'DF raw data'!D19) -> 
A20: =IF('DF raw data'!I20="","",'DF raw data'!I20) -> Mode | B20: =IF('DF raw data'!J20="","",'DF raw data'!J20) -> On-the-fly measurement | C20: =IF('DF raw data'!C20="","",'DF raw data'!C20) ->  | D20: =IF('DF raw data'!D20="","",'DF raw data'!D20) -> 
A21: =IF('DF raw data'!I21="","",'DF raw data'!I21) ->  | B21: =IF('DF raw data'!J21="","",'DF raw data'!J21) ->  | C21: =IF('DF raw data'!C21="","",'DF raw data'!C21) ->  | D21: =IF('DF raw data'!D21="","",'DF raw data'!D21) -> 
A22: =IF('DF raw data'!I22="","",'DF raw data'!I22) -> Probe Name | B22: =IF('DF raw data'!J22="","",'DF raw data'!J22) -> ID12_By | C22: =IF('DF raw data'!C22="","",'DF raw data'!C22) ->  | D22: =IF('DF raw data'!D22="","",'DF raw data'!D22) -> 
A23: =IF('DF raw data'!I23="","",'DF raw data'!I23) -> Probe Type | B23: =IF('DF raw data'!J23="","",'DF raw data'!J23) -> DF_ID_3D_Bxyz | C23: =IF('DF raw data'!C23="","",'DF raw data'!C23) ->  | D23: =IF('DF raw data'!D23="","",'DF raw data'!D23) -> 
A24: =IF('DF raw data'!I24="","",'DF raw data'!I24) -> Probe Danfysik Reg. Number | B24: =IF('DF raw data'!J24="","",'DF raw data'!J24) -> 2277 | C24: =IF('DF raw data'!C24="","",'DF raw data'!C24) ->  | D24: =IF('DF raw data'!D24="","",'DF raw data'!D24) -> 
A25: =IF('DF raw data'!I25="","",'DF raw data'!I25) -> Probe Axis | B25: =IF('DF raw data'!J25="","",'DF raw data'!J25) -> By | C25: =IF('DF raw data'!C25="","",'DF raw data'!C25) ->  | D25: =IF('DF raw data'!D25="","",'DF raw data'!D25) -> 
A26: =IF('DF raw data'!I26="","",'DF raw data'!I26) -> Probe Current Supply | B26: =IF('DF raw data'!J26="","",'DF raw data'!J26) -> 1825-D | C26: =IF('DF raw data'!C26="","",'DF raw data'!C26) ->  | D26: =IF('DF raw data'!D26="","",'DF raw data'!D26) -> 
A27: =IF('DF raw data'!I27="","",'DF raw data'!I27) -> Probe Gain Correction | B27: =IF('DF raw data'!J27="","",'DF raw data'!J27) -> 0.99612 | C27: =IF('DF raw data'!C27="","",'DF raw data'!C27) ->  | D27: =IF('DF raw data'!D27="","",'DF raw data'!D27) -> 
A28: =IF('DF raw data'!I28="","",'DF raw data'!I28) -> Probe Offset Correction | B28: =IF('DF raw data'!J28="","",'DF raw data'!J28) -> 0.0027559 | C28: =IF('DF raw data'!C28="","",'DF raw data'!C28) ->  | D28: =IF('DF raw data'!D28="","",'DF raw data'!D28) -> 
A29: =IF('DF raw data'!I29="","",'DF raw data'!I29) -> DVM Number | B29: =IF('DF raw data'!J29="","",'DF raw data'!J29) -> 2 | C29: =IF('DF raw data'!C29="","",'DF raw data'!C29) ->  | D29: =IF('DF raw data'!D29="","",'DF raw data'!D29) -> 
A30: =IF('DF raw data'!I30="","",'DF raw data'!I30) -> DVM Type | B30: =IF('DF raw data'!J30="","",'DF raw data'!J30) -> K2701 | C30: =IF('DF raw data'!C30="","",'DF raw data'!C30) ->  | D30: =IF('DF raw data'!D30="","",'DF raw data'!D30) -> 
A31: =IF('DF raw data'!I31="","",'DF raw data'!I31) -> DVM Danfysik Reg. Number | B31: =IF('DF raw data'!J31="","",'DF raw data'!J31) -> 1743-D | C31: =IF('DF raw data'!C31="","",'DF raw data'!C31) ->  | D31: =IF('DF raw data'!D31="","",'DF raw data'!D31) -> 
A32: =IF('DF raw data'!I32="","",'DF raw data'!I32) -> Probe Name | B32: =IF('DF raw data'!J32="","",'DF raw data'!J32) -> ID12_Bx | C32: =IF('DF raw data'!C32="","",'DF raw data'!C32) ->  | D32: =IF('DF raw data'!D32="","",'DF raw data'!D32) -> 
A33: =IF('DF raw data'!I33="","",'DF raw data'!I33) -> Probe Type | B33: =IF('DF raw data'!J33="","",'DF raw data'!J33) -> DF_ID_3D_Bxyz | C33: =IF('DF raw data'!C33="","",'DF raw data'!C33) ->  | D33: =IF('DF raw data'!D33="","",'DF raw data'!D33) -> 
A34: =IF('DF raw data'!I34="","",'DF raw data'!I34) -> Probe Danfysik Reg. Number | B34: =IF('DF raw data'!J34="","",'DF raw data'!J34) -> 2277 | C34: =IF('DF raw data'!C34="","",'DF raw data'!C34) ->  | D34: =IF('DF raw data'!D34="","",'DF raw data'!D34) -> 
A35: =IF('DF raw data'!I35="","",'DF raw data'!I35) -> Probe Axis | B35: =IF('DF raw data'!J35="","",'DF raw data'!J35) -> Bx | C35: =IF('DF raw data'!C35="","",'DF raw data'!C35) ->  | D35: =IF('DF raw data'!D35="","",'DF raw data'!D35) -> 
A36: =IF('DF raw data'!I36="","",'DF raw data'!I36) -> Probe Current Supply | B36: =IF('DF raw data'!J36="","",'DF raw data'!J36) -> 1825-D | C36: =IF('DF raw data'!C36="","",'DF raw data'!C36) ->  | D36: =IF('DF raw data'!D36="","",'DF raw data'!D36) -> 
A37: =IF('DF raw data'!I37="","",'DF raw data'!I37) -> Probe Gain Correction | B37: =IF('DF raw data'!J37="","",'DF raw data'!J37) -> 1 | C37: =IF('DF raw data'!C37="","",'DF raw data'!C37) ->  | D37: =IF('DF raw data'!D37="","",'DF raw data'!D37) -> 
A38: =IF('DF raw data'!I38="","",'DF raw data'!I38) -> Probe Offset Correction | B38: =IF('DF raw data'!J38="","",'DF raw data'!J38) -> -0.17567 | C38: =IF('DF raw data'!C38="","",'DF raw data'!C38) ->  | D38: =IF('DF raw data'!D38="","",'DF raw data'!D38) -> 
A39: =IF('DF raw data'!I39="","",'DF raw data'!I39) -> DVM Number | B39: =IF('DF raw data'!J39="","",'DF raw data'!J39) -> 3 | C39: =IF('DF raw data'!C39="","",'DF raw data'!C39) ->  | D39: =IF('DF raw data'!D39="","",'DF raw data'!D39) -> 
A40: =IF('DF raw data'!I40="","",'DF raw data'!I40) -> DVM Type | B40: =IF('DF raw data'!J40="","",'DF raw data'!J40) -> K2701 | C40: =IF('DF raw data'!C40="","",'DF raw data'!C40) ->  | D40: =IF('DF raw data'!D40="","",'DF raw data'!D40) -> 
A41: =IF('DF raw data'!I41="","",'DF raw data'!I41) -> DVM Danfysik Reg. Number | B41: =IF('DF raw data'!J41="","",'DF raw data'!J41) -> 1744-D | C41: =IF('DF raw data'!C41="","",'DF raw data'!C41) ->  | D41: =IF('DF raw data'!D41="","",'DF raw data'!D41) -> 
A42: =IF('DF raw data'!I42="","",'DF raw data'!I42) -> Probe Name | B42: =IF('DF raw data'!J42="","",'DF raw data'!J42) -> ID12_Bz | C42: =IF('DF raw data'!C42="","",'DF raw data'!C42) ->  | D42: =IF('DF raw data'!D42="","",'DF raw data'!D42) -> 
A43: =IF('DF raw data'!I43="","",'DF raw data'!I43) -> Probe Type | B43: =IF('DF raw data'!J43="","",'DF raw data'!J43) -> DF_ID_3D_Bxyz | C43: =IF('DF raw data'!C43="","",'DF raw data'!C43) ->  | D43: =IF('DF raw data'!D43="","",'DF raw data'!D43) -> 
A44: =IF('DF raw data'!I44="","",'DF raw data'!I44) -> Probe Danfysik Reg. Number | B44: =IF('DF raw data'!J44="","",'DF raw data'!J44) -> 2277 | C44: =IF('DF raw data'!C44="","",'DF raw data'!C44) ->  | D44: =IF('DF raw data'!D44="","",'DF raw data'!D44) -> 
A45: =IF('DF raw data'!I45="","",'DF raw data'!I45) -> Probe Axis | B45: =IF('DF raw data'!J45="","",'DF raw data'!J45) -> Bz | C45: =IF('DF raw data'!C45="","",'DF raw data'!C45) ->  | D45: =IF('DF raw data'!D45="","",'DF raw data'!D45) -> 
A46: =IF('DF raw data'!I46="","",'DF raw data'!I46) -> Probe Current Supply | B46: =IF('DF raw data'!J46="","",'DF raw data'!J46) -> 1825-D | C46: =IF('DF raw data'!C46="","",'DF raw data'!C46) ->  | D46: =IF('DF raw data'!D46="","",'DF raw data'!D46) -> 
A47: =IF('DF raw data'!I47="","",'DF raw data'!I47) -> Probe Gain Correction | B47: =IF('DF raw data'!J47="","",'DF raw data'!J47) -> 1 | C47: =IF('DF raw data'!C47="","",'DF raw data'!C47) ->  | D47: =IF('DF raw data'!D47="","",'DF raw data'!D47) -> 
A48: =IF('DF raw data'!I48="","",'DF raw data'!I48) -> Probe Offset Correction | B48: =IF('DF raw data'!J48="","",'DF raw data'!J48) -> 0.0073283 | C48: =IF('DF raw data'!C48="","",'DF raw data'!C48) ->  | D48: =IF('DF raw data'!D48="","",'DF raw data'!D48) -> 
A49: =IF('DF raw data'!I49="","",'DF raw data'!I49) -> DVM Number | B49: =IF('DF raw data'!J49="","",'DF raw data'!J49) -> 8 | C49: =IF('DF raw data'!C49="","",'DF raw data'!C49) ->  | D49: =IF('DF raw data'!D49="","",'DF raw data'!D49) -> 
A50: =IF('DF raw data'!I50="","",'DF raw data'!I50) -> DVM Type | B50: =IF('DF raw data'!J50="","",'DF raw data'!J50) -> K2700 | C50: =IF('DF raw data'!C50="","",'DF raw data'!C50) ->  | D50: =IF('DF raw data'!D50="","",'DF raw data'!D50) -> 
A51: =IF('DF raw data'!I51="","",'DF raw data'!I51) -> DVM Danfysik Reg. Number | B51: =IF('DF raw data'!J51="","",'DF raw data'!J51) -> 1756-D | C51: =IF('DF raw data'!C51="","",'DF raw data'!C51) ->  | D51: =IF('DF raw data'!D51="","",'DF raw data'!D51) -> 
A52: =IF('DF raw data'!I52="","",'DF raw data'!I52) -> NTC voltage | B52: =IF('DF raw data'!J52="","",'DF raw data'!J52) -> 0.38577 | C52: =IF('DF raw data'!C52="","",'DF raw data'!C52) ->  | D52: =IF('DF raw data'!D52="","",'DF raw data'!D52) -> 
A53: =IF('DF raw data'!I53="","",'DF raw data'!I53) -> PS-Gap: | B53: =IF('DF raw data'!J53="","",'DF raw data'!J53) -> 20 | C53: =IF('DF raw data'!C53="","",'DF raw data'!C53) ->  | D53: =IF('DF raw data'!D53="","",'DF raw data'!D53) -> 
A54: =IF('DF raw data'!I54="","",'DF raw data'!I54) -> PS-Temperature: | B54: =IF('DF raw data'!J54="","",'DF raw data'!J54) -> 26.7 | C54: =IF('DF raw data'!C54="","",'DF raw data'!C54) ->  | D54: =IF('DF raw data'!D54="","",'DF raw data'!D54) -> 
A55: =IF('DF raw data'!I55="","",'DF raw data'!I55) -> PS-Encoder: | B55: =IF('DF raw data'!J55="","",'DF raw data'!J55) -> 29.4343 | C55: =IF('DF raw data'!C55="","",'DF raw data'!C55) ->  | D55: =IF('DF raw data'!D55="","",'DF raw data'!D55) -> 
A56: =IF('DF raw data'!I56="","",'DF raw data'!I56) ->  | B56: =IF('DF raw data'!J56="","",'DF raw data'!J56) -> 
A57: =IF('DF raw data'!I57="","",'DF raw data'!I57) -> Monitor-Index | B57: =IF('DF raw data'!J57="","",'DF raw data'!J57) -> [1,1,4]
A58: =IF('DF raw data'!I58="","",'DF raw data'!I58) ->  | B58: =IF('DF raw data'!J58="","",'DF raw data'!J58) -> 
A59: =IF('DF raw data'!I59="","",'DF raw data'!I59) -> Time [s] | B59: =IF('DF raw data'!J59="","",'DF raw data'!J59) -> Y [mm]
A60: =IF('DF raw data'!I60="","",'DF raw data'!I60) ->  | B60: =IF('DF raw data'!J60="","",'DF raw data'!J60) -> 
A61: =IF('DF raw data'!I61="","",'DF raw data'!I61) -> 205.9 | B61: =IF('DF raw data'!J61="","",'DF raw data'!J61) -> 31.36
A62: =IF('DF raw data'!I62="","",'DF raw data'!I62) ->  | B62: =IF('DF raw data'!J62="","",'DF raw data'!J62) -> 
A63: =IF('DF raw data'!I63="","",'DF raw data'!I63) -> Measurement-Index | B63: =IF('DF raw data'!J63="","",'DF raw data'!J63) -> [1,1,1201,2]
A64: =IF('DF raw data'!I64="","",'DF raw data'!I64) ->  | B64: =IF('DF raw data'!J64="","",'DF raw data'!J64) -> 
A65: =IF('DF raw data'!I65="","",'DF raw data'!I65) -> Z [mm] | B65: =IF('DF raw data'!J65="","",'DF raw data'!J65) -> By [T] | C65: =IF('DF raw data'!K65="","",'DF raw data'!K65) -> Bx [T] | D65: =IF('DF raw data'!L65="","",'DF raw data'!L65) -> Bz [T] | F65: By_corr | G65: Bx_corr | H65: Bz_corr | J65: Iy | K65: Jy | L65: Ix | M65: Jx | N65: PI
A66: =IF('DF raw data'!I66="","",'DF raw data'!I66) -> [1, 0, 0, 0] | B66: =IF('DF raw data'!J66="","",'DF raw data'!J66) ->  | C66: =IF('DF raw data'!K66="","",'DF raw data'!K66) ->  | D66: =IF('DF raw data'!L66="","",'DF raw data'!L66) -> 
A67: =IF('DF raw data'!I67="","",'DF raw data'!I67) -> -300 | B67: =IF('DF raw data'!J67="","",'DF raw data'!J67) -> -3.21183e-05 | C67: =IF('DF raw data'!K67="","",'DF raw data'!K67) -> 4.75311e-06 | D67: =IF('DF raw data'!L67="","",'DF raw data'!L67) -> -3.708e-05 | F67: =(1-$G$1*($B$54-$G$2))*(B67-F$5) -> -6.882081797e-07 | G67: =(1-$G$1*($B$54-$G$2))*(C67-G$5) -> 3.332176719e-05 | H67: =(1-$G$1*($B$54-$G$2))*(D67-H$5) -> 1.514119514e-06 | J67: =F67*$G$3+J66 -> -3.441040898e-07 | K67: =J67*$G$3+K66 -> -1.720520449e-07 | L67: =G67*$G$3+L66 -> 1.66608836e-05 | M67: =L67*$G$3+M66 -> 8.330441799e-06 | N67: =(J67^2+L67^2)*$G$3+N66 -> 1.388517249e-10
A68: =IF('DF raw data'!I68="","",'DF raw data'!I68) -> -299.5 | B68: =IF('DF raw data'!J68="","",'DF raw data'!J68) -> -4.93695e-05 | C68: =IF('DF raw data'!K68="","",'DF raw data'!K68) -> 1.38476e-05 | D68: =IF('DF raw data'!L68="","",'DF raw data'!L68) -> -3.58508e-05 | F68: -1.80237838e-05 | G68: 4.246073835e-05 | H68: 2.749331531e-06 | J68: =F68*$G$3+J67 -> -9.355995989e-06 | K68: =J68*$G$3+K67 -> -4.85005004e-06 | L68: =G68*$G$3+L67 -> 3.789125277e-05 | M68: =L68*$G$3+M67 -> 2.727606818e-05 | N68: =(J68^2+L68^2)*$G$3+N67 -> 9.004925736e-10
A69: =IF('DF raw data'!I69="","",'DF raw data'!I69) -> -299 | B69: =IF('DF raw data'!J69="","",'DF raw data'!J69) -> -3.48774e-05 | C69: =IF('DF raw data'!K69="","",'DF raw data'!K69) -> 6.70806e-06 | D69: =IF('DF raw data'!L69="","",'DF raw data'!L69) -> -3.4376e-05 | F69: -3.460802938e-06 | G69: 3.528627885e-05 | H69: 4.231344778e-06 | J69: -1.108639746e-05 | K69: -1.039324877e-05 | L69: 5.55343922e-05 | M69: 5.504326428e-05 | N69: 2.503981036e-09
A70: =IF('DF raw data'!I70="","",'DF raw data'!I70) -> -298.5 | B70: =IF('DF raw data'!J70="","",'DF raw data'!J70) -> -2.57071e-05 | C70: =IF('DF raw data'!K70="","",'DF raw data'!K70) -> 2.1613e-06 | D70: =IF('DF raw data'!L70="","",'DF raw data'!L70) -> -3.45259e-05 | F70: 5.754349e-06 | G70: 3.071728065e-05 | H70: 4.080711617e-06 | J70: -8.209222958e-06 | K70: -1.449786025e-05 | L70: 7.089303252e-05 | M70: 9.048978054e-05 | N70: 5.050587737e-09
A71: =IF('DF raw data'!I71="","",'DF raw data'!I71) -> -298 | B71: =IF('DF raw data'!J71="","",'DF raw data'!J71) -> -3.71214e-05 | C71: =IF('DF raw data'!K71="","",'DF raw data'!K71) -> 7.33882e-06 | D71: =IF('DF raw data'!L71="","",'DF raw data'!L71) -> -3.51993e-05 | F71: -5.715778342e-06 | G71: 3.59201239e-05 | H71: 3.404018018e-06 | J71: -1.106711213e-05 | K71: -2.003141631e-05 | L71: 8.885309447e-05 | M71: 0.0001349163278 | N71: 9.059264422e-09
A72: =IF('DF raw data'!I72="","",'DF raw data'!I72) -> -297.5 | B72: =IF('DF raw data'!J72="","",'DF raw data'!J72) -> -2.69891e-05 | C72: =IF('DF raw data'!K72="","",'DF raw data'!K72) -> 1.92232e-06 | D72: =IF('DF raw data'!L72="","",'DF raw data'!L72) -> -3.54561e-05 | F72: 4.466078738e-06 | G72: 3.04771318e-05 | H72: 3.145962009e-06 | J72: -8.834072761e-06 | K72: -2.444845269e-05 | L72: 0.0001040916604 | M72: 0.000186962158 | N72: 1.451582172e-08
A73: =IF('DF raw data'!I73="","",'DF raw data'!I73) -> -297 | B73: =IF('DF raw data'!J73="","",'DF raw data'!J73) -> -3.62876e-05 | C73: =IF('DF raw data'!K73="","",'DF raw data'!K73) -> -6.92132e-06 | D73: =IF('DF raw data'!L73="","",'DF raw data'!L73) -> -3.52445e-05 | F73: -4.877900226e-06 | G73: 2.159023756e-05 | H73: 3.358596945e-06 | J73: -1.127302287e-05 | K73: -3.008496413e-05 | L73: 0.0001148867792 | M73: 0.0002444055475 | N73: 2.117884826e-08
A74: =IF('DF raw data'!I74="","",'DF raw data'!I74) -> -296.5 | B74: =IF('DF raw data'!J74="","",'DF raw data'!J74) -> -3.36587e-05 | C74: =IF('DF raw data'!K74="","",'DF raw data'!K74) -> -2.27163e-06 | D74: =IF('DF raw data'!L74="","",'DF raw data'!L74) -> -3.51166e-05 | F74: -2.236142276e-06 | G74: 2.626266919e-05 | H74: 3.487122504e-06 | J74: -1.239109401e-05 | K74: -3.628051114e-05 | L74: 0.0001280181137 | M74: 0.0003084146044 | N74: 2.944993659e-08
A75: =IF('DF raw data'!I75="","",'DF raw data'!I75) -> -296 | B75: =IF('DF raw data'!J75="","",'DF raw data'!J75) -> -2.59631e-05 | C75: =IF('DF raw data'!K75="","",'DF raw data'!K75) -> -1.76548e-06 | D75: =IF('DF raw data'!L75="","",'DF raw data'!L75) -> -3.53574e-05 | F75: 5.497096904e-06 | G75: 2.677129477e-05 | H75: 3.245144751e-06 | J75: -9.64254556e-06 | K75: -4.110178392e-05 | L75: 0.0001414037611 | M75: 0.000379116485 | N75: 3.949393776e-08
A76: =IF('DF raw data'!I76="","",'DF raw data'!I76) -> -295.5 | B76: =IF('DF raw data'!J76="","",'DF raw data'!J76) -> -3.75703e-05 | C76: =IF('DF raw data'!K76="","",'DF raw data'!K76) -> 1.51599e-06 | D76: =IF('DF raw data'!L76="","",'DF raw data'!L76) -> -3.53941e-05 | F76: -6.166873912e-06 | G76: 3.006881444e-05 | H76: 3.208265251e-06 | J76: -1.272598252e-05 | K76: -4.746477517e-05 | L76: 0.0001564381684 | M76: 0.0004573355692 | N76: 5.181136333e-08
A77: =IF('DF raw data'!I77="","",'DF raw data'!I77) -> -295 | B77: =IF('DF raw data'!J77="","",'DF raw data'!J77) -> -3.34661e-05 | C77: =IF('DF raw data'!K77="","",'DF raw data'!K77) -> 7.51926e-07 | D77: =IF('DF raw data'!L77="","",'DF raw data'!L77) -> -3.51959e-05 | F77: -2.042600269e-06 | G77: 2.93010134e-05 | H77: 3.407434647e-06 | J77: -1.374728265e-05 | K77: -5.43384165e-05 | L77: 0.0001710886751 | M77: 0.0005428799067 | N77: 6.654152459e-08
A78: =IF('DF raw data'!I78="","",'DF raw data'!I78) -> -294.5 | B78: =IF('DF raw data'!J78="","",'DF raw data'!J78) -> -2.731e-05 | C78: =IF('DF raw data'!K78="","",'DF raw data'!K78) -> 9.39456e-06 | D78: =IF('DF raw data'!L78="","",'DF raw data'!L78) -> -3.51357e-05 | F78: 4.143609216e-06 | G78: 3.798591853e-05 | H78: 3.467929086e-06 | J78: -1.167547804e-05 | K78: -6.017615552e-05 | L78: 0.0001900816343 | M78: 0.0006379207239 | N78: 8.467519684e-08
A79: =IF('DF raw data'!I79="","",'DF raw data'!I79) -> -294 | B79: =IF('DF raw data'!J79="","",'DF raw data'!J79) -> -4.00073e-05 | C79: =IF('DF raw data'!K79="","",'DF raw data'!K79) -> 9.07974e-06 | D79: =IF('DF raw data'!L79="","",'DF raw data'!L79) -> -3.50503e-05 | F79: -8.615793279e-06 | G79: 3.766955874e-05 | H79: 3.553746777e-06 | J79: -1.598337468e-05 | K79: -6.816784286e-05 | L79: 0.0002089164137 | M79: 0.0007423789307 | N79: 1.066259649e-07
A80: =IF('DF raw data'!I80="","",'DF raw data'!I80) -> -293.5 | B80: =IF('DF raw data'!J80="","",'DF raw data'!J80) -> -2.36547e-05 | C80: =IF('DF raw data'!K80="","",'DF raw data'!K80) -> 2.65296e-06 | D80: =IF('DF raw data'!L80="","",'DF raw data'!L80) -> -3.51645e-05 | F80: 7.816787288e-06 | G80: 3.121134536e-05 | H80: 3.438988225e-06 | J80: -1.207498104e-05 | K80: -7.420533338e-05 | L80: 0.0002245220864 | M80: 0.0008546399739 | N80: 1.319039511e-07
A81: =IF('DF raw data'!I81="","",'DF raw data'!I81) -> -293 | B81: =IF('DF raw data'!J81="","",'DF raw data'!J81) -> -3.59028e-05 | C81: =IF('DF raw data'!K81="","",'DF raw data'!K81) -> -5.94711e-06 | D81: =IF('DF raw data'!L81="","",'DF raw data'!L81) -> -3.53754e-05 | F81: -4.491218169e-06 | G81: 2.256921242e-05 | H81: 3.227056713e-06 | J81: -1.432059012e-05 | K81: -8.136562844e-05 | L81: 0.0002358066926 | M81: 0.0009725433202 | N81: 1.598088889e-07
A82: =IF('DF raw data'!I82="","",'DF raw data'!I82) -> -292.5 | B82: =IF('DF raw data'!J82="","",'DF raw data'!J82) -> -2.85282e-05 | C82: =IF('DF raw data'!K82="","",'DF raw data'!K82) -> -8.87476e-06 | D82: =IF('DF raw data'!L82="","",'DF raw data'!L82) -> -3.52545e-05 | F82: 2.919450999e-06 | G82: 1.962724328e-05 | H82: 3.348548035e-06 | J82: -1.286086462e-05 | K82: -8.779606075e-05 | L82: 0.0002456203142 | M82: 0.001095353477 | N82: 1.900562592e-07
A83: =IF('DF raw data'!I83="","",'DF raw data'!I83) -> -292 | B83: =IF('DF raw data'!J83="","",'DF raw data'!J83) -> -3.78273e-05 | C83: =IF('DF raw data'!K83="","",'DF raw data'!K83) -> -8.82577e-06 | D83: =IF('DF raw data'!L83="","",'DF raw data'!L83) -> -3.46662e-05 | F83: -6.425130899e-06 | G83: 1.967647289e-05 | H83: 3.93972541e-06 | J83: -1.607343007e-05 | K83: -9.583277579e-05 | L83: 0.0002554585507 | M83: 0.001223082753 | N83: 2.228149724e-07
A84: =IF('DF raw data'!I84="","",'DF raw data'!I84) -> -291.5 | B84: =IF('DF raw data'!J84="","",'DF raw data'!J84) -> -2.51354e-05 | C84: =IF('DF raw data'!K84="","",'DF raw data'!K84) -> -5.07763e-06 | D84: =IF('DF raw data'!L84="","",'DF raw data'!L84) -> -2.63651e-05 | F84: 6.328845184e-06 | G84: 2.344294505e-05 | H84: 1.228142609e-05 | J84: -1.290900748e-05 | K84: -0.0001022872795 | L84: 0.0002671800232 | M84: 0.001356672764 | N84: 2.58590876e-07
A85: =IF('DF raw data'!I85="","",'DF raw data'!I85) -> -291 | B85: =IF('DF raw data'!J85="","",'DF raw data'!J85) -> -2.36571e-05 | C85: =IF('DF raw data'!K85="","",'DF raw data'!K85) -> 1.34795e-06 | D85: =IF('DF raw data'!L85="","",'DF raw data'!L85) -> -3.15141e-05 | F85: 7.81437555e-06 | G85: 2.989995256e-05 | H85: 7.107242331e-06 | J85: -9.001819705e-06 | K85: -0.0001067881894 | L85: 0.0002821299995 | M85: 0.001497737764 | N85: 2.984300607e-07
A86: =IF('DF raw data'!I86="","",'DF raw data'!I86) -> -290.5 | B86: =IF('DF raw data'!J86="","",'DF raw data'!J86) -> -3.32068e-05 | C86: =IF('DF raw data'!K86="","",'DF raw data'!K86) -> -2.61704e-06 | D86: =IF('DF raw data'!L86="","",'DF raw data'!L86) -> -3.95715e-05 | F86: -1.782032033e-06 | G86: 2.591556979e-05 | H86: -9.895664123e-07 | J86: -9.892835722e-06 | K86: -0.0001117346072 | L86: 0.0002950877844 | M86: 0.001645281656 | N86: 3.42017395e-07
A87: =IF('DF raw data'!I87="","",'DF raw data'!I87) -> -290 | B87: =IF('DF raw data'!J87="","",'DF raw data'!J87) -> -3.34029e-05 | C87: =IF('DF raw data'!K87="","",'DF raw data'!K87) -> -1.09499e-05 | D87: =IF('DF raw data'!L87="","",'DF raw data'!L87) -> -3.39737e-05 | F87: -1.979091158e-06 | G87: 1.754195377e-05 | H87: 4.635612428e-06 | J87: -1.08823813e-05 | K87: -0.0001171757979 | L87: 0.0003038587612 | M87: 0.001797211037 | N87: 3.882416815e-07
A88: =IF('DF raw data'!I88="","",'DF raw data'!I88) -> -289.5 | B88: =IF('DF raw data'!J88="","",'DF raw data'!J88) -> -3.71222e-05 | C88: =IF('DF raw data'!K88="","",'DF raw data'!K88) -> -9.51476e-06 | D88: =IF('DF raw data'!L88="","",'DF raw data'!L88) -> -3.39757e-05 | F88: -5.716582255e-06 | G88: 1.898411304e-05 | H88: 4.633602646e-06 | J88: -1.374067243e-05 | K88: -0.0001240461341 | L88: 0.0003133508178 | M88: 0.001953886446 | N88: 4.374304521e-07
A89: =IF('DF raw data'!I89="","",'DF raw data'!I89) -> -289 | B89: =IF('DF raw data'!J89="","",'DF raw data'!J89) -> -3.44895e-05 | C89: =IF('DF raw data'!K89="","",'DF raw data'!K89) -> -4.33357e-06 | D89: =IF('DF raw data'!L89="","",'DF raw data'!L89) -> -3.9291e-05 | F89: -3.071005719e-06 | G89: 2.419064424e-05 | H89: -7.076944868e-07 | J89: -1.527617529e-05 | K89: -0.0001316842218 | L89: 0.0003254461399 | M89: 0.002116609516 | N89: 4.905047278e-07
A90: =IF('DF raw data'!I90="","",'DF raw data'!I90) -> -288.5 | B90: =IF('DF raw data'!J90="","",'DF raw data'!J90) -> -3.17358e-05 | C90: =IF('DF raw data'!K90="","",'DF raw data'!K90) -> -8.39671e-06 | D90: =IF('DF raw data'!L90="","",'DF raw data'!L90) -> -3.37651e-05 | F90: -3.038373722e-07 | G90: 2.010763142e-05 | H90: 4.84523269e-06 | J90: -1.542809397e-05 | K90: -0.0001393982687 | L90: 0.0003354999556 | M90: 0.002284359493 | N90: 5.469038509e-07
A91: =IF('DF raw data'!I91="","",'DF raw data'!I91) -> -288 | B91: =IF('DF raw data'!J91="","",'DF raw data'!J91) -> -1.85186e-05 | C91: =IF('DF raw data'!K91="","",'DF raw data'!K91) -> -6.95821e-06 | D91: =IF('DF raw data'!L91="","",'DF raw data'!L91) -> -4.39338e-05 | F91: 1.297800795e-05 | G91: 2.155316713e-05 | H91: -5.373202422e-06 | J91: -8.939089997e-06 | K91: -0.0001438678137 | L91: 0.0003462765392 | M91: 0.002457497763 | N91: 6.068975254e-07
A92: =IF('DF raw data'!I92="","",'DF raw data'!I92) -> -287.5 | B92: =IF('DF raw data'!J92="","",'DF raw data'!J92) -> -3.5197e-05 | C92: =IF('DF raw data'!K92="","",'DF raw data'!K92) -> -2.69326e-06 | D92: =IF('DF raw data'!L92="","",'DF raw data'!L92) -> -3.62081e-05 | F92: -3.781966101e-06 | G92: 2.5838977e-05 | H92: 2.390283977e-06 | J92: -1.083007305e-05 | K92: -0.0001492828503 | L92: 0.0003591960277 | M92: 0.002637095777 | N92: 6.714670638e-07
A93: =IF('DF raw data'!I93="","",'DF raw data'!I93) -> -287 | B93: =IF('DF raw data'!J93="","",'DF raw data'!J93) -> -3.80842e-05 | C93: =IF('DF raw data'!K93="","",'DF raw data'!K93) -> -5.01659e-06 | D93: =IF('DF raw data'!L93="","",'DF raw data'!L93) -> -3.40506e-05 | F93: -6.683287397e-06 | G93: 2.350428359e-05 | H93: 4.55833631e-06 | J93: -1.417171675e-05 | K93: -0.0001563687086 | L93: 0.0003709481695 | M93: 0.002822569862 | N93: 7.403687548e-07
A94: =IF('DF raw data'!I94="","",'DF raw data'!I94) -> -286.5 | B94: =IF('DF raw data'!J94="","",'DF raw data'!J94) -> -3.43656e-05 | C94: =IF('DF raw data'!K94="","",'DF raw data'!K94) -> -5.54087e-06 | D94: =IF('DF raw data'!L94="","",'DF raw data'!L94) -> -3.26074e-05 | F94: -2.946499724e-06 | G94: 2.297743934e-05 | H94: 6.008595001e-06 | J94: -1.564496661e-05 | K94: -0.0001641911919 | L94: 0.0003824368891 | M94: 0.003013788306 | N94: 8.136201244e-07
A95: =IF('DF raw data'!I95="","",'DF raw data'!I95) -> -286 | B95: =IF('DF raw data'!J95="","",'DF raw data'!J95) -> -3.47471e-05 | C95: =IF('DF raw data'!K95="","",'DF raw data'!K95) -> -1.50336e-06 | D95: =IF('DF raw data'!L95="","",'DF raw data'!L95) -> -3.7635e-05 | F95: -3.32986564e-06 | G95: 2.70346968e-05 | H95: 9.564050092e-07 | J95: -1.730989943e-05 | K95: -0.0001728461417 | L95: 0.0003959542375 | M95: 0.003211765425 | N95: 8.921598198e-07
A96: =IF('DF raw data'!I96="","",'DF raw data'!I96) -> -285.5 | B96: =IF('DF raw data'!J96="","",'DF raw data'!J96) -> -2.67349e-05 | C96: =IF('DF raw data'!K96="","",'DF raw data'!K96) -> -8.93058e-06 | D96: =IF('DF raw data'!L96="","",'DF raw data'!L96) -> -3.18584e-05 | F96: 4.72152203e-06 | G96: 1.957115027e-05 | H96: 6.76125836e-06 | J96: -1.494913841e-05 | K96: -0.0001803207109 | L96: 0.0004057398127 | M96: 0.003414635331 | N96: 9.745839559e-07
A97: =IF('DF raw data'!I97="","",'DF raw data'!I97) -> -285 | B97: =IF('DF raw data'!J97="","",'DF raw data'!J97) -> -3.33927e-05 | C97: =IF('DF raw data'!K97="","",'DF raw data'!K97) -> -1.40463e-05 | D97: =IF('DF raw data'!L97="","",'DF raw data'!L97) -> -4.96881e-05 | F97: -1.96884127e-06 | G97: 1.443040928e-05 | H97: -1.11556467e-05 | J97: -1.593355905e-05 | K97: -0.0001882874904 | L97: 0.0004129550173 | M97: 0.00362111284 | N97: 1.059976818e-06
A98: =IF('DF raw data'!I98="","",'DF raw data'!I98) -> -284.5 | B98: =IF('DF raw data'!J98="","",'DF raw data'!J98) -> -4.23769e-05 | C98: =IF('DF raw data'!K98="","",'DF raw data'!K98) -> -8.10815e-06 | D98: =IF('DF raw data'!L98="","",'DF raw data'!L98) -> -3.96828e-05 | F98: -1.099698299e-05 | G98: 2.039760277e-05 | H98: -1.101410781e-06 | J98: -2.143205055e-05 | K98: -0.0001990035157 | L98: 0.0004231538187 | M98: 0.003832689749 | N98: 1.149736062e-06
A99: =IF('DF raw data'!I99="","",'DF raw data'!I99) -> -284 | B99: =IF('DF raw data'!J99="","",'DF raw data'!J99) -> -3.66176e-05 | C99: =IF('DF raw data'!K99="","",'DF raw data'!K99) -> 3.42859e-06 | D99: =IF('DF raw data'!L99="","",'DF raw data'!L99) -> -2.10648e-05 | F99: -5.209514256e-06 | G99: 3.199076897e-05 | H99: 1.760764986e-05 | J99: -2.403680767e-05 | K99: -0.0002110219195 | L99: 0.0004391492032 | M99: 0.004052264351 | N99: 1.246450957e-06
A100: =IF('DF raw data'!I100="","",'DF raw data'!I100) -> -283.5 | B100: =IF('DF raw data'!J100="","",'DF raw data'!J100) -> -2.17318e-05 | C100: =IF('DF raw data'!K100="","",'DF raw data'!K100) -> 6.20279e-06 | D100: =IF('DF raw data'!L100="","",'DF raw data'!L100) -> -3.38583e-05 | F100: 9.749092192e-06 | G100: 3.477853758e-05 | H100: 4.751576849e-06 | J100: -1.916226158e-05 | K100: -0.0002206030503 | L100: 0.000456538472 | M100: 0.004280533587 | N100: 1.350848241e-06
A101: =IF('DF raw data'!I101="","",'DF raw data'!I101) -> -283 | B101: =IF('DF raw data'!J101="","",'DF raw data'!J101) -> -2.14079e-05 | C101: =IF('DF raw data'!K101="","",'DF raw data'!K101) -> 6.04563e-06 | D101: =IF('DF raw data'!L101="","",'DF raw data'!L101) -> -3.8686e-05 | F101: 1.007457639e-05 | G101: 3.462060891e-05 | H101: -9.973543175e-08 | J101: -1.412497338e-05 | K101: -0.000227665537 | L101: 0.0004738487764 | M101: 0.004517457975 | N101: 1.46321433e-06
A102: =IF('DF raw data'!I102="","",'DF raw data'!I102) -> -282.5 | B102: =IF('DF raw data'!J102="","",'DF raw data'!J102) -> -3.39791e-05 | C102: =IF('DF raw data'!K102="","",'DF raw data'!K102) -> 6.6336e-06 | D102: =IF('DF raw data'!L102="","",'DF raw data'!L102) -> -3.53009e-05 | F102: -2.558109352e-06 | G102: 3.521145467e-05 | H102: 3.301921092e-06 | J102: -1.540402806e-05 | K102: -0.000235367551 | L102: 0.0004914545038 | M102: 0.004763185227 | N102: 1.584096737e-06
A103: =IF('DF raw data'!I103="","",'DF raw data'!I103) -> -282 | B103: =IF('DF raw data'!J103="","",'DF raw data'!J103) -> -3.71873e-05 | C103: =IF('DF raw data'!K103="","",'DF raw data'!K103) -> -7.27936e-06 | D103: =IF('DF raw data'!L103="","",'DF raw data'!L103) -> -3.28293e-05 | F103: -5.782000659e-06 | G103: 2.123044638e-05 | H103: 5.785609688e-06 | J103: -1.829502839e-05 | K103: -0.0002445150652 | L103: 0.0005020697269 | M103: 0.00501422009 | N103: 1.710301096e-06
A104: =IF('DF raw data'!I104="","",'DF raw data'!I104) -> -281.5 | B104: =IF('DF raw data'!J104="","",'DF raw data'!J104) -> -3.44328e-05 | C104: =IF('DF raw data'!K104="","",'DF raw data'!K104) -> -2.37187e-06 | D104: =IF('DF raw data'!L104="","",'DF raw data'!L104) -> -2.80007e-05 | F104: -3.014028399e-06 | G104: 2.616193892e-05 | H104: 1.063782637e-05 | J104: -1.980204259e-05 | K104: -0.0002544160865 | L104: 0.0005151506964 | M104: 0.005271795439 | N104: 1.843187277e-06
A105: =IF('DF raw data'!I105="","",'DF raw data'!I105) -> -281 | B105: =IF('DF raw data'!J105="","",'DF raw data'!J105) -> -2.69882e-05 | C105: =IF('DF raw data'!K105="","",'DF raw data'!K105) -> 3.68731e-06 | D105: =IF('DF raw data'!L105="","",'DF raw data'!L105) -> -3.68627e-05 | F105: 4.466983139e-06 | G105: 3.225075437e-05 | H105: 1.732482329e-06 | J105: -1.756855102e-05 | K105: -0.000263200362 | L105: 0.0005312760736 | M105: 0.005537433475 | N105: 1.984468737e-06
A106: =IF('DF raw data'!I106="","",'DF raw data'!I106) -> -280.5 | B106: =IF('DF raw data'!J106="","",'DF raw data'!J106) -> -4.01991e-05 | C106: =IF('DF raw data'!K106="","",'DF raw data'!K106) -> 1.5746e-06 | D106: =IF('DF raw data'!L106="","",'DF raw data'!L106) -> -3.58321e-05 | F106: -8.808531372e-06 | G106: 3.01277111e-05 | H106: 2.768122993e-06 | J106: -2.197281671e-05 | K106: -0.0002741867704 | L106: 0.0005463399291 | M106: 0.00581060344 | N106: 2.133953799e-06
A107: =IF('DF raw data'!I107="","",'DF raw data'!I107) -> -280 | B107: =IF('DF raw data'!J107="","",'DF raw data'!J107) -> -3.17299e-05 | C107: =IF('DF raw data'!K107="","",'DF raw data'!K107) -> -8.65867e-07 | D107: =IF('DF raw data'!L107="","",'DF raw data'!L107) -> -4.27717e-05 | F107: -2.979085153e-07 | G107: 2.767530778e-05 | H107: -4.20541859e-06 | J107: -2.212177096e-05 | K107: -0.0002852476558 | L107: 0.000560177583 | M107: 0.006090692231 | N107: 2.291097947e-06
A108: =IF('DF raw data'!I108="","",'DF raw data'!I108) -> -279.5 | B108: =IF('DF raw data'!J108="","",'DF raw data'!J108) -> -4.06507e-05 | C108: =IF('DF raw data'!K108="","",'DF raw data'!K108) -> 2.20248e-06 | D108: =IF('DF raw data'!L108="","",'DF raw data'!L108) -> -3.19431e-05 | F108: -9.262340148e-06 | G108: 3.075866206e-05 | H108: 6.676144092e-06 | J108: -2.675294104e-05 | K108: -0.0002986241264 | L108: 0.0005755569141 | M108: 0.006378470688 | N108: 2.457088688e-06
A109: =IF('DF raw data'!I109="","",'DF raw data'!I109) -> -279 | B109: =IF('DF raw data'!J109="","",'DF raw data'!J109) -> -2.40419e-05 | C109: =IF('DF raw data'!K109="","",'DF raw data'!K109) -> 6.05383e-06 | D109: =IF('DF raw data'!L109="","",'DF raw data'!L109) -> -3.14567e-05 | F109: 7.427693493e-06 | G109: 3.462884902e-05 | H109: 7.164923075e-06 | J109: -2.303909429e-05 | K109: -0.0003101436735 | L109: 0.0005928713386 | M109: 0.006674906358 | N109: 2.6331023e-06
A110: =IF('DF raw data'!I110="","",'DF raw data'!I110) -> -278.5 | B110: =IF('DF raw data'!J110="","",'DF raw data'!J110) -> -3.52632e-05 | C110: =IF('DF raw data'!K110="","",'DF raw data'!K110) -> 3.6997e-06 | D110: =IF('DF raw data'!L110="","",'DF raw data'!L110) -> -3.28816e-05 | F110: -3.848489886e-06 | G110: 3.226320497e-05 | H110: 5.733053889e-06 | J110: -2.496333923e-05 | K110: -0.0003226253431 | L110: 0.0006090029411 | M110: 0.006979407828 | N110: 2.818856175e-06
A111: =IF('DF raw data'!I111="","",'DF raw data'!I111) -> -278 | B111: =IF('DF raw data'!J111="","",'DF raw data'!J111) -> -2.69239e-05 | C111: =IF('DF raw data'!K111="","",'DF raw data'!K111) -> 8.62634e-06 | D111: =IF('DF raw data'!L111="","",'DF raw data'!L111) -> -3.73153e-05 | F111: 4.531597631e-06 | G111: 3.721394116e-05 | H111: 1.277668662e-06 | J111: -2.269754042e-05 | K111: -0.0003339741133 | L111: 0.0006276099116 | M111: 0.007293212784 | N111: 3.016060865e-06
A112: =IF('DF raw data'!I112="","",'DF raw data'!I112) -> -277.5 | B112: =IF('DF raw data'!J112="","",'DF raw data'!J112) -> -3.06459e-05 | C112: =IF('DF raw data'!K112="","",'DF raw data'!K112) -> 4.92126e-06 | D112: =IF('DF raw data'!L112="","",'DF raw data'!L112) -> -3.31282e-05 | F112: 7.913933287e-07 | G112: 3.349073962e-05 | H112: 5.485247768e-06 | J112: -2.230184375e-05 | K112: -0.0003451250352 | L112: 0.0006443552814 | M112: 0.007615390425 | N112: 3.223906415e-06
A113: =IF('DF raw data'!I113="","",'DF raw data'!I113) -> -277 | B113: =IF('DF raw data'!J113="","",'DF raw data'!J113) -> -2.92954e-05 | C113: =IF('DF raw data'!K113="","",'DF raw data'!K113) -> -1.67335e-06 | D113: =IF('DF raw data'!L113="","",'DF raw data'!L113) -> -3.89389e-05 | F113: 2.148498624e-06 | G113: 2.686387538e-05 | H113: -3.538723657e-07 | J113: -2.122759444e-05 | K113: -0.0003557388324 | L113: 0.0006577872191 | M113: 0.007944284034 | N113: 3.440473733e-06
A114: =IF('DF raw data'!I114="","",'DF raw data'!I114) -> -276.5 | B114: =IF('DF raw data'!J114="","",'DF raw data'!J114) -> -3.23746e-05 | C114: =IF('DF raw data'!K114="","",'DF raw data'!K114) -> -4.39667e-06 | D114: =IF('DF raw data'!L114="","",'DF raw data'!L114) -> -3.75096e-05 | F114: -9.45761743e-07 | G114: 2.412723562e-05 | H114: 1.082418341e-06 | J114: -2.170047531e-05 | K114: -0.0003665890701 | L114: 0.0006698508369 | M114: 0.008279209453 | N114: 3.665059261e-06
A115: =IF('DF raw data'!I115="","",'DF raw data'!I115) -> -276 | B115: =IF('DF raw data'!J115="","",'DF raw data'!J115) -> -4.07084e-05 | C115: =IF('DF raw data'!K115="","",'DF raw data'!K115) -> -5.02384e-06 | D115: =IF('DF raw data'!L115="","",'DF raw data'!L115) -> -4.15585e-05 | F115: -9.320322359e-06 | G115: 2.349699813e-05 | H115: -2.986284829e-06 | J115: -2.636063649e-05 | K115: -0.0003797693883 | L115: 0.000681599336 | M115: 0.008620009121 | N115: 3.89769553e-06
A116: =IF('DF raw data'!I116="","",'DF raw data'!I116) -> -275.5 | B116: =IF('DF raw data'!J116="","",'DF raw data'!J116) -> -3.42409e-05 | C116: =IF('DF raw data'!K116="","",'DF raw data'!K116) -> -8.18106e-06 | D116: =IF('DF raw data'!L116="","",'DF raw data'!L116) -> -2.70859e-05 | F116: -2.821189816e-06 | G116: 2.032433617e-05 | H116: 1.155710066e-05 | J116: -2.77712314e-05 | K116: -0.000393655004 | L116: 0.0006917615041 | M116: 0.008965889873 | N116: 4.13734814e-06
A117: =IF('DF raw data'!I117="","",'DF raw data'!I117) -> -275 | B117: =IF('DF raw data'!J117="","",'DF raw data'!J117) -> -3.61567e-05 | C117: =IF('DF raw data'!K117="","",'DF raw data'!K117) -> 8.61084e-08 | D117: =IF('DF raw data'!L117="","",'DF raw data'!L117) -> -3.94705e-05 | F117: -4.746359994e-06 | G117: 2.863193929e-05 | H117: -8.880724213e-07 | J117: -3.01444114e-05 | K117: -0.0004087272097 | L117: 0.0007060774737 | M117: 0.00931892861 | N117: 4.387075182e-06
A118: =IF('DF raw data'!I118="","",'DF raw data'!I118) -> -274.5 | B118: =IF('DF raw data'!J118="","",'DF raw data'!J118) -> -3.99435e-05 | C118: =IF('DF raw data'!K118="","",'DF raw data'!K118) -> 4.44925e-06 | D118: =IF('DF raw data'!L118="","",'DF raw data'!L118) -> -3.44868e-05 | F118: -8.551681233e-06 | G118: 3.301642102e-05 | H118: 4.120002855e-06 | J118: -3.442025201e-05 | K118: -0.0004259373357 | L118: 0.0007225856842 | M118: 0.009680221452 | N118: 4.648732594e-06
A119: =IF('DF raw data'!I119="","",'DF raw data'!I119) -> -274 | B119: =IF('DF raw data'!J119="","",'DF raw data'!J119) -> -4.29666e-05 | C119: =IF('DF raw data'!K119="","",'DF raw data'!K119) -> 3.09341e-06 | D119: =IF('DF raw data'!L119="","",'DF raw data'!L119) -> -2.05671e-05 | F119: -1.158956721e-05 | G119: 3.16539496e-05 | H119: 1.810778411e-05 | J119: -4.021503562e-05 | K119: -0.0004460448535 | L119: 0.000738412659 | M119: 0.01004942778 | N119: 4.922167846e-06
A120: =IF('DF raw data'!I120="","",'DF raw data'!I120) -> -273.5 | B120: =IF('DF raw data'!J120="","",'DF raw data'!J120) -> -3.35357e-05 | C120: =IF('DF raw data'!K120="","",'DF raw data'!K120) -> 2.5821e-06 | D120: =IF('DF raw data'!L120="","",'DF raw data'!L120) -> -2.70752e-05 | F120: -2.112540683e-06 | G120: 3.114013878e-05 | H120: 1.156785299e-05 | J120: -4.127130596e-05 | K120: -0.0004666805065 | L120: 0.0007539827284 | M120: 0.01042641915 | N120: 5.207264484e-06
A121: =IF('DF raw data'!I121="","",'DF raw data'!I121) -> -273 | B121: =IF('DF raw data'!J121="","",'DF raw data'!J121) -> -4.52073e-05 | C121: =IF('DF raw data'!K121="","",'DF raw data'!K121) -> -5.73432e-06 | D121: =IF('DF raw data'!L121="","",'DF raw data'!L121) -> -2.64638e-05 | F121: -1.384122648e-05 | G121: 2.278304317e-05 | H121: 1.218224335e-05 | J121: -4.81919192e-05 | K121: -0.0004907764661 | L121: 0.00076537425 | M121: 0.01080910627 | N121: 5.501324586e-06
A122: =IF('DF raw data'!I122="","",'DF raw data'!I122) -> -272.5 | B122: =IF('DF raw data'!J122="","",'DF raw data'!J122) -> -4.1675e-05 | C122: =IF('DF raw data'!K122="","",'DF raw data'!K122) -> -8.61479e-06 | D122: =IF('DF raw data'!L122="","",'DF raw data'!L122) -> -3.45584e-05 | F122: -1.029165e-05 | G122: 1.98884848e-05 | H122: 4.04805266e-06 | J122: -5.33377442e-05 | K122: -0.0005174453382 | L122: 0.0007753184924 | M122: 0.01119676552 | N122: 5.803306426e-06
A123: =IF('DF raw data'!I123="","",'DF raw data'!I123) -> -272 | B123: =IF('DF raw data'!J123="","",'DF raw data'!J123) -> -4.32766e-05 | C123: =IF('DF raw data'!K123="","",'DF raw data'!K123) -> -8.51052e-06 | D123: =IF('DF raw data'!L123="","",'DF raw data'!L123) -> -3.71772e-05 | F123: -1.190108342e-05 | G123: 1.999326478e-05 | H123: 1.416444109e-06 | J123: -5.928828591e-05 | K123: -0.0005470894812 | L123: 0.0007853151248 | M123: 0.01158942308 | N123: 6.113423899e-06
A124: =IF('DF raw data'!I124="","",'DF raw data'!I124) -> -271.5 | B124: =IF('DF raw data'!J124="","",'DF raw data'!J124) -> -3.30159e-05 | C124: =IF('DF raw data'!K124="","",'DF raw data'!K124) -> -1.28722e-05 | D124: =IF('DF raw data'!L124="","",'DF raw data'!L124) -> -3.74496e-05 | F124: -1.590198341e-06 | G124: 1.56102518e-05 | H124: 1.142711801e-06 | J124: -6.008338509e-05 | K124: -0.0005771311737 | L124: 0.0007931202507 | M124: 0.0119859832 | N124: 6.429748771e-06
A125: =IF('DF raw data'!I125="","",'DF raw data'!I125) -> -271 | B125: =IF('DF raw data'!J125="","",'DF raw data'!J125) -> -3.54631e-05 | C125: =IF('DF raw data'!K125="","",'DF raw data'!K125) -> -8.07667e-06 | D125: =IF('DF raw data'!L125="","",'DF raw data'!L125) -> -2.15476e-05 | F125: -4.049367596e-06 | G125: 2.042923674e-05 | H125: 1.712248848e-05 | J125: -6.210806888e-05 | K125: -0.0006081852082 | L125: 0.0008033348691 | M125: 0.01238765064 | N125: 6.754350933e-06
A126: =IF('DF raw data'!I126="","",'DF raw data'!I126) -> -270.5 | B126: =IF('DF raw data'!J126="","",'DF raw data'!J126) -> -3.68002e-05 | C126: =IF('DF raw data'!K126="","",'DF raw data'!K126) -> 9.50647e-07 | D126: =IF('DF raw data'!L126="","",'DF raw data'!L126) -> -3.6051e-05 | F126: -5.393007353e-06 | G126: 2.950070635e-05 | H126: 2.548152353e-06 | J126: -6.480457256e-05 | K126: -0.0006405874945 | L126: 0.0008180852223 | M126: 0.01279669325 | N126: 7.091082465e-06
A127: =IF('DF raw data'!I127="","",'DF raw data'!I127) -> -270 | B127: =IF('DF raw data'!J127="","",'DF raw data'!J127) -> -4.24397e-05 | C127: =IF('DF raw data'!K127="","",'DF raw data'!K127) -> -1.00352e-06 | D127: =IF('DF raw data'!L127="","",'DF raw data'!L127) -> -4.19291e-05 | F127: -1.106009015e-05 | G127: 2.753698152e-05 | H127: -3.358697434e-06 | J127: -7.033461763e-05 | K127: -0.0006757548033 | L127: 0.000831853713 | M127: 0.01321262011 | N127: 7.439546244e-06
A128: =IF('DF raw data'!I128="","",'DF raw data'!I128) -> -269.5 | B128: =IF('DF raw data'!J128="","",'DF raw data'!J128) -> -2.4041e-05 | C128: =IF('DF raw data'!K128="","",'DF raw data'!K128) -> 1.94006e-06 | D128: =IF('DF raw data'!L128="","",'DF raw data'!L128) -> -3.27551e-05 | F128: 7.428597895e-06 | G128: 3.049495857e-05 | H128: 5.8601726e-06 | J128: -6.662031869e-05 | K128: -0.0007090649626 | L128: 0.0008471011923 | M128: 0.0136361707 | N128: 7.800555593e-06
A129: =IF('DF raw data'!I129="","",'DF raw data'!I129) -> -269 | B129: =IF('DF raw data'!J129="","",'DF raw data'!J129) -> -3.34056e-05 | C129: =IF('DF raw data'!K129="","",'DF raw data'!K129) -> 6.21931e-07 | D129: =IF('DF raw data'!L129="","",'DF raw data'!L129) -> -2.98201e-05 | F129: -1.981804364e-06 | G129: 2.91703826e-05 | H129: 8.809527685e-06 | J129: -6.761122087e-05 | K129: -0.000742870573 | L129: 0.0008616863836 | M129: 0.01406701389 | N129: 8.174092943e-06
A130: =IF('DF raw data'!I130="","",'DF raw data'!I130) -> -268.5 | B130: =IF('DF raw data'!J130="","",'DF raw data'!J130) -> -3.88477e-05 | C130: =IF('DF raw data'!K130="","",'DF raw data'!K130) -> 7.39411e-06 | D130: =IF('DF raw data'!L130="","",'DF raw data'!L130) -> -4.33488e-05 | F130: -7.450521675e-06 | G130: 3.597568433e-05 | H130: -4.785341187e-06 | J130: -7.133648171e-05 | K130: -0.0007785388139 | L130: 0.0008796742258 | M130: 0.01450685101 | N130: 8.563550762e-06
A131: =IF('DF raw data'!I131="","",'DF raw data'!I131) -> -268 | B131: =IF('DF raw data'!J131="","",'DF raw data'!J131) -> -2.82142e-05 | C131: =IF('DF raw data'!K131="","",'DF raw data'!K131) -> 4.40907e-06 | D131: =IF('DF raw data'!L131="","",'DF raw data'!L131) -> -2.53239e-05 | F131: =(1-$G$1*($B$54-$G$2))*(B131-F$5) -> 3.234986773e-06 | G131: =(1-$G$1*($B$54-$G$2))*(C131-G$5) -> 3.297604449e-05 | H131: =(1-$G$1*($B$54-$G$2))*(D131-H$5) -> 1.33277186e-05 | J131: -6.971898832e-05 | K131: -0.0008133983081 | L131: 0.000896162248 | M131: 0.01495493213 | N131: 8.967534518e-06
A132: =IF('DF raw data'!I132="","",'DF raw data'!I132) -> -267.5 | B132: =IF('DF raw data'!J132="","",'DF raw data'!J132) -> -3.80234e-05 | C132: =IF('DF raw data'!K132="","",'DF raw data'!K132) -> -6.22672e-06 | D132: =IF('DF raw data'!L132="","",'DF raw data'!L132) -> -2.88821e-05 | F132: -6.622190024e-06 | G132: 2.228823485e-05 | H132: 9.752115443e-06 | J132: =F132*$G$3+J131 -> -7.303008333e-05 | K132: =J132*$G$3+K131 -> -0.0008499133497 | L132: =G132*$G$3+L131 -> 0.0009073063654 | M132: =L132*$G$3+M131 -> 0.01540858531 | N132: =(J132^2+L132^2)*$G$3+N131 -> 9.381803635e-06
A133: =IF('DF raw data'!I133="","",'DF raw data'!I133) -> -267 | B133: =IF('DF raw data'!J133="","",'DF raw data'!J133) -> -3.71889e-05 | C133: =IF('DF raw data'!K133="","",'DF raw data'!K133) -> 1.50543e-06 | D133: =IF('DF raw data'!L133="","",'DF raw data'!L133) -> -3.03628e-05 | F133: -5.783608484e-06 | G133: 3.005820279e-05 | H133: 8.264173339e-06 | J133: -7.592188757e-05 | K133: -0.0008878742935 | L133: 0.0009223354668 | M133: 0.01586975305 | N133: 9.810037058e-06
A134: =IF('DF raw data'!I134="","",'DF raw data'!I134) -> -266.5 | B134: =IF('DF raw data'!J134="","",'DF raw data'!J134) -> -3.80876e-05 | C134: =IF('DF raw data'!K134="","",'DF raw data'!K134) -> 2.45225e-06 | D134: =IF('DF raw data'!L134="","",'DF raw data'!L134) -> -2.89691e-05 | F134: -6.686704026e-06 | G134: 3.100965369e-05 | H134: 9.664689926e-06 | J134: -7.926523959e-05 | K134: -0.0009275069133 | L134: 0.0009378402937 | M134: 0.01633867319 | N134: 1.025295076e-05
A135: =IF('DF raw data'!I135="","",'DF raw data'!I135) -> -266 | B135: =IF('DF raw data'!J135="","",'DF raw data'!J135) -> -3.76389e-05 | C135: =IF('DF raw data'!K135="","",'DF raw data'!K135) -> -9.78031e-07 | D135: =IF('DF raw data'!L135="","",'DF raw data'!L135) -> -2.84004e-05 | F135: -6.235809434e-06 | G135: 2.756259518e-05 | H135: 1.023617144e-05 | J135: -8.23831443e-05 | K135: -0.0009686984855 | L135: 0.0009516215913 | M135: 0.01681448399 | N135: 1.070913607e-05
A136: =IF('DF raw data'!I136="","",'DF raw data'!I136) -> -265.5 | B136: =IF('DF raw data'!J136="","",'DF raw data'!J136) -> -3.41821e-05 | C136: =IF('DF raw data'!K136="","",'DF raw data'!K136) -> 2.2411e-06 | D136: =IF('DF raw data'!L136="","",'DF raw data'!L136) -> -1.90818e-05 | F136: -2.762102225e-06 | G136: 3.079747095e-05 | H136: 1.960034871e-05 | J136: -8.376419542e-05 | K136: -0.001010580583 | L136: 0.0009670203267 | M136: 0.01729799415 | N136: 1.118020845e-05
A137: =IF('DF raw data'!I137="","",'DF raw data'!I137) -> -265 | B137: =IF('DF raw data'!J137="","",'DF raw data'!J137) -> -3.2321e-05 | C137: =IF('DF raw data'!K137="","",'DF raw data'!K137) -> 8.73845e-07 | D137: =IF('DF raw data'!L137="","",'DF raw data'!L137) -> -2.11202e-05 | F137: -8.918995854e-07 | G137: 2.942352871e-05 | H137: 1.75519789e-05 | J137: -8.421014521e-05 | K137: -0.001052685656 | L137: 0.0009817320911 | M137: 0.0177888602 | N137: 1.166565307e-05
A138: =IF('DF raw data'!I138="","",'DF raw data'!I138) -> -264.5 | B138: =IF('DF raw data'!J138="","",'DF raw data'!J138) -> -3.01386e-05 | C138: =IF('DF raw data'!K138="","",'DF raw data'!K138) -> -3.10215e-06 | D138: =IF('DF raw data'!L138="","",'DF raw data'!L138) -> -2.44175e-05 | F138: 1.301174533e-06 | G138: 2.542808712e-05 | H138: 1.42385518e-05 | J138: -8.355955794e-05 | K138: -0.001094465435 | L138: 0.0009944461347 | M138: 0.01828608327 | N138: 1.216360573e-05
A139: =IF('DF raw data'!I139="","",'DF raw data'!I139) -> -264 | B139: =IF('DF raw data'!J139="","",'DF raw data'!J139) -> -3.43067e-05 | C139: =IF('DF raw data'!K139="","",'DF raw data'!K139) -> -2.40575e-07 | D139: =IF('DF raw data'!L139="","",'DF raw data'!L139) -> -2.47796e-05 | F139: -2.887311644e-06 | G139: 2.830365808e-05 | H139: 1.387468077e-05 | J139: -8.500321376e-05 | K139: -0.001136967042 | L139: 0.001008597964 | M139: 0.01879038225 | N139: 1.267585343e-05
A140: =IF('DF raw data'!I140="","",'DF raw data'!I140) -> -263.5 | B140: =IF('DF raw data'!J140="","",'DF raw data'!J140) -> -3.07063e-05 | C140: =IF('DF raw data'!K140="","",'DF raw data'!K140) -> -9.1459e-07 | D140: =IF('DF raw data'!L140="","",'DF raw data'!L140) -> -3.8755e-05 | F140: 7.306979123e-07 | G140: 2.762634647e-05 | H140: -1.690729107e-07 | J140: -8.463786481e-05 | K140: -0.001179285974 | L140: 0.001022411137 | M140: 0.01930158782 | N140: 1.320209748e-05
A141: =IF('DF raw data'!I141="","",'DF raw data'!I141) -> -263 | B141: =IF('DF raw data'!J141="","",'DF raw data'!J141) -> -3.79512e-05 | C141: =IF('DF raw data'!K141="","",'DF raw data'!K141) -> 2.82855e-06 | D141: =IF('DF raw data'!L141="","",'DF raw data'!L141) -> -4.15423e-05 | F141: -6.549636894e-06 | G141: 3.138779417e-05 | H141: -2.970005595e-06 | J141: -8.791268325e-05 | K141: -0.001223242316 | L141: 0.001038105034 | M141: 0.01982064033 | N141: 1.374479283e-05
A142: =IF('DF raw data'!I142="","",'DF raw data'!I142) -> -262.5 | B142: =IF('DF raw data'!J142="","",'DF raw data'!J142) -> -4.11641e-05 | C142: =IF('DF raw data'!K142="","",'DF raw data'!K142) -> -2.52438e-06 | D142: =IF('DF raw data'!L142="","",'DF raw data'!L142) -> -3.12995e-05 | F142: -9.778251187e-06 | G142: 2.600868299e-05 | H142: 7.32289194e-06 | J142: -9.280180885e-05 | K142: -0.00126964322 | L142: 0.001051109376 | M142: 0.02034619502 | N142: 1.430151438e-05
A143: =IF('DF raw data'!I143="","",'DF raw data'!I143) -> -262 | B143: =IF('DF raw data'!J143="","",'DF raw data'!J143) -> -4.36677e-05 | C143: =IF('DF raw data'!K143="","",'DF raw data'!K143) -> -3.51625e-06 | D143: =IF('DF raw data'!L143="","",'DF raw data'!L143) -> -2.74053e-05 | F143: -1.22940963e-05 | G143: 2.501196175e-05 | H143: 1.123613847e-05 | J143: -9.8948857e-05 | K143: -0.001319117649 | L143: 0.001063615356 | M143: 0.0208780027 | N143: 1.487204863e-05
A144: =IF('DF raw data'!I144="","",'DF raw data'!I144) -> -261.5 | B144: =IF('DF raw data'!J144="","",'DF raw data'!J144) -> -3.86024e-05 | C144: =IF('DF raw data'!K144="","",'DF raw data'!K144) -> 2.6174e-06 | D144: =IF('DF raw data'!L144="","",'DF raw data'!L144) -> -2.61955e-05 | F144: -7.204021913e-06 | G144: 3.117561144e-05 | H144: 1.24518556e-05 | J144: -0.000102550868 | K144: -0.001370393083 | L144: 0.001079203162 | M144: 0.02141760428 | N144: 1.54596467e-05
A145: =IF('DF raw data'!I145="","",'DF raw data'!I145) -> -261 | B145: =IF('DF raw data'!J145="","",'DF raw data'!J145) -> -3.76428e-05 | C145: =IF('DF raw data'!K145="","",'DF raw data'!K145) -> 8.43151e-06 | D145: =IF('DF raw data'!L145="","",'DF raw data'!L145) -> -2.24027e-05 | F145: -6.239728509e-06 | G145: 3.701815825e-05 | H145: 1.626320619e-05 | J145: -0.0001056707322 | K145: -0.001423228449 | L145: 0.001097712241 | M145: 0.0219664604 | N145: 1.606771594e-05
A146: =IF('DF raw data'!I146="","",'DF raw data'!I146) -> -260.5 | B146: =IF('DF raw data'!J146="","",'DF raw data'!J146) -> -2.80772e-05 | C146: =IF('DF raw data'!K146="","",'DF raw data'!K146) -> 1.2037e-05 | D146: =IF('DF raw data'!L146="","",'DF raw data'!L146) -> -3.88703e-05 | F146: 3.37265684e-06 | G146: 4.06412827e-05 | H146: -2.849368431e-07 | J146: -0.0001039844038 | K146: -0.001475220651 | L146: 0.001118032883 | M146: 0.02252547684 | N146: 1.669812108e-05
A147: =IF('DF raw data'!I147="","",'DF raw data'!I147) -> -260 | B147: =IF('DF raw data'!J147="","",'DF raw data'!J147) -> -3.88582e-05 | C147: =IF('DF raw data'!K147="","",'DF raw data'!K147) -> 6.92393e-06 | D147: =IF('DF raw data'!L147="","",'DF raw data'!L147) -> -2.7306e-05 | F147: -7.461073031e-06 | G147: 3.550320468e-05 | H147: 1.133592415e-05 | J147: -0.0001077149403 | K147: -0.001529078121 | L147: 0.001135784485 | M147: 0.02309336909 | N147: 1.734892553e-05
A148: =IF('DF raw data'!I148="","",'DF raw data'!I148) -> -259.5 | B148: =IF('DF raw data'!J148="","",'DF raw data'!J148) -> -4.03328e-05 | C148: =IF('DF raw data'!K148="","",'DF raw data'!K148) -> 4.23744e-06 | D148: =IF('DF raw data'!L148="","",'DF raw data'!L148) -> -2.75329e-05 | F148: -8.942885299e-06 | G148: 3.280357505e-05 | H148: 1.110791438e-05 | J148: -0.000112186383 | K148: -0.001585171312 | L148: 0.001152186272 | M148: 0.02366946222 | N148: 1.801898503e-05
A149: =IF('DF raw data'!I149="","",'DF raw data'!I149) -> -259 | B149: =IF('DF raw data'!J149="","",'DF raw data'!J149) -> -3.78388e-05 | C149: =IF('DF raw data'!K149="","",'DF raw data'!K149) -> 1.04141e-06 | D149: =IF('DF raw data'!L149="","",'DF raw data'!L149) -> -1.70891e-05 | F149: -6.436687145e-06 | G149: 2.959191327e-05 | H149: 2.160279501e-05 | J149: -0.0001154047265 | K149: -0.001642873675 | L149: 0.001166982229 | M149: 0.02425295334 | N149: 1.870656791e-05
A150: =IF('DF raw data'!I150="","",'DF raw data'!I150) -> -258.5 | B150: =IF('DF raw data'!J150="","",'DF raw data'!J150) -> -4.84173e-05 | C150: =IF('DF raw data'!K150="","",'DF raw data'!K150) -> -3.24384e-07 | D150: =IF('DF raw data'!L150="","",'DF raw data'!L150) -> -2.08781e-05 | F150: -1.706692659e-05 | G150: 2.821943917e-05 | H150: 1.779526301e-05 | J150: -0.0001239381898 | K150: -0.00170484277 | L150: 0.001181091949 | M150: 0.02484349931 | N150: 1.941173735e-05
A151: =IF('DF raw data'!I151="","",'DF raw data'!I151) -> -258 | B151: =IF('DF raw data'!J151="","",'DF raw data'!J151) -> -3.60979e-05 | C151: =IF('DF raw data'!K151="","",'DF raw data'!K151) -> 4.64612e-06 | D151: =IF('DF raw data'!L151="","",'DF raw data'!L151) -> -3.15317e-05 | F151: -4.687272403e-06 | G151: 3.321425391e-05 | H151: 7.08955625e-06 | J151: -0.000126281826 | K151: -0.001767983683 | L151: 0.001197699076 | M151: 0.02544234885 | N151: 2.013695243e-05
A152: =IF('DF raw data'!I152="","",'DF raw data'!I152) -> -257.5 | B152: =IF('DF raw data'!J152="","",'DF raw data'!J152) -> -4.36664e-05 | C152: =IF('DF raw data'!K152="","",'DF raw data'!K152) -> 3.25503e-06 | D152: =IF('DF raw data'!L152="","",'DF raw data'!L152) -> -2.94985e-05 | F152: -1.229278994e-05 | G152: 3.181636009e-05 | H152: 9.132700631e-06 | J152: -0.000132428221 | K152: -0.001834197794 | L152: 0.001213607256 | M152: 0.02604915248 | N152: 2.088214234e-05
A153: =IF('DF raw data'!I153="","",'DF raw data'!I153) -> -257 | B153: =IF('DF raw data'!J153="","",'DF raw data'!J153) -> -5.21318e-05 | C153: =IF('DF raw data'!K153="","",'DF raw data'!K153) -> 8.44762e-06 | D153: =IF('DF raw data'!L153="","",'DF raw data'!L153) -> -2.8259e-05 | F153: -2.079959421e-05 | G153: 3.703434704e-05 | H153: 1.037826303e-05 | J153: -0.0001428280181 | K153: -0.001905611803 | L153: 0.001232124429 | M153: 0.02666521469 | N153: 2.165140756e-05
A154: =IF('DF raw data'!I154="","",'DF raw data'!I154) -> -256.5 | B154: =IF('DF raw data'!J154="","",'DF raw data'!J154) -> -3.06473e-05 | C154: =IF('DF raw data'!K154="","",'DF raw data'!K154) -> 1.48726e-05 | D154: =IF('DF raw data'!L154="","",'DF raw data'!L154) -> -3.09886e-05 | F154: 7.899864813e-07 | G154: 4.349075162e-05 | H154: 7.635312552e-06 | J154: -0.0001424330249 | K154: -0.001976828315 | L154: 0.001253869805 | M154: 0.02729214959 | N154: 2.244764589e-05
A155: =IF('DF raw data'!I155="","",'DF raw data'!I155) -> -256 | B155: =IF('DF raw data'!J155="","",'DF raw data'!J155) -> -4.46885e-05 | C155: =IF('DF raw data'!K155="","",'DF raw data'!K155) -> 2.8714e-06 | D155: =IF('DF raw data'!L155="","",'DF raw data'!L155) -> -3.54811e-05 | F155: -1.331988903e-05 | G155: 3.143085375e-05 | H155: 3.120839734e-06 | J155: -0.0001490929694 | K155: -0.0020513748 | L155: 0.001269585232 | M155: 0.02792694221 | N155: 2.326468358e-05
A156: =IF('DF raw data'!I156="","",'DF raw data'!I156) -> -255.5 | B156: =IF('DF raw data'!J156="","",'DF raw data'!J156) -> -3.88593e-05 | C156: =IF('DF raw data'!K156="","",'DF raw data'!K156) -> 4.91238e-06 | D156: =IF('DF raw data'!L156="","",'DF raw data'!L156) -> -2.56374e-05 | F156: -7.462178411e-06 | G156: 3.348181618e-05 | H156: 1.301268527e-05 | J156: -0.0001528240586 | K156: -0.002127786829 | L156: 0.00128632614 | M156: 0.02857010528 | N156: 2.410367864e-05
A157: =IF('DF raw data'!I157="","",'DF raw data'!I157) -> -255 | B157: =IF('DF raw data'!J157="","",'DF raw data'!J157) -> -4.12308e-05 | C157: =IF('DF raw data'!K157="","",'DF raw data'!K157) -> 3.12496e-06 | D157: =IF('DF raw data'!L157="","",'DF raw data'!L157) -> -2.71277e-05 | F157: -9.845277417e-06 | G157: 3.168565391e-05 | H157: 1.151509621e-05 | J157: -0.0001577466973 | K157: -0.002206660178 | L157: 0.001302168967 | M157: 0.02922118976 | N157: 2.496394266e-05
A158: =IF('DF raw data'!I158="","",'DF raw data'!I158) -> -254.5 | B158: =IF('DF raw data'!J158="","",'DF raw data'!J158) -> -3.1677e-05 | C158: =IF('DF raw data'!K158="","",'DF raw data'!K158) -> 4.3212e-06 | D158: =IF('DF raw data'!L158="","",'DF raw data'!L158) -> -2.54061e-05 | F158: -2.447497814e-07 | G158: 3.288774472e-05 | H158: 1.324511656e-05 | J158: -0.0001578690722 | K158: -0.002285594714 | L158: 0.001318612839 | M158: 0.02988049618 | N158: 2.584577389e-05
A159: =IF('DF raw data'!I159="","",'DF raw data'!I159) -> -254 | B159: =IF('DF raw data'!J159="","",'DF raw data'!J159) -> -3.69954e-05 | C159: =IF('DF raw data'!K159="","",'DF raw data'!K159) -> 7.54999e-06 | D159: =IF('DF raw data'!L159="","",'DF raw data'!L159) -> -3.18297e-05 | F159: -5.589162076e-06 | G159: 3.613232673e-05 | H159: 6.790098732e-06 | J159: -0.0001606636532 | K159: -0.002365926541 | L159: 0.001336679003 | M159: 0.03054883568 | N159: 2.675203568e-05
A160: =IF('DF raw data'!I160="","",'DF raw data'!I160) -> -253.5 | B160: =IF('DF raw data'!J160="","",'DF raw data'!J160) -> -3.59683e-05 | C160: =IF('DF raw data'!K160="","",'DF raw data'!K160) -> 6.27661e-06 | D160: =IF('DF raw data'!L160="","",'DF raw data'!L160) -> -3.35865e-05 | F160: -4.55703853e-06 | G160: 3.485271863e-05 | H160: 5.024706223e-06 | J160: -0.0001629421725 | K160: -0.002447397627 | L160: 0.001354105362 | M160: 0.03122588836 | N160: 2.768211142e-05
A161: =IF('DF raw data'!I161="","",'DF raw data'!I161) -> -253 | B161: =IF('DF raw data'!J161="","",'DF raw data'!J161) -> -2.82177e-05 | C161: =IF('DF raw data'!K161="","",'DF raw data'!K161) -> 1.06786e-05 | D161: =IF('DF raw data'!L161="","",'DF raw data'!L161) -> -2.0008e-05 | F161: 3.231469655e-06 | G161: 3.927623877e-05 | H161: 1.866961867e-05 | J161: -0.0001613264376 | K161: -0.002528060846 | L161: 0.001373743481 | M161: 0.0319127601 | N161: 2.86387101e-05
A162: =IF('DF raw data'!I162="","",'DF raw data'!I162) -> -252.5 | B162: =IF('DF raw data'!J162="","",'DF raw data'!J162) -> -3.51999e-05 | C162: =IF('DF raw data'!K162="","",'DF raw data'!K162) -> 2.8584e-06 | D162: =IF('DF raw data'!L162="","",'DF raw data'!L162) -> -3.17649e-05 | F162: -3.784880285e-06 | G162: 3.141779017e-05 | H162: 6.855215668e-06 | J162: -0.0001632188778 | K162: -0.002609670285 | L162: 0.001389452376 | M162: 0.03260748629 | N162: 2.961731926e-05
A163: =IF('DF raw data'!I163="","",'DF raw data'!I163) -> -252 | B163: =IF('DF raw data'!J163="","",'DF raw data'!J163) -> -3.96254e-05 | C163: =IF('DF raw data'!K163="","",'DF raw data'!K163) -> 4.44576e-06 | D163: =IF('DF raw data'!L163="","",'DF raw data'!L163) -> -3.09077e-05 | F163: -8.232025406e-06 | G163: 3.301291395e-05 | H163: 7.716608234e-06 | J163: -0.0001673348905 | K163: -0.00269333773 | L163: 0.001405958833 | M163: 0.03331046571 | N163: 3.061967986e-05
A164: =IF('DF raw data'!I164="","",'DF raw data'!I164) -> -251.5 | B164: =IF('DF raw data'!J164="","",'DF raw data'!J164) -> -3.29589e-05 | C164: =IF('DF raw data'!K164="","",'DF raw data'!K164) -> 1.00036e-05 | D164: =IF('DF raw data'!L164="","",'DF raw data'!L164) -> -2.63337e-05 | F164: -1.532919554e-06 | G164: 3.859793734e-05 | H164: 1.231297967e-05 | J164: -0.0001681013503 | K164: -0.002777388405 | L164: 0.001425257802 | M164: 0.03402309461 | N164: 3.164948879e-05
A165: =IF('DF raw data'!I165="","",'DF raw data'!I165) -> -251 | B165: =IF('DF raw data'!J165="","",'DF raw data'!J165) -> -3.47599e-05 | C165: =IF('DF raw data'!K165="","",'DF raw data'!K165) -> 4.68054e-06 | D165: =IF('DF raw data'!L165="","",'DF raw data'!L165) -> -1.80044e-05 | F165: -3.342728245e-06 | G165: 3.324884225e-05 | H165: 2.068301827e-05 | J165: -0.0001697727144 | K165: -0.002862274762 | L165: 0.001441882223 | M165: 0.03474403572 | N165: 3.270341235e-05
A166: =IF('DF raw data'!I166="","",'DF raw data'!I166) -> -250.5 | B166: =IF('DF raw data'!J166="","",'DF raw data'!J166) -> -4.09684e-05 | C166: =IF('DF raw data'!K166="","",'DF raw data'!K166) -> 2.47049e-06 | D166: =IF('DF raw data'!L166="","",'DF raw data'!L166) -> -3.62377e-05 | F166: -9.581594019e-06 | G166: 3.10279829e-05 | H166: 2.360539204e-06 | J166: -0.0001745635114 | K166: -0.002949556518 | L166: 0.001457396215 | M166: 0.03547273383 | N166: 3.378065043e-05
A167: =IF('DF raw data'!I167="","",'DF raw data'!I167) -> -250 | B167: =IF('DF raw data'!J167="","",'DF raw data'!J167) -> -3.84047e-05 | C167: =IF('DF raw data'!K167="","",'DF raw data'!K167) -> 1.20018e-05 | D167: =IF('DF raw data'!L167="","",'DF raw data'!L167) -> -3.42533e-05 | F167: -7.005354962e-06 | G167: 4.060591054e-05 | H167: 4.354644904e-06 | J167: -0.0001780661889 | K167: -0.003038589612 | L167: 0.00147769917 | M167: 0.03621158341 | N167: 3.488830163e-05
A168: =IF('DF raw data'!I168="","",'DF raw data'!I168) -> -249.5 | B168: =IF('DF raw data'!J168="","",'DF raw data'!J168) -> -3.05178e-05 | C168: =IF('DF raw data'!K168="","",'DF raw data'!K168) -> 1.18589e-05 | D168: =IF('DF raw data'!L168="","",'DF raw data'!L168) -> -3.30146e-05 | F168: 9.201198658e-07 | G168: 4.046231161e-05 | H168: 5.599403386e-06 | J168: -0.0001776061289 | K168: -0.003127392677 | L168: 0.001497930326 | M168: 0.03696054858 | N168: 3.602597123e-05
A169: =IF('DF raw data'!I169="","",'DF raw data'!I169) -> -249 | B169: =IF('DF raw data'!J169="","",'DF raw data'!J169) -> -3.21286e-05 | C169: =IF('DF raw data'!K169="","",'DF raw data'!K169) -> 1.17353e-05 | D169: =IF('DF raw data'!L169="","",'DF raw data'!L169) -> -2.14344e-05 | F169: -6.98558557e-07 | G169: 4.033810709e-05 | H169: 1.723624214e-05 | J169: -0.0001779554082 | K169: -0.003216370381 | L169: 0.001518099379 | M169: 0.03771959827 | N169: 3.719411815e-05
A170: =IF('DF raw data'!I170="","",'DF raw data'!I170) -> -248.5 | B170: =IF('DF raw data'!J170="","",'DF raw data'!J170) -> -4.18748e-05 | C170: =IF('DF raw data'!K170="","",'DF raw data'!K170) -> 1.02983e-05 | D170: =IF('DF raw data'!L170="","",'DF raw data'!L170) -> -2.2954e-05 | F170: -1.049242722e-05 | G170: 3.889407872e-05 | H170: 1.570920978e-05 | J170: -0.0001832016218 | K170: -0.003307971192 | L170: 0.001537546419 | M170: 0.03848837148 | N170: 3.839292407e-05
A171: =IF('DF raw data'!I171="","",'DF raw data'!I171) -> -248 | B171: =IF('DF raw data'!J171="","",'DF raw data'!J171) -> -4.12246e-05 | C171: =IF('DF raw data'!K171="","",'DF raw data'!K171) -> 9.46216e-06 | D171: =IF('DF raw data'!L171="","",'DF raw data'!L171) -> -3.67124e-05 | F171: -9.839047093e-06 | G171: 3.805384916e-05 | H171: 1.883517446e-06 | J171: -0.0001881211454 | K171: -0.003402031764 | L171: 0.001556573343 | M171: 0.03926665815 | N171: 3.962207914e-05
A172: =IF('DF raw data'!I172="","",'DF raw data'!I172) -> -247.5 | B172: =IF('DF raw data'!J172="","",'DF raw data'!J172) -> -4.22542e-05 | C172: =IF('DF raw data'!K172="","",'DF raw data'!K172) -> 1.08135e-05 | D172: =IF('DF raw data'!L172="","",'DF raw data'!L172) -> -3.12231e-05 | F172: -1.087368287e-05 | G172: 3.941179856e-05 | H172: 7.399665612e-06 | J172: -0.0001935579868 | K172: -0.003498810758 | L172: 0.001576279242 | M172: 0.04005479777 | N172: 4.088313961e-05
A173: =IF('DF raw data'!I173="","",'DF raw data'!I173) -> -247 | B173: =IF('DF raw data'!J173="","",'DF raw data'!J173) -> -3.27676e-05 | C173: =IF('DF raw data'!K173="","",'DF raw data'!K173) -> 3.73448e-06 | D173: =IF('DF raw data'!L173="","",'DF raw data'!L173) -> -2.49682e-05 | F173: -1.340683906e-06 | G173: 3.229815508e-05 | H173: 1.368515833e-05 | J173: -0.0001942283288 | K173: -0.003595924922 | L173: 0.00159242832 | M173: 0.04085101193 | N173: 4.216991591e-05
A174: =IF('DF raw data'!I174="","",'DF raw data'!I174) -> -246.5 | B174: =IF('DF raw data'!J174="","",'DF raw data'!J174) -> -4.17438e-05 | C174: =IF('DF raw data'!K174="","",'DF raw data'!K174) -> -1.00637e-06 | D174: =IF('DF raw data'!L174="","",'DF raw data'!L174) -> -2.72399e-05 | F174: -1.03607865e-05 | G174: 2.753411758e-05 | H174: 1.140234744e-05 | J174: -0.000199408722 | K174: -0.003695629283 | L174: 0.001606195379 | M174: 0.04165410962 | N174: 4.347972962e-05
A175: =IF('DF raw data'!I175="","",'DF raw data'!I175) -> -246 | B175: =IF('DF raw data'!J175="","",'DF raw data'!J175) -> -3.48245e-05 | C175: =IF('DF raw data'!K175="","",'DF raw data'!K175) -> 4.83192e-06 | D175: =IF('DF raw data'!L175="","",'DF raw data'!L175) -> -1.74139e-05 | F175: -3.407644204e-06 | G175: 3.340096265e-05 | H175: 2.127640641e-05 | J175: -0.0002011125441 | K175: -0.003796185555 | L175: 0.00162289586 | M175: 0.04246555755 | N175: 4.481684824e-05
A176: =IF('DF raw data'!I176="","",'DF raw data'!I176) -> -245.5 | B176: =IF('DF raw data'!J176="","",'DF raw data'!J176) -> -4.37927e-05 | C176: =IF('DF raw data'!K176="","",'DF raw data'!K176) -> 4.46721e-06 | D176: =IF('DF raw data'!L176="","",'DF raw data'!L176) -> -3.2554e-05 | F176: -1.241970767e-05 | G176: 3.303446886e-05 | H176: 6.06225618e-06 | J176: -0.000207322398 | K176: -0.003899846754 | L176: 0.001639413095 | M176: 0.0432852641 | N176: 4.618217717e-05
A177: =IF('DF raw data'!I177="","",'DF raw data'!I177) -> -245 | B177: =IF('DF raw data'!J177="","",'DF raw data'!J177) -> -2.98167e-05 | C177: =IF('DF raw data'!K177="","",'DF raw data'!K177) -> 5.02868e-06 | D177: =IF('DF raw data'!L177="","",'DF raw data'!L177) -> -2.62566e-05 | F177: 1.624648946e-06 | G177: 3.359868501e-05 | H177: 1.239045676e-05 | J177: -0.0002065100735 | K177: -0.004003101791 | L177: 0.001656212437 | M177: 0.04411337031 | N177: 4.75750202e-05
A178: =IF('DF raw data'!I178="","",'DF raw data'!I178) -> -244.5 | B178: =IF('DF raw data'!J178="","",'DF raw data'!J178) -> -4.13571e-05 | C178: =IF('DF raw data'!K178="","",'DF raw data'!K178) -> -4.40079e-06 | D178: =IF('DF raw data'!L178="","",'DF raw data'!L178) -> -3.02551e-05 | F178: -9.97219515e-06 | G178: 2.412309547e-05 | H178: 8.3724001e-06 | J178: -0.0002114961711 | K178: -0.004108849877 | L178: 0.001668273985 | M178: 0.04494750731 | N178: 4.898895456e-05
A179: =IF('DF raw data'!I179="","",'DF raw data'!I179) -> -244 | B179: =IF('DF raw data'!J179="","",'DF raw data'!J179) -> -4.02106e-05 | C179: =IF('DF raw data'!K179="","",'DF raw data'!K179) -> -5.94189e-06 | D179: =IF('DF raw data'!L179="","",'DF raw data'!L179) -> -1.82657e-05 | F179: -8.820087619e-06 | G179: 2.257445795e-05 | H179: 2.042044026e-05 | J179: -0.0002159062149 | K179: -0.004216802984 | L179: 0.001679561214 | M179: 0.04578728791 | N179: 5.042272524e-05
A180: =IF('DF raw data'!I180="","",'DF raw data'!I180) -> -243.5 | B180: =IF('DF raw data'!J180="","",'DF raw data'!J180) -> -4.10356e-05 | C180: =IF('DF raw data'!K180="","",'DF raw data'!K180) -> -4.61951e-06 | D180: =IF('DF raw data'!L180="","",'DF raw data'!L180) -> -3.18187e-05 | F180: -9.649122694e-06 | G180: 2.390330571e-05 | H180: 6.801152533e-06 | J180: -0.0002207307762 | K180: -0.004327168372 | L180: 0.001691512867 | M180: 0.04663304435 | N180: 5.187769417e-05
A181: =IF('DF raw data'!I181="","",'DF raw data'!I181) -> -243 | B181: =IF('DF raw data'!J181="","",'DF raw data'!J181) -> -4.93129e-05 | C181: =IF('DF raw data'!K181="","",'DF raw data'!K181) -> -3.56145e-06 | D181: =IF('DF raw data'!L181="","",'DF raw data'!L181) -> -2.43032e-05 | F181: -1.796690697e-05 | G181: 2.496654068e-05 | H181: 1.435341084e-05 | J181: -0.0002297142297 | K181: -0.004442025487 | L181: 0.001703996137 | M181: 0.04748504242 | N181: 5.33558799e-05
A182: =IF('DF raw data'!I182="","",'DF raw data'!I182) -> -242.5 | B182: =IF('DF raw data'!J182="","",'DF raw data'!J182) -> -4.62974e-05 | C182: =IF('DF raw data'!K182="","",'DF raw data'!K182) -> -2.42674e-06 | D182: =IF('DF raw data'!L182="","",'DF raw data'!L182) -> -2.64151e-05 | F182: -1.493665816e-05 | G182: 2.610680055e-05 | H182: 1.223118154e-05 | J182: -0.0002371825588 | K182: -0.004560616766 | L182: 0.001717049537 | M182: 0.04834356718 | N182: 5.485813724e-05
A183: =IF('DF raw data'!I183="","",'DF raw data'!I183) -> -242 | B183: =IF('DF raw data'!J183="","",'DF raw data'!J183) -> -4.07784e-05 | C183: =IF('DF raw data'!K183="","",'DF raw data'!K183) -> -9.38976e-07 | D183: =IF('DF raw data'!L183="","",'DF raw data'!L183) -> -3.27895e-05 | F183: -9.390664729e-06 | G183: 2.76018412e-05 | H183: 5.82560435e-06 | J183: -0.0002418778911 | K183: -0.004681555712 | L183: 0.001730850458 | M183: 0.04920899241 | N183: 5.638531135e-05
A184: =IF('DF raw data'!I184="","",'DF raw data'!I184) -> -241.5 | B184: =IF('DF raw data'!J184="","",'DF raw data'!J184) -> -3.65534e-05 | C184: =IF('DF raw data'!K184="","",'DF raw data'!K184) -> 2.01814e-06 | D184: =IF('DF raw data'!L184="","",'DF raw data'!L184) -> -2.11029e-05 | F184: -5.145000254e-06 | G184: 3.057342046e-05 | H184: 1.756936351e-05 | J184: -0.0002444503913 | K184: -0.004803780908 | L184: 0.001746137168 | M184: 0.050082061 | N184: 5.793968685e-05
A185: =IF('DF raw data'!I185="","",'DF raw data'!I185) -> -241 | B185: =IF('DF raw data'!J185="","",'DF raw data'!J185) -> -3.89801e-05 | C185: =IF('DF raw data'!K185="","",'DF raw data'!K185) -> 2.84217e-06 | D185: =IF('DF raw data'!L185="","",'DF raw data'!L185) -> -3.70776e-05 | F185: -7.583569243e-06 | G185: 3.140148079e-05 | H185: 1.516531253e-06 | J185: -0.0002482421759 | K185: -0.004927901996 | L185: 0.001761837908 | M185: 0.05096297995 | N185: 5.952253535e-05
A186: =IF('DF raw data'!I186="","",'DF raw data'!I186) -> -240.5 | B186: =IF('DF raw data'!J186="","",'DF raw data'!J186) -> -3.24441e-05 | C186: =IF('DF raw data'!K186="","",'DF raw data'!K186) -> 1.75352e-06 | D186: =IF('DF raw data'!L186="","",'DF raw data'!L186) -> -2.91205e-05 | F186: -1.015601667e-06 | G186: 3.03075062e-05 | H186: 9.512549429e-06 | J186: -0.0002487499767 | K186: -0.005052276984 | L186: 0.001776991662 | M186: 0.05185147578 | N186: 6.11323233e-05
A187: =IF('DF raw data'!I187="","",'DF raw data'!I187) -> -240 | B187: =IF('DF raw data'!J187="","",'DF raw data'!J187) -> -3.39253e-05 | C187: =IF('DF raw data'!K187="","",'DF raw data'!K187) -> 4.06394e-06 | D187: =IF('DF raw data'!L187="","",'DF raw data'!L187) -> -1.96084e-05 | F187: -2.504046217e-06 | G187: 3.262922646e-05 | H187: 1.907117311e-05 | J187: -0.0002500019998 | K187: -0.005177277984 | L187: 0.001793306275 | M187: 0.05274812892 | N187: 6.27715475e-05
A188: =IF('DF raw data'!I188="","",'DF raw data'!I188) -> -239.5 | B188: =IF('DF raw data'!J188="","",'DF raw data'!J188) -> -3.10977e-05 | C188: =IF('DF raw data'!K188="","",'DF raw data'!K188) -> -4.91609e-06 | D188: =IF('DF raw data'!L188="","",'DF raw data'!L188) -> -2.89891e-05 | F188: 3.373835749e-07 | G188: 2.360527514e-05 | H188: 9.644592106e-06 | J188: -0.000249833308 | K188: -0.005302194638 | L188: 0.001805108912 | M188: 0.05365068338 | N188: 6.443196493e-05
A189: =IF('DF raw data'!I189="","",'DF raw data'!I189) -> -239 | B189: =IF('DF raw data'!J189="","",'DF raw data'!J189) -> -3.65539e-05 | C189: =IF('DF raw data'!K189="","",'DF raw data'!K189) -> -1.14568e-05 | D189: =IF('DF raw data'!L189="","",'DF raw data'!L189) -> -2.03171e-05 | F189: -5.145502699e-06 | G189: 1.703257452e-05 | H189: 1.835900686e-05 | J189: -0.0002524060594 | K189: -0.005428397668 | L189: 0.0018136252 | M189: 0.05455749598 | N189: 6.610843753e-05
A190: =IF('DF raw data'!I190="","",'DF raw data'!I190) -> -238.5 | B190: =IF('DF raw data'!J190="","",'DF raw data'!J190) -> -3.73897e-05 | C190: =IF('DF raw data'!K190="","",'DF raw data'!K190) -> -8.30108e-06 | D190: =IF('DF raw data'!L190="","",'DF raw data'!L190) -> -1.72969e-05 | F190: -5.985390597e-06 | G190: 2.020372915e-05 | H190: 2.139397866e-05 | J190: -0.0002553987547 | K190: -0.005556097045 | L190: 0.001823727064 | M190: 0.05546935951 | N190: 6.780404199e-05
A191: =IF('DF raw data'!I191="","",'DF raw data'!I191) -> -238 | B191: =IF('DF raw data'!J191="","",'DF raw data'!J191) -> -3.19385e-05 | C191: =IF('DF raw data'!K191="","",'DF raw data'!K191) -> -5.68149e-06 | D191: =IF('DF raw data'!L191="","",'DF raw data'!L191) -> -1.76862e-05 | F191: -5.075287779e-07 | G191: 2.283613157e-05 | H191: 2.100277459e-05 | J191: -0.0002556525191 | K191: -0.005683923304 | L191: 0.00183514513 | M191: 0.05638693207 | N191: 6.952059992e-05
A192: =IF('DF raw data'!I192="","",'DF raw data'!I192) -> -237.5 | B192: =IF('DF raw data'!J192="","",'DF raw data'!J192) -> -3.89242e-05 | C192: =IF('DF raw data'!K192="","",'DF raw data'!K192) -> -9.28571e-06 | D192: =IF('DF raw data'!L192="","",'DF raw data'!L192) -> -2.42076e-05 | F192: -7.527395837e-06 | G192: 1.921428333e-05 | H192: 1.444947842e-05 | J192: -0.000259416217 | K192: -0.005813631413 | L192: 0.001844752272 | M192: 0.05730930821 | N192: 7.125580378e-05
A193: =IF('DF raw data'!I193="","",'DF raw data'!I193) -> -237 | B193: =IF('DF raw data'!J193="","",'DF raw data'!J193) -> -3.42497e-05 | C193: =IF('DF raw data'!K193="","",'DF raw data'!K193) -> -7.07901e-06 | D193: =IF('DF raw data'!L193="","",'DF raw data'!L193) -> -1.3723e-05 | F193: -2.830032857e-06 | G193: 2.14317763e-05 | H193: 2.49853586e-05 | J193: -0.0002608312334 | K193: -0.00594404703 | L193: 0.00185546816 | M193: 0.05823704229 | N193: 7.301120129e-05
A194: =IF('DF raw data'!I194="","",'DF raw data'!I194) -> -236.5 | B194: =IF('DF raw data'!J194="","",'DF raw data'!J194) -> -4.05937e-05 | C194: =IF('DF raw data'!K194="","",'DF raw data'!K194) -> -9.76458e-07 | D194: =IF('DF raw data'!L194="","",'DF raw data'!L194) -> -2.08557e-05 | F194: -9.205061361e-06 | G194: 2.756417588e-05 | H194: 1.781777257e-05 | J194: -0.0002654337641 | K194: -0.006076763912 | L194: 0.001869250248 | M194: 0.05917166741 | N194: 7.479347708e-05
A195: =IF('DF raw data'!I195="","",'DF raw data'!I195) -> -236 | B195: =IF('DF raw data'!J195="","",'DF raw data'!J195) -> -3.95185e-05 | C195: =IF('DF raw data'!K195="","",'DF raw data'!K195) -> -4.40319e-07 | D195: =IF('DF raw data'!L195="","",'DF raw data'!L195) -> 1.98022e-06 | F195: =(1-$G$1*($B$54-$G$2))*(B195-F$5) -> -8.124602558e-06 | G195: =(1-$G$1*($B$54-$G$2))*(C195-G$5) -> 2.810293713e-05 | H195: =(1-$G$1*($B$54-$G$2))*(D195-H$5) -> 4.076538305e-05 | J195: -0.0002694960654 | K195: -0.006211511944 | L195: 0.001883301716 | M195: 0.06011331827 | N195: 7.660320382e-05
A196: =IF('DF raw data'!I196="","",'DF raw data'!I196) -> -235.5 | B196: =IF('DF raw data'!J196="","",'DF raw data'!J196) -> -3.76395e-05 | C196: =IF('DF raw data'!K196="","",'DF raw data'!K196) -> -2.04165e-06 | D196: =IF('DF raw data'!L196="","",'DF raw data'!L196) -> -2.75526e-05 | F196: -6.236412369e-06 | G196: 2.649377402e-05 | H196: 1.108811803e-05 | J196: =F196*$G$3+J195 -> -0.0002726142716 | K196: =J196*$G$3+K195 -> -0.00634781908 | L196: =G196*$G$3+L195 -> 0.001896548603 | M196: =L196*$G$3+M195 -> 0.06106159257 | N196: =(J196^2+L196^2)*$G$3+N195 -> 7.843881139e-05
A197: =IF('DF raw data'!I197="","",'DF raw data'!I197) -> -235 | B197: =IF('DF raw data'!J197="","",'DF raw data'!J197) -> -4.55256e-05 | C197: =IF('DF raw data'!K197="","",'DF raw data'!K197) -> -1.13459e-05 | D197: =IF('DF raw data'!L197="","",'DF raw data'!L197) -> -3.0027e-05 | F197: -1.416108328e-05 | G197: 1.714401694e-05 | H197: 8.601615737e-06 | J197: -0.0002796948132 | K197: -0.006487666487 | L197: 0.001905120612 | M197: 0.06201415288 | N197: 8.029266826e-05
A198: =IF('DF raw data'!I198="","",'DF raw data'!I198) -> -234.5 | B198: =IF('DF raw data'!J198="","",'DF raw data'!J198) -> -3.71968e-05 | C198: =IF('DF raw data'!K198="","",'DF raw data'!K198) -> -1.09484e-05 | D198: =IF('DF raw data'!L198="","",'DF raw data'!L198) -> -1.83115e-05 | F198: -5.791547123e-06 | G198: 1.754346111e-05 | H198: 2.037441625e-05 | J198: -0.0002825905868 | K198: -0.00662896178 | L198: 0.001913892342 | M198: 0.06297109905 | N198: 8.216408893e-05
A199: =IF('DF raw data'!I199="","",'DF raw data'!I199) -> -234 | B199: =IF('DF raw data'!J199="","",'DF raw data'!J199) -> -4.3161e-05 | C199: =IF('DF raw data'!K199="","",'DF raw data'!K199) -> 2.92034e-07 | D199: =IF('DF raw data'!L199="","",'DF raw data'!L199) -> -1.77914e-05 | F199: -1.178491803e-05 | G199: 2.883887207e-05 | H199: 2.089706006e-05 | J199: -0.0002884830458 | K199: -0.006773203303 | L199: 0.001928311778 | M199: 0.06393525494 | N199: 8.406489332e-05
A200: =IF('DF raw data'!I200="","",'DF raw data'!I200) -> -233.5 | B200: =IF('DF raw data'!J200="","",'DF raw data'!J200) -> -4.38706e-05 | C200: =IF('DF raw data'!K200="","",'DF raw data'!K200) -> 4.14171e-06 | D200: =IF('DF raw data'!L200="","",'DF raw data'!L200) -> -1.10326e-05 | F200: -1.249798868e-05 | G200: 3.270737684e-05 | H200: 2.768891735e-05 | J200: -0.0002947320401 | K200: -0.006920569323 | L200: 0.001944665467 | M200: 0.06490758767 | N200: 8.59991887e-05
... 1079 more rows

Sheet 30 mm
A1: =IF('DF raw data'!M1="","",'DF raw data'!M1) -> Number of header lines | B1: =IF('DF raw data'!N1="","",'DF raw data'!N1) -> 54 | C1: =IF('DF raw data'!C1="","",'DF raw data'!C1) ->  | D1: =IF('DF raw data'!D1="","",'DF raw data'!D1) ->  | F1: T_coeff | G1: -0.00073 | H1: /degC | J1: IBy total | K1: =J1267*1000 -> -4.231458614 | L1: muTm | M1: =L1267*1000 -> 0.4867846423 | R1: DF ref | S1: 1
A2: =IF('DF raw data'!M2="","",'DF raw data'!M2) -> Measured by | B2: =IF('DF raw data'!N2="","",'DF raw data'!N2) -> Danfysik | C2: =IF('DF raw data'!C2="","",'DF raw data'!C2) ->  | D2: =IF('DF raw data'!D2="","",'DF raw data'!D2) ->  | F2: Tcorr | G2: 20 | H2: degC | J2: JBy total | K2: =K1267 -> -5.480432433 | L2: muTm^2 | M2: =M1267 -> 0.5507744451
A3: =IF('DF raw data'!M3="","",'DF raw data'!M3) -> Operator | B3: =IF('DF raw data'!N3="","",'DF raw data'!N3) -> PMHA | C3: =IF('DF raw data'!C3="","",'DF raw data'!C3) ->  | D3: =IF('DF raw data'!D3="","",'DF raw data'!D3) ->  | F3: Step | G3: =A68-A67 -> 0.5 | H3: mm | J3: PI total | K3: =N1267 -> 2487.12065 | L3: T^2mm^3
A4: =IF('DF raw data'!M4="","",'DF raw data'!M4) -> Data-time | B4: =IF('DF raw data'!N4="","",'DF raw data'!N4) -> 24-07-2024, 14:05:04 | C4: =IF('DF raw data'!C4="","",'DF raw data'!C4) ->  | D4: =IF('DF raw data'!D4="","",'DF raw data'!D4) -> 
A5: =IF('DF raw data'!M5="","",'DF raw data'!M5) -> Project | B5: =IF('DF raw data'!N5="","",'DF raw data'!N5) -> 504314 | C5: =IF('DF raw data'!C5="","",'DF raw data'!C5) ->  | D5: Bamb avr | F5: =(AVERAGE(B67:B107) + AVERAGE(B1227:B1267))/2 -> -3.637915488e-05 | G5: =(AVERAGE(C67:C107) + AVERAGE(C1227:C1267))/2 -> -1.224071565e-05 | H5: =(AVERAGE(D67:D107) + AVERAGE(D1227:D1267))/2 -> -3.611596098e-05
A6: =IF('DF raw data'!M6="","",'DF raw data'!M6) -> Magnet type | B6: =IF('DF raw data'!N6="","",'DF raw data'!N6) -> Dipole | C6: =IF('DF raw data'!C6="","",'DF raw data'!C6) -> 
A7: =IF('DF raw data'!M7="","",'DF raw data'!M7) -> Magnet nr. | B7: =IF('DF raw data'!N7="","",'DF raw data'!N7) -> 2410084 | C7: =IF('DF raw data'!C7="","",'DF raw data'!C7) -> 
A8: =IF('DF raw data'!M8="","",'DF raw data'!M8) -> Meas. number | B8: =IF('DF raw data'!N8="","",'DF raw data'!N8) -> 120 | C8: =IF('DF raw data'!C8="","",'DF raw data'!C8) -> 
A9: =IF('DF raw data'!M9="","",'DF raw data'!M9) -> Add. info | B9: =IF('DF raw data'!N9="","",'DF raw data'!N9) -> X-alignment scan 3) | C9: =IF('DF raw data'!C9="","",'DF raw data'!C9) ->  | D9: =IF('DF raw data'!D9="","",'DF raw data'!D9) -> 
A10: =IF('DF raw data'!M10="","",'DF raw data'!M10) -> Device | B10: =IF('DF raw data'!N10="","",'DF raw data'!N10) -> (HAL) HALL-PROBE | C10: =IF('DF raw data'!C10="","",'DF raw data'!C10) ->  | D10: =IF('DF raw data'!D10="","",'DF raw data'!D10) -> 
A11: =IF('DF raw data'!M11="","",'DF raw data'!M11) -> Goal | B11: =IF('DF raw data'!N11="","",'DF raw data'!N11) -> (AXI) AXis Integral (Line, EFB) | C11: =IF('DF raw data'!C11="","",'DF raw data'!C11) ->  | D11: =IF('DF raw data'!D11="","",'DF raw data'!D11) -> 
A12: =IF('DF raw data'!M12="","",'DF raw data'!M12) -> Power supply mode | B12: =IF('DF raw data'!N12="","",'DF raw data'!N12) -> (PM) Permanent Magnet (no MPS in use) | C12: =IF('DF raw data'!C12="","",'DF raw data'!C12) ->  | D12: =IF('DF raw data'!D12="","",'DF raw data'!D12) -> 
A13: =IF('DF raw data'!M13="","",'DF raw data'!M13) -> Data format | B13: =IF('DF raw data'!N13="","",'DF raw data'!N13) -> Raw data text file | C13: =IF('DF raw data'!C13="","",'DF raw data'!C13) ->  | D13: =IF('DF raw data'!D13="","",'DF raw data'!D13) -> 
A14: =IF('DF raw data'!M14="","",'DF raw data'!M14) -> Direction of the pos. x-axis | B14: =IF('DF raw data'!N14="","",'DF raw data'!N14) -> See test program | C14: =IF('DF raw data'!C14="","",'DF raw data'!C14) ->  | D14: =IF('DF raw data'!D14="","",'DF raw data'!D14) -> 
A15: =IF('DF raw data'!M15="","",'DF raw data'!M15) -> Direction of the pos. y-axis | B15: =IF('DF raw data'!N15="","",'DF raw data'!N15) -> Vertical up | C15: =IF('DF raw data'!C15="","",'DF raw data'!C15) ->  | D15: =IF('DF raw data'!D15="","",'DF raw data'!D15) -> 
A16: =IF('DF raw data'!M16="","",'DF raw data'!M16) -> Direction of the pos. z-axis | B16: =IF('DF raw data'!N16="","",'DF raw data'!N16) -> See test program | C16: =IF('DF raw data'!C16="","",'DF raw data'!C16) ->  | D16: =IF('DF raw data'!D16="","",'DF raw data'!D16) -> 
A17: =IF('DF raw data'!M17="","",'DF raw data'!M17) -> Mapper type | B17: =IF('DF raw data'!N17="","",'DF raw data'!N17) -> Precision Hall Mapper | C17: =IF('DF raw data'!C17="","",'DF raw data'!C17) ->  | D17: =IF('DF raw data'!D17="","",'DF raw data'!D17) -> 
A18: =IF('DF raw data'!M18="","",'DF raw data'!M18) -> Mapper Danfysik Reg. Number | B18: =IF('DF raw data'!N18="","",'DF raw data'!N18) -> 2033-D (mapper 1) | C18: =IF('DF raw data'!C18="","",'DF raw data'!C18) ->  | D18: =IF('DF raw data'!D18="","",'DF raw data'!D18) -> 
A19: =IF('DF raw data'!M19="","",'DF raw data'!M19) -> Measurement consept | B19: =IF('DF raw data'!N19="","",'DF raw data'!N19) -> Square line grid | C19: =IF('DF raw data'!C19="","",'DF raw data'!C19) ->  | D19: =IF('DF raw data'!D19="","",'DF raw data'!D19) -> 
A20: =IF('DF raw data'!M20="","",'DF raw data'!M20) -> Mode | B20: =IF('DF raw data'!N20="","",'DF raw data'!N20) -> On-the-fly measurement | C20: =IF('DF raw data'!C20="","",'DF raw data'!C20) ->  | D20: =IF('DF raw data'!D20="","",'DF raw data'!D20) -> 
A21: =IF('DF raw data'!M21="","",'DF raw data'!M21) ->  | B21: =IF('DF raw data'!N21="","",'DF raw data'!N21) ->  | C21: =IF('DF raw data'!C21="","",'DF raw data'!C21) ->  | D21: =IF('DF raw data'!D21="","",'DF raw data'!D21) -> 
A22: =IF('DF raw data'!M22="","",'DF raw data'!M22) -> Probe Name | B22: =IF('DF raw data'!N22="","",'DF raw data'!N22) -> ID12_By | C22: =IF('DF raw data'!C22="","",'DF raw data'!C22) ->  | D22: =IF('DF raw data'!D22="","",'DF raw data'!D22) -> 
A23: =IF('DF raw data'!M23="","",'DF raw data'!M23) -> Probe Type | B23: =IF('DF raw data'!N23="","",'DF raw data'!N23) -> DF_ID_3D_Bxyz | C23: =IF('DF raw data'!C23="","",'DF raw data'!C23) ->  | D23: =IF('DF raw data'!D23="","",'DF raw data'!D23) -> 
A24: =IF('DF raw data'!M24="","",'DF raw data'!M24) -> Probe Danfysik Reg. Number | B24: =IF('DF raw data'!N24="","",'DF raw data'!N24) -> 2277 | C24: =IF('DF raw data'!C24="","",'DF raw data'!C24) ->  | D24: =IF('DF raw data'!D24="","",'DF raw data'!D24) -> 
A25: =IF('DF raw data'!M25="","",'DF raw data'!M25) -> Probe Axis | B25: =IF('DF raw data'!N25="","",'DF raw data'!N25) -> By | C25: =IF('DF raw data'!C25="","",'DF raw data'!C25) ->  | D25: =IF('DF raw data'!D25="","",'DF raw data'!D25) -> 
A26: =IF('DF raw data'!M26="","",'DF raw data'!M26) -> Probe Current Supply | B26: =IF('DF raw data'!N26="","",'DF raw data'!N26) -> 1825-D | C26: =IF('DF raw data'!C26="","",'DF raw data'!C26) ->  | D26: =IF('DF raw data'!D26="","",'DF raw data'!D26) -> 
A27: =IF('DF raw data'!M27="","",'DF raw data'!M27) -> Probe Gain Correction | B27: =IF('DF raw data'!N27="","",'DF raw data'!N27) -> 0.99612 | C27: =IF('DF raw data'!C27="","",'DF raw data'!C27) ->  | D27: =IF('DF raw data'!D27="","",'DF raw data'!D27) -> 
A28: =IF('DF raw data'!M28="","",'DF raw data'!M28) -> Probe Offset Correction | B28: =IF('DF raw data'!N28="","",'DF raw data'!N28) -> 0.0027559 | C28: =IF('DF raw data'!C28="","",'DF raw data'!C28) ->  | D28: =IF('DF raw data'!D28="","",'DF raw data'!D28) -> 
A29: =IF('DF raw data'!M29="","",'DF raw data'!M29) -> DVM Number | B29: =IF('DF raw data'!N29="","",'DF raw data'!N29) -> 2 | C29: =IF('DF raw data'!C29="","",'DF raw data'!C29) ->  | D29: =IF('DF raw data'!D29="","",'DF raw data'!D29) -> 
A30: =IF('DF raw data'!M30="","",'DF raw data'!M30) -> DVM Type | B30: =IF('DF raw data'!N30="","",'DF raw data'!N30) -> K2701 | C30: =IF('DF raw data'!C30="","",'DF raw data'!C30) ->  | D30: =IF('DF raw data'!D30="","",'DF raw data'!D30) -> 
A31: =IF('DF raw data'!M31="","",'DF raw data'!M31) -> DVM Danfysik Reg. Number | B31: =IF('DF raw data'!N31="","",'DF raw data'!N31) -> 1743-D | C31: =IF('DF raw data'!C31="","",'DF raw data'!C31) ->  | D31: =IF('DF raw data'!D31="","",'DF raw data'!D31) -> 
A32: =IF('DF raw data'!M32="","",'DF raw data'!M32) -> Probe Name | B32: =IF('DF raw data'!N32="","",'DF raw data'!N32) -> ID12_Bx | C32: =IF('DF raw data'!C32="","",'DF raw data'!C32) ->  | D32: =IF('DF raw data'!D32="","",'DF raw data'!D32) -> 
A33: =IF('DF raw data'!M33="","",'DF raw data'!M33) -> Probe Type | B33: =IF('DF raw data'!N33="","",'DF raw data'!N33) -> DF_ID_3D_Bxyz | C33: =IF('DF raw data'!C33="","",'DF raw data'!C33) ->  | D33: =IF('DF raw data'!D33="","",'DF raw data'!D33) -> 
A34: =IF('DF raw data'!M34="","",'DF raw data'!M34) -> Probe Danfysik Reg. Number | B34: =IF('DF raw data'!N34="","",'DF raw data'!N34) -> 2277 | C34: =IF('DF raw data'!C34="","",'DF raw data'!C34) ->  | D34: =IF('DF raw data'!D34="","",'DF raw data'!D34) -> 
A35: =IF('DF raw data'!M35="","",'DF raw data'!M35) -> Probe Axis | B35: =IF('DF raw data'!N35="","",'DF raw data'!N35) -> Bx | C35: =IF('DF raw data'!C35="","",'DF raw data'!C35) ->  | D35: =IF('DF raw data'!D35="","",'DF raw data'!D35) -> 
A36: =IF('DF raw data'!M36="","",'DF raw data'!M36) -> Probe Current Supply | B36: =IF('DF raw data'!N36="","",'DF raw data'!N36) -> 1825-D | C36: =IF('DF raw data'!C36="","",'DF raw data'!C36) ->  | D36: =IF('DF raw data'!D36="","",'DF raw data'!D36) -> 
A37: =IF('DF raw data'!M37="","",'DF raw data'!M37) -> Probe Gain Correction | B37: =IF('DF raw data'!N37="","",'DF raw data'!N37) -> 1 | C37: =IF('DF raw data'!C37="","",'DF raw data'!C37) ->  | D37: =IF('DF raw data'!D37="","",'DF raw data'!D37) -> 
A38: =IF('DF raw data'!M38="","",'DF raw data'!M38) -> Probe Offset Correction | B38: =IF('DF raw data'!N38="","",'DF raw data'!N38) -> -0.17567 | C38: =IF('DF raw data'!C38="","",'DF raw data'!C38) ->  | D38: =IF('DF raw data'!D38="","",'DF raw data'!D38) -> 
A39: =IF('DF raw data'!M39="","",'DF raw data'!M39) -> DVM Number | B39: =IF('DF raw data'!N39="","",'DF raw data'!N39) -> 3 | C39: =IF('DF raw data'!C39="","",'DF raw data'!C39) ->  | D39: =IF('DF raw data'!D39="","",'DF raw data'!D39) -> 
A40: =IF('DF raw data'!M40="","",'DF raw data'!M40) -> DVM Type | B40: =IF('DF raw data'!N40="","",'DF raw data'!N40) -> K2701 | C40: =IF('DF raw data'!C40="","",'DF raw data'!C40) ->  | D40: =IF('DF raw data'!D40="","",'DF raw data'!D40) -> 
A41: =IF('DF raw data'!M41="","",'DF raw data'!M41) -> DVM Danfysik Reg. Number | B41: =IF('DF raw data'!N41="","",'DF raw data'!N41) -> 1744-D | C41: =IF('DF raw data'!C41="","",'DF raw data'!C41) ->  | D41: =IF('DF raw data'!D41="","",'DF raw data'!D41) -> 
A42: =IF('DF raw data'!M42="","",'DF raw data'!M42) -> Probe Name | B42: =IF('DF raw data'!N42="","",'DF raw data'!N42) -> ID12_Bz | C42: =IF('DF raw data'!C42="","",'DF raw data'!C42) ->  | D42: =IF('DF raw data'!D42="","",'DF raw data'!D42) -> 
A43: =IF('DF raw data'!M43="","",'DF raw data'!M43) -> Probe Type | B43: =IF('DF raw data'!N43="","",'DF raw data'!N43) -> DF_ID_3D_Bxyz | C43: =IF('DF raw data'!C43="","",'DF raw data'!C43) ->  | D43: =IF('DF raw data'!D43="","",'DF raw data'!D43) -> 
A44: =IF('DF raw data'!M44="","",'DF raw data'!M44) -> Probe Danfysik Reg. Number | B44: =IF('DF raw data'!N44="","",'DF raw data'!N44) -> 2277 | C44: =IF('DF raw data'!C44="","",'DF raw data'!C44) ->  | D44: =IF('DF raw data'!D44="","",'DF raw data'!D44) -> 
A45: =IF('DF raw data'!M45="","",'DF raw data'!M45) -> Probe Axis | B45: =IF('DF raw data'!N45="","",'DF raw data'!N45) -> Bz | C45: =IF('DF raw data'!C45="","",'DF raw data'!C45) ->  | D45: =IF('DF raw data'!D45="","",'DF raw data'!D45) -> 
A46: =IF('DF raw data'!M46="","",'DF raw data'!M46) -> Probe Current Supply | B46: =IF('DF raw data'!N46="","",'DF raw data'!N46) -> 1825-D | C46: =IF('DF raw data'!C46="","",'DF raw data'!C46) ->  | D46: =IF('DF raw data'!D46="","",'DF raw data'!D46) -> 
A47: =IF('DF raw data'!M47="","",'DF raw data'!M47) -> Probe Gain Correction | B47: =IF('DF raw data'!N47="","",'DF raw data'!N47) -> 1 | C47: =IF('DF raw data'!C47="","",'DF raw data'!C47) ->  | D47: =IF('DF raw data'!D47="","",'DF raw data'!D47) -> 
A48: =IF('DF raw data'!M48="","",'DF raw data'!M48) -> Probe Offset Correction | B48: =IF('DF raw data'!N48="","",'DF raw data'!N48) -> 0.0073283 | C48: =IF('DF raw data'!C48="","",'DF raw data'!C48) ->  | D48: =IF('DF raw data'!D48="","",'DF raw data'!D48) -> 
A49: =IF('DF raw data'!M49="","",'DF raw data'!M49) -> DVM Number | B49: =IF('DF raw data'!N49="","",'DF raw data'!N49) -> 8 | C49: =IF('DF raw data'!C49="","",'DF raw data'!C49) ->  | D49: =IF('DF raw data'!D49="","",'DF raw data'!D49) -> 
A50: =IF('DF raw data'!M50="","",'DF raw data'!M50) -> DVM Type | B50: =IF('DF raw data'!N50="","",'DF raw data'!N50) -> K2700 | C50: =IF('DF raw data'!C50="","",'DF raw data'!C50) ->  | D50: =IF('DF raw data'!D50="","",'DF raw data'!D50) -> 
A51: =IF('DF raw data'!M51="","",'DF raw data'!M51) -> DVM Danfysik Reg. Number | B51: =IF('DF raw data'!N51="","",'DF raw data'!N51) -> 1756-D | C51: =IF('DF raw data'!C51="","",'DF raw data'!C51) ->  | D51: =IF('DF raw data'!D51="","",'DF raw data'!D51) -> 
A52: =IF('DF raw data'!M52="","",'DF raw data'!M52) -> NTC voltage | B52: =IF('DF raw data'!N52="","",'DF raw data'!N52) -> 0.38577 | C52: =IF('DF raw data'!C52="","",'DF raw data'!C52) ->  | D52: =IF('DF raw data'!D52="","",'DF raw data'!D52) -> 
A53: =IF('DF raw data'!M53="","",'DF raw data'!M53) -> PS-Gap: | B53: =IF('DF raw data'!N53="","",'DF raw data'!N53) -> 30 | C53: =IF('DF raw data'!C53="","",'DF raw data'!C53) ->  | D53: =IF('DF raw data'!D53="","",'DF raw data'!D53) -> 
A54: =IF('DF raw data'!M54="","",'DF raw data'!M54) -> PS-Temperature: | B54: =IF('DF raw data'!N54="","",'DF raw data'!N54) -> 27 | C54: =IF('DF raw data'!C54="","",'DF raw data'!C54) ->  | D54: =IF('DF raw data'!D54="","",'DF raw data'!D54) -> 
A55: =IF('DF raw data'!M55="","",'DF raw data'!M55) -> PS-Encoder: | B55: =IF('DF raw data'!N55="","",'DF raw data'!N55) -> 39.4331 | C55: =IF('DF raw data'!C55="","",'DF raw data'!C55) ->  | D55: =IF('DF raw data'!D55="","",'DF raw data'!D55) -> 
A56: =IF('DF raw data'!M56="","",'DF raw data'!M56) ->  | B56: =IF('DF raw data'!N56="","",'DF raw data'!N56) -> 
A57: =IF('DF raw data'!M57="","",'DF raw data'!M57) -> Monitor-Index | B57: =IF('DF raw data'!N57="","",'DF raw data'!N57) -> [1,1,4]
A58: =IF('DF raw data'!M58="","",'DF raw data'!M58) ->  | B58: =IF('DF raw data'!N58="","",'DF raw data'!N58) -> 
A59: =IF('DF raw data'!M59="","",'DF raw data'!M59) -> Time [s] | B59: =IF('DF raw data'!N59="","",'DF raw data'!N59) -> Y [mm]
A60: =IF('DF raw data'!M60="","",'DF raw data'!M60) ->  | B60: =IF('DF raw data'!N60="","",'DF raw data'!N60) -> 
A61: =IF('DF raw data'!M61="","",'DF raw data'!M61) -> 207.6 | B61: =IF('DF raw data'!N61="","",'DF raw data'!N61) -> 31.36
A62: =IF('DF raw data'!M62="","",'DF raw data'!M62) ->  | B62: =IF('DF raw data'!N62="","",'DF raw data'!N62) -> 
A63: =IF('DF raw data'!M63="","",'DF raw data'!M63) -> Measurement-Index | B63: =IF('DF raw data'!N63="","",'DF raw data'!N63) -> [1,1,1201,2]
A64: =IF('DF raw data'!M64="","",'DF raw data'!M64) ->  | B64: =IF('DF raw data'!N64="","",'DF raw data'!N64) -> 
A65: =IF('DF raw data'!M65="","",'DF raw data'!M65) -> Z [mm] | B65: =IF('DF raw data'!N65="","",'DF raw data'!N65) -> By [T] | C65: =IF('DF raw data'!O65="","",'DF raw data'!O65) -> Bx [T] | D65: =IF('DF raw data'!P65="","",'DF raw data'!P65) -> Bz [T] | F65: By_corr | G65: Bx_corr | H65: Bz_corr | J65: Iy | K65: Jy | L65: Ix | M65: Jx | N65: PI
B66: =IF('DF raw data'!N66="","",'DF raw data'!N66) ->  | C66: =IF('DF raw data'!O66="","",'DF raw data'!O66) ->  | D66: =IF('DF raw data'!P66="","",'DF raw data'!P66) -> 
A67: =IF('DF raw data'!M67="","",'DF raw data'!M67) -> -300 | B67: =IF('DF raw data'!N67="","",'DF raw data'!N67) -> -2.57313e-05 | C67: =IF('DF raw data'!O67="","",'DF raw data'!O67) -> 1.0553e-05 | D67: =IF('DF raw data'!P67="","",'DF raw data'!P67) -> -2.46211e-05 | F67: =(1-$G$1*($B$54-$G$2))*(B67-F$5) -> 1.070226542e-05 | G67: =(1-$G$1*($B$54-$G$2))*(C67-G$5) -> 2.291019153e-05 | H67: =(1-$G$1*($B$54-$G$2))*(D67-H$5) -> 1.155359972e-05 | J67: =F67*$G$3+J66 -> 5.351132708e-06 | K67: =J67*$G$3+K66 -> 2.675566354e-06 | L67: =G67*$G$3+L66 -> 1.145509577e-05 | M67: =L67*$G$3+M66 -> 5.727547883e-06 | N67: =(J67^2+L67^2)*$G$3+N66 -> 7.992692014e-11
A68: =IF('DF raw data'!M68="","",'DF raw data'!M68) -> -299.5 | B68: =IF('DF raw data'!N68="","",'DF raw data'!N68) -> -3.4324e-05 | C68: =IF('DF raw data'!O68="","",'DF raw data'!O68) -> 1.56832e-05 | D68: =IF('DF raw data'!P68="","",'DF raw data'!P68) -> -2.46027e-05 | F68: 2.065656719e-06 | G68: 2.806660686e-05 | H68: 1.157209374e-05 | J68: =F68*$G$3+J67 -> 6.383961068e-06 | K68: =J68*$G$3+K67 -> 5.867546888e-06 | L68: =G68*$G$3+L67 -> 2.548839919e-05 | M68: =L68*$G$3+M67 -> 1.847174748e-05 | N68: =(J68^2+L68^2)*$G$3+N67 -> 4.251336463e-10
A69: =IF('DF raw data'!M69="","",'DF raw data'!M69) -> -299 | B69: =IF('DF raw data'!N69="","",'DF raw data'!N69) -> -1.97035e-05 | C69: =IF('DF raw data'!O69="","",'DF raw data'!O69) -> 1.63208e-05 | D69: =IF('DF raw data'!P69="","",'DF raw data'!P69) -> -2.51199e-05 | F69: 1.676086747e-05 | G69: 2.870746499e-05 | H69: 1.105225085e-05 | J69: 1.476439481e-05 | K69: 1.324974429e-05 | L69: 3.984213169e-05 | M69: 3.839281333e-05 | N69: 1.327825052e-09
A70: =IF('DF raw data'!M70="","",'DF raw data'!M70) -> -298.5 | B70: =IF('DF raw data'!N70="","",'DF raw data'!N70) -> -3.93887e-05 | C70: =IF('DF raw data'!O70="","",'DF raw data'!O70) -> 2.14729e-05 | D70: =IF('DF raw data'!P70="","",'DF raw data'!P70) -> -2.57803e-05 | F70: -3.024923898e-06 | G70: 3.388589222e-05 | H70: 1.03884762e-05 | J70: 1.325193286e-05 | K70: 1.987571072e-05 | L70: 5.67850778e-05 | M70: 6.678535223e-05 | N70: 3.027904445e-09
A71: =IF('DF raw data'!M71="","",'DF raw data'!M71) -> -298 | B71: =IF('DF raw data'!N71="","",'DF raw data'!N71) -> -3.87476e-05 | C71: =IF('DF raw data'!O71="","",'DF raw data'!O71) -> 2.92026e-05 | D71: =IF('DF raw data'!P71="","",'DF raw data'!P71) -> -2.55766e-05 | F71: -2.380547877e-06 | G71: 4.165509099e-05 | H71: 1.059321711e-05 | J71: 1.206165892e-05 | K71: 2.590654018e-05 | L71: 7.76126233e-05 | M71: 0.0001055916639 | N71: 6.1125059e-09
A72: =IF('DF raw data'!M72="","",'DF raw data'!M72) -> -297.5 | B72: =IF('DF raw data'!N72="","",'DF raw data'!N72) -> -5.24709e-05 | C72: =IF('DF raw data'!O72="","",'DF raw data'!O72) -> 2.49779e-05 | D72: =IF('DF raw data'!P72="","",'DF raw data'!P72) -> -2.43345e-05 | F72: -1.617397394e-05 | G72: 3.740880277e-05 | H72: 1.184166424e-05 | J72: 3.974671948e-06 | K72: 2.789387615e-05 | L72: 9.631702468e-05 | M72: 0.0001537501762 | N72: 1.075888953e-08
A73: =IF('DF raw data'!M73="","",'DF raw data'!M73) -> -297 | B73: =IF('DF raw data'!N73="","",'DF raw data'!N73) -> -4.24043e-05 | C73: =IF('DF raw data'!O73="","",'DF raw data'!O73) -> 1.88952e-05 | D73: =IF('DF raw data'!P73="","",'DF raw data'!P73) -> -2.32015e-05 | F73: -6.055933614e-06 | G73: 3.129502018e-05 | H73: 1.298045387e-05 | J73: 9.467051417e-07 | K73: 2.836722872e-05 | L73: 0.0001119645348 | M73: 0.0002097324436 | N73: 1.702736618e-08
A74: =IF('DF raw data'!M74="","",'DF raw data'!M74) -> -296.5 | B74: =IF('DF raw data'!N74="","",'DF raw data'!N74) -> -4.21481e-05 | C74: =IF('DF raw data'!O74="","",'DF raw data'!O74) -> 1.4576e-05 | D74: =IF('DF raw data'!P74="","",'DF raw data'!P74) -> -2.2801e-05 | F74: -5.798424432e-06 | G74: 2.695374906e-05 | H74: 1.338300043e-05 | J74: -1.952507074e-06 | K74: 2.739097519e-05 | L74: 0.0001254414093 | M74: 0.0002724531483 | N74: 2.48970459e-08
A75: =IF('DF raw data'!M75="","",'DF raw data'!M75) -> -296 | B75: =IF('DF raw data'!N75="","",'DF raw data'!N75) -> -3.52226e-05 | C75: =IF('DF raw data'!O75="","",'DF raw data'!O75) -> 1.01144e-05 | D75: =IF('DF raw data'!P75="","",'DF raw data'!P75) -> -2.31865e-05 | F75: 1.162464873e-06 | G75: 2.246935029e-05 | H75: 1.299553052e-05 | J75: -1.371274637e-06 | K75: 2.670533787e-05 | L75: 0.0001366760844 | M75: 0.0003407911905 | N75: 3.423816213e-08
A76: =IF('DF raw data'!M76="","",'DF raw data'!M76) -> -295.5 | B76: =IF('DF raw data'!N76="","",'DF raw data'!N76) -> -3.41962e-05 | C76: =IF('DF raw data'!O76="","",'DF raw data'!O76) -> 7.57653e-06 | D76: =IF('DF raw data'!P76="","",'DF raw data'!P76) -> -2.38683e-05 | F76: 2.194109777e-06 | G76: 1.991851177e-05 | H76: 1.231024652e-05 | J76: -2.742197486e-07 | K76: 2.656822799e-05 | L76: 0.0001466353403 | M76: 0.0004141088606 | N76: 4.498916125e-08
A77: =IF('DF raw data'!M77="","",'DF raw data'!M77) -> -295 | B77: =IF('DF raw data'!N77="","",'DF raw data'!N77) -> -3.6953e-05 | C77: =IF('DF raw data'!O77="","",'DF raw data'!O77) -> 8.71458e-06 | D77: =IF('DF raw data'!P77="","",'DF raw data'!P77) -> -2.43029e-05 | F77: -5.767774705e-07 | G77: 2.106237721e-05 | H77: 1.187342572e-05 | J77: -5.626084839e-07 | K77: 2.628692375e-05 | L77: 0.0001571665289 | M77: 0.0004926921251 | N77: 5.733997842e-08
A78: =IF('DF raw data'!M78="","",'DF raw data'!M78) -> -294.5 | B78: =IF('DF raw data'!N78="","",'DF raw data'!N78) -> -3.93898e-05 | C78: =IF('DF raw data'!O78="","",'DF raw data'!O78) -> 1.34614e-05 | D78: =IF('DF raw data'!P78="","",'DF raw data'!P78) -> -2.42431e-05 | F78: -3.026029519e-06 | G78: 2.583345346e-05 | H78: 1.19335313e-05 | J78: -2.075623243e-06 | K78: 2.524911213e-05 | L78: 0.0001700832557 | M78: 0.0005777337529 | N78: 7.180628945e-08
A79: =IF('DF raw data'!M79="","",'DF raw data'!M79) -> -294 | B79: =IF('DF raw data'!N79="","",'DF raw data'!N79) -> -3.75946e-05 | C79: =IF('DF raw data'!O79="","",'DF raw data'!O79) -> 1.57295e-05 | D79: =IF('DF raw data'!P79="","",'DF raw data'!P79) -> -2.3821e-05 | F79: -1.221656047e-06 | G79: 2.811314345e-05 | H79: 1.235778823e-05 | J79: -2.686451266e-06 | K79: 2.39058865e-05 | L79: 0.0001841398274 | M79: 0.0006698036666 | N79: 8.876363598e-08
A80: =IF('DF raw data'!M80="","",'DF raw data'!M80) -> -293.5 | B80: =IF('DF raw data'!N80="","",'DF raw data'!N80) -> -4.35583e-05 | C80: =IF('DF raw data'!O80="","",'DF raw data'!O80) -> 1.18915e-05 | D80: =IF('DF raw data'!P80="","",'DF raw data'!P80) -> -2.35785e-05 | F80: -7.215830554e-06 | G80: 2.425553127e-05 | H80: 1.26015274e-05 | J80: -6.294366543e-06 | K80: 2.075870322e-05 | L80: 0.000196267593 | M80: 0.0007679374631 | N80: 1.080439295e-07
A81: =IF('DF raw data'!M81="","",'DF raw data'!M81) -> -293 | B81: =IF('DF raw data'!N81="","",'DF raw data'!N81) -> -2.62447e-05 | C81: =IF('DF raw data'!O81="","",'DF raw data'!O81) -> 8.15949e-06 | D81: =IF('DF raw data'!P81="","",'DF raw data'!P81) -> -2.40467e-05 | F81: 1.018624194e-05 | G81: 2.05044507e-05 | H81: 1.21309349e-05 | J81: -1.201245572e-06 | K81: 2.015808044e-05 | L81: 0.0002065198184 | M81: 0.0008711973723 | N81: 1.293698687e-07
A82: =IF('DF raw data'!M82="","",'DF raw data'!M82) -> -292.5 | B82: =IF('DF raw data'!N82="","",'DF raw data'!N82) -> -4.53532e-05 | C82: =IF('DF raw data'!O82="","",'DF raw data'!O82) -> 7.29364e-06 | D82: =IF('DF raw data'!P82="","",'DF raw data'!P82) -> -2.4427e-05 | F82: -9.019902493e-06 | G82: 1.96341762e-05 | H82: 1.174869157e-05 | J82: -5.711196818e-06 | K82: 1.730248203e-05 | L82: 0.0002163369065 | M82: 0.0009793658256 | N82: 1.527870062e-07
A83: =IF('DF raw data'!M83="","",'DF raw data'!M83) -> -292 | B83: =IF('DF raw data'!N83="","",'DF raw data'!N83) -> -3.67608e-05 | C83: =IF('DF raw data'!O83="","",'DF raw data'!O83) -> 5.76451e-06 | D83: =IF('DF raw data'!P83="","",'DF raw data'!P83) -> -2.44171e-05 | F83: -3.835953285e-07 | G83: 1.809723235e-05 | H83: 1.175864216e-05 | J83: -5.902994482e-06 | K83: 1.435098479e-05 | L83: 0.0002253855226 | M83: 0.001092058587 | N83: 1.782037457e-07
A84: =IF('DF raw data'!M84="","",'DF raw data'!M84) -> -291.5 | B84: =IF('DF raw data'!N84="","",'DF raw data'!N84) -> -4.18212e-05 | C84: =IF('DF raw data'!O84="","",'DF raw data'!O84) -> 3.32175e-06 | D84: =IF('DF raw data'!P84="","",'DF raw data'!P84) -> -3.22702e-05 | F84: -5.469853973e-06 | G84: 1.564198985e-05 | H84: 3.865412814e-06 | J84: -8.637921469e-06 | K84: 1.003202405e-05 | L84: 0.0002332065176 | M84: 0.001208661846 | N84: 2.054336925e-07
A85: =IF('DF raw data'!M85="","",'DF raw data'!M85) -> -291 | B85: =IF('DF raw data'!N85="","",'DF raw data'!N85) -> -4.37403e-05 | C85: =IF('DF raw data'!O85="","",'DF raw data'!O85) -> 4.0413e-06 | D85: =IF('DF raw data'!P85="","",'DF raw data'!P85) -> -3.96809e-05 | F85: -7.398760574e-06 | G85: 1.636521675e-05 | H85: -3.583155863e-06 | J85: -1.233730176e-05 | K85: 3.863373176e-06 | L85: 0.0002413891259 | M85: 0.001329356409 | N85: 2.346441521e-07
A86: =IF('DF raw data'!M86="","",'DF raw data'!M86) -> -290.5 | B86: =IF('DF raw data'!N86="","",'DF raw data'!N86) -> -3.93232e-05 | C86: =IF('DF raw data'!O86="","",'DF raw data'!O86) -> 5.16987e-06 | D86: =IF('DF raw data'!P86="","",'DF raw data'!P86) -> -2.81967e-05 | F86: -2.959089193e-06 | G86: 1.749955374e-05 | H86: 7.959728399e-06 | J86: -1.381684635e-05 | K86: -3.04505e-06 | L86: 0.0002501389028 | M86: 0.00145442586 | N86: 2.6602434e-07
A87: =IF('DF raw data'!M87="","",'DF raw data'!M87) -> -290 | B87: =IF('DF raw data'!N87="","",'DF raw data'!N87) -> -3.23927e-05 | C87: =IF('DF raw data'!O87="","",'DF raw data'!O87) -> 1.02471e-05 | D87: =IF('DF raw data'!P87="","",'DF raw data'!P87) -> -3.60041e-05 | F87: 4.006825662e-06 | G87: 2.260272838e-05 | H87: 1.124325852e-07 | J87: -1.181343352e-05 | K87: -8.95176676e-06 | L87: 0.000261440267 | M87: 0.001585145994 | N87: 3.002696253e-07
A88: =IF('DF raw data'!M88="","",'DF raw data'!M88) -> -289.5 | B88: =IF('DF raw data'!N88="","",'DF raw data'!N88) -> -4.18867e-05 | C88: =IF('DF raw data'!O88="","",'DF raw data'!O88) -> 1.11683e-05 | D88: =IF('DF raw data'!P88="","",'DF raw data'!P88) -> -3.03593e-05 | F88: -5.535688678e-06 | G88: 2.352863572e-05 | H88: 5.786077513e-06 | J88: -1.458127786e-05 | K88: -1.624240569e-05 | L88: 0.0002732045849 | M88: 0.001721748286 | N88: 3.376963047e-07
A89: =IF('DF raw data'!M89="","",'DF raw data'!M89) -> -289 | B89: =IF('DF raw data'!N89="","",'DF raw data'!N89) -> -4.62464e-05 | C89: =IF('DF raw data'!O89="","",'DF raw data'!O89) -> 8.2849e-06 | D89: =IF('DF raw data'!P89="","",'DF raw data'!P89) -> -3.13123e-05 | F89: -9.917666745e-06 | G89: 2.063050154e-05 | H89: 4.828207683e-06 | J89: -1.954011123e-05 | K89: -2.601246131e-05 | L89: 0.0002835198356 | M89: 0.001863508204 | N89: 3.780789613e-07
A90: =IF('DF raw data'!M90="","",'DF raw data'!M90) -> -288.5 | B90: =IF('DF raw data'!N90="","",'DF raw data'!N90) -> -4.22083e-05 | C90: =IF('DF raw data'!O90="","",'DF raw data'!O90) -> 5.75489e-06 | D90: =IF('DF raw data'!P90="","",'DF raw data'!P90) -> -2.90729e-05 | F90: -5.858932054e-06 | G90: 1.808756319e-05 | H90: 7.079051017e-06 | J90: -2.246957726e-05 | K90: -3.724724993e-05 | L90: 0.0002925636172 | M90: 0.002009790012 | N90: 4.211281373e-07
A91: =IF('DF raw data'!M91="","",'DF raw data'!M91) -> -288 | B91: =IF('DF raw data'!N91="","",'DF raw data'!N91) -> -3.66843e-05 | C91: =IF('DF raw data'!O91="","",'DF raw data'!O91) -> 2.11286e-06 | D91: =IF('DF raw data'!P91="","",'DF raw data'!P91) -> -4.32552e-05 | F91: -3.067044135e-07 | G91: 1.442692242e-05 | H91: -7.175720536e-06 | J91: -2.262292947e-05 | K91: -4.855871467e-05 | L91: 0.0002997770784 | M91: 0.002159678552 | N91: 4.663171841e-07
A92: =IF('DF raw data'!M92="","",'DF raw data'!M92) -> -287.5 | B92: =IF('DF raw data'!N92="","",'DF raw data'!N92) -> -3.81074e-05 | C92: =IF('DF raw data'!O92="","",'DF raw data'!O92) -> 4.81328e-06 | D92: =IF('DF raw data'!P92="","",'DF raw data'!P92) -> -2.41264e-05 | F92: -1.737076455e-06 | G92: 1.714114156e-05 | H92: 1.205082763e-05 | J92: -2.349146769e-05 | K92: -6.030444851e-05 | L92: 0.0003083476492 | M92: 0.002313852376 | N92: 5.14132245e-07
A93: =IF('DF raw data'!M93="","",'DF raw data'!M93) -> -287 | B93: =IF('DF raw data'!N93="","",'DF raw data'!N93) -> -3.23909e-05 | C93: =IF('DF raw data'!O93="","",'DF raw data'!O93) -> 3.21274e-06 | D93: =IF('DF raw data'!P93="","",'DF raw data'!P93) -> -3.87794e-05 | F93: 4.00863486e-06 | G93: 1.55324228e-05 | H93: -2.677049198e-06 | J93: -2.148715026e-05 | K93: -7.104802364e-05 | L93: 0.0003161138606 | M93: 0.002471909307 | N93: 5.643270803e-07
A94: =IF('DF raw data'!M94="","",'DF raw data'!M94) -> -286.5 | B94: =IF('DF raw data'!N94="","",'DF raw data'!N94) -> -3.2847e-05 | C94: =IF('DF raw data'!O94="","",'DF raw data'!O94) -> -5.09518e-07 | D94: =IF('DF raw data'!P94="","",'DF raw data'!P94) -> -2.77566e-05 | F94: 3.550204189e-06 | G94: 1.179114407e-05 | H94: 8.40207731e-06 | J94: -1.971204817e-05 | K94: -8.090404773e-05 | L94: 0.0003220094327 | M94: 0.002632914023 | N94: 6.163664001e-07
A95: =IF('DF raw data'!M95="","",'DF raw data'!M95) -> -286 | B95: =IF('DF raw data'!N95="","",'DF raw data'!N95) -> -3.08601e-05 | C95: =IF('DF raw data'!O95="","",'DF raw data'!O95) -> 3.8819e-06 | D95: =IF('DF raw data'!P95="","",'DF raw data'!P95) -> -2.6299e-05 | F95: 5.547257248e-06 | G95: 1.620500221e-05 | H95: 9.867125646e-06 | J95: -1.693841954e-05 | K95: -8.93732575e-05 | L95: 0.0003301119338 | M95: 0.00279796999 | N95: 6.709967995e-07
A96: =IF('DF raw data'!M96="","",'DF raw data'!M96) -> -285.5 | B96: =IF('DF raw data'!N96="","",'DF raw data'!N96) -> -4.11228e-05 | C96: =IF('DF raw data'!O96="","",'DF raw data'!O96) -> 4.08253e-06 | D96: =IF('DF raw data'!P96="","",'DF raw data'!P96) -> -2.1791e-05 | F96: -4.767885149e-06 | G96: 1.640665743e-05 | H96: 1.439816153e-05 | J96: -1.932236212e-05 | K96: -9.903443856e-05 | L96: 0.0003383152625 | M96: 0.002967127621 | N96: 7.284120848e-07
A97: =IF('DF raw data'!M97="","",'DF raw data'!M97) -> -285 | B97: =IF('DF raw data'!N97="","",'DF raw data'!N97) -> -3.95168e-05 | C97: =IF('DF raw data'!O97="","",'DF raw data'!O97) -> 2.58e-06 | D97: =IF('DF raw data'!P97="","",'DF raw data'!P97) -> -2.61557e-05 | F97: -3.153678489e-06 | G97: 1.48964495e-05 | H97: 1.001115791e-05 | J97: -2.089920136e-05 | K97: -0.0001094840392 | L97: 0.0003457634872 | M97: 0.003140009365 | N97: 7.884066676e-07
A98: =IF('DF raw data'!M98="","",'DF raw data'!M98) -> -284.5 | B98: =IF('DF raw data'!N98="","",'DF raw data'!N98) -> -4.39412e-05 | C98: =IF('DF raw data'!O98="","",'DF raw data'!O98) -> 2.09022e-06 | D98: =IF('DF raw data'!P98="","",'DF raw data'!P98) -> -2.64052e-05 | F98: -7.600687173e-06 | G98: 1.440416673e-05 | H98: 9.760382964e-06 | J98: -2.469954495e-05 | K98: -0.0001218338117 | L98: 0.0003529655706 | M98: 0.00331649215 | N98: 8.510040484e-07
A99: =IF('DF raw data'!M99="","",'DF raw data'!M99) -> -284 | B99: =IF('DF raw data'!N99="","",'DF raw data'!N99) -> -4.90078e-05 | C99: =IF('DF raw data'!O99="","",'DF raw data'!O99) -> 1.0481e-05 | D99: =IF('DF raw data'!P99="","",'DF raw data'!P99) -> -2.52461e-05 | F99: -1.26931775e-05 | G99: 2.283782361e-05 | H99: 1.092540597e-05 | J99: -3.10461337e-05 | K99: -0.0001373568786 | L99: 0.0003643844824 | M99: 0.003498684391 | N99: 9.178740051e-07
A100: =IF('DF raw data'!M100="","",'DF raw data'!M100) -> -283.5 | B100: =IF('DF raw data'!N100="","",'DF raw data'!N100) -> -4.49728e-05 | C100: =IF('DF raw data'!O100="","",'DF raw data'!O100) -> 1.12005e-05 | D100: =IF('DF raw data'!P100="","",'DF raw data'!P100) -> -1.78211e-05 | F100: -8.637558649e-06 | G100: 2.356100026e-05 | H100: 1.838834772e-05 | J100: -3.536491302e-05 | K100: -0.0001550393351 | L100: 0.0003761649825 | M100: 0.003686766882 | N100: 9.892493907e-07
A101: =IF('DF raw data'!M101="","",'DF raw data'!M101) -> -283 | B101: =IF('DF raw data'!N101="","",'DF raw data'!N101) -> -3.75904e-05 | C101: =IF('DF raw data'!O101="","",'DF raw data'!O101) -> -1.30455e-06 | D101: =IF('DF raw data'!P101="","",'DF raw data'!P101) -> -3.03593e-05 | F101: -1.217434585e-06 | G101: 1.099204945e-05 | H101: 5.786077513e-06 | J101: -3.597363031e-05 | K101: -0.0001730261502 | L101: 0.0003816610073 | M101: 0.003877597386 | N101: 1.062729004e-06
A102: =IF('DF raw data'!M102="","",'DF raw data'!M102) -> -282.5 | B102: =IF('DF raw data'!N102="","",'DF raw data'!N102) -> -5.03562e-05 | C102: =IF('DF raw data'!O102="","",'DF raw data'!O102) -> -6.37985e-06 | D102: =IF('DF raw data'!P102="","",'DF raw data'!P102) -> -2.26187e-05 | F102: -1.404846782e-05 | G102: 5.89081467e-06 | H102: 1.356623198e-05 | J102: -4.299786422e-05 | K102: -0.0001945250823 | L102: 0.0003846064146 | M102: 0.004069900593 | N102: 1.137614459e-06
A103: =IF('DF raw data'!M103="","",'DF raw data'!M103) -> -282 | B103: =IF('DF raw data'!N103="","",'DF raw data'!N103) -> -3.89955e-05 | C103: =IF('DF raw data'!O103="","",'DF raw data'!O103) -> 1.21078e-06 | D103: =IF('DF raw data'!P103="","",'DF raw data'!P103) -> -3.90593e-05 | F103: -2.629714646e-06 | G103: 1.352023279e-05 | H103: -2.958379487e-06 | J103: -4.431272155e-05 | K103: -0.0002166814431 | L103: 0.000391366531 | M103: 0.004265583859 | N103: 1.215180149e-06
A104: =IF('DF raw data'!M104="","",'DF raw data'!M104) -> -281.5 | B104: =IF('DF raw data'!N104="","",'DF raw data'!N104) -> -3.28421e-05 | C104: =IF('DF raw data'!O104="","",'DF raw data'!O104) -> 3.17537e-06 | D104: =IF('DF raw data'!P104="","",'DF raw data'!P104) -> -3.54241e-05 | F104: 3.555129228e-06 | G104: 1.549486184e-05 | H104: 6.953963852e-07 | J104: -4.253515693e-05 | K104: -0.0002379490216 | L104: 0.0003991139619 | M104: 0.00446514084 | N104: 1.295730746e-06
A105: =IF('DF raw data'!M105="","",'DF raw data'!M105) -> -281 | B105: =IF('DF raw data'!N105="","",'DF raw data'!N105) -> -4.38127e-05 | C105: =IF('DF raw data'!O105="","",'DF raw data'!O105) -> 4.01445e-06 | D105: =IF('DF raw data'!P105="","",'DF raw data'!P105) -> -2.6911e-05 | F105: -7.471530538e-06 | G105: 1.633822954e-05 | H105: 9.251998326e-06 | J105: -4.62709222e-05 | K105: -0.0002610844827 | L105: 0.0004072830767 | M105: 0.004668782378 | N105: 1.379740997e-06
A106: =IF('DF raw data'!M106="","",'DF raw data'!M106) -> -280.5 | B106: =IF('DF raw data'!N106="","",'DF raw data'!N106) -> -4.625e-05 | C106: =IF('DF raw data'!O106="","",'DF raw data'!O106) -> -1.76425e-07 | D106: =IF('DF raw data'!P106="","",'DF raw data'!P106) -> -2.58626e-05 | F106: -9.921285141e-06 | G106: 1.212593917e-05 | H106: 1.030575565e-05 | J106: -5.123156477e-05 | K106: -0.0002867002651 | L106: 0.0004133460463 | M106: 0.004875455401 | N106: 1.466480811e-06
A107: =IF('DF raw data'!M107="","",'DF raw data'!M107) -> -280 | B107: =IF('DF raw data'!N107="","",'DF raw data'!N107) -> -4.08534e-05 | C107: =IF('DF raw data'!O107="","",'DF raw data'!O107) -> 7.33437e-06 | D107: =IF('DF raw data'!P107="","",'DF raw data'!P107) -> -4.18793e-05 | F107: -4.497108515e-06 | G107: 1.967511433e-05 | H107: -5.792789687e-06 | J107: -5.348011903e-05 | K107: -0.0003134403246 | L107: 0.0004231836034 | M107: 0.005087047203 | N107: 1.557453053e-06
A108: =IF('DF raw data'!M108="","",'DF raw data'!M108) -> -279.5 | B108: =IF('DF raw data'!N108="","",'DF raw data'!N108) -> -3.57364e-05 | C108: =IF('DF raw data'!O108="","",'DF raw data'!O108) -> 1.0081e-05 | D108: =IF('DF raw data'!P108="","",'DF raw data'!P108) -> -2.20781e-05 | F108: 6.460393555e-07 | G108: 2.243577961e-05 | H108: 1.410959445e-05 | J108: -5.315709935e-05 | K108: -0.0003400188743 | L108: 0.0004344014932 | M108: 0.00530424795 | N108: 1.653218221e-06
A109: =IF('DF raw data'!M109="","",'DF raw data'!M109) -> -279 | B109: =IF('DF raw data'!N109="","",'DF raw data'!N109) -> -4.53475e-05 | C109: =IF('DF raw data'!O109="","",'DF raw data'!O109) -> 1.67666e-05 | D109: =IF('DF raw data'!P109="","",'DF raw data'!P109) -> -3.33329e-05 | F109: -9.014173366e-06 | G109: 2.915554303e-05 | H109: 2.797282417e-06 | J109: -5.766418603e-05 | K109: -0.0003688509673 | L109: 0.0004489792648 | M109: 0.005528737582 | N109: 1.75567199e-06
A110: =IF('DF raw data'!M110="","",'DF raw data'!M110) -> -278.5 | B110: =IF('DF raw data'!N110="","",'DF raw data'!N110) -> -4.53518e-05 | C110: =IF('DF raw data'!O110="","",'DF raw data'!O110) -> 7.12755e-06 | D110: =IF('DF raw data'!P110="","",'DF raw data'!P110) -> -2.67556e-05 | F110: -9.018495339e-06 | G110: 1.946723748e-05 | H110: 9.40819242e-06 | J110: -6.21734337e-05 | K110: -0.0003999376841 | L110: 0.0004587128835 | M110: 0.005758094024 | N110: 1.862813513e-06
A111: =IF('DF raw data'!M111="","",'DF raw data'!M111) -> -278 | B111: =IF('DF raw data'!N111="","",'DF raw data'!N111) -> -4.20843e-05 | C111: =IF('DF raw data'!O111="","",'DF raw data'!O111) -> 1.66914e-06 | D111: =IF('DF raw data'!P111="","",'DF raw data'!P111) -> -2.26508e-05 | F111: -5.734298414e-06 | G111: 1.398093501e-05 | H111: 1.353396795e-05 | J111: -6.504058291e-05 | K111: -0.0004324579756 | L111: 0.000465703351 | M111: 0.005990945699 | N111: 1.973368457e-06
A112: =IF('DF raw data'!M112="","",'DF raw data'!M112) -> -277.5 | B112: =IF('DF raw data'!N112="","",'DF raw data'!N112) -> -3.46409e-05 | C112: =IF('DF raw data'!O112="","",'DF raw data'!O112) -> 6.86115e-06 | D112: =IF('DF raw data'!P112="","",'DF raw data'!P112) -> -3.03411e-05 | F112: 1.74713736e-06 | G112: 1.919947618e-05 | H112: 5.804370515e-06 | J112: -6.416701423e-05 | K112: -0.0004645414827 | L112: 0.0004753030891 | M112: 0.006228597244 | N112: 2.088383673e-06
A113: =IF('DF raw data'!M113="","",'DF raw data'!M113) -> -277 | B113: =IF('DF raw data'!N113="","",'DF raw data'!N113) -> -4.38708e-05 | C113: =IF('DF raw data'!O113="","",'DF raw data'!O113) -> 9.56427e-06 | D113: =IF('DF raw data'!P113="","",'DF raw data'!P113) -> -3.64083e-05 | F113: -7.529927429e-06 | G113: 2.191640912e-05 | H113: -2.938328768e-07 | J113: -6.793197794e-05 | K113: -0.0004985074717 | L113: 0.0004862612936 | M113: 0.006471727891 | N113: 2.208916073e-06
A114: =IF('DF raw data'!M114="","",'DF raw data'!M114) -> -276.5 | B114: =IF('DF raw data'!N114="","",'DF raw data'!N114) -> -4.6053e-05 | C114: =IF('DF raw data'!O114="","",'DF raw data'!O114) -> 1.51088e-05 | D114: =IF('DF raw data'!P114="","",'DF raw data'!P114) -> -3.33486e-05 | F114: -9.723278471e-06 | G114: 2.748927167e-05 | H114: 2.78150219e-06 | J114: -7.279361718e-05 | K114: -0.0005349042803 | L114: 0.0005000059295 | M114: 0.006721730855 | N114: 2.336568493e-06
A115: =IF('DF raw data'!M115="","",'DF raw data'!M115) -> -276 | B115: =IF('DF raw data'!N115="","",'DF raw data'!N115) -> -4.29747e-05 | C115: =IF('DF raw data'!O115="","",'DF raw data'!O115) -> 9.8253e-06 | D115: =IF('DF raw data'!P115="","",'DF raw data'!P115) -> -3.39738e-05 | F115: -6.629248358e-06 | G115: 2.217877299e-05 | H115: 2.153107418e-06 | J115: -7.610824136e-05 | K115: -0.0005729584009 | L115: 0.000511095316 | M115: 0.006977278513 | N115: 2.470073936e-06
A116: =IF('DF raw data'!M116="","",'DF raw data'!M116) -> -275.5 | B116: =IF('DF raw data'!N116="","",'DF raw data'!N116) -> -4.49611e-05 | C116: =IF('DF raw data'!O116="","",'DF raw data'!O116) -> -4.53292e-07 | D116: =IF('DF raw data'!P116="","",'DF raw data'!P116) -> -3.59735e-05 | F116: -8.625798862e-06 | G116: 1.184765738e-05 | H116: 1.431889512e-07 | J116: -8.042114079e-05 | K116: -0.0006131689713 | L116: 0.0005170191447 | M116: 0.007235788086 | N116: 2.606962114e-06
A117: =IF('DF raw data'!M117="","",'DF raw data'!M117) -> -275 | B117: =IF('DF raw data'!N117="","",'DF raw data'!N117) -> -3.5469e-05 | C117: =IF('DF raw data'!O117="","",'DF raw data'!O117) -> 9.82049e-06 | D117: =IF('DF raw data'!P117="","",'DF raw data'!P117) -> -3.90156e-05 | F117: 9.148057695e-07 | G117: 2.217393841e-05 | H117: -2.91445618e-06 | J117: -7.99637379e-05 | K117: -0.0006531508403 | L117: 0.0005281061139 | M117: 0.007499841143 | N117: 2.749607247e-06
A118: =IF('DF raw data'!M118="","",'DF raw data'!M118) -> -274.5 | B118: =IF('DF raw data'!N118="","",'DF raw data'!N118) -> -4.66971e-05 | C118: =IF('DF raw data'!O118="","",'DF raw data'!O118) -> 5.74291e-06 | D118: =IF('DF raw data'!P118="","",'DF raw data'!P118) -> -2.89434e-05 | F118: -1.037066982e-05 | G118: 1.807552197e-05 | H118: 7.209212762e-06 | J118: -8.514907282e-05 | K118: -0.0006957253767 | L118: 0.0005371438749 | M118: 0.00776841308 | N118: 2.897494201e-06
A119: =IF('DF raw data'!M119="","",'DF raw data'!M119) -> -274 | B119: =IF('DF raw data'!N119="","",'DF raw data'!N119) -> -4.41298e-05 | C119: =IF('DF raw data'!O119="","",'DF raw data'!O119) -> 1.24783e-05 | D119: =IF('DF raw data'!P119="","",'DF raw data'!P119) -> -3.25953e-05 | F119: -7.790250919e-06 | G119: 2.484532982e-05 | H119: 3.538651553e-06 | J119: -8.904419827e-05 | K119: -0.0007402474758 | L119: 0.0005495665398 | M119: 0.00804319635 | N119: 3.052470326e-06
A120: =IF('DF raw data'!M120="","",'DF raw data'!M120) -> -273.5 | B120: =IF('DF raw data'!N120="","",'DF raw data'!N120) -> -4.00276e-05 | C120: =IF('DF raw data'!O120="","",'DF raw data'!O120) -> 1.20839e-05 | D120: =IF('DF raw data'!P120="","",'DF raw data'!P120) -> -2.96852e-05 | F120: -3.667088677e-06 | G120: 2.444891443e-05 | H120: 6.463622164e-06 | J120: -9.087774261e-05 | K120: -0.0007856863471 | L120: 0.000561790997 | M120: 0.008324091848 | N120: 3.21440427e-06
A121: =IF('DF raw data'!M121="","",'DF raw data'!M121) -> -273 | B121: =IF('DF raw data'!N121="","",'DF raw data'!N121) -> -4.06032e-05 | C121: =IF('DF raw data'!O121="","",'DF raw data'!O121) -> 1.79273e-05 | D121: =IF('DF raw data'!P121="","",'DF raw data'!P121) -> -3.22186e-05 | F121: -4.245629993e-06 | G121: 3.032217421e-05 | H121: 3.91727649e-06 | J121: -9.300055761e-05 | K121: -0.0008321866259 | L121: 0.0005769520841 | M121: 0.00861256789 | N121: 3.385165676e-06
A122: =IF('DF raw data'!M122="","",'DF raw data'!M122) -> -272.5 | B122: =IF('DF raw data'!N122="","",'DF raw data'!N122) -> -4.09237e-05 | C122: =IF('DF raw data'!O122="","",'DF raw data'!O122) -> 1.65682e-05 | D122: =IF('DF raw data'!P122="","",'DF raw data'!P122) -> -3.22474e-05 | F122: -4.567767748e-06 | G122: 2.895612921e-05 | H122: 3.888329322e-06 | J122: -9.528444148e-05 | K122: -0.0008798288467 | L122: 0.0005914301487 | M122: 0.008908282965 | N122: 3.564600049e-06
A123: =IF('DF raw data'!M123="","",'DF raw data'!M123) -> -272 | B123: =IF('DF raw data'!N123="","",'DF raw data'!N123) -> -4.4512e-05 | C123: =IF('DF raw data'!O123="","",'DF raw data'!O123) -> 2.04668e-05 | D123: =IF('DF raw data'!P123="","",'DF raw data'!P123) -> -3.65999e-05 | F123: -8.174403961e-06 | G123: 3.287465105e-05 | H123: -4.864119528e-07 | J123: -9.937164346e-05 | K123: -0.0009295146684 | L123: 0.0006078674742 | M123: 0.009212216702 | N123: 3.754288844e-06
A124: =IF('DF raw data'!M124="","",'DF raw data'!M124) -> -271.5 | B124: =IF('DF raw data'!N124="","",'DF raw data'!N124) -> -3.80342e-05 | C124: =IF('DF raw data'!O124="","",'DF raw data'!O124) -> 2.20744e-05 | D124: =IF('DF raw data'!P124="","",'DF raw data'!P124) -> -3.85778e-05 | F124: -1.663502403e-06 | G124: 3.449046589e-05 | H124: -2.474419022e-06 | J124: -0.0001002033947 | K124: -0.0009796163658 | L124: 0.0006251127072 | M124: 0.009524773055 | N124: 3.954692152e-06
A125: =IF('DF raw data'!M125="","",'DF raw data'!M125) -> -271 | B125: =IF('DF raw data'!N125="","",'DF raw data'!N125) -> -4.52183e-05 | C125: =IF('DF raw data'!O125="","",'DF raw data'!O125) -> 5.29101e-06 | D125: =IF('DF raw data'!P125="","",'DF raw data'!P125) -> -3.49553e-05 | F125: -8.884313154e-06 | G125: 1.762131276e-05 | H125: 1.166591953e-06 | J125: -0.0001046455512 | K125: -0.001031939141 | L125: 0.0006339233635 | M125: 0.009841734737 | N125: 4.161096913e-06
A126: =IF('DF raw data'!M126="","",'DF raw data'!M126) -> -270.5 | B126: =IF('DF raw data'!N126="","",'DF raw data'!N126) -> -4.86813e-05 | C126: =IF('DF raw data'!O126="","",'DF raw data'!O126) -> 1.61613e-06 | D126: =IF('DF raw data'!P126="","",'DF raw data'!P126) -> -3.43538e-05 | F126: -1.236500908e-05 | G126: 1.392765413e-05 | H126: 1.771165618e-06 | J126: -0.0001108280558 | K126: -0.001087353169 | L126: 0.0006408871906 | M126: 0.01016217833 | N126: 4.372606538e-06
A127: =IF('DF raw data'!M127="","",'DF raw data'!M127) -> -270 | B127: =IF('DF raw data'!N127="","",'DF raw data'!N127) -> -4.4129e-05 | C127: =IF('DF raw data'!O127="","",'DF raw data'!O127) -> 8.13413e-06 | D127: =IF('DF raw data'!P127="","",'DF raw data'!P127) -> -3.38373e-05 | F127: -7.789446831e-06 | G127: 2.047896111e-05 | H127: 2.290304933e-06 | J127: -0.0001147227792 | K127: -0.001144714559 | L127: 0.0006511266712 | M127: 0.01048774167 | N127: 4.591170167e-06
A128: =IF('DF raw data'!M128="","",'DF raw data'!M128) -> -269.5 | B128: =IF('DF raw data'!N128="","",'DF raw data'!N128) -> -4.33617e-05 | C128: =IF('DF raw data'!O128="","",'DF raw data'!O128) -> 1.28163e-05 | D128: =IF('DF raw data'!P128="","",'DF raw data'!P128) -> -3.05414e-05 | F128: -7.018225928e-06 | G128: 2.5185057e-05 | H128: 5.603046982e-06 | J128: -0.0001182318922 | K128: -0.001203830505 | L128: 0.0006637191997 | M128: 0.01081960127 | N128: 4.818421145e-06
A129: =IF('DF raw data'!M129="","",'DF raw data'!M129) -> -269 | B129: =IF('DF raw data'!N129="","",'DF raw data'!N129) -> -3.86829e-05 | C129: =IF('DF raw data'!O129="","",'DF raw data'!O129) -> 8.81489e-06 | D129: =IF('DF raw data'!P129="","",'DF raw data'!P129) -> -2.70715e-05 | F129: -2.31551726e-06 | G129: 2.116319979e-05 | H129: 9.090678171e-06 | J129: -0.0001193896508 | K129: -0.00126352533 | L129: 0.0006743007996 | M129: 0.01115675167 | N129: 5.052888873e-06
A130: =IF('DF raw data'!M130="","",'DF raw data'!M130) -> -268.5 | B130: =IF('DF raw data'!N130="","",'DF raw data'!N130) -> -4.72774e-05 | C130: =IF('DF raw data'!O130="","",'DF raw data'!O130) -> 1.25199e-05 | D130: =IF('DF raw data'!P130="","",'DF raw data'!P130) -> -2.39049e-05 | F130: -1.095393515e-05 | G130: 2.488714239e-05 | H130: 1.22734595e-05 | J130: -0.0001248666184 | K130: -0.00132595864 | L130: 0.0006867443707 | M130: 0.01150012385 | N130: 5.296493625e-06
A131: =IF('DF raw data'!M131="","",'DF raw data'!M131) -> -268 | B131: =IF('DF raw data'!N131="","",'DF raw data'!N131) -> -4.95161e-05 | C131: =IF('DF raw data'!O131="","",'DF raw data'!O131) -> 1.17391e-05 | D131: =IF('DF raw data'!P131="","",'DF raw data'!P131) -> -3.27221e-05 | F131: =(1-$G$1*($B$54-$G$2))*(B131-F$5) -> -1.320407491e-05 | G131: =(1-$G$1*($B$54-$G$2))*(C131-G$5) -> 2.41023525e-05 | H131: =(1-$G$1*($B$54-$G$2))*(D131-H$5) -> 3.411203605e-06 | J131: -0.0001314686558 | K131: -0.001391692967 | L131: 0.000698795547 | M131: 0.01184952163 | N131: 5.549293237e-06
A132: =IF('DF raw data'!M132="","",'DF raw data'!M132) -> -267.5 | B132: =IF('DF raw data'!N132="","",'DF raw data'!N132) -> -4.52855e-05 | C132: =IF('DF raw data'!O132="","",'DF raw data'!O132) -> 9.49693e-06 | D132: =IF('DF raw data'!P132="","",'DF raw data'!P132) -> -3.04123e-05 | F132: -8.951856546e-06 | G132: 2.184872502e-05 | H132: 5.732806683e-06 | J132: =F132*$G$3+J131 -> -0.0001359445841 | K132: =J132*$G$3+K131 -> -0.001459665259 | L132: =G132*$G$3+L131 -> 0.0007097199095 | M132: =L132*$G$3+M131 -> 0.01220438158 | N132: =(J132^2+L132^2)*$G$3+N131 -> 5.810384877e-06
A133: =IF('DF raw data'!M133="","",'DF raw data'!M133) -> -267 | B133: =IF('DF raw data'!N133="","",'DF raw data'!N133) -> -3.65649e-05 | C133: =IF('DF raw data'!O133="","",'DF raw data'!O133) -> 7.42199e-06 | D133: =IF('DF raw data'!P133="","",'DF raw data'!P133) -> -2.98539e-05 | F133: -1.866942795e-07 | G133: 1.976318207e-05 | H133: 6.294060107e-06 | J133: -0.0001360379312 | K133: -0.001527684225 | L133: 0.0007196015005 | M133: 0.01256418233 | N133: 6.078551196e-06
A134: =IF('DF raw data'!M134="","",'DF raw data'!M134) -> -266.5 | B134: =IF('DF raw data'!N134="","",'DF raw data'!N134) -> -4.94537e-05 | C134: =IF('DF raw data'!O134="","",'DF raw data'!O134) -> 7.7225e-06 | D134: =IF('DF raw data'!P134="","",'DF raw data'!P134) -> -2.97737e-05 | F134: -1.314135605e-05 | G134: 2.006522768e-05 | H134: 6.374669929e-06 | J134: -0.0001426086093 | K134: -0.00159898853 | L134: 0.0007296341144 | M134: 0.01292899939 | N134: 6.354902774e-06
A135: =IF('DF raw data'!M135="","",'DF raw data'!M135) -> -266 | B135: =IF('DF raw data'!N135="","",'DF raw data'!N135) -> -4.11797e-05 | C135: =IF('DF raw data'!O135="","",'DF raw data'!O135) -> 8.08178e-06 | D135: =IF('DF raw data'!P135="","",'DF raw data'!P135) -> -3.29402e-05 | F135: -4.825075908e-06 | G135: 2.04263436e-05 | H135: 3.191989114e-06 | J135: -0.0001450211472 | K135: -0.001671499103 | L135: 0.0007398472862 | M135: 0.01329892303 | N135: 6.639105344e-06
A136: =IF('DF raw data'!M136="","",'DF raw data'!M136) -> -265.5 | B136: =IF('DF raw data'!N136="","",'DF raw data'!N136) -> -2.94413e-05 | C136: =IF('DF raw data'!O136="","",'DF raw data'!O136) -> 3.45381e-06 | D136: =IF('DF raw data'!P136="","",'DF raw data'!P136) -> -3.89023e-05 | F136: 6.973307316e-06 | G136: 1.577472467e-05 | H136: -2.800577217e-06 | J136: -0.0001415344936 | K136: -0.00174226635 | L136: 0.0007477346485 | M136: 0.01367279036 | N136: 6.928674903e-06
A137: =IF('DF raw data'!M137="","",'DF raw data'!M137) -> -265 | B137: =IF('DF raw data'!N137="","",'DF raw data'!N137) -> -4.82286e-05 | C137: =IF('DF raw data'!O137="","",'DF raw data'!O137) -> 2.52176e-06 | D137: =IF('DF raw data'!P137="","",'DF raw data'!P137) -> -4.04696e-05 | F137: -1.190999579e-05 | G137: 1.48379119e-05 | H137: -4.37588612e-06 | J137: -0.0001474894915 | K137: -0.001816011096 | L137: 0.0007551536045 | M137: 0.01405036716 | N137: 7.224679961e-06
A138: =IF('DF raw data'!M138="","",'DF raw data'!M138) -> -264.5 | B138: =IF('DF raw data'!N138="","",'DF raw data'!N138) -> -4.31026e-05 | C138: =IF('DF raw data'!O138="","",'DF raw data'!O138) -> 1.20585e-05 | D138: =IF('DF raw data'!P138="","",'DF raw data'!P138) -> -3.45822e-05 | F138: -6.757801927e-06 | G138: 2.442338464e-05 | H138: 1.541598494e-06 | J138: -0.0001508683924 | K138: -0.001891445292 | L138: 0.0007673652968 | M138: 0.01443404981 | N138: 7.530485346e-06
A139: =IF('DF raw data'!M139="","",'DF raw data'!M139) -> -264 | B139: =IF('DF raw data'!N139="","",'DF raw data'!N139) -> -6.15152e-05 | C139: =IF('DF raw data'!O139="","",'DF raw data'!O139) -> 8.10431e-06 | D139: =IF('DF raw data'!P139="","",'DF raw data'!P139) -> -2.02769e-05 | F139: -2.526449031e-05 | G139: 2.044898873e-05 | H139: 1.591999858e-05 | J139: -0.0001635006376 | K139: -0.001973195611 | L139: 0.0007775897912 | M139: 0.0148228447 | N139: 7.846174517e-06
A140: =IF('DF raw data'!M140="","",'DF raw data'!M140) -> -263.5 | B140: =IF('DF raw data'!N140="","",'DF raw data'!N140) -> -4.04746e-05 | C140: =IF('DF raw data'!O140="","",'DF raw data'!O140) -> 5.65216e-06 | D140: =IF('DF raw data'!P140="","",'DF raw data'!P140) -> -3.28595e-05 | F140: -4.116372847e-06 | G140: 1.798430824e-05 | H140: 3.273101491e-06 | J140: -0.000165558824 | K140: -0.002055975023 | L140: 0.0007865819453 | M140: 0.01521613567 | N140: 8.169234958e-06
A141: =IF('DF raw data'!M141="","",'DF raw data'!M141) -> -263 | B141: =IF('DF raw data'!N141="","",'DF raw data'!N141) -> -4.65067e-05 | C141: =IF('DF raw data'!O141="","",'DF raw data'!O141) -> -4.71188e-06 | D141: =IF('DF raw data'!P141="","",'DF raw data'!P141) -> -2.58329e-05 | F141: -1.017929688e-05 | G141: 7.567307996e-06 | H141: 1.033560742e-05 | J141: -0.0001706484724 | K141: -0.002141299259 | L141: 0.0007903655993 | M141: 0.01561131847 | N141: 8.496134298e-06
A142: =IF('DF raw data'!M142="","",'DF raw data'!M142) -> -262.5 | B142: =IF('DF raw data'!N142="","",'DF raw data'!N142) -> -3.6696e-05 | C142: =IF('DF raw data'!O142="","",'DF raw data'!O142) -> -2.37675e-06 | D142: =IF('DF raw data'!P142="","",'DF raw data'!P142) -> -2.54308e-05 | F142: -3.184642005e-07 | G142: 9.914370511e-06 | H142: 1.073976215e-05 | J142: -0.0001708077045 | K142: -0.002226703111 | L142: 0.0007953227845 | M142: 0.01600897987 | N142: 8.8269911e-06
A143: =IF('DF raw data'!M143="","",'DF raw data'!M143) -> -262 | B143: =IF('DF raw data'!N143="","",'DF raw data'!N143) -> -3.65011e-05 | C143: =IF('DF raw data'!O143="","",'DF raw data'!O143) -> 1.18922e-06 | D143: =IF('DF raw data'!P143="","",'DF raw data'!P143) -> -2.96324e-05 | F143: -1.225682615e-07 | G143: 1.349856262e-05 | H143: 6.516691972e-06 | J143: -0.0001708689887 | K143: -0.002312137606 | L143: 0.0008020720658 | M143: 0.0164100159 | N143: 9.163249005e-06
A144: =IF('DF raw data'!M144="","",'DF raw data'!M144) -> -261.5 | B144: =IF('DF raw data'!N144="","",'DF raw data'!N144) -> -3.96467e-05 | C144: =IF('DF raw data'!O144="","",'DF raw data'!O144) -> 9.22838e-06 | D144: =IF('DF raw data'!P144="","",'DF raw data'!P144) -> -2.38069e-05 | F144: -3.284242278e-06 | G144: 2.157880273e-05 | H144: 1.237196028e-05 | J144: -0.0001725111098 | K144: -0.002398393161 | L144: 0.0008128614672 | M144: 0.01681644663 | N144: 9.508500929e-06
A145: =IF('DF raw data'!M145="","",'DF raw data'!M145) -> -261 | B145: =IF('DF raw data'!N145="","",'DF raw data'!N145) -> -3.79153e-05 | C145: =IF('DF raw data'!O145="","",'DF raw data'!O145) -> 1.00569e-05 | D145: =IF('DF raw data'!P145="","",'DF raw data'!P145) -> -2.41725e-05 | F145: -1.543994824e-06 | G145: 2.241155646e-05 | H145: 1.200449206e-05 | J145: -0.0001732831072 | K145: -0.002485034714 | L145: 0.0008240672454 | M145: 0.01722848026 | N145: 9.863057859e-06
A146: =IF('DF raw data'!M146="","",'DF raw data'!M146) -> -260.5 | B146: =IF('DF raw data'!N146="","",'DF raw data'!N146) -> -4.87509e-05 | C146: =IF('DF raw data'!O146="","",'DF raw data'!O146) -> 6.90167e-06 | D146: =IF('DF raw data'!P146="","",'DF raw data'!P146) -> -2.60782e-05 | F146: -1.243496474e-05 | G146: 1.924020324e-05 | H146: 1.008905393e-05 | J146: -0.0001795005896 | K146: -0.002574785009 | L146: 0.000833687347 | M146: 0.01764532393 | N146: 1.022668539e-05
A147: =IF('DF raw data'!M147="","",'DF raw data'!M147) -> -260 | B147: =IF('DF raw data'!N147="","",'DF raw data'!N147) -> -3.98304e-05 | C147: =IF('DF raw data'!O147="","",'DF raw data'!O147) -> 1.03269e-05 | D147: =IF('DF raw data'!P147="","",'DF raw data'!P147) -> -3.74194e-05 | F147: -3.468880985e-06 | G147: 2.268293616e-05 | H147: -1.310099598e-06 | J147: -0.0001812350301 | K147: -0.002665402524 | L147: 0.0008450288151 | M147: 0.01806783834 | N147: 1.06001453e-05
A148: =IF('DF raw data'!M148="","",'DF raw data'!M148) -> -259.5 | B148: =IF('DF raw data'!N148="","",'DF raw data'!N148) -> -4.36189e-05 | C148: =IF('DF raw data'!O148="","",'DF raw data'!O148) -> 1.31114e-05 | D148: =IF('DF raw data'!P148="","",'DF raw data'!P148) -> -2.94869e-05 | F148: -7.27674022e-06 | G148: 2.548166496e-05 | H148: 6.662935477e-06 | J148: -0.0001848734002 | K148: -0.002757839224 | L148: 0.0008577696476 | M148: 0.01849672316 | N148: 1.098511877e-05
A149: =IF('DF raw data'!M149="","",'DF raw data'!M149) -> -259 | B149: =IF('DF raw data'!N149="","",'DF raw data'!N149) -> -5.02317e-05 | C149: =IF('DF raw data'!O149="","",'DF raw data'!O149) -> 1.18262e-05 | D149: =IF('DF raw data'!P149="","",'DF raw data'!P149) -> -1.71606e-05 | F149: -1.392333163e-05 | G149: 2.418989759e-05 | H149: 1.905222287e-05 | J149: -0.000191835066 | K149: -0.002853756757 | L149: 0.0008698645964 | M149: 0.01893165546 | N149: 1.138185133e-05
A150: =IF('DF raw data'!M150="","",'DF raw data'!M150) -> -258.5 | B150: =IF('DF raw data'!N150="","",'DF raw data'!N150) -> -3.81027e-05 | C150: =IF('DF raw data'!O150="","",'DF raw data'!O150) -> 1.81087e-05 | D150: =IF('DF raw data'!P150="","",'DF raw data'!P150) -> -3.17282e-05 | F150: -1.732352438e-06 | G150: 3.050450116e-05 | H150: 4.410182434e-06 | J150: -0.0001927012422 | K150: -0.002950107378 | L150: 0.000885116847 | M150: 0.01937421388 | N150: 1.179213413e-05
A151: =IF('DF raw data'!M151="","",'DF raw data'!M151) -> -258 | B151: =IF('DF raw data'!N151="","",'DF raw data'!N151) -> -4.0221e-05 | C151: =IF('DF raw data'!O151="","",'DF raw data'!O151) -> 7.4909e-06 | D151: =IF('DF raw data'!P151="","",'DF raw data'!P151) -> -2.84807e-05 | F151: -3.861476951e-06 | G151: 1.98324442e-05 | H151: 7.674277159e-06 | J151: -0.0001946319807 | K151: -0.003047423369 | L151: 0.0008950330691 | M151: 0.01982173042 | N151: 1.221161703e-05
A152: =IF('DF raw data'!M152="","",'DF raw data'!M152) -> -257.5 | B152: =IF('DF raw data'!N152="","",'DF raw data'!N152) -> -3.71426e-05 | C152: =IF('DF raw data'!O152="","",'DF raw data'!O152) -> 6.69521e-06 | D152: =IF('DF raw data'!P152="","",'DF raw data'!P152) -> -2.91479e-05 | F152: -7.673463265e-07 | G152: 1.903268823e-05 | H152: 7.003667767e-06 | J152: -0.0001950156539 | K152: -0.003144931195 | L152: 0.0009045494132 | M152: 0.02027400512 | N152: 1.26397374e-05
A153: =IF('DF raw data'!M153="","",'DF raw data'!M153) -> -257 | B153: =IF('DF raw data'!N153="","",'DF raw data'!N153) -> -4.16259e-05 | C153: =IF('DF raw data'!O153="","",'DF raw data'!O153) -> 1.83104e-05 | D153: =IF('DF raw data'!P153="","",'DF raw data'!P153) -> -3.73334e-05 | F153: -5.27355599e-06 | G153: 3.070723185e-05 | H153: -1.223660138e-06 | J153: -0.0001976524319 | K153: -0.003243757411 | L153: 0.0009199030291 | M153: 0.02073395664 | N153: 1.308238144e-05
A154: =IF('DF raw data'!M154="","",'DF raw data'!M154) -> -256.5 | B154: =IF('DF raw data'!N154="","",'DF raw data'!N154) -> -4.48373e-05 | C154: =IF('DF raw data'!O154="","",'DF raw data'!O154) -> 7.07275e-06 | D154: =IF('DF raw data'!P154="","",'DF raw data'!P154) -> -2.91911e-05 | F154: -8.501366244e-06 | G154: 1.941215746e-05 | H154: 6.960247015e-06 | J154: -0.000201903115 | K154: -0.003344708969 | L154: 0.0009296091078 | M154: 0.02119876119 | N154: 1.353485042e-05
A155: =IF('DF raw data'!M155="","",'DF raw data'!M155) -> -256 | B155: =IF('DF raw data'!N155="","",'DF raw data'!N155) -> -4.63765e-05 | C155: =IF('DF raw data'!O155="","",'DF raw data'!O155) -> 2.39971e-06 | D155: =IF('DF raw data'!P155="","",'DF raw data'!P155) -> -2.87861e-05 | F155: -1.004843156e-05 | G155: 1.471523822e-05 | H155: 7.367316565e-06 | J155: -0.0002069273308 | K155: -0.003448172634 | L155: 0.000936966727 | M155: 0.02166724456 | N155: 1.39952132e-05
A156: =IF('DF raw data'!M156="","",'DF raw data'!M156) -> -255.5 | B156: =IF('DF raw data'!N156="","",'DF raw data'!N156) -> -3.97086e-05 | C156: =IF('DF raw data'!O156="","",'DF raw data'!O156) -> 1.06732e-06 | D156: =IF('DF raw data'!P156="","",'DF raw data'!P156) -> -2.75334e-05 | F156: -3.346458587e-06 | G156: 1.337603971e-05 | H156: 8.626417862e-06 | J156: -0.00020860056 | K156: -0.003552472914 | L156: 0.0009436547468 | M156: 0.02213907193 | N156: 1.446221244e-05
A157: =IF('DF raw data'!M157="","",'DF raw data'!M157) -> -255 | B157: =IF('DF raw data'!N157="","",'DF raw data'!N157) -> -4.59321e-05 | C157: =IF('DF raw data'!O157="","",'DF raw data'!O157) -> 4.08493e-06 | D157: =IF('DF raw data'!P157="","",'DF raw data'!P157) -> -2.22163e-05 | F157: -9.601760672e-06 | G157: 1.64090697e-05 | H157: 1.397068824e-05 | J157: -0.0002134014404 | K157: -0.003659173634 | L157: 0.0009518592817 | M157: 0.02261500157 | N157: 1.493800057e-05
A158: =IF('DF raw data'!M158="","",'DF raw data'!M158) -> -254.5 | B158: =IF('DF raw data'!N158="","",'DF raw data'!N158) -> -5.62563e-05 | C158: =IF('DF raw data'!O158="","",'DF raw data'!O158) -> 1.71432e-05 | D158: =IF('DF raw data'!P158="","",'DF raw data'!P158) -> -2.16494e-05 | F158: -1.997871733e-05 | G158: 2.953406746e-05 | H158: 1.45404851e-05 | J158: -0.000223390799 | K158: -0.003770869034 | L158: 0.0009666263154 | M158: 0.02309831473 | N158: 1.543013551e-05
A159: =IF('DF raw data'!M159="","",'DF raw data'!M159) -> -254 | B159: =IF('DF raw data'!N159="","",'DF raw data'!N159) -> -4.75948e-05 | C159: =IF('DF raw data'!O159="","",'DF raw data'!O159) -> 2.08714e-05 | D159: =IF('DF raw data'!P159="","",'DF raw data'!P159) -> -2.90999e-05 | F159: -1.127295707e-05 | G159: 3.328131856e-05 | H159: 7.051913047e-06 | J159: -0.0002290272776 | K159: -0.003885382673 | L159: 0.0009832669747 | M159: 0.02358994822 | N159: 1.593976923e-05
A160: =IF('DF raw data'!M160="","",'DF raw data'!M160) -> -253.5 | B160: =IF('DF raw data'!N160="","",'DF raw data'!N160) -> -4.92644e-05 | C160: =IF('DF raw data'!O160="","",'DF raw data'!O160) -> 9.01434e-06 | D160: =IF('DF raw data'!P160="","",'DF raw data'!P160) -> -2.53722e-05 | F160: -1.295108872e-05 | G160: 2.136366898e-05 | H160: 1.079866159e-05 | J160: -0.0002355028219 | K160: -0.004003134084 | L160: 0.0009939488092 | M160: 0.02408692262 | N160: 1.646146714e-05
